Workbook

Sheet Instructions
B2: Seed Selection Cost Comparision Decision Tool
B5: Template by: Jon LaPorte, Farm Management Educator
B6: Michigan State University Extension
B7: 120 N. Broadway, Suite 116, Cassopolis, MI 49031
B8: Phone: (269) 445-4356 Email: laportej@msu.edu
B11: 1) | C11: Each TAB represents an important aspect of selecting seed based on test plot or field yield estimates. Click on a TAB to enter specific information.
C12: These include:
D14: Corn/Soybean/Wheat tabs | E14: - | F14: Input Hybrid or Variety name, Moisture %, Test Weight (in lbs.), and Plot Yield (bu/acre)
E15: - | F15: Seed Cost/Acre, Test Weight Dockage, Moisture Dockage & Drying Costs are all calculated in the "Computation Center"
E16: - | F16: Yield Rank: provides a visual ranking of top yielding hybrids or varieties in plot
E17: - | F17: Economic Rank: provides a visual ranking of most profitable hybrid or varieties based on associated revenues and costs calculated in the "Computation Center"
D18: Computation Center | E18: - | F18: Found on the Corn, Soybean, or Wheat tabs
E19: - | F19: Revenue Center: Input Market Price and Yield of Hybrid/Variety
E20: - | F20: Seed Cost/Acre: Enter Seed Count Per Bag, Planting Population, Seeds Per Pound (Wheat only) and Price Per Bag - Auto calculates a Total Seed Cost/Acre to be manually entered in the plot area of the Corn/Soybean/Wheat tab
E22: - | F22: Test Weight Rate: Based on test weight, enter Rate/Bushel per provided chart (or local elevator chart if different) - Auto calculates a Test Weight Charge to be manually entered in the plot area of the Corn/Soybean/Wheat tab
E24: - | F24: Total Moisture/Drying Dockage: Enter Shrink Loss % as provided by local elevator, Enter Drying Cost as provided by local elevator, and select Moisture % from harvested plot - Auto calculates a total charge for Moisture Dockage/Drying Cost to be manually entered in the plot area of the Corn/Soybean/Wheat tab
D26: Yield Calculator | E26: - | F26: This section contains a calculation for determining yields based on test plot weigh wagon measurements or in-field yield components (corn only)
B29: 2) | C29: Only items that are colored in BLUE should be altered in each TAB. Changing the value of an item not marked BLUE can cause the formulas in the spreadsheet to stop working.

Sheet Corn
A1: Seed Selection Cost Comparison Decision Tool | L1: Seed Selection Cost Comparison Decision Tool
A3: Template by: Jon LaPorte, Farm Business Management Educator | L3: Template by: Jon LaPorte, Farm Business Management Educator
A4: Michigan State University Extension | L4: Michigan State University Extension
A5: 120 N. Broadway, Suite 116, Cassopolis, MI 49031 | L5: 120 N. Broadway, Suite 116, Cassopolis, MI 49031
A6: Phone: (269) 445-4356 Email: laportej@msu.edu | L6: Phone: (269) 445-4356 Email: laportej@msu.edu
B8: Enter Below | C8: Enter Below | D8: Enter Below | E8: Enter Below | F8: Enter Below | G8: Enter Below | H8: Enter Below | I8: Enter Below | J8: Enter Below | K8: Enter Below | L8: Enter Below | M8: Enter Below | N8: Enter Below | O8: Enter Below | P8: Enter Below | Q8: Enter Below | R8: Enter Below | S8: Enter Below | T8: Enter Below | U8: Enter Below
A9: Hybrid | B9: Hybrid 1 | C9: Hybrid 2 | D9: Hybrid 3 | E9: Hybrid 4 | F9: Hybrid 5 | G9: Hybrid 6 | H9: Hybrid 7 | I9: Hybrid 8 | J9: Hybrid 9 | K9: Hybrid 10 | L9: Hybrid 11 | M9: Hybrid 12 | N9: Hybrid 13 | O9: Hybrid 14 | P9: Hybrid 15 | Q9: Hybrid 16 | R9: Hybrid 17 | S9: Hybrid 18 | T9: Hybrid 19 | U9: Hybrid 20 | V9: Hybrid
A10: Moisture (%) | B10: 0.184 | C10: 0.165 | D10: 0.202 | E10: 0 | F10: 0 | G10: 0 | H10: 0 | I10: 0 | J10: 0 | K10: 0 | L10: 0 | M10: 0 | N10: 0 | O10: 0 | P10: 0 | Q10: 0 | R10: 0 | S10: 0 | T10: 0 | U10: 0 | V10: Moisture (%)
A11: Test Weight (lbs.) | B11: 53.5 | C11: 54 | D11: 52 | E11: 0 | F11: 0 | G11: 0 | H11: 0 | I11: 0 | J11: 0 | K11: 0 | L11: 0 | M11: 0 | N11: 0 | O11: 0 | P11: 0 | Q11: 0 | R11: 0 | S11: 0 | T11: 0 | U11: 0 | V11: Test Weight (lbs.)
A12: Yield (bu/acre) | B12: 160 | C12: 150 | D12: 165 | E12: 0 | F12: 0 | G12: 0 | H12: 0 | I12: 0 | J12: 0 | K12: 0 | L12: 0 | M12: 0 | N12: 0 | O12: 0 | P12: 0 | Q12: 0 | R12: 0 | S12: 0 | T12: 0 | U12: 0 | V12: Yield (bu/acre)
A13: Revenue/Acre | B13: =B12*$B$33 -> 1041.6 | C13: =C12*$B$33 -> 976.5 | D13: 1074.15 | E13: 0 | F13: 0 | G13: 0 | H13: 0 | I13: 0 | J13: 0 | K13: 0 | L13: 0 | M13: 0 | N13: 0 | O13: 0 | P13: 0 | Q13: 0 | R13: 0 | S13: 0 | T13: 0 | U13: 0 | V13: Revenue/Acre
B14: Enter Below | C14: Enter Below | D14: Enter Below | E14: Enter Below | F14: Enter Below | G14: Enter Below | H14: Enter Below | I14: Enter Below | J14: Enter Below | K14: Enter Below | L14: Enter Below | M14: Enter Below | N14: Enter Below | O14: Enter Below | P14: Enter Below | Q14: Enter Below | R14: Enter Below | S14: Enter Below | T14: Enter Below | U14: Enter Below
A15: Seed Cost/Acre | B15: 87.5 | C15: 91 | D15: 105 | E15: 0 | F15: 0 | G15: 0 | H15: 0 | I15: 0 | J15: 0 | K15: 0 | L15: 0 | M15: 0 | N15: 0 | O15: 0 | P15: 0 | Q15: 0 | R15: 0 | S15: 0 | T15: 0 | U15: 0 | V15: Seed Cost/Acre
A16: Test Weight Dockage | B16: 1.6 | C16: 0 | D16: 6.6 | E16: 0 | F16: 0 | G16: 0 | H16: 0 | I16: 0 | J16: 0 | K16: 0 | L16: 0 | M16: 0 | N16: 0 | O16: 0 | P16: 0 | Q16: 0 | R16: 0 | S16: 0 | T16: 0 | U16: 0 | V16: Test Weight Dockage
A17: Moisture Dockage/ Drying Costs | B17: 57.97 | C17: 19.99 | D17: 93.94 | E17: 0 | F17: 0 | G17: 0 | H17: 0 | I17: 0 | J17: 0 | K17: 0 | L17: 0 | M17: 0 | N17: 0 | O17: 0 | P17: 0 | Q17: 0 | R17: 0 | S17: 0 | T17: 0 | U17: 0 | V17: Moisture Dockage/ Drying Costs
A18: Cost/Acre | B18: =B16+B17+B15 -> 147.07 | C18: =C16+C17+C15 -> 110.99 | D18: 205.54 | E18: 0 | F18: 0 | G18: 0 | H18: 0 | I18: 0 | J18: 0 | K18: 0 | L18: 0 | M18: 0 | N18: 0 | O18: 0 | P18: 0 | Q18: 0 | R18: 0 | S18: 0 | T18: 0 | U18: 0 | V18: Cost/Acre
A20: Return Over Cost | B20: =B13-B18 -> 894.53 | C20: 865.51 | D20: 868.61 | E20: 0 | F20: 0 | G20: 0 | H20: 0 | I20: 0 | J20: 0 | K20: 0 | L20: 0 | M20: 0 | N20: 0 | O20: 0 | P20: 0 | Q20: 0 | R20: 0 | S20: 0 | T20: 0 | U20: 0 | V20: Return Over Cost
A22: Yield Rank | B22: =RANK(B12,$B12:$T12) -> 2 | C22: 3 | D22: 1 | E22: 4 | F22: 4 | G22: 4 | H22: 4 | I22: 4 | J22: 4 | K22: 4 | L22: 4 | M22: 4 | N22: 4 | O22: 4 | P22: 4 | Q22: 4 | R22: 4 | S22: 4 | T22: 4 | U22: 4 | V22: Yield Rank
A24: Economic Rank | B24: =RANK(B20,$B20:$T20) -> 1 | C24: 3 | D24: 2 | E24: 4 | F24: 4 | G24: 4 | H24: 4 | I24: 4 | J24: 4 | K24: 4 | L24: 4 | M24: 4 | N24: 4 | O24: 4 | P24: 4 | Q24: 4 | R24: 4 | S24: 4 | T24: 4 | U24: 4 | V24: Economic Rank
H27: Producer/Farm Name | S27: =H27 -> Producer/Farm Name
H29: Plot Identifier/Name | S29: =H29 -> Plot Identifier/Name
A31: Computation Center
B32: Enter Below
A33: Market Price | B33: 6.51 | C33: <-- Need to Enter for Moisture & Revenue/Acre Calculations
A34: Yield | B34: 165 | C34: <-- Need to Enter for Test Weight/Moisture Calculations
B36: Enter Below
A37: Seeds Per Bag | B37: 80000
A38: Planting Population | B38: 28000
A39: Price Per Bag | B39: 300
A41: Total Seed Cost/Acre | B41: =(B39/$B$37)*B38 -> 105
B43: Enter Below | C43: Example Test Weight Discount Chart
A44: Corn Test Weight | B44: 52 | C44: 53.9-53 | D44: 52.9-52 | E44: 51.9-51 | F44: 50.9-50 | G44: Below 50
A45: Test Wt. Rate | B45: 0.03 | C45: 0.01 | D45: 0.02 | E45: 0.04 | F45: 0.06 | G45: $0.06+
A47: Test Weight Charge | B47: =B34*B45 -> 4.95
B49: Enter Below
A50: Shrink Loss % | B50: 0.014 | C50: per point moisture
A51: Drying cost | B51: 0.03 | C51: per point moisture
B52: Drop Down Menu
A53: Moisture Dockage/ Drying Costs | B53: 0.202 | C53: ='Grain Handling (Corn)'!F476 -> 93.94407
A56: Moisture Charge | B56: =((B57*B58)*B33)*B59 -> 12.20625
A57: Points Above 15.5% | B57: 1 | C57: <--Enter Here
A58: Moisture Discount Used | B58: 0.0125 | C58: <--Enter Here
A59: Yield | B59: 150 | C59: <--Enter Here
A60: Moisture Percentage | B60: 15.5-16.5% | C60: 16.5-17.5 | D60: 17.5-18.5 | E60: 18.5-19.5 | F60: 19.5-over
A61: Moisture Discount | B61: 0.01 | C61: 0.0125 | D61: 0.015 | E61: 0.0175 | F61: 0.02

Sheet Soybeans
A1: Seed Selection Cost Comparison Decision Tool | L1: Seed Selection Cost Comparison Decision Tool
A3: Template by: Jon LaPorte, Farm Business Management Educator | L3: Template by: Jon LaPorte, Farm Business Management Educator
A4: Michigan State University Extension | L4: Michigan State University Extension
A5: 120 N. Broadway, Suite 116, Cassopolis, MI 49031 | L5: 120 N. Broadway, Suite 116, Cassopolis, MI 49031
A6: Phone: (269) 445-4356 Email: laportej@msu.edu | L6: Phone: (269) 445-4356 Email: laportej@msu.edu
B8: Enter Below | C8: Enter Below | D8: Enter Below | E8: Enter Below | F8: Enter Below | G8: Enter Below | H8: Enter Below | I8: Enter Below | J8: Enter Below | K8: Enter Below | L8: Enter Below | M8: Enter Below | N8: Enter Below | O8: Enter Below | P8: Enter Below | Q8: Enter Below | R8: Enter Below | S8: Enter Below | T8: Enter Below | U8: Enter Below
A9: Variety | B9: Variety 1 | C9: Variety 2 | D9: Variety 3 | E9: Variety 4 | F9: Variety 5 | G9: Variety 6 | H9: Variety 7 | I9: Variety 8 | J9: Variety 9 | K9: Variety 10 | L9: Variety 11 | M9: Variety 12 | N9: Variety 13 | O9: Variety 14 | P9: Variety 15 | Q9: Variety 16 | R9: Variety 17 | S9: Variety 18 | T9: Variety 19 | U9: Variety 20 | V9: Variety
A10: Moisture (%) | B10: 0.16 | C10: 0.17 | D10: 0.155 | E10: 0 | F10: 0 | G10: 0 | H10: 0 | I10: 0 | J10: 0 | K10: 0 | L10: 0 | M10: 0 | N10: 0 | O10: 0 | P10: 0 | Q10: 0 | R10: 0 | S10: 0 | T10: 0 | U10: 0 | V10: Moisture (%)
A11: Test Weight (lbs.) | B11: 53.5 | C11: 54 | D11: 52 | E11: 0 | F11: 0 | G11: 0 | H11: 0 | I11: 0 | J11: 0 | K11: 0 | L11: 0 | M11: 0 | N11: 0 | O11: 0 | P11: 0 | Q11: 0 | R11: 0 | S11: 0 | T11: 0 | U11: 0 | V11: Test Weight (lbs.)
A12: Yield (bu/acre) | B12: 40 | C12: 38 | D12: 42 | E12: 0 | F12: 0 | G12: 0 | H12: 0 | I12: 0 | J12: 0 | K12: 0 | L12: 0 | M12: 0 | N12: 0 | O12: 0 | P12: 0 | Q12: 0 | R12: 0 | S12: 0 | T12: 0 | U12: 0 | V12: Yield (bu/acre)
A13: Revenue/Acre | B13: =B12*$B$33 -> 544.4 | C13: 517.18 | D13: 571.62 | E13: 0 | F13: 0 | G13: 0 | H13: 0 | I13: 0 | J13: 0 | K13: 0 | L13: 0 | M13: 0 | N13: 0 | O13: 0 | P13: 0 | Q13: 0 | R13: 0 | S13: 0 | T13: 0 | U13: 0 | V13: Revenue/Acre
B14: Enter Below | C14: Enter Below | D14: Enter Below | E14: Enter Below | F14: Enter Below | G14: Enter Below | H14: Enter Below | I14: Enter Below | J14: Enter Below | K14: Enter Below | L14: Enter Below | M14: Enter Below | N14: Enter Below | O14: Enter Below | P14: Enter Below | Q14: Enter Below | R14: Enter Below | S14: Enter Below | T14: Enter Below | U14: Enter Below
A15: Seed Cost/Acre | B15: 37.14 | C15: 46.43 | D15: 55.71 | E15: 0 | F15: 0 | G15: 0 | H15: 0 | I15: 0 | J15: 0 | K15: 0 | L15: 0 | M15: 0 | N15: 0 | O15: 0 | P15: 0 | Q15: 0 | R15: 0 | S15: 0 | T15: 0 | U15: 0 | V15: Seed Cost/Acre
A16: Test Weight Dockage | B16: 0.4 | C16: 0 | D16: 0.84 | E16: 0 | F16: 0 | G16: 0 | H16: 0 | I16: 0 | J16: 0 | K16: 0 | L16: 0 | M16: 0 | N16: 0 | O16: 0 | P16: 0 | Q16: 0 | R16: 0 | S16: 0 | T16: 0 | U16: 0 | V16: Test Weight Dockage
A17: Moisture Dockage/ Drying Costs | B17: 11.07 | C17: 13.89 | D17: 17.75 | E17: 0 | F17: 0 | G17: 0 | H17: 0 | I17: 0 | J17: 0 | K17: 0 | L17: 0 | M17: 0 | N17: 0 | O17: 0 | P17: 0 | Q17: 0 | R17: 0 | S17: 0 | T17: 0 | U17: 0 | V17: Moisture Dockage/ Drying Costs
A18: Cost/Acre | B18: =B16+B17+B15 -> 48.61 | C18: =C16+C17+C15 -> 60.32 | D18: 74.3 | E18: 0 | F18: 0 | G18: 0 | H18: 0 | I18: 0 | J18: 0 | K18: 0 | L18: 0 | M18: 0 | N18: 0 | O18: 0 | P18: 0 | Q18: 0 | R18: 0 | S18: 0 | T18: 0 | U18: 0 | V18: Cost/Acre
A20: Return Over Costs | B20: =B13-B18 -> 495.79 | C20: 456.86 | D20: 497.32 | E20: 0 | F20: 0 | G20: 0 | H20: 0 | I20: 0 | J20: 0 | K20: 0 | L20: 0 | M20: 0 | N20: 0 | O20: 0 | P20: 0 | Q20: 0 | R20: 0 | S20: 0 | T20: 0 | U20: 0 | V20: Return Over Costs
A22: Yield Rank | B22: =RANK(B12,$B12:$T12) -> 2 | C22: 3 | D22: 1 | E22: 4 | F22: 4 | G22: 4 | H22: 4 | I22: 4 | J22: 4 | K22: 4 | L22: 4 | M22: 4 | N22: 4 | O22: 4 | P22: 4 | Q22: 4 | R22: 4 | S22: 4 | T22: 4 | U22: 4 | V22: Yield Rank
A24: Economic Rank | B24: =RANK(B20,$B20:$T20) -> 2 | C24: =RANK(C20,$B20:$T20) -> 3 | D24: 1 | E24: 4 | F24: 4 | G24: 4 | H24: 4 | I24: 4 | J24: 4 | K24: 4 | L24: 4 | M24: 4 | N24: 4 | O24: 4 | P24: 4 | Q24: 4 | R24: 4 | S24: 4 | T24: 4 | U24: 4 | V24: Economic Rank
H27: Producer/Farm Name | S27: =H27 -> Producer/Farm Name
H29: Plot Identifier/Name | S29: =H29 -> Plot Identifier/Name
A31: Computation Center
B32: Enter Below
A33: Market Price | B33: 13.61 | C33: <-- Need to Enter for Test Weight/Moisture Calculations
A34: Yield | B34: 42 | C34: <-- Need to Enter for Test Weight/Moisture Calculations
B36: Enter Below
A37: Seeds Per Bag | B37: 140000
A38: Planting Population | B38: 160000
A39: Price Per Bag | B39: 66.62
A41: Total Seed Cost/Acre | B41: =(B39/$B$37)*B38 -> 76.13714286
B43: Enter Below | C43: Example Test Weight Discount Chart
A44: Soybean Test Weight | B44: 52 | C44: 53.9-53 | D44: 52.9-52 | E44: 51.9-51 | F44: 50.9-50 | G44: Below 50
A45: Test Wt. Rate/Bushel | B45: 0.02 | C45: 0.01 | D45: 0.02 | E45: 0.04 | F45: 0.06 | G45: $0.06+
A47: Test Weight Dockage | B47: =B34*B45 -> 0.84
B49: Enter Below
A50: Shrink Loss % | B50: 0.014 | C50: per point moisture
A51: Drying cost | B51: 0.05 | C51: per point moisture
B52: Drop Down Menu
A53: Moisture Dockage/ Drying Costs | B53: 0.18 | C53: ='Grain Handling (Soybeans)'!F461 -> 50.5134
A56: Moisture Charge | B56: =((B57*B58)*B33)*B59 -> 25.51875
A57: Points Above 15.5% | B57: 1 | C57: <--Enter Here
A58: Moisture Discount Used | B58: 0.0125 | C58: <--Enter Here
A59: Yield | B59: 150 | C59: <--Enter Here
A60: Moisture Percentage | B60: 15.5-16.5% | C60: 16.5-17.5 | D60: 17.5-18.5 | E60: 18.5-19.5 | F60: 19.5-over
A61: Moisture Discount | B61: 0.01 | C61: 0.0125 | D61: 0.015 | E61: 0.0175 | F61: 0.02

Sheet Wheat
A1: Seed Selection Cost Comparison Decision Tool | L1: Seed Selection Cost Comparison Decision Tool
A3: Template by: Jon LaPorte, Farm Business Management Educator | L3: Template by: Jon LaPorte, Farm Business Management Educator
A4: Michigan State University Extension | L4: Michigan State University Extension
A5: 120 N. Broadway, Suite 116, Cassopolis, MI 49031 | L5: 120 N. Broadway, Suite 116, Cassopolis, MI 49031
A6: Phone: (269) 445-4356 Email: laportej@msu.edu | L6: Phone: (269) 445-4356 Email: laportej@msu.edu
B8: Enter Below | C8: Enter Below | D8: Enter Below | E8: Enter Below | F8: Enter Below | G8: Enter Below | H8: Enter Below | I8: Enter Below | J8: Enter Below | K8: Enter Below | L8: Enter Below | M8: Enter Below | N8: Enter Below | O8: Enter Below | P8: Enter Below | Q8: Enter Below | R8: Enter Below | S8: Enter Below | T8: Enter Below | U8: Enter Below
A9: Variety | B9: Variety 1 | C9: Variety 2 | D9: Variety 3 | E9: Variety 4 | F9: Variety 5 | G9: Variety 6 | H9: Variety 7 | I9: Variety 8 | J9: Variety 9 | K9: Variety 10 | L9: Variety 11 | M9: Variety 12 | N9: Variety 13 | O9: Variety 14 | P9: Variety 15 | Q9: Variety 16 | R9: Variety 17 | S9: Variety 18 | T9: Variety 19 | U9: Variety 20 | V9: Variety
A10: Moisture (%) | B10: 0.14 | C10: 0.15 | D10: 0.145 | E10: 0 | F10: 0 | G10: 0 | H10: 0 | I10: 0 | J10: 0 | K10: 0 | L10: 0 | M10: 0 | N10: 0 | O10: 0 | P10: 0 | Q10: 0 | R10: 0 | S10: 0 | T10: 0 | U10: 0 | V10: Moisture (%)
A11: Test Weight (lbs.) | B11: 57.5 | C11: 56 | D11: 58 | E11: 0 | F11: 0 | G11: 0 | H11: 0 | I11: 0 | J11: 0 | K11: 0 | L11: 0 | M11: 0 | N11: 0 | O11: 0 | P11: 0 | Q11: 0 | R11: 0 | S11: 0 | T11: 0 | U11: 0 | V11: Test Weight (lbs.)
A12: Yield (bu/acre) | B12: 60 | C12: 63 | D12: 62 | E12: 0 | F12: 0 | G12: 0 | H12: 0 | I12: 0 | J12: 0 | K12: 0 | L12: 0 | M12: 0 | N12: 0 | O12: 0 | P12: 0 | Q12: 0 | R12: 0 | S12: 0 | T12: 0 | U12: 0 | V12: Yield (bu/acre)
A13: Revenue/Acre | B13: =B12*$B$33 -> 816.6 | C13: 857.43 | D13: 843.82 | E13: 0 | F13: 0 | G13: 0 | H13: 0 | I13: 0 | J13: 0 | K13: 0 | L13: 0 | M13: 0 | N13: 0 | O13: 0 | P13: 0 | Q13: 0 | R13: 0 | S13: 0 | T13: 0 | U13: 0 | V13: Revenue/Acre
B14: Enter Below | C14: Enter Below | D14: Enter Below | E14: Enter Below | F14: Enter Below | G14: Enter Below | H14: Enter Below | I14: Enter Below | J14: Enter Below | K14: Enter Below | L14: Enter Below | M14: Enter Below | N14: Enter Below | O14: Enter Below | P14: Enter Below | Q14: Enter Below | R14: Enter Below | S14: Enter Below | T14: Enter Below | U14: Enter Below
A15: Seed Cost/Acre | B15: 32 | C15: 64 | D15: 55.71 | E15: 0 | F15: 0 | G15: 0 | H15: 0 | I15: 0 | J15: 0 | K15: 0 | L15: 0 | M15: 0 | N15: 0 | O15: 0 | P15: 0 | Q15: 0 | R15: 0 | S15: 0 | T15: 0 | U15: 0 | V15: Seed Cost/Acre
A16: Test Weight Dockage | B16: 1.26 | C16: 5.04 | D16: 0 | E16: 0 | F16: 0 | G16: 0 | H16: 0 | I16: 0 | J16: 0 | K16: 0 | L16: 0 | M16: 0 | N16: 0 | O16: 0 | P16: 0 | Q16: 0 | R16: 0 | S16: 0 | T16: 0 | U16: 0 | V16: Test Weight Dockage
A17: Moisture Dockage/ Drying Costs | B17: 11.25 | C17: 22.51 | D17: 8.84 | E17: 0 | F17: 0 | G17: 0 | H17: 0 | I17: 0 | J17: 0 | K17: 0 | L17: 0 | M17: 0 | N17: 0 | O17: 0 | P17: 0 | Q17: 0 | R17: 0 | S17: 0 | T17: 0 | U17: 0 | V17: Moisture Dockage/ Drying Costs
A18: Cost/Acre | B18: =B16+B17+B15 -> 44.51 | C18: =C16+C17+C15 -> 91.55 | D18: 64.55 | E18: 0 | F18: 0 | G18: 0 | H18: 0 | I18: 0 | J18: 0 | K18: 0 | L18: 0 | M18: 0 | N18: 0 | O18: 0 | P18: 0 | Q18: 0 | R18: 0 | S18: 0 | T18: 0 | U18: 0 | V18: Cost/Acre
A20: Return Over Costs | B20: =B13-B18 -> 772.09 | C20: 765.88 | D20: 779.27 | E20: 0 | F20: 0 | G20: 0 | H20: 0 | I20: 0 | J20: 0 | K20: 0 | L20: 0 | M20: 0 | N20: 0 | O20: 0 | P20: 0 | Q20: 0 | R20: 0 | S20: 0 | T20: 0 | U20: 0 | V20: Return Over Costs
A22: Yield Rank | B22: =RANK(B12,$B12:$T12) -> 3 | C22: 1 | D22: 2 | E22: 4 | F22: 4 | G22: 4 | H22: 4 | I22: 4 | J22: 4 | K22: 4 | L22: 4 | M22: 4 | N22: 4 | O22: 4 | P22: 4 | Q22: 4 | R22: 4 | S22: 4 | T22: 4 | U22: 4 | V22: Yield Rank
A24: Economic Rank | B24: =RANK(B20,$B20:$T20) -> 2 | C24: =RANK(C20,$B20:$T20) -> 3 | D24: 1 | E24: 4 | F24: 4 | G24: 4 | H24: 4 | I24: 4 | J24: 4 | K24: 4 | L24: 4 | M24: 4 | N24: 4 | O24: 4 | P24: 4 | Q24: 4 | R24: 4 | S24: 4 | T24: 4 | U24: 4 | V24: Economic Rank
H27: Producer/Farm Name | S27: =H27 -> Producer/Farm Name
H29: Plot Identifier/Name | S29: =H29 -> Plot Identifier/Name
A31: Computation Center
B32: Enter Below
A33: Market Price | B33: 13.61 | C33: <-- Need to Enter for Test Weight/Moisture Calculations
A34: Yield | B34: 63 | C34: <-- Need to Enter for Test Weight/Moisture Calculations
B36: Enter Below
A37: Seeds Per Pound (lb) | B37: 15000
A38: Weight per Bag (lbs) | B38: 50
A39: Planting Population | B39: 1600000
A40: Price Per Bag | B40: 15
A42: Total Seed Cost/Acre | B42: =((B40/$B$37)/B38)*B39 -> 32
B44: Enter Below | C44: Example Test Weight Discount Chart
A45: Wheat Test Weight | B45: 57.5 | C45: 57.9-57.5 | D45: 57.4-57.0 | E45: 56.9-56.5 | F45: 56.4-56.0 | G45: 55.9-55.5 | H45: 55.4-55.0 | I45: 54.9-54.5 | J45: 54.4-54.0 | K45: 53.5 or below
A46: Test Wt. Rate/Bushel | B46: 0.02 | C46: 0.02 | D46: 0.04 | E46: 0.06 | F46: 0.08 | G46: 0.12 | H46: 0.16 | I46: 0.24 | J46: 2.16 | K46: Possible Reject
A48: Test Weight Dockage | B48: =B34*B46 -> 1.26
B50: Enter Below
A51: Shrink Loss % | B51: 0.0335 | C51: per point moisture
A52: Drying cost | B52: 0.08 | C52: per point moisture
B53: Drop Down Menu
A54: Moisture Dockage/ Drying Costs | B54: 0.14 | C54: ='Grain Handling (Wheat)'!F461 -> 11.254635
A57: Moisture Charge | B57: =((B58*B59)*B33)*B60 -> 25.51875
A58: Points Above 15.5% | B58: 1 | C58: <--Enter Here
A59: Moisture Discount Used | B59: 0.0125 | C59: <--Enter Here
A60: Yield | B60: 150 | C60: <--Enter Here
A61: Moisture Percentage | B61: 15.5-16.5% | C61: 16.5-17.5 | D61: 17.5-18.5 | E61: 18.5-19.5 | F61: 19.5-over
A62: Moisture Discount | B62: 0.01 | C62: 0.0125 | D62: 0.015 | E62: 0.0175 | F62: 0.02

Sheet Yield Calculator
B1: Corn Yield Components (Slide Run Method) | G1: Test Plot Yield Calculator (Corn) | K1: Test Plot Yield Calculator (Soybeans)
B3: Number of Harvestable Ears | D3: 30 | G3: Test Weight Adjustment | K3: Test Weight Adjustment
B5: 5th ear | C5: Kernel Rows | D5: 16 | G5: Harvest Weight (lbs.) | H5: 960 | K5: Harvest Weight (lbs.) | L5: 335
B6: 9th ear | C6: Kernel Rows | D6: 16 | G6: Measured Moisture (decimal) | H6: 18.1 | K6: Measured Moisture (decimal) | L6: 13.4
B7: 13th ear | C7: Kernel Rows | D7: 20 | G7: Dry Matter Conversion | H7: =(100-H6)*0.01 -> 0.819 | K7: Dry Matter Conversion | L7: =(100-L6)*0.01 -> 0.866
B8: 17th ear | C8: Kernel Rows | D8: 18 | G8: Adj. Total Weight (lbs.) | H8: =H5*H7 -> 786.24 | K8: Adj. Total Weight (lbs.) | L8: =L5*L7 -> 290.11
B9: 21st ear | C9: Kernel Rows | D9: 16
B10: 24th ear | C10: Kernel Rows | D10: 18 | G10: Standard Bushel Adjustment | H10: =56*(1-0.155) -> 47.32 | K10: Standard Bushel Adjustment | L10: =60*(1-0.13) -> 52.2
B11: 28th ear | C11: Kernel Rows | D11: 20
B12: 32nd ear | C12: Kernel Rows | G12: Plot Area | K12: Plot Area
C13: Average Kernel Rows | D13: =AVERAGE(D5:D12) -> 17.71428571 | G13: Length | H13: 160 | K13: Length | L13: 160
G14: Width | H14: 30 | K14: Width | L14: 30
B15: 5th ear | C15: Kernels Per Row | D15: 28 | G15: Harvest Area (in acres) | H15: =(H14*H13)/43560 -> 0.1101928375 | K15: Harvest Area (in acres) | L15: =(L14*L13)/43560 -> 0.1101928375
B16: 9th ear | C16: Kernels Per Row | D16: 30
B17: 13th ear | C17: Kernels Per Row | D17: 28 | G17: Yield Calculation | H17: =H8/H10/H15 -> 150.7846154 | K17: Yield Calculation | L17: =L8/L10/L15 -> 50.43579023
B18: 17th ear | C18: Kernels Per Row | D18: 28
B19: 21st ear | C19: Kernels Per Row | D19: 26
B20: 24th ear | C20: Kernels Per Row | D20: 30
B21: 28th ear | C21: Kernels Per Row | D21: 28
B22: 32nd ear | C22: Kernels Per Row
C23: Average Kernels Per Row | D23: =AVERAGE(D15:D22) -> 28.28571429
C25: Yield Calculation | D25: =(D3*D13*D23)/89.605 -> 167.7566736
B27: Area to Sample for 1,000th of an Acre
B28: In 30-inch or twin rows, sample a row length of 17 feet, 5 inches
B29: In 15-inch or 20-inch rows, sample a row length of 34 feet, 10 inches
B30: In 12-inch rows, sample a row length of 43 feet, 7 inches
B32: Note: delete cell content if no ear to count kernels with as a "0" will affect average calculation

Sheet Grain Handling (Corn) (hidden)
O1: Dollars Lost Per Acre Due to Wet Corn
O4: Drying Charge
A7: =Corn!$B$51/10 -> 0.003 | B7: =SUM(A7:$A$151) -> 0.435 | C7: 0.3 | D7: =D$158*$B7 -> 35.235 | E7: =E$158*$B7 -> 35.67 | F7: 36.105 | G7: 36.54 | H7: 36.975 | I7: 37.41 | J7: 37.845 | K7: 38.28 | L7: 38.715 | M7: 39.15 | N7: 39.585 | O7: 40.02 | P7: 40.455 | Q7: 40.89 | R7: 41.325 | S7: 41.76 | T7: =T$158*$B7 -> 42.195 | U7: 42.63 | V7: 43.065 | W7: 43.5 | X7: 43.935 | Y7: 44.37 | Z7: 44.805 | AA7: 45.24 | AB7: 45.675 | AC7: 46.11 | AD7: 46.545 | AE7: 46.98 | AF7: 47.415 | AG7: 47.85 | AH7: 48.285 | AI7: 48.72 | AJ7: 49.155 | AK7: 49.59 | AL7: 50.025 | AM7: 50.46 | AN7: 50.895 | AO7: 51.33 | AP7: 51.765 | AQ7: 52.2 | AR7: 52.635 | AS7: 53.07 | AT7: 53.505 | AU7: 53.94 | AV7: 54.375 | AW7: 54.81 | AX7: 55.245 | AY7: 55.68 | AZ7: 56.115 | BA7: 56.55 | BB7: 56.985 | BC7: 57.42 | BD7: 57.855 | BE7: 58.29 | BF7: 58.725 | BG7: 59.16 | BH7: 59.595 | BI7: 60.03 | BJ7: 60.465 | BK7: 60.9 | BL7: 61.335 | BM7: 61.77 | BN7: 62.205 | BO7: 62.64 | BP7: 63.075 | BQ7: 63.51 | BR7: 63.945 | BS7: 64.38 | BT7: 64.815 | BU7: 65.25 | BV7: 65.685 | BW7: 66.12 | BX7: 66.555 | BY7: 66.99 | BZ7: 67.425 | CA7: 67.86 | CB7: 68.295 | CC7: 68.73 | CD7: 69.165 | CE7: 69.6 | CF7: =CF$158*$B7 -> 70.035 | CG7: 70.47 | CH7: 70.905 | CI7: 71.34 | CJ7: 71.775 | CK7: 72.21 | CL7: 72.645 | CM7: 73.08 | CN7: 73.515 | CO7: 73.95 | CP7: 74.385 | CQ7: 74.82 | CR7: 75.255 | CS7: 75.69 | CT7: 76.125 | CU7: 76.56 | CV7: 76.995 | CW7: 77.43 | CX7: 77.865 | CY7: 78.3 | CZ7: 78.735 | DA7: 79.17 | DB7: 79.605 | DC7: 80.04 | DD7: 80.475 | DE7: 80.91 | DF7: 81.345 | DG7: 81.78 | DH7: 82.215 | DI7: 82.65 | DJ7: 83.085 | DK7: 83.52 | DL7: 83.955 | DM7: 84.39 | DN7: 84.825 | DO7: 85.26 | DP7: 85.695 | DQ7: 86.13 | DR7: 86.565 | DS7: 87 | DT7: 87.435 | DU7: 87.87 | DV7: 88.305 | DW7: 88.74 | DX7: 89.175 | DY7: 89.61 | DZ7: 90.045 | EA7: 90.48 | EB7: 90.915 | EC7: 91.35 | ED7: 91.785 | EE7: 92.22 | EF7: 92.655 | EG7: 93.09 | EH7: 93.525 | EI7: 93.96 | EJ7: 94.395 | EK7: 94.83 | EL7: 95.265 | EM7: 95.7 | EN7: 96.135 | EO7: 96.57 | EP7: 97.005 | EQ7: 97.44 | ER7: =ER$158*$B7 -> 97.875 | ES7: 98.31 | ET7: 98.745 | EU7: 99.18 | EV7: 99.615 | EW7: 100.05 | EX7: 100.485 | EY7: 100.92 | EZ7: 101.355 | FA7: 101.79 | FB7: 102.225 | FC7: 102.66 | FD7: 103.095 | FE7: 103.53 | FF7: 103.965 | FG7: 104.4 | FH7: 104.835 | FI7: 105.27 | FJ7: 105.705 | FK7: 106.14 | FL7: 106.575 | FM7: 107.01 | FN7: 107.445 | FO7: 107.88 | FP7: 108.315 | FQ7: 108.75 | FR7: 109.185 | FS7: 109.62 | FT7: 110.055 | FU7: 110.49 | FV7: 110.925 | FW7: 111.36 | FX7: 111.795 | FY7: 112.23 | FZ7: 112.665 | GA7: 113.1 | GB7: 113.535 | GC7: 113.97 | GD7: 114.405 | GE7: 114.84 | GF7: 115.275 | GG7: 115.71 | GH7: 116.145 | GI7: 116.58 | GJ7: 117.015 | GK7: 117.45 | GL7: 117.885 | GM7: 118.32 | GN7: 118.755 | GO7: 119.19 | GP7: 119.625 | GQ7: 120.06 | GR7: 120.495 | GS7: 120.93 | GT7: 121.365 | GU7: 121.8 | GV7: 122.235 | GW7: 122.67 | GX7: 123.105 | GY7: 123.54 | GZ7: 123.975 | HA7: 124.41 | HB7: 124.845 | HC7: 125.28 | HD7: =HD$158*$B7 -> 125.715 | HE7: 126.15 | HF7: 126.585 | HG7: 127.02 | HH7: 127.455 | HI7: 127.89 | HJ7: 128.325 | HK7: 128.76 | HL7: 129.195 | HM7: 129.63 | HN7: 130.065 | HO7: 130.5
A8: =Corn!$B$51/10 -> 0.003 | B8: =SUM(A8:$A$151) -> 0.432 | C8: 0.299 | D8: 34.992 | E8: =E$158*$B8 -> 35.424 | F8: 35.856 | G8: 36.288 | H8: 36.72 | I8: 37.152 | J8: 37.584 | K8: 38.016 | L8: 38.448 | M8: 38.88 | N8: 39.312 | O8: 39.744 | P8: 40.176 | Q8: 40.608 | R8: 41.04 | S8: 41.472 | T8: 41.904 | U8: 42.336 | V8: 42.768 | W8: 43.2 | X8: 43.632 | Y8: 44.064 | Z8: 44.496 | AA8: 44.928 | AB8: 45.36 | AC8: 45.792 | AD8: 46.224 | AE8: 46.656 | AF8: 47.088 | AG8: 47.52 | AH8: 47.952 | AI8: 48.384 | AJ8: 48.816 | AK8: 49.248 | AL8: 49.68 | AM8: 50.112 | AN8: 50.544 | AO8: 50.976 | AP8: 51.408 | AQ8: 51.84 | AR8: 52.272 | AS8: 52.704 | AT8: 53.136 | AU8: 53.568 | AV8: 54 | AW8: 54.432 | AX8: 54.864 | AY8: 55.296 | AZ8: 55.728 | BA8: 56.16 | BB8: 56.592 | BC8: 57.024 | BD8: 57.456 | BE8: 57.888 | BF8: 58.32 | BG8: 58.752 | BH8: 59.184 | BI8: 59.616 | BJ8: 60.048 | BK8: 60.48 | BL8: 60.912 | BM8: 61.344 | BN8: 61.776 | BO8: 62.208 | BP8: 62.64 | BQ8: 63.072 | BR8: 63.504 | BS8: 63.936 | BT8: 64.368 | BU8: 64.8 | BV8: 65.232 | BW8: 65.664 | BX8: 66.096 | BY8: 66.528 | BZ8: 66.96 | CA8: 67.392 | CB8: 67.824 | CC8: 68.256 | CD8: 68.688 | CE8: 69.12 | CF8: 69.552 | CG8: 69.984 | CH8: 70.416 | CI8: 70.848 | CJ8: 71.28 | CK8: 71.712 | CL8: 72.144 | CM8: 72.576 | CN8: 73.008 | CO8: 73.44 | CP8: 73.872 | CQ8: 74.304 | CR8: 74.736 | CS8: 75.168 | CT8: 75.6 | CU8: 76.032 | CV8: 76.464 | CW8: 76.896 | CX8: 77.328 | CY8: 77.76 | CZ8: 78.192 | DA8: 78.624 | DB8: 79.056 | DC8: 79.488 | DD8: 79.92 | DE8: 80.352 | DF8: 80.784 | DG8: 81.216 | DH8: 81.648 | DI8: 82.08 | DJ8: 82.512 | DK8: 82.944 | DL8: 83.376 | DM8: 83.808 | DN8: 84.24 | DO8: 84.672 | DP8: 85.104 | DQ8: 85.536 | DR8: 85.968 | DS8: 86.4 | DT8: 86.832 | DU8: 87.264 | DV8: 87.696 | DW8: 88.128 | DX8: 88.56 | DY8: 88.992 | DZ8: 89.424 | EA8: 89.856 | EB8: 90.288 | EC8: 90.72 | ED8: 91.152 | EE8: 91.584 | EF8: 92.016 | EG8: 92.448 | EH8: 92.88 | EI8: 93.312 | EJ8: 93.744 | EK8: 94.176 | EL8: 94.608 | EM8: 95.04 | EN8: 95.472 | EO8: 95.904 | EP8: 96.336 | EQ8: 96.768 | ER8: 97.2 | ES8: 97.632 | ET8: 98.064 | EU8: 98.496 | EV8: 98.928 | EW8: 99.36 | EX8: 99.792 | EY8: 100.224 | EZ8: 100.656 | FA8: 101.088 | FB8: 101.52 | FC8: 101.952 | FD8: 102.384 | FE8: 102.816 | FF8: 103.248 | FG8: 103.68 | FH8: 104.112 | FI8: 104.544 | FJ8: 104.976 | FK8: 105.408 | FL8: 105.84 | FM8: 106.272 | FN8: 106.704 | FO8: 107.136 | FP8: 107.568 | FQ8: 108 | FR8: 108.432 | FS8: 108.864 | FT8: 109.296 | FU8: 109.728 | FV8: 110.16 | FW8: 110.592 | FX8: 111.024 | FY8: 111.456 | FZ8: 111.888 | GA8: 112.32 | GB8: 112.752 | GC8: 113.184 | GD8: 113.616 | GE8: 114.048 | GF8: 114.48 | GG8: 114.912 | GH8: 115.344 | GI8: 115.776 | GJ8: 116.208 | GK8: 116.64 | GL8: 117.072 | GM8: 117.504 | GN8: 117.936 | GO8: 118.368 | GP8: 118.8 | GQ8: 119.232 | GR8: 119.664 | GS8: 120.096 | GT8: 120.528 | GU8: 120.96 | GV8: 121.392 | GW8: 121.824 | GX8: 122.256 | GY8: 122.688 | GZ8: 123.12 | HA8: 123.552 | HB8: 123.984 | HC8: 124.416 | HD8: 124.848 | HE8: 125.28 | HF8: 125.712 | HG8: 126.144 | HH8: 126.576 | HI8: 127.008 | HJ8: 127.44 | HK8: 127.872 | HL8: 128.304 | HM8: 128.736 | HN8: 129.168 | HO8: 129.6
A9: =Corn!$B$51/10 -> 0.003 | B9: =SUM(A9:$A$151) -> 0.429 | C9: 0.298 | D9: 34.749 | E9: 35.178 | F9: 35.607 | G9: 36.036 | H9: 36.465 | I9: 36.894 | J9: 37.323 | K9: 37.752 | L9: 38.181 | M9: 38.61 | N9: 39.039 | O9: 39.468 | P9: 39.897 | Q9: 40.326 | R9: 40.755 | S9: 41.184 | T9: 41.613 | U9: 42.042 | V9: 42.471 | W9: 42.9 | X9: 43.329 | Y9: 43.758 | Z9: 44.187 | AA9: 44.616 | AB9: 45.045 | AC9: 45.474 | AD9: 45.903 | AE9: 46.332 | AF9: 46.761 | AG9: 47.19 | AH9: 47.619 | AI9: 48.048 | AJ9: 48.477 | AK9: 48.906 | AL9: 49.335 | AM9: 49.764 | AN9: 50.193 | AO9: 50.622 | AP9: 51.051 | AQ9: 51.48 | AR9: 51.909 | AS9: 52.338 | AT9: 52.767 | AU9: 53.196 | AV9: 53.625 | AW9: 54.054 | AX9: 54.483 | AY9: 54.912 | AZ9: 55.341 | BA9: 55.77 | BB9: 56.199 | BC9: 56.628 | BD9: 57.057 | BE9: 57.486 | BF9: 57.915 | BG9: 58.344 | BH9: 58.773 | BI9: 59.202 | BJ9: 59.631 | BK9: 60.06 | BL9: 60.489 | BM9: 60.918 | BN9: 61.347 | BO9: 61.776 | BP9: 62.205 | BQ9: 62.634 | BR9: 63.063 | BS9: 63.492 | BT9: 63.921 | BU9: 64.35 | BV9: 64.779 | BW9: 65.208 | BX9: 65.637 | BY9: 66.066 | BZ9: 66.495 | CA9: 66.924 | CB9: 67.353 | CC9: 67.782 | CD9: 68.211 | CE9: 68.64 | CF9: 69.069 | CG9: 69.498 | CH9: 69.927 | CI9: 70.356 | CJ9: 70.785 | CK9: 71.214 | CL9: 71.643 | CM9: 72.072 | CN9: 72.501 | CO9: 72.93 | CP9: 73.359 | CQ9: 73.788 | CR9: 74.217 | CS9: 74.646 | CT9: 75.075 | CU9: 75.504 | CV9: 75.933 | CW9: 76.362 | CX9: 76.791 | CY9: 77.22 | CZ9: 77.649 | DA9: 78.078 | DB9: 78.507 | DC9: 78.936 | DD9: 79.365 | DE9: 79.794 | DF9: 80.223 | DG9: 80.652 | DH9: 81.081 | DI9: 81.51 | DJ9: 81.939 | DK9: 82.368 | DL9: 82.797 | DM9: 83.226 | DN9: 83.655 | DO9: 84.084 | DP9: 84.513 | DQ9: 84.942 | DR9: 85.371 | DS9: 85.8 | DT9: 86.229 | DU9: 86.658 | DV9: 87.087 | DW9: 87.516 | DX9: 87.945 | DY9: 88.374 | DZ9: 88.803 | EA9: 89.232 | EB9: 89.661 | EC9: 90.09 | ED9: 90.519 | EE9: 90.948 | EF9: 91.377 | EG9: 91.806 | EH9: 92.235 | EI9: 92.664 | EJ9: 93.093 | EK9: 93.522 | EL9: 93.951 | EM9: 94.38 | EN9: 94.809 | EO9: 95.238 | EP9: 95.667 | EQ9: 96.096 | ER9: 96.525 | ES9: 96.954 | ET9: 97.383 | EU9: 97.812 | EV9: 98.241 | EW9: 98.67 | EX9: 99.099 | EY9: 99.528 | EZ9: 99.957 | FA9: 100.386 | FB9: 100.815 | FC9: 101.244 | FD9: 101.673 | FE9: 102.102 | FF9: 102.531 | FG9: 102.96 | FH9: 103.389 | FI9: 103.818 | FJ9: 104.247 | FK9: 104.676 | FL9: 105.105 | FM9: 105.534 | FN9: 105.963 | FO9: 106.392 | FP9: 106.821 | FQ9: 107.25 | FR9: 107.679 | FS9: 108.108 | FT9: 108.537 | FU9: 108.966 | FV9: 109.395 | FW9: 109.824 | FX9: 110.253 | FY9: 110.682 | FZ9: 111.111 | GA9: 111.54 | GB9: 111.969 | GC9: 112.398 | GD9: 112.827 | GE9: 113.256 | GF9: 113.685 | GG9: 114.114 | GH9: 114.543 | GI9: 114.972 | GJ9: 115.401 | GK9: 115.83 | GL9: 116.259 | GM9: 116.688 | GN9: 117.117 | GO9: 117.546 | GP9: 117.975 | GQ9: 118.404 | GR9: 118.833 | GS9: 119.262 | GT9: 119.691 | GU9: 120.12 | GV9: 120.549 | GW9: 120.978 | GX9: 121.407 | GY9: 121.836 | GZ9: 122.265 | HA9: 122.694 | HB9: 123.123 | HC9: 123.552 | HD9: 123.981 | HE9: 124.41 | HF9: 124.839 | HG9: 125.268 | HH9: 125.697 | HI9: 126.126 | HJ9: 126.555 | HK9: 126.984 | HL9: 127.413 | HM9: 127.842 | HN9: 128.271 | HO9: 128.7
A10: =Corn!$B$51/10 -> 0.003 | B10: =SUM(A10:$A$151) -> 0.426 | C10: 0.297 | D10: 34.506 | E10: 34.932 | F10: 35.358 | G10: 35.784 | H10: 36.21 | I10: 36.636 | J10: 37.062 | K10: 37.488 | L10: 37.914 | M10: 38.34 | N10: 38.766 | O10: 39.192 | P10: 39.618 | Q10: 40.044 | R10: 40.47 | S10: 40.896 | T10: 41.322 | U10: 41.748 | V10: 42.174 | W10: 42.6 | X10: 43.026 | Y10: 43.452 | Z10: 43.878 | AA10: 44.304 | AB10: 44.73 | AC10: 45.156 | AD10: 45.582 | AE10: 46.008 | AF10: 46.434 | AG10: 46.86 | AH10: 47.286 | AI10: 47.712 | AJ10: 48.138 | AK10: 48.564 | AL10: 48.99 | AM10: 49.416 | AN10: 49.842 | AO10: 50.268 | AP10: 50.694 | AQ10: 51.12 | AR10: 51.546 | AS10: 51.972 | AT10: 52.398 | AU10: 52.824 | AV10: 53.25 | AW10: 53.676 | AX10: 54.102 | AY10: 54.528 | AZ10: 54.954 | BA10: 55.38 | BB10: 55.806 | BC10: 56.232 | BD10: 56.658 | BE10: 57.084 | BF10: 57.51 | BG10: 57.936 | BH10: 58.362 | BI10: 58.788 | BJ10: 59.214 | BK10: 59.64 | BL10: 60.066 | BM10: 60.492 | BN10: 60.918 | BO10: 61.344 | BP10: 61.77 | BQ10: 62.196 | BR10: 62.622 | BS10: 63.048 | BT10: 63.474 | BU10: 63.9 | BV10: 64.326 | BW10: 64.752 | BX10: 65.178 | BY10: 65.604 | BZ10: 66.03 | CA10: 66.456 | CB10: 66.882 | CC10: 67.308 | CD10: 67.734 | CE10: 68.16 | CF10: 68.586 | CG10: 69.012 | CH10: 69.438 | CI10: 69.864 | CJ10: 70.29 | CK10: 70.716 | CL10: 71.142 | CM10: 71.568 | CN10: 71.994 | CO10: 72.42 | CP10: 72.846 | CQ10: 73.272 | CR10: 73.698 | CS10: 74.124 | CT10: 74.55 | CU10: 74.976 | CV10: 75.402 | CW10: 75.828 | CX10: 76.254 | CY10: 76.68 | CZ10: 77.106 | DA10: 77.532 | DB10: 77.958 | DC10: 78.384 | DD10: 78.81 | DE10: 79.236 | DF10: 79.662 | DG10: 80.088 | DH10: 80.514 | DI10: 80.94 | DJ10: 81.366 | DK10: 81.792 | DL10: 82.218 | DM10: 82.644 | DN10: 83.07 | DO10: 83.496 | DP10: 83.922 | DQ10: 84.348 | DR10: 84.774 | DS10: 85.2 | DT10: 85.626 | DU10: 86.052 | DV10: 86.478 | DW10: 86.904 | DX10: 87.33 | DY10: 87.756 | DZ10: 88.182 | EA10: 88.608 | EB10: 89.034 | EC10: 89.46 | ED10: 89.886 | EE10: 90.312 | EF10: 90.738 | EG10: 91.164 | EH10: 91.59 | EI10: 92.016 | EJ10: 92.442 | EK10: 92.868 | EL10: 93.294 | EM10: 93.72 | EN10: 94.146 | EO10: 94.572 | EP10: 94.998 | EQ10: =EQ$158*$B10 -> 95.424 | ER10: 95.85 | ES10: 96.276 | ET10: 96.702 | EU10: 97.128 | EV10: 97.554 | EW10: 97.98 | EX10: 98.406 | EY10: 98.832 | EZ10: 99.258 | FA10: 99.684 | FB10: 100.11 | FC10: 100.536 | FD10: 100.962 | FE10: 101.388 | FF10: 101.814 | FG10: 102.24 | FH10: 102.666 | FI10: 103.092 | FJ10: 103.518 | FK10: 103.944 | FL10: 104.37 | FM10: 104.796 | FN10: 105.222 | FO10: 105.648 | FP10: 106.074 | FQ10: 106.5 | FR10: 106.926 | FS10: 107.352 | FT10: 107.778 | FU10: 108.204 | FV10: 108.63 | FW10: 109.056 | FX10: 109.482 | FY10: 109.908 | FZ10: 110.334 | GA10: 110.76 | GB10: 111.186 | GC10: 111.612 | GD10: 112.038 | GE10: 112.464 | GF10: 112.89 | GG10: 113.316 | GH10: 113.742 | GI10: 114.168 | GJ10: 114.594 | GK10: 115.02 | GL10: 115.446 | GM10: 115.872 | GN10: 116.298 | GO10: 116.724 | GP10: 117.15 | GQ10: 117.576 | GR10: 118.002 | GS10: 118.428 | GT10: 118.854 | GU10: 119.28 | GV10: 119.706 | GW10: 120.132 | GX10: 120.558 | GY10: 120.984 | GZ10: 121.41 | HA10: 121.836 | HB10: 122.262 | HC10: 122.688 | HD10: 123.114 | HE10: 123.54 | HF10: 123.966 | HG10: 124.392 | HH10: 124.818 | HI10: 125.244 | HJ10: 125.67 | HK10: 126.096 | HL10: 126.522 | HM10: 126.948 | HN10: 127.374 | HO10: 127.8
A11: =Corn!$B$51/10 -> 0.003 | B11: =SUM(A11:$A$151) -> 0.423 | C11: 0.296 | D11: 34.263 | E11: 34.686 | F11: 35.109 | G11: 35.532 | H11: 35.955 | I11: 36.378 | J11: 36.801 | K11: 37.224 | L11: 37.647 | M11: 38.07 | N11: 38.493 | O11: 38.916 | P11: 39.339 | Q11: 39.762 | R11: 40.185 | S11: 40.608 | T11: 41.031 | U11: 41.454 | V11: 41.877 | W11: 42.3 | X11: 42.723 | Y11: 43.146 | Z11: 43.569 | AA11: 43.992 | AB11: 44.415 | AC11: 44.838 | AD11: 45.261 | AE11: 45.684 | AF11: 46.107 | AG11: 46.53 | AH11: 46.953 | AI11: 47.376 | AJ11: 47.799 | AK11: 48.222 | AL11: 48.645 | AM11: 49.068 | AN11: 49.491 | AO11: 49.914 | AP11: 50.337 | AQ11: 50.76 | AR11: 51.183 | AS11: 51.606 | AT11: 52.029 | AU11: 52.452 | AV11: 52.875 | AW11: 53.298 | AX11: 53.721 | AY11: 54.144 | AZ11: 54.567 | BA11: 54.99 | BB11: 55.413 | BC11: 55.836 | BD11: 56.259 | BE11: 56.682 | BF11: 57.105 | BG11: 57.528 | BH11: 57.951 | BI11: 58.374 | BJ11: 58.797 | BK11: 59.22 | BL11: 59.643 | BM11: 60.066 | BN11: 60.489 | BO11: 60.912 | BP11: =BP$158*$B11 -> 61.335 | BQ11: 61.758 | BR11: 62.181 | BS11: 62.604 | BT11: 63.027 | BU11: 63.45 | BV11: 63.873 | BW11: 64.296 | BX11: 64.719 | BY11: 65.142 | BZ11: 65.565 | CA11: 65.988 | CB11: 66.411 | CC11: 66.834 | CD11: 67.257 | CE11: 67.68 | CF11: 68.103 | CG11: 68.526 | CH11: 68.949 | CI11: 69.372 | CJ11: 69.795 | CK11: 70.218 | CL11: 70.641 | CM11: 71.064 | CN11: 71.487 | CO11: 71.91 | CP11: 72.333 | CQ11: 72.756 | CR11: 73.179 | CS11: 73.602 | CT11: 74.025 | CU11: 74.448 | CV11: 74.871 | CW11: 75.294 | CX11: 75.717 | CY11: 76.14 | CZ11: 76.563 | DA11: 76.986 | DB11: 77.409 | DC11: 77.832 | DD11: 78.255 | DE11: 78.678 | DF11: 79.101 | DG11: 79.524 | DH11: 79.947 | DI11: 80.37 | DJ11: 80.793 | DK11: 81.216 | DL11: 81.639 | DM11: 82.062 | DN11: 82.485 | DO11: 82.908 | DP11: 83.331 | DQ11: 83.754 | DR11: 84.177 | DS11: 84.6 | DT11: 85.023 | DU11: 85.446 | DV11: 85.869 | DW11: 86.292 | DX11: 86.715 | DY11: 87.138 | DZ11: 87.561 | EA11: 87.984 | EB11: =EB$158*$B11 -> 88.407 | EC11: 88.83 | ED11: 89.253 | EE11: 89.676 | EF11: 90.099 | EG11: 90.522 | EH11: 90.945 | EI11: 91.368 | EJ11: 91.791 | EK11: 92.214 | EL11: 92.637 | EM11: 93.06 | EN11: 93.483 | EO11: 93.906 | EP11: 94.329 | EQ11: 94.752 | ER11: 95.175 | ES11: 95.598 | ET11: 96.021 | EU11: 96.444 | EV11: 96.867 | EW11: 97.29 | EX11: 97.713 | EY11: 98.136 | EZ11: 98.559 | FA11: 98.982 | FB11: 99.405 | FC11: 99.828 | FD11: 100.251 | FE11: 100.674 | FF11: 101.097 | FG11: 101.52 | FH11: 101.943 | FI11: 102.366 | FJ11: 102.789 | FK11: 103.212 | FL11: 103.635 | FM11: 104.058 | FN11: 104.481 | FO11: 104.904 | FP11: 105.327 | FQ11: 105.75 | FR11: 106.173 | FS11: 106.596 | FT11: 107.019 | FU11: 107.442 | FV11: 107.865 | FW11: 108.288 | FX11: 108.711 | FY11: 109.134 | FZ11: 109.557 | GA11: 109.98 | GB11: 110.403 | GC11: 110.826 | GD11: 111.249 | GE11: 111.672 | GF11: 112.095 | GG11: 112.518 | GH11: 112.941 | GI11: 113.364 | GJ11: 113.787 | GK11: 114.21 | GL11: 114.633 | GM11: 115.056 | GN11: 115.479 | GO11: 115.902 | GP11: 116.325 | GQ11: 116.748 | GR11: 117.171 | GS11: 117.594 | GT11: 118.017 | GU11: 118.44 | GV11: 118.863 | GW11: 119.286 | GX11: 119.709 | GY11: 120.132 | GZ11: 120.555 | HA11: 120.978 | HB11: 121.401 | HC11: 121.824 | HD11: 122.247 | HE11: 122.67 | HF11: 123.093 | HG11: 123.516 | HH11: 123.939 | HI11: 124.362 | HJ11: 124.785 | HK11: 125.208 | HL11: 125.631 | HM11: 126.054 | HN11: 126.477 | HO11: 126.9
A12: =Corn!$B$51/10 -> 0.003 | B12: =SUM(A12:$A$151) -> 0.42 | C12: 0.295 | D12: 34.02 | E12: =E$158*$B12 -> 34.44 | F12: 34.86 | G12: 35.28 | H12: 35.7 | I12: 36.12 | J12: 36.54 | K12: 36.96 | L12: 37.38 | M12: 37.8 | N12: 38.22 | O12: 38.64 | P12: 39.06 | Q12: 39.48 | R12: 39.9 | S12: 40.32 | T12: 40.74 | U12: 41.16 | V12: 41.58 | W12: 42 | X12: 42.42 | Y12: 42.84 | Z12: 43.26 | AA12: 43.68 | AB12: 44.1 | AC12: 44.52 | AD12: 44.94 | AE12: 45.36 | AF12: 45.78 | AG12: 46.2 | AH12: 46.62 | AI12: 47.04 | AJ12: 47.46 | AK12: 47.88 | AL12: 48.3 | AM12: 48.72 | AN12: 49.14 | AO12: 49.56 | AP12: 49.98 | AQ12: 50.4 | AR12: 50.82 | AS12: 51.24 | AT12: 51.66 | AU12: 52.08 | AV12: 52.5 | AW12: 52.92 | AX12: 53.34 | AY12: 53.76 | AZ12: 54.18 | BA12: 54.6 | BB12: 55.02 | BC12: 55.44 | BD12: 55.86 | BE12: 56.28 | BF12: 56.7 | BG12: 57.12 | BH12: 57.54 | BI12: 57.96 | BJ12: 58.38 | BK12: 58.8 | BL12: 59.22 | BM12: 59.64 | BN12: 60.06 | BO12: 60.48 | BP12: 60.9 | BQ12: 61.32 | BR12: 61.74 | BS12: 62.16 | BT12: 62.58 | BU12: 63 | BV12: 63.42 | BW12: 63.84 | BX12: 64.26 | BY12: 64.68 | BZ12: 65.1 | CA12: 65.52 | CB12: 65.94 | CC12: 66.36 | CD12: 66.78 | CE12: 67.2 | CF12: 67.62 | CG12: 68.04 | CH12: 68.46 | CI12: 68.88 | CJ12: 69.3 | CK12: 69.72 | CL12: 70.14 | CM12: 70.56 | CN12: 70.98 | CO12: 71.4 | CP12: 71.82 | CQ12: 72.24 | CR12: 72.66 | CS12: 73.08 | CT12: 73.5 | CU12: 73.92 | CV12: 74.34 | CW12: 74.76 | CX12: 75.18 | CY12: 75.6 | CZ12: 76.02 | DA12: 76.44 | DB12: 76.86 | DC12: 77.28 | DD12: 77.7 | DE12: 78.12 | DF12: 78.54 | DG12: 78.96 | DH12: 79.38 | DI12: 79.8 | DJ12: 80.22 | DK12: 80.64 | DL12: 81.06 | DM12: 81.48 | DN12: 81.9 | DO12: 82.32 | DP12: 82.74 | DQ12: 83.16 | DR12: 83.58 | DS12: 84 | DT12: 84.42 | DU12: 84.84 | DV12: 85.26 | DW12: 85.68 | DX12: 86.1 | DY12: 86.52 | DZ12: 86.94 | EA12: 87.36 | EB12: 87.78 | EC12: 88.2 | ED12: 88.62 | EE12: 89.04 | EF12: 89.46 | EG12: 89.88 | EH12: 90.3 | EI12: 90.72 | EJ12: 91.14 | EK12: 91.56 | EL12: 91.98 | EM12: 92.4 | EN12: 92.82 | EO12: 93.24 | EP12: 93.66 | EQ12: 94.08 | ER12: 94.5 | ES12: 94.92 | ET12: 95.34 | EU12: 95.76 | EV12: 96.18 | EW12: 96.6 | EX12: 97.02 | EY12: 97.44 | EZ12: 97.86 | FA12: 98.28 | FB12: 98.7 | FC12: 99.12 | FD12: 99.54 | FE12: 99.96 | FF12: 100.38 | FG12: 100.8 | FH12: 101.22 | FI12: 101.64 | FJ12: 102.06 | FK12: 102.48 | FL12: 102.9 | FM12: 103.32 | FN12: 103.74 | FO12: 104.16 | FP12: 104.58 | FQ12: 105 | FR12: 105.42 | FS12: 105.84 | FT12: 106.26 | FU12: 106.68 | FV12: 107.1 | FW12: 107.52 | FX12: 107.94 | FY12: 108.36 | FZ12: 108.78 | GA12: 109.2 | GB12: 109.62 | GC12: 110.04 | GD12: 110.46 | GE12: 110.88 | GF12: 111.3 | GG12: 111.72 | GH12: 112.14 | GI12: 112.56 | GJ12: 112.98 | GK12: 113.4 | GL12: 113.82 | GM12: 114.24 | GN12: 114.66 | GO12: 115.08 | GP12: 115.5 | GQ12: 115.92 | GR12: 116.34 | GS12: 116.76 | GT12: 117.18 | GU12: 117.6 | GV12: 118.02 | GW12: 118.44 | GX12: 118.86 | GY12: 119.28 | GZ12: 119.7 | HA12: 120.12 | HB12: 120.54 | HC12: 120.96 | HD12: 121.38 | HE12: 121.8 | HF12: 122.22 | HG12: 122.64 | HH12: 123.06 | HI12: 123.48 | HJ12: 123.9 | HK12: 124.32 | HL12: 124.74 | HM12: 125.16 | HN12: 125.58 | HO12: 126
A13: =Corn!$B$51/10 -> 0.003 | B13: =SUM(A13:$A$151) -> 0.417 | C13: 0.294 | D13: 33.777 | E13: 34.194 | F13: 34.611 | G13: 35.028 | H13: 35.445 | I13: 35.862 | J13: 36.279 | K13: 36.696 | L13: 37.113 | M13: 37.53 | N13: 37.947 | O13: 38.364 | P13: 38.781 | Q13: 39.198 | R13: 39.615 | S13: 40.032 | T13: 40.449 | U13: 40.866 | V13: 41.283 | W13: 41.7 | X13: 42.117 | Y13: 42.534 | Z13: 42.951 | AA13: 43.368 | AB13: 43.785 | AC13: 44.202 | AD13: 44.619 | AE13: 45.036 | AF13: 45.453 | AG13: 45.87 | AH13: 46.287 | AI13: 46.704 | AJ13: 47.121 | AK13: 47.538 | AL13: 47.955 | AM13: 48.372 | AN13: 48.789 | AO13: 49.206 | AP13: 49.623 | AQ13: 50.04 | AR13: 50.457 | AS13: 50.874 | AT13: 51.291 | AU13: 51.708 | AV13: 52.125 | AW13: 52.542 | AX13: 52.959 | AY13: 53.376 | AZ13: 53.793 | BA13: 54.21 | BB13: 54.627 | BC13: 55.044 | BD13: 55.461 | BE13: 55.878 | BF13: 56.295 | BG13: 56.712 | BH13: 57.129 | BI13: 57.546 | BJ13: 57.963 | BK13: 58.38 | BL13: 58.797 | BM13: 59.214 | BN13: 59.631 | BO13: 60.048 | BP13: 60.465 | BQ13: 60.882 | BR13: 61.299 | BS13: 61.716 | BT13: 62.133 | BU13: 62.55 | BV13: 62.967 | BW13: 63.384 | BX13: 63.801 | BY13: 64.218 | BZ13: 64.635 | CA13: 65.052 | CB13: 65.469 | CC13: 65.886 | CD13: 66.303 | CE13: 66.72 | CF13: 67.137 | CG13: 67.554 | CH13: 67.971 | CI13: 68.388 | CJ13: 68.805 | CK13: 69.222 | CL13: 69.639 | CM13: 70.056 | CN13: 70.473 | CO13: 70.89 | CP13: 71.307 | CQ13: 71.724 | CR13: 72.141 | CS13: 72.558 | CT13: 72.975 | CU13: 73.392 | CV13: 73.809 | CW13: 74.226 | CX13: 74.643 | CY13: 75.06 | CZ13: 75.477 | DA13: 75.894 | DB13: 76.311 | DC13: 76.728 | DD13: 77.145 | DE13: 77.562 | DF13: 77.979 | DG13: 78.396 | DH13: 78.813 | DI13: 79.23 | DJ13: 79.647 | DK13: 80.064 | DL13: 80.481 | DM13: 80.898 | DN13: 81.315 | DO13: 81.732 | DP13: 82.149 | DQ13: 82.566 | DR13: 82.983 | DS13: 83.4 | DT13: 83.817 | DU13: 84.234 | DV13: 84.651 | DW13: 85.068 | DX13: 85.485 | DY13: 85.902 | DZ13: 86.319 | EA13: 86.736 | EB13: 87.153 | EC13: 87.57 | ED13: 87.987 | EE13: 88.404 | EF13: 88.821 | EG13: 89.238 | EH13: 89.655 | EI13: 90.072 | EJ13: 90.489 | EK13: 90.906 | EL13: 91.323 | EM13: 91.74 | EN13: 92.157 | EO13: 92.574 | EP13: 92.991 | EQ13: 93.408 | ER13: 93.825 | ES13: 94.242 | ET13: 94.659 | EU13: 95.076 | EV13: 95.493 | EW13: 95.91 | EX13: 96.327 | EY13: 96.744 | EZ13: 97.161 | FA13: 97.578 | FB13: 97.995 | FC13: 98.412 | FD13: 98.829 | FE13: 99.246 | FF13: 99.663 | FG13: 100.08 | FH13: 100.497 | FI13: 100.914 | FJ13: 101.331 | FK13: 101.748 | FL13: 102.165 | FM13: 102.582 | FN13: 102.999 | FO13: 103.416 | FP13: 103.833 | FQ13: 104.25 | FR13: 104.667 | FS13: 105.084 | FT13: 105.501 | FU13: 105.918 | FV13: 106.335 | FW13: 106.752 | FX13: 107.169 | FY13: 107.586 | FZ13: 108.003 | GA13: 108.42 | GB13: 108.837 | GC13: 109.254 | GD13: 109.671 | GE13: 110.088 | GF13: 110.505 | GG13: 110.922 | GH13: 111.339 | GI13: 111.756 | GJ13: 112.173 | GK13: 112.59 | GL13: 113.007 | GM13: 113.424 | GN13: 113.841 | GO13: 114.258 | GP13: 114.675 | GQ13: 115.092 | GR13: 115.509 | GS13: 115.926 | GT13: 116.343 | GU13: 116.76 | GV13: 117.177 | GW13: 117.594 | GX13: 118.011 | GY13: 118.428 | GZ13: 118.845 | HA13: 119.262 | HB13: 119.679 | HC13: 120.096 | HD13: 120.513 | HE13: 120.93 | HF13: 121.347 | HG13: 121.764 | HH13: 122.181 | HI13: 122.598 | HJ13: 123.015 | HK13: 123.432 | HL13: 123.849 | HM13: 124.266 | HN13: 124.683 | HO13: 125.1
A14: =Corn!$B$51/10 -> 0.003 | B14: =SUM(A14:$A$151) -> 0.414 | C14: 0.293 | D14: 33.534 | E14: 33.948 | F14: 34.362 | G14: 34.776 | H14: 35.19 | I14: 35.604 | J14: 36.018 | K14: 36.432 | L14: 36.846 | M14: 37.26 | N14: 37.674 | O14: 38.088 | P14: 38.502 | Q14: 38.916 | R14: 39.33 | S14: 39.744 | T14: 40.158 | U14: 40.572 | V14: 40.986 | W14: 41.4 | X14: 41.814 | Y14: 42.228 | Z14: 42.642 | AA14: 43.056 | AB14: 43.47 | AC14: 43.884 | AD14: 44.298 | AE14: 44.712 | AF14: 45.126 | AG14: 45.54 | AH14: 45.954 | AI14: 46.368 | AJ14: 46.782 | AK14: 47.196 | AL14: 47.61 | AM14: 48.024 | AN14: 48.438 | AO14: 48.852 | AP14: 49.266 | AQ14: 49.68 | AR14: 50.094 | AS14: 50.508 | AT14: 50.922 | AU14: 51.336 | AV14: 51.75 | AW14: 52.164 | AX14: 52.578 | AY14: 52.992 | AZ14: 53.406 | BA14: 53.82 | BB14: 54.234 | BC14: 54.648 | BD14: 55.062 | BE14: 55.476 | BF14: 55.89 | BG14: 56.304 | BH14: 56.718 | BI14: 57.132 | BJ14: 57.546 | BK14: 57.96 | BL14: 58.374 | BM14: 58.788 | BN14: 59.202 | BO14: 59.616 | BP14: 60.03 | BQ14: 60.444 | BR14: 60.858 | BS14: 61.272 | BT14: 61.686 | BU14: 62.1 | BV14: 62.514 | BW14: 62.928 | BX14: 63.342 | BY14: 63.756 | BZ14: 64.17 | CA14: 64.584 | CB14: 64.998 | CC14: 65.412 | CD14: 65.826 | CE14: 66.24 | CF14: 66.654 | CG14: 67.068 | CH14: 67.482 | CI14: 67.896 | CJ14: 68.31 | CK14: 68.724 | CL14: 69.138 | CM14: 69.552 | CN14: 69.966 | CO14: 70.38 | CP14: 70.794 | CQ14: 71.208 | CR14: 71.622 | CS14: 72.036 | CT14: 72.45 | CU14: 72.864 | CV14: 73.278 | CW14: 73.692 | CX14: 74.106 | CY14: 74.52 | CZ14: 74.934 | DA14: 75.348 | DB14: 75.762 | DC14: 76.176 | DD14: 76.59 | DE14: 77.004 | DF14: 77.418 | DG14: 77.832 | DH14: 78.246 | DI14: 78.66 | DJ14: 79.074 | DK14: 79.488 | DL14: 79.902 | DM14: 80.316 | DN14: 80.73 | DO14: 81.144 | DP14: 81.558 | DQ14: 81.972 | DR14: 82.386 | DS14: 82.8 | DT14: 83.214 | DU14: 83.628 | DV14: 84.042 | DW14: 84.456 | DX14: 84.87 | DY14: 85.284 | DZ14: 85.698 | EA14: 86.112 | EB14: 86.526 | EC14: 86.94 | ED14: 87.354 | EE14: 87.768 | EF14: 88.182 | EG14: 88.596 | EH14: 89.01 | EI14: 89.424 | EJ14: 89.838 | EK14: 90.252 | EL14: 90.666 | EM14: 91.08 | EN14: 91.494 | EO14: 91.908 | EP14: 92.322 | EQ14: 92.736 | ER14: 93.15 | ES14: 93.564 | ET14: 93.978 | EU14: 94.392 | EV14: 94.806 | EW14: 95.22 | EX14: 95.634 | EY14: 96.048 | EZ14: 96.462 | FA14: 96.876 | FB14: 97.29 | FC14: 97.704 | FD14: 98.118 | FE14: 98.532 | FF14: 98.946 | FG14: 99.36 | FH14: 99.774 | FI14: 100.188 | FJ14: 100.602 | FK14: 101.016 | FL14: 101.43 | FM14: 101.844 | FN14: 102.258 | FO14: 102.672 | FP14: 103.086 | FQ14: 103.5 | FR14: 103.914 | FS14: 104.328 | FT14: 104.742 | FU14: 105.156 | FV14: 105.57 | FW14: 105.984 | FX14: 106.398 | FY14: 106.812 | FZ14: 107.226 | GA14: 107.64 | GB14: 108.054 | GC14: 108.468 | GD14: 108.882 | GE14: 109.296 | GF14: 109.71 | GG14: 110.124 | GH14: 110.538 | GI14: 110.952 | GJ14: 111.366 | GK14: 111.78 | GL14: 112.194 | GM14: =GM$158*$B14 -> 112.608 | GN14: 113.022 | GO14: 113.436 | GP14: 113.85 | GQ14: 114.264 | GR14: 114.678 | GS14: 115.092 | GT14: 115.506 | GU14: 115.92 | GV14: 116.334 | GW14: 116.748 | GX14: 117.162 | GY14: 117.576 | GZ14: 117.99 | HA14: 118.404 | HB14: 118.818 | HC14: 119.232 | HD14: 119.646 | HE14: 120.06 | HF14: 120.474 | HG14: 120.888 | HH14: 121.302 | HI14: 121.716 | HJ14: 122.13 | HK14: 122.544 | HL14: 122.958 | HM14: 123.372 | HN14: 123.786 | HO14: 124.2
A15: =Corn!$B$51/10 -> 0.003 | B15: =SUM(A15:$A$151) -> 0.411 | C15: 0.292 | D15: 33.291 | E15: 33.702 | F15: 34.113 | G15: 34.524 | H15: 34.935 | I15: 35.346 | J15: 35.757 | K15: 36.168 | L15: 36.579 | M15: 36.99 | N15: 37.401 | O15: 37.812 | P15: 38.223 | Q15: 38.634 | R15: 39.045 | S15: 39.456 | T15: 39.867 | U15: 40.278 | V15: 40.689 | W15: 41.1 | X15: 41.511 | Y15: 41.922 | Z15: 42.333 | AA15: 42.744 | AB15: 43.155 | AC15: 43.566 | AD15: 43.977 | AE15: 44.388 | AF15: 44.799 | AG15: 45.21 | AH15: 45.621 | AI15: 46.032 | AJ15: 46.443 | AK15: 46.854 | AL15: 47.265 | AM15: 47.676 | AN15: 48.087 | AO15: 48.498 | AP15: 48.909 | AQ15: 49.32 | AR15: 49.731 | AS15: 50.142 | AT15: 50.553 | AU15: 50.964 | AV15: 51.375 | AW15: 51.786 | AX15: 52.197 | AY15: 52.608 | AZ15: 53.019 | BA15: 53.43 | BB15: 53.841 | BC15: 54.252 | BD15: 54.663 | BE15: 55.074 | BF15: 55.485 | BG15: 55.896 | BH15: 56.307 | BI15: 56.718 | BJ15: 57.129 | BK15: 57.54 | BL15: 57.951 | BM15: 58.362 | BN15: 58.773 | BO15: 59.184 | BP15: =BP$158*$B15 -> 59.595 | BQ15: 60.006 | BR15: 60.417 | BS15: 60.828 | BT15: 61.239 | BU15: 61.65 | BV15: 62.061 | BW15: 62.472 | BX15: 62.883 | BY15: 63.294 | BZ15: 63.705 | CA15: 64.116 | CB15: 64.527 | CC15: 64.938 | CD15: 65.349 | CE15: 65.76 | CF15: 66.171 | CG15: 66.582 | CH15: 66.993 | CI15: 67.404 | CJ15: 67.815 | CK15: 68.226 | CL15: 68.637 | CM15: 69.048 | CN15: 69.459 | CO15: 69.87 | CP15: 70.281 | CQ15: 70.692 | CR15: 71.103 | CS15: 71.514 | CT15: 71.925 | CU15: 72.336 | CV15: 72.747 | CW15: 73.158 | CX15: 73.569 | CY15: 73.98 | CZ15: 74.391 | DA15: 74.802 | DB15: 75.213 | DC15: 75.624 | DD15: 76.035 | DE15: 76.446 | DF15: 76.857 | DG15: 77.268 | DH15: 77.679 | DI15: 78.09 | DJ15: 78.501 | DK15: 78.912 | DL15: 79.323 | DM15: 79.734 | DN15: 80.145 | DO15: 80.556 | DP15: 80.967 | DQ15: 81.378 | DR15: 81.789 | DS15: 82.2 | DT15: 82.611 | DU15: 83.022 | DV15: 83.433 | DW15: 83.844 | DX15: 84.255 | DY15: 84.666 | DZ15: 85.077 | EA15: 85.488 | EB15: =EB$158*$B15 -> 85.899 | EC15: 86.31 | ED15: 86.721 | EE15: 87.132 | EF15: 87.543 | EG15: 87.954 | EH15: 88.365 | EI15: 88.776 | EJ15: 89.187 | EK15: 89.598 | EL15: 90.009 | EM15: 90.42 | EN15: 90.831 | EO15: 91.242 | EP15: 91.653 | EQ15: 92.064 | ER15: 92.475 | ES15: 92.886 | ET15: 93.297 | EU15: 93.708 | EV15: 94.119 | EW15: 94.53 | EX15: 94.941 | EY15: 95.352 | EZ15: 95.763 | FA15: 96.174 | FB15: 96.585 | FC15: 96.996 | FD15: 97.407 | FE15: 97.818 | FF15: 98.229 | FG15: 98.64 | FH15: 99.051 | FI15: 99.462 | FJ15: 99.873 | FK15: 100.284 | FL15: 100.695 | FM15: 101.106 | FN15: 101.517 | FO15: 101.928 | FP15: 102.339 | FQ15: 102.75 | FR15: 103.161 | FS15: 103.572 | FT15: 103.983 | FU15: 104.394 | FV15: 104.805 | FW15: 105.216 | FX15: 105.627 | FY15: 106.038 | FZ15: 106.449 | GA15: 106.86 | GB15: 107.271 | GC15: 107.682 | GD15: 108.093 | GE15: 108.504 | GF15: 108.915 | GG15: 109.326 | GH15: 109.737 | GI15: 110.148 | GJ15: 110.559 | GK15: 110.97 | GL15: 111.381 | GM15: 111.792 | GN15: 112.203 | GO15: 112.614 | GP15: 113.025 | GQ15: 113.436 | GR15: 113.847 | GS15: 114.258 | GT15: 114.669 | GU15: 115.08 | GV15: 115.491 | GW15: 115.902 | GX15: 116.313 | GY15: 116.724 | GZ15: 117.135 | HA15: 117.546 | HB15: 117.957 | HC15: 118.368 | HD15: 118.779 | HE15: 119.19 | HF15: 119.601 | HG15: 120.012 | HH15: 120.423 | HI15: 120.834 | HJ15: 121.245 | HK15: 121.656 | HL15: 122.067 | HM15: 122.478 | HN15: 122.889 | HO15: 123.3
A16: =Corn!$B$51/10 -> 0.003 | B16: =SUM(A16:$A$151) -> 0.408 | C16: 0.291 | D16: 33.048 | E16: =E$158*$B16 -> 33.456 | F16: 33.864 | G16: 34.272 | H16: 34.68 | I16: 35.088 | J16: 35.496 | K16: 35.904 | L16: 36.312 | M16: 36.72 | N16: 37.128 | O16: 37.536 | P16: 37.944 | Q16: 38.352 | R16: 38.76 | S16: 39.168 | T16: 39.576 | U16: 39.984 | V16: 40.392 | W16: 40.8 | X16: 41.208 | Y16: 41.616 | Z16: 42.024 | AA16: 42.432 | AB16: 42.84 | AC16: 43.248 | AD16: 43.656 | AE16: 44.064 | AF16: 44.472 | AG16: 44.88 | AH16: 45.288 | AI16: 45.696 | AJ16: 46.104 | AK16: 46.512 | AL16: 46.92 | AM16: 47.328 | AN16: 47.736 | AO16: 48.144 | AP16: 48.552 | AQ16: 48.96 | AR16: 49.368 | AS16: 49.776 | AT16: 50.184 | AU16: 50.592 | AV16: 51 | AW16: 51.408 | AX16: 51.816 | AY16: 52.224 | AZ16: 52.632 | BA16: 53.04 | BB16: 53.448 | BC16: 53.856 | BD16: 54.264 | BE16: 54.672 | BF16: 55.08 | BG16: 55.488 | BH16: 55.896 | BI16: 56.304 | BJ16: 56.712 | BK16: 57.12 | BL16: 57.528 | BM16: 57.936 | BN16: 58.344 | BO16: 58.752 | BP16: 59.16 | BQ16: 59.568 | BR16: 59.976 | BS16: 60.384 | BT16: 60.792 | BU16: 61.2 | BV16: 61.608 | BW16: 62.016 | BX16: 62.424 | BY16: 62.832 | BZ16: 63.24 | CA16: 63.648 | CB16: 64.056 | CC16: 64.464 | CD16: 64.872 | CE16: 65.28 | CF16: 65.688 | CG16: 66.096 | CH16: 66.504 | CI16: 66.912 | CJ16: 67.32 | CK16: 67.728 | CL16: 68.136 | CM16: 68.544 | CN16: 68.952 | CO16: 69.36 | CP16: 69.768 | CQ16: 70.176 | CR16: 70.584 | CS16: 70.992 | CT16: 71.4 | CU16: 71.808 | CV16: 72.216 | CW16: 72.624 | CX16: 73.032 | CY16: 73.44 | CZ16: 73.848 | DA16: 74.256 | DB16: 74.664 | DC16: 75.072 | DD16: 75.48 | DE16: 75.888 | DF16: 76.296 | DG16: 76.704 | DH16: 77.112 | DI16: 77.52 | DJ16: 77.928 | DK16: 78.336 | DL16: 78.744 | DM16: 79.152 | DN16: 79.56 | DO16: 79.968 | DP16: 80.376 | DQ16: 80.784 | DR16: 81.192 | DS16: 81.6 | DT16: 82.008 | DU16: 82.416 | DV16: 82.824 | DW16: 83.232 | DX16: 83.64 | DY16: 84.048 | DZ16: 84.456 | EA16: 84.864 | EB16: 85.272 | EC16: 85.68 | ED16: 86.088 | EE16: 86.496 | EF16: 86.904 | EG16: 87.312 | EH16: 87.72 | EI16: 88.128 | EJ16: 88.536 | EK16: 88.944 | EL16: 89.352 | EM16: 89.76 | EN16: 90.168 | EO16: 90.576 | EP16: 90.984 | EQ16: 91.392 | ER16: 91.8 | ES16: 92.208 | ET16: 92.616 | EU16: 93.024 | EV16: 93.432 | EW16: 93.84 | EX16: 94.248 | EY16: 94.656 | EZ16: 95.064 | FA16: 95.472 | FB16: 95.88 | FC16: 96.288 | FD16: 96.696 | FE16: 97.104 | FF16: 97.512 | FG16: 97.92 | FH16: 98.328 | FI16: 98.736 | FJ16: 99.144 | FK16: 99.552 | FL16: 99.96 | FM16: 100.368 | FN16: 100.776 | FO16: 101.184 | FP16: 101.592 | FQ16: 102 | FR16: 102.408 | FS16: 102.816 | FT16: 103.224 | FU16: 103.632 | FV16: 104.04 | FW16: 104.448 | FX16: 104.856 | FY16: 105.264 | FZ16: 105.672 | GA16: 106.08 | GB16: 106.488 | GC16: 106.896 | GD16: 107.304 | GE16: 107.712 | GF16: 108.12 | GG16: 108.528 | GH16: 108.936 | GI16: 109.344 | GJ16: 109.752 | GK16: 110.16 | GL16: 110.568 | GM16: 110.976 | GN16: 111.384 | GO16: 111.792 | GP16: 112.2 | GQ16: 112.608 | GR16: 113.016 | GS16: 113.424 | GT16: 113.832 | GU16: 114.24 | GV16: 114.648 | GW16: 115.056 | GX16: 115.464 | GY16: 115.872 | GZ16: 116.28 | HA16: 116.688 | HB16: 117.096 | HC16: 117.504 | HD16: 117.912 | HE16: 118.32 | HF16: 118.728 | HG16: 119.136 | HH16: 119.544 | HI16: 119.952 | HJ16: 120.36 | HK16: 120.768 | HL16: 121.176 | HM16: 121.584 | HN16: 121.992 | HO16: 122.4
A17: =Corn!$B$51/10 -> 0.003 | B17: =SUM(A17:$A$151) -> 0.405 | C17: 0.29 | D17: 32.805 | E17: 33.21 | F17: 33.615 | G17: 34.02 | H17: 34.425 | I17: 34.83 | J17: 35.235 | K17: 35.64 | L17: 36.045 | M17: 36.45 | N17: 36.855 | O17: 37.26 | P17: 37.665 | Q17: 38.07 | R17: 38.475 | S17: 38.88 | T17: 39.285 | U17: 39.69 | V17: 40.095 | W17: 40.5 | X17: 40.905 | Y17: 41.31 | Z17: 41.715 | AA17: 42.12 | AB17: 42.525 | AC17: 42.93 | AD17: 43.335 | AE17: 43.74 | AF17: 44.145 | AG17: 44.55 | AH17: 44.955 | AI17: 45.36 | AJ17: 45.765 | AK17: 46.17 | AL17: 46.575 | AM17: 46.98 | AN17: 47.385 | AO17: 47.79 | AP17: 48.195 | AQ17: 48.6 | AR17: 49.005 | AS17: 49.41 | AT17: 49.815 | AU17: 50.22 | AV17: 50.625 | AW17: 51.03 | AX17: 51.435 | AY17: 51.84 | AZ17: 52.245 | BA17: 52.65 | BB17: 53.055 | BC17: 53.46 | BD17: 53.865 | BE17: 54.27 | BF17: 54.675 | BG17: 55.08 | BH17: 55.485 | BI17: 55.89 | BJ17: 56.295 | BK17: 56.7 | BL17: 57.105 | BM17: 57.51 | BN17: 57.915 | BO17: 58.32 | BP17: 58.725 | BQ17: 59.13 | BR17: 59.535 | BS17: 59.94 | BT17: 60.345 | BU17: 60.75 | BV17: 61.155 | BW17: 61.56 | BX17: 61.965 | BY17: 62.37 | BZ17: 62.775 | CA17: 63.18 | CB17: 63.585 | CC17: 63.99 | CD17: 64.395 | CE17: 64.8 | CF17: 65.205 | CG17: 65.61 | CH17: 66.015 | CI17: 66.42 | CJ17: 66.825 | CK17: 67.23 | CL17: 67.635 | CM17: 68.04 | CN17: 68.445 | CO17: 68.85 | CP17: 69.255 | CQ17: 69.66 | CR17: 70.065 | CS17: 70.47 | CT17: 70.875 | CU17: 71.28 | CV17: 71.685 | CW17: 72.09 | CX17: 72.495 | CY17: 72.9 | CZ17: 73.305 | DA17: 73.71 | DB17: 74.115 | DC17: 74.52 | DD17: 74.925 | DE17: 75.33 | DF17: 75.735 | DG17: 76.14 | DH17: 76.545 | DI17: 76.95 | DJ17: 77.355 | DK17: 77.76 | DL17: 78.165 | DM17: 78.57 | DN17: 78.975 | DO17: 79.38 | DP17: 79.785 | DQ17: 80.19 | DR17: 80.595 | DS17: 81 | DT17: 81.405 | DU17: 81.81 | DV17: 82.215 | DW17: 82.62 | DX17: 83.025 | DY17: 83.43 | DZ17: 83.835 | EA17: 84.24 | EB17: 84.645 | EC17: 85.05 | ED17: 85.455 | EE17: 85.86 | EF17: 86.265 | EG17: 86.67 | EH17: 87.075 | EI17: 87.48 | EJ17: 87.885 | EK17: 88.29 | EL17: 88.695 | EM17: 89.1 | EN17: 89.505 | EO17: 89.91 | EP17: 90.315 | EQ17: 90.72 | ER17: 91.125 | ES17: 91.53 | ET17: 91.935 | EU17: 92.34 | EV17: 92.745 | EW17: 93.15 | EX17: 93.555 | EY17: 93.96 | EZ17: 94.365 | FA17: 94.77 | FB17: 95.175 | FC17: 95.58 | FD17: 95.985 | FE17: 96.39 | FF17: 96.795 | FG17: 97.2 | FH17: 97.605 | FI17: 98.01 | FJ17: 98.415 | FK17: 98.82 | FL17: 99.225 | FM17: 99.63 | FN17: 100.035 | FO17: 100.44 | FP17: 100.845 | FQ17: 101.25 | FR17: 101.655 | FS17: 102.06 | FT17: 102.465 | FU17: 102.87 | FV17: 103.275 | FW17: 103.68 | FX17: 104.085 | FY17: 104.49 | FZ17: 104.895 | GA17: 105.3 | GB17: 105.705 | GC17: 106.11 | GD17: 106.515 | GE17: 106.92 | GF17: 107.325 | GG17: 107.73 | GH17: 108.135 | GI17: 108.54 | GJ17: 108.945 | GK17: 109.35 | GL17: 109.755 | GM17: 110.16 | GN17: 110.565 | GO17: 110.97 | GP17: 111.375 | GQ17: 111.78 | GR17: 112.185 | GS17: 112.59 | GT17: 112.995 | GU17: 113.4 | GV17: 113.805 | GW17: 114.21 | GX17: 114.615 | GY17: 115.02 | GZ17: 115.425 | HA17: 115.83 | HB17: 116.235 | HC17: 116.64 | HD17: 117.045 | HE17: 117.45 | HF17: 117.855 | HG17: 118.26 | HH17: 118.665 | HI17: 119.07 | HJ17: 119.475 | HK17: 119.88 | HL17: 120.285 | HM17: 120.69 | HN17: 121.095 | HO17: 121.5
A18: =Corn!$B$51/10 -> 0.003 | B18: =SUM(A18:$A$151) -> 0.402 | C18: 0.289 | D18: 32.562 | E18: 32.964 | F18: 33.366 | G18: 33.768 | H18: 34.17 | I18: 34.572 | J18: 34.974 | K18: 35.376 | L18: 35.778 | M18: 36.18 | N18: 36.582 | O18: 36.984 | P18: 37.386 | Q18: 37.788 | R18: 38.19 | S18: 38.592 | T18: 38.994 | U18: 39.396 | V18: 39.798 | W18: 40.2 | X18: 40.602 | Y18: 41.004 | Z18: 41.406 | AA18: 41.808 | AB18: 42.21 | AC18: 42.612 | AD18: 43.014 | AE18: 43.416 | AF18: 43.818 | AG18: 44.22 | AH18: 44.622 | AI18: 45.024 | AJ18: 45.426 | AK18: 45.828 | AL18: 46.23 | AM18: 46.632 | AN18: 47.034 | AO18: 47.436 | AP18: 47.838 | AQ18: 48.24 | AR18: 48.642 | AS18: 49.044 | AT18: 49.446 | AU18: 49.848 | AV18: 50.25 | AW18: 50.652 | AX18: 51.054 | AY18: 51.456 | AZ18: 51.858 | BA18: 52.26 | BB18: 52.662 | BC18: 53.064 | BD18: 53.466 | BE18: 53.868 | BF18: 54.27 | BG18: 54.672 | BH18: 55.074 | BI18: 55.476 | BJ18: 55.878 | BK18: 56.28 | BL18: 56.682 | BM18: 57.084 | BN18: 57.486 | BO18: 57.888 | BP18: 58.29 | BQ18: 58.692 | BR18: 59.094 | BS18: 59.496 | BT18: 59.898 | BU18: 60.3 | BV18: 60.702 | BW18: 61.104 | BX18: 61.506 | BY18: 61.908 | BZ18: 62.31 | CA18: 62.712 | CB18: 63.114 | CC18: 63.516 | CD18: 63.918 | CE18: 64.32 | CF18: 64.722 | CG18: 65.124 | CH18: 65.526 | CI18: 65.928 | CJ18: 66.33 | CK18: 66.732 | CL18: 67.134 | CM18: 67.536 | CN18: 67.938 | CO18: 68.34 | CP18: 68.742 | CQ18: 69.144 | CR18: 69.546 | CS18: 69.948 | CT18: 70.35 | CU18: 70.752 | CV18: 71.154 | CW18: 71.556 | CX18: 71.958 | CY18: 72.36 | CZ18: 72.762 | DA18: 73.164 | DB18: 73.566 | DC18: 73.968 | DD18: 74.37 | DE18: 74.772 | DF18: 75.174 | DG18: 75.576 | DH18: 75.978 | DI18: 76.38 | DJ18: 76.782 | DK18: 77.184 | DL18: 77.586 | DM18: 77.988 | DN18: 78.39 | DO18: 78.792 | DP18: 79.194 | DQ18: 79.596 | DR18: 79.998 | DS18: 80.4 | DT18: 80.802 | DU18: 81.204 | DV18: 81.606 | DW18: 82.008 | DX18: 82.41 | DY18: 82.812 | DZ18: 83.214 | EA18: 83.616 | EB18: 84.018 | EC18: 84.42 | ED18: 84.822 | EE18: 85.224 | EF18: 85.626 | EG18: 86.028 | EH18: 86.43 | EI18: 86.832 | EJ18: 87.234 | EK18: 87.636 | EL18: 88.038 | EM18: 88.44 | EN18: 88.842 | EO18: 89.244 | EP18: 89.646 | EQ18: 90.048 | ER18: 90.45 | ES18: 90.852 | ET18: 91.254 | EU18: 91.656 | EV18: 92.058 | EW18: 92.46 | EX18: 92.862 | EY18: 93.264 | EZ18: 93.666 | FA18: 94.068 | FB18: 94.47 | FC18: 94.872 | FD18: 95.274 | FE18: 95.676 | FF18: 96.078 | FG18: 96.48 | FH18: 96.882 | FI18: 97.284 | FJ18: 97.686 | FK18: 98.088 | FL18: 98.49 | FM18: 98.892 | FN18: 99.294 | FO18: 99.696 | FP18: 100.098 | FQ18: 100.5 | FR18: 100.902 | FS18: 101.304 | FT18: 101.706 | FU18: 102.108 | FV18: 102.51 | FW18: 102.912 | FX18: 103.314 | FY18: 103.716 | FZ18: 104.118 | GA18: 104.52 | GB18: 104.922 | GC18: 105.324 | GD18: 105.726 | GE18: 106.128 | GF18: 106.53 | GG18: 106.932 | GH18: 107.334 | GI18: 107.736 | GJ18: 108.138 | GK18: 108.54 | GL18: 108.942 | GM18: =GM$158*$B18 -> 109.344 | GN18: 109.746 | GO18: 110.148 | GP18: 110.55 | GQ18: 110.952 | GR18: 111.354 | GS18: 111.756 | GT18: 112.158 | GU18: 112.56 | GV18: 112.962 | GW18: 113.364 | GX18: 113.766 | GY18: 114.168 | GZ18: 114.57 | HA18: 114.972 | HB18: 115.374 | HC18: 115.776 | HD18: 116.178 | HE18: 116.58 | HF18: 116.982 | HG18: 117.384 | HH18: 117.786 | HI18: 118.188 | HJ18: 118.59 | HK18: 118.992 | HL18: 119.394 | HM18: 119.796 | HN18: 120.198 | HO18: 120.6
A19: =Corn!$B$51/10 -> 0.003 | B19: =SUM(A19:$A$151) -> 0.399 | C19: 0.288 | D19: 32.319 | E19: 32.718 | F19: 33.117 | G19: 33.516 | H19: 33.915 | I19: 34.314 | J19: 34.713 | K19: 35.112 | L19: 35.511 | M19: 35.91 | N19: 36.309 | O19: 36.708 | P19: 37.107 | Q19: 37.506 | R19: 37.905 | S19: 38.304 | T19: 38.703 | U19: 39.102 | V19: 39.501 | W19: 39.9 | X19: 40.299 | Y19: 40.698 | Z19: 41.097 | AA19: 41.496 | AB19: 41.895 | AC19: 42.294 | AD19: 42.693 | AE19: 43.092 | AF19: 43.491 | AG19: 43.89 | AH19: 44.289 | AI19: 44.688 | AJ19: 45.087 | AK19: 45.486 | AL19: 45.885 | AM19: 46.284 | AN19: 46.683 | AO19: 47.082 | AP19: 47.481 | AQ19: 47.88 | AR19: 48.279 | AS19: 48.678 | AT19: 49.077 | AU19: 49.476 | AV19: 49.875 | AW19: 50.274 | AX19: 50.673 | AY19: 51.072 | AZ19: 51.471 | BA19: 51.87 | BB19: 52.269 | BC19: 52.668 | BD19: 53.067 | BE19: 53.466 | BF19: 53.865 | BG19: 54.264 | BH19: 54.663 | BI19: 55.062 | BJ19: 55.461 | BK19: 55.86 | BL19: 56.259 | BM19: 56.658 | BN19: 57.057 | BO19: 57.456 | BP19: =BP$158*$B19 -> 57.855 | BQ19: 58.254 | BR19: 58.653 | BS19: 59.052 | BT19: 59.451 | BU19: 59.85 | BV19: 60.249 | BW19: 60.648 | BX19: 61.047 | BY19: 61.446 | BZ19: 61.845 | CA19: 62.244 | CB19: 62.643 | CC19: 63.042 | CD19: 63.441 | CE19: 63.84 | CF19: 64.239 | CG19: 64.638 | CH19: 65.037 | CI19: 65.436 | CJ19: 65.835 | CK19: 66.234 | CL19: 66.633 | CM19: 67.032 | CN19: 67.431 | CO19: 67.83 | CP19: 68.229 | CQ19: 68.628 | CR19: 69.027 | CS19: 69.426 | CT19: 69.825 | CU19: 70.224 | CV19: 70.623 | CW19: 71.022 | CX19: 71.421 | CY19: 71.82 | CZ19: 72.219 | DA19: 72.618 | DB19: 73.017 | DC19: 73.416 | DD19: 73.815 | DE19: 74.214 | DF19: 74.613 | DG19: 75.012 | DH19: 75.411 | DI19: 75.81 | DJ19: 76.209 | DK19: 76.608 | DL19: 77.007 | DM19: 77.406 | DN19: 77.805 | DO19: 78.204 | DP19: 78.603 | DQ19: 79.002 | DR19: 79.401 | DS19: 79.8 | DT19: 80.199 | DU19: 80.598 | DV19: 80.997 | DW19: 81.396 | DX19: 81.795 | DY19: 82.194 | DZ19: 82.593 | EA19: 82.992 | EB19: =EB$158*$B19 -> 83.391 | EC19: 83.79 | ED19: 84.189 | EE19: 84.588 | EF19: 84.987 | EG19: 85.386 | EH19: 85.785 | EI19: 86.184 | EJ19: 86.583 | EK19: 86.982 | EL19: 87.381 | EM19: 87.78 | EN19: 88.179 | EO19: 88.578 | EP19: 88.977 | EQ19: 89.376 | ER19: 89.775 | ES19: 90.174 | ET19: 90.573 | EU19: 90.972 | EV19: 91.371 | EW19: 91.77 | EX19: 92.169 | EY19: 92.568 | EZ19: 92.967 | FA19: 93.366 | FB19: 93.765 | FC19: 94.164 | FD19: 94.563 | FE19: 94.962 | FF19: 95.361 | FG19: 95.76 | FH19: 96.159 | FI19: 96.558 | FJ19: 96.957 | FK19: 97.356 | FL19: 97.755 | FM19: 98.154 | FN19: 98.553 | FO19: 98.952 | FP19: 99.351 | FQ19: 99.75 | FR19: 100.149 | FS19: 100.548 | FT19: 100.947 | FU19: 101.346 | FV19: 101.745 | FW19: 102.144 | FX19: 102.543 | FY19: 102.942 | FZ19: 103.341 | GA19: 103.74 | GB19: 104.139 | GC19: 104.538 | GD19: 104.937 | GE19: 105.336 | GF19: 105.735 | GG19: 106.134 | GH19: 106.533 | GI19: 106.932 | GJ19: 107.331 | GK19: 107.73 | GL19: 108.129 | GM19: 108.528 | GN19: 108.927 | GO19: 109.326 | GP19: 109.725 | GQ19: 110.124 | GR19: 110.523 | GS19: 110.922 | GT19: 111.321 | GU19: 111.72 | GV19: 112.119 | GW19: 112.518 | GX19: 112.917 | GY19: 113.316 | GZ19: 113.715 | HA19: 114.114 | HB19: 114.513 | HC19: 114.912 | HD19: 115.311 | HE19: 115.71 | HF19: 116.109 | HG19: 116.508 | HH19: 116.907 | HI19: 117.306 | HJ19: 117.705 | HK19: 118.104 | HL19: 118.503 | HM19: 118.902 | HN19: 119.301 | HO19: 119.7
A20: =Corn!$B$51/10 -> 0.003 | B20: =SUM(A20:$A$151) -> 0.396 | C20: 0.287 | D20: 32.076 | E20: =E$158*$B20 -> 32.472 | F20: 32.868 | G20: 33.264 | H20: 33.66 | I20: 34.056 | J20: 34.452 | K20: 34.848 | L20: 35.244 | M20: 35.64 | N20: 36.036 | O20: 36.432 | P20: 36.828 | Q20: 37.224 | R20: 37.62 | S20: 38.016 | T20: 38.412 | U20: 38.808 | V20: 39.204 | W20: 39.6 | X20: 39.996 | Y20: 40.392 | Z20: 40.788 | AA20: 41.184 | AB20: 41.58 | AC20: 41.976 | AD20: 42.372 | AE20: 42.768 | AF20: 43.164 | AG20: 43.56 | AH20: 43.956 | AI20: 44.352 | AJ20: 44.748 | AK20: 45.144 | AL20: 45.54 | AM20: 45.936 | AN20: 46.332 | AO20: 46.728 | AP20: 47.124 | AQ20: 47.52 | AR20: 47.916 | AS20: 48.312 | AT20: 48.708 | AU20: 49.104 | AV20: 49.5 | AW20: 49.896 | AX20: 50.292 | AY20: 50.688 | AZ20: 51.084 | BA20: 51.48 | BB20: 51.876 | BC20: 52.272 | BD20: 52.668 | BE20: 53.064 | BF20: 53.46 | BG20: 53.856 | BH20: 54.252 | BI20: 54.648 | BJ20: 55.044 | BK20: 55.44 | BL20: 55.836 | BM20: 56.232 | BN20: 56.628 | BO20: 57.024 | BP20: 57.42 | BQ20: 57.816 | BR20: 58.212 | BS20: 58.608 | BT20: 59.004 | BU20: 59.4 | BV20: 59.796 | BW20: 60.192 | BX20: 60.588 | BY20: 60.984 | BZ20: 61.38 | CA20: 61.776 | CB20: 62.172 | CC20: 62.568 | CD20: 62.964 | CE20: 63.36 | CF20: 63.756 | CG20: 64.152 | CH20: 64.548 | CI20: 64.944 | CJ20: 65.34 | CK20: 65.736 | CL20: 66.132 | CM20: 66.528 | CN20: 66.924 | CO20: 67.32 | CP20: 67.716 | CQ20: 68.112 | CR20: 68.508 | CS20: 68.904 | CT20: 69.3 | CU20: 69.696 | CV20: 70.092 | CW20: 70.488 | CX20: 70.884 | CY20: 71.28 | CZ20: 71.676 | DA20: 72.072 | DB20: 72.468 | DC20: 72.864 | DD20: 73.26 | DE20: 73.656 | DF20: 74.052 | DG20: 74.448 | DH20: 74.844 | DI20: 75.24 | DJ20: 75.636 | DK20: 76.032 | DL20: 76.428 | DM20: 76.824 | DN20: 77.22 | DO20: 77.616 | DP20: 78.012 | DQ20: 78.408 | DR20: 78.804 | DS20: 79.2 | DT20: 79.596 | DU20: 79.992 | DV20: 80.388 | DW20: 80.784 | DX20: 81.18 | DY20: 81.576 | DZ20: 81.972 | EA20: 82.368 | EB20: 82.764 | EC20: 83.16 | ED20: 83.556 | EE20: 83.952 | EF20: 84.348 | EG20: 84.744 | EH20: 85.14 | EI20: 85.536 | EJ20: 85.932 | EK20: 86.328 | EL20: 86.724 | EM20: 87.12 | EN20: 87.516 | EO20: 87.912 | EP20: 88.308 | EQ20: 88.704 | ER20: 89.1 | ES20: 89.496 | ET20: 89.892 | EU20: 90.288 | EV20: 90.684 | EW20: 91.08 | EX20: 91.476 | EY20: 91.872 | EZ20: 92.268 | FA20: 92.664 | FB20: 93.06 | FC20: 93.456 | FD20: 93.852 | FE20: 94.248 | FF20: 94.644 | FG20: 95.04 | FH20: 95.436 | FI20: 95.832 | FJ20: 96.228 | FK20: 96.624 | FL20: 97.02 | FM20: 97.416 | FN20: 97.812 | FO20: 98.208 | FP20: 98.604 | FQ20: 99 | FR20: 99.396 | FS20: 99.792 | FT20: 100.188 | FU20: 100.584 | FV20: 100.98 | FW20: 101.376 | FX20: 101.772 | FY20: 102.168 | FZ20: 102.564 | GA20: 102.96 | GB20: 103.356 | GC20: 103.752 | GD20: 104.148 | GE20: 104.544 | GF20: 104.94 | GG20: 105.336 | GH20: 105.732 | GI20: 106.128 | GJ20: 106.524 | GK20: 106.92 | GL20: 107.316 | GM20: 107.712 | GN20: 108.108 | GO20: 108.504 | GP20: 108.9 | GQ20: 109.296 | GR20: 109.692 | GS20: 110.088 | GT20: 110.484 | GU20: 110.88 | GV20: 111.276 | GW20: 111.672 | GX20: 112.068 | GY20: 112.464 | GZ20: 112.86 | HA20: 113.256 | HB20: 113.652 | HC20: 114.048 | HD20: 114.444 | HE20: 114.84 | HF20: 115.236 | HG20: 115.632 | HH20: 116.028 | HI20: 116.424 | HJ20: 116.82 | HK20: 117.216 | HL20: 117.612 | HM20: 118.008 | HN20: 118.404 | HO20: 118.8
A21: =Corn!$B$51/10 -> 0.003 | B21: =SUM(A21:$A$151) -> 0.393 | C21: 0.286 | D21: 31.833 | E21: 32.226 | F21: 32.619 | G21: 33.012 | H21: 33.405 | I21: 33.798 | J21: 34.191 | K21: 34.584 | L21: 34.977 | M21: 35.37 | N21: 35.763 | O21: 36.156 | P21: 36.549 | Q21: 36.942 | R21: 37.335 | S21: 37.728 | T21: 38.121 | U21: 38.514 | V21: 38.907 | W21: 39.3 | X21: 39.693 | Y21: 40.086 | Z21: 40.479 | AA21: 40.872 | AB21: 41.265 | AC21: 41.658 | AD21: 42.051 | AE21: 42.444 | AF21: 42.837 | AG21: 43.23 | AH21: 43.623 | AI21: 44.016 | AJ21: 44.409 | AK21: 44.802 | AL21: 45.195 | AM21: 45.588 | AN21: 45.981 | AO21: 46.374 | AP21: 46.767 | AQ21: 47.16 | AR21: 47.553 | AS21: 47.946 | AT21: 48.339 | AU21: 48.732 | AV21: 49.125 | AW21: 49.518 | AX21: 49.911 | AY21: 50.304 | AZ21: 50.697 | BA21: 51.09 | BB21: 51.483 | BC21: 51.876 | BD21: 52.269 | BE21: 52.662 | BF21: 53.055 | BG21: 53.448 | BH21: 53.841 | BI21: 54.234 | BJ21: 54.627 | BK21: 55.02 | BL21: 55.413 | BM21: 55.806 | BN21: 56.199 | BO21: 56.592 | BP21: 56.985 | BQ21: 57.378 | BR21: 57.771 | BS21: 58.164 | BT21: 58.557 | BU21: 58.95 | BV21: 59.343 | BW21: 59.736 | BX21: 60.129 | BY21: 60.522 | BZ21: 60.915 | CA21: 61.308 | CB21: 61.701 | CC21: 62.094 | CD21: 62.487 | CE21: 62.88 | CF21: 63.273 | CG21: 63.666 | CH21: 64.059 | CI21: 64.452 | CJ21: 64.845 | CK21: 65.238 | CL21: 65.631 | CM21: 66.024 | CN21: 66.417 | CO21: 66.81 | CP21: 67.203 | CQ21: 67.596 | CR21: 67.989 | CS21: 68.382 | CT21: 68.775 | CU21: 69.168 | CV21: 69.561 | CW21: 69.954 | CX21: 70.347 | CY21: 70.74 | CZ21: 71.133 | DA21: 71.526 | DB21: 71.919 | DC21: 72.312 | DD21: 72.705 | DE21: 73.098 | DF21: 73.491 | DG21: 73.884 | DH21: 74.277 | DI21: 74.67 | DJ21: 75.063 | DK21: 75.456 | DL21: 75.849 | DM21: 76.242 | DN21: 76.635 | DO21: 77.028 | DP21: 77.421 | DQ21: 77.814 | DR21: 78.207 | DS21: 78.6 | DT21: 78.993 | DU21: 79.386 | DV21: 79.779 | DW21: 80.172 | DX21: 80.565 | DY21: 80.958 | DZ21: 81.351 | EA21: 81.744 | EB21: 82.137 | EC21: 82.53 | ED21: 82.923 | EE21: 83.316 | EF21: 83.709 | EG21: 84.102 | EH21: 84.495 | EI21: 84.888 | EJ21: 85.281 | EK21: 85.674 | EL21: 86.067 | EM21: 86.46 | EN21: 86.853 | EO21: 87.246 | EP21: 87.639 | EQ21: 88.032 | ER21: 88.425 | ES21: 88.818 | ET21: 89.211 | EU21: 89.604 | EV21: 89.997 | EW21: 90.39 | EX21: 90.783 | EY21: 91.176 | EZ21: 91.569 | FA21: 91.962 | FB21: 92.355 | FC21: 92.748 | FD21: 93.141 | FE21: 93.534 | FF21: 93.927 | FG21: 94.32 | FH21: 94.713 | FI21: 95.106 | FJ21: 95.499 | FK21: 95.892 | FL21: 96.285 | FM21: 96.678 | FN21: 97.071 | FO21: 97.464 | FP21: 97.857 | FQ21: 98.25 | FR21: 98.643 | FS21: 99.036 | FT21: 99.429 | FU21: 99.822 | FV21: 100.215 | FW21: 100.608 | FX21: 101.001 | FY21: 101.394 | FZ21: 101.787 | GA21: 102.18 | GB21: 102.573 | GC21: 102.966 | GD21: 103.359 | GE21: 103.752 | GF21: 104.145 | GG21: 104.538 | GH21: 104.931 | GI21: 105.324 | GJ21: 105.717 | GK21: 106.11 | GL21: 106.503 | GM21: 106.896 | GN21: 107.289 | GO21: 107.682 | GP21: 108.075 | GQ21: 108.468 | GR21: 108.861 | GS21: 109.254 | GT21: 109.647 | GU21: 110.04 | GV21: 110.433 | GW21: 110.826 | GX21: 111.219 | GY21: 111.612 | GZ21: 112.005 | HA21: 112.398 | HB21: 112.791 | HC21: 113.184 | HD21: 113.577 | HE21: 113.97 | HF21: 114.363 | HG21: 114.756 | HH21: 115.149 | HI21: 115.542 | HJ21: 115.935 | HK21: 116.328 | HL21: 116.721 | HM21: 117.114 | HN21: 117.507 | HO21: 117.9
A22: =Corn!$B$51/10 -> 0.003 | B22: =SUM(A22:$A$151) -> 0.39 | C22: 0.285 | D22: 31.59 | E22: 31.98 | F22: 32.37 | G22: 32.76 | H22: 33.15 | I22: 33.54 | J22: 33.93 | K22: 34.32 | L22: 34.71 | M22: 35.1 | N22: 35.49 | O22: 35.88 | P22: 36.27 | Q22: 36.66 | R22: 37.05 | S22: 37.44 | T22: 37.83 | U22: 38.22 | V22: 38.61 | W22: 39 | X22: 39.39 | Y22: 39.78 | Z22: 40.17 | AA22: 40.56 | AB22: 40.95 | AC22: 41.34 | AD22: 41.73 | AE22: 42.12 | AF22: 42.51 | AG22: 42.9 | AH22: 43.29 | AI22: 43.68 | AJ22: 44.07 | AK22: 44.46 | AL22: 44.85 | AM22: 45.24 | AN22: 45.63 | AO22: 46.02 | AP22: 46.41 | AQ22: 46.8 | AR22: 47.19 | AS22: 47.58 | AT22: 47.97 | AU22: 48.36 | AV22: 48.75 | AW22: 49.14 | AX22: 49.53 | AY22: 49.92 | AZ22: 50.31 | BA22: 50.7 | BB22: 51.09 | BC22: 51.48 | BD22: 51.87 | BE22: 52.26 | BF22: 52.65 | BG22: 53.04 | BH22: 53.43 | BI22: 53.82 | BJ22: 54.21 | BK22: 54.6 | BL22: 54.99 | BM22: 55.38 | BN22: 55.77 | BO22: 56.16 | BP22: 56.55 | BQ22: 56.94 | BR22: 57.33 | BS22: 57.72 | BT22: 58.11 | BU22: 58.5 | BV22: 58.89 | BW22: 59.28 | BX22: 59.67 | BY22: 60.06 | BZ22: 60.45 | CA22: 60.84 | CB22: 61.23 | CC22: 61.62 | CD22: 62.01 | CE22: 62.4 | CF22: 62.79 | CG22: 63.18 | CH22: 63.57 | CI22: 63.96 | CJ22: 64.35 | CK22: 64.74 | CL22: 65.13 | CM22: 65.52 | CN22: 65.91 | CO22: 66.3 | CP22: 66.69 | CQ22: 67.08 | CR22: 67.47 | CS22: 67.86 | CT22: 68.25 | CU22: 68.64 | CV22: 69.03 | CW22: 69.42 | CX22: 69.81 | CY22: 70.2 | CZ22: 70.59 | DA22: 70.98 | DB22: 71.37 | DC22: 71.76 | DD22: 72.15 | DE22: 72.54 | DF22: 72.93 | DG22: 73.32 | DH22: 73.71 | DI22: 74.1 | DJ22: 74.49 | DK22: 74.88 | DL22: 75.27 | DM22: 75.66 | DN22: 76.05 | DO22: 76.44 | DP22: 76.83 | DQ22: 77.22 | DR22: 77.61 | DS22: 78 | DT22: 78.39 | DU22: 78.78 | DV22: 79.17 | DW22: 79.56 | DX22: 79.95 | DY22: 80.34 | DZ22: 80.73 | EA22: 81.12 | EB22: 81.51 | EC22: 81.9 | ED22: 82.29 | EE22: 82.68 | EF22: 83.07 | EG22: 83.46 | EH22: 83.85 | EI22: 84.24 | EJ22: 84.63 | EK22: 85.02 | EL22: 85.41 | EM22: 85.8 | EN22: 86.19 | EO22: 86.58 | EP22: 86.97 | EQ22: 87.36 | ER22: 87.75 | ES22: 88.14 | ET22: 88.53 | EU22: 88.92 | EV22: 89.31 | EW22: 89.7 | EX22: 90.09 | EY22: 90.48 | EZ22: 90.87 | FA22: 91.26 | FB22: 91.65 | FC22: 92.04 | FD22: 92.43 | FE22: 92.82 | FF22: 93.21 | FG22: 93.6 | FH22: 93.99 | FI22: 94.38 | FJ22: 94.77 | FK22: 95.16 | FL22: 95.55 | FM22: 95.94 | FN22: 96.33 | FO22: 96.72 | FP22: 97.11 | FQ22: 97.5 | FR22: 97.89 | FS22: 98.28 | FT22: 98.67 | FU22: 99.06 | FV22: 99.45 | FW22: 99.84 | FX22: 100.23 | FY22: 100.62 | FZ22: 101.01 | GA22: 101.4 | GB22: 101.79 | GC22: 102.18 | GD22: 102.57 | GE22: 102.96 | GF22: 103.35 | GG22: 103.74 | GH22: 104.13 | GI22: 104.52 | GJ22: 104.91 | GK22: 105.3 | GL22: 105.69 | GM22: =GM$158*$B22 -> 106.08 | GN22: 106.47 | GO22: 106.86 | GP22: 107.25 | GQ22: 107.64 | GR22: 108.03 | GS22: 108.42 | GT22: 108.81 | GU22: 109.2 | GV22: 109.59 | GW22: 109.98 | GX22: 110.37 | GY22: 110.76 | GZ22: 111.15 | HA22: 111.54 | HB22: 111.93 | HC22: 112.32 | HD22: 112.71 | HE22: 113.1 | HF22: 113.49 | HG22: 113.88 | HH22: 114.27 | HI22: 114.66 | HJ22: 115.05 | HK22: 115.44 | HL22: 115.83 | HM22: 116.22 | HN22: 116.61 | HO22: 117
A23: =Corn!$B$51/10 -> 0.003 | B23: =SUM(A23:$A$151) -> 0.387 | C23: 0.284 | D23: 31.347 | E23: 31.734 | F23: 32.121 | G23: 32.508 | H23: 32.895 | I23: 33.282 | J23: 33.669 | K23: 34.056 | L23: 34.443 | M23: 34.83 | N23: 35.217 | O23: 35.604 | P23: 35.991 | Q23: 36.378 | R23: 36.765 | S23: 37.152 | T23: 37.539 | U23: 37.926 | V23: 38.313 | W23: 38.7 | X23: 39.087 | Y23: 39.474 | Z23: 39.861 | AA23: 40.248 | AB23: 40.635 | AC23: 41.022 | AD23: 41.409 | AE23: 41.796 | AF23: 42.183 | AG23: 42.57 | AH23: 42.957 | AI23: 43.344 | AJ23: 43.731 | AK23: 44.118 | AL23: 44.505 | AM23: 44.892 | AN23: 45.279 | AO23: 45.666 | AP23: 46.053 | AQ23: 46.44 | AR23: 46.827 | AS23: 47.214 | AT23: 47.601 | AU23: 47.988 | AV23: 48.375 | AW23: 48.762 | AX23: 49.149 | AY23: 49.536 | AZ23: 49.923 | BA23: 50.31 | BB23: 50.697 | BC23: 51.084 | BD23: 51.471 | BE23: 51.858 | BF23: 52.245 | BG23: 52.632 | BH23: 53.019 | BI23: 53.406 | BJ23: 53.793 | BK23: 54.18 | BL23: 54.567 | BM23: 54.954 | BN23: 55.341 | BO23: 55.728 | BP23: =BP$158*$B23 -> 56.115 | BQ23: 56.502 | BR23: 56.889 | BS23: 57.276 | BT23: 57.663 | BU23: 58.05 | BV23: 58.437 | BW23: 58.824 | BX23: 59.211 | BY23: 59.598 | BZ23: 59.985 | CA23: 60.372 | CB23: 60.759 | CC23: 61.146 | CD23: 61.533 | CE23: 61.92 | CF23: 62.307 | CG23: 62.694 | CH23: 63.081 | CI23: 63.468 | CJ23: 63.855 | CK23: 64.242 | CL23: 64.629 | CM23: 65.016 | CN23: 65.403 | CO23: 65.79 | CP23: 66.177 | CQ23: 66.564 | CR23: 66.951 | CS23: 67.338 | CT23: 67.725 | CU23: 68.112 | CV23: 68.499 | CW23: 68.886 | CX23: 69.273 | CY23: 69.66 | CZ23: 70.047 | DA23: 70.434 | DB23: 70.821 | DC23: 71.208 | DD23: 71.595 | DE23: 71.982 | DF23: 72.369 | DG23: 72.756 | DH23: 73.143 | DI23: 73.53 | DJ23: 73.917 | DK23: 74.304 | DL23: 74.691 | DM23: 75.078 | DN23: 75.465 | DO23: 75.852 | DP23: 76.239 | DQ23: 76.626 | DR23: 77.013 | DS23: 77.4 | DT23: 77.787 | DU23: 78.174 | DV23: 78.561 | DW23: 78.948 | DX23: 79.335 | DY23: 79.722 | DZ23: 80.109 | EA23: 80.496 | EB23: =EB$158*$B23 -> 80.883 | EC23: 81.27 | ED23: 81.657 | EE23: 82.044 | EF23: 82.431 | EG23: 82.818 | EH23: 83.205 | EI23: 83.592 | EJ23: 83.979 | EK23: 84.366 | EL23: 84.753 | EM23: 85.14 | EN23: 85.527 | EO23: 85.914 | EP23: 86.301 | EQ23: 86.688 | ER23: 87.075 | ES23: 87.462 | ET23: 87.849 | EU23: 88.236 | EV23: 88.623 | EW23: 89.01 | EX23: 89.397 | EY23: 89.784 | EZ23: 90.171 | FA23: 90.558 | FB23: 90.945 | FC23: 91.332 | FD23: 91.719 | FE23: 92.106 | FF23: 92.493 | FG23: 92.88 | FH23: 93.267 | FI23: 93.654 | FJ23: 94.041 | FK23: 94.428 | FL23: 94.815 | FM23: 95.202 | FN23: 95.589 | FO23: 95.976 | FP23: 96.363 | FQ23: 96.75 | FR23: 97.137 | FS23: 97.524 | FT23: 97.911 | FU23: 98.298 | FV23: 98.685 | FW23: 99.072 | FX23: 99.459 | FY23: 99.846 | FZ23: 100.233 | GA23: 100.62 | GB23: 101.007 | GC23: 101.394 | GD23: 101.781 | GE23: 102.168 | GF23: 102.555 | GG23: 102.942 | GH23: 103.329 | GI23: 103.716 | GJ23: 104.103 | GK23: 104.49 | GL23: 104.877 | GM23: 105.264 | GN23: 105.651 | GO23: 106.038 | GP23: 106.425 | GQ23: 106.812 | GR23: 107.199 | GS23: 107.586 | GT23: 107.973 | GU23: 108.36 | GV23: 108.747 | GW23: 109.134 | GX23: 109.521 | GY23: 109.908 | GZ23: 110.295 | HA23: 110.682 | HB23: 111.069 | HC23: 111.456 | HD23: 111.843 | HE23: 112.23 | HF23: 112.617 | HG23: 113.004 | HH23: 113.391 | HI23: 113.778 | HJ23: 114.165 | HK23: 114.552 | HL23: 114.939 | HM23: 115.326 | HN23: 115.713 | HO23: 116.1
A24: =Corn!$B$51/10 -> 0.003 | B24: =SUM(A24:$A$151) -> 0.384 | C24: 0.283 | D24: 31.104 | E24: =E$158*$B24 -> 31.488 | F24: 31.872 | G24: 32.256 | H24: 32.64 | I24: 33.024 | J24: 33.408 | K24: 33.792 | L24: 34.176 | M24: 34.56 | N24: 34.944 | O24: 35.328 | P24: 35.712 | Q24: 36.096 | R24: 36.48 | S24: 36.864 | T24: 37.248 | U24: 37.632 | V24: 38.016 | W24: 38.4 | X24: 38.784 | Y24: 39.168 | Z24: 39.552 | AA24: 39.936 | AB24: 40.32 | AC24: 40.704 | AD24: 41.088 | AE24: 41.472 | AF24: 41.856 | AG24: 42.24 | AH24: 42.624 | AI24: 43.008 | AJ24: 43.392 | AK24: 43.776 | AL24: 44.16 | AM24: 44.544 | AN24: 44.928 | AO24: 45.312 | AP24: 45.696 | AQ24: 46.08 | AR24: 46.464 | AS24: 46.848 | AT24: 47.232 | AU24: 47.616 | AV24: 48 | AW24: 48.384 | AX24: 48.768 | AY24: 49.152 | AZ24: 49.536 | BA24: 49.92 | BB24: 50.304 | BC24: 50.688 | BD24: 51.072 | BE24: 51.456 | BF24: 51.84 | BG24: 52.224 | BH24: 52.608 | BI24: 52.992 | BJ24: 53.376 | BK24: 53.76 | BL24: 54.144 | BM24: 54.528 | BN24: 54.912 | BO24: 55.296 | BP24: 55.68 | BQ24: 56.064 | BR24: 56.448 | BS24: 56.832 | BT24: 57.216 | BU24: 57.6 | BV24: 57.984 | BW24: 58.368 | BX24: 58.752 | BY24: 59.136 | BZ24: 59.52 | CA24: 59.904 | CB24: 60.288 | CC24: 60.672 | CD24: 61.056 | CE24: 61.44 | CF24: 61.824 | CG24: 62.208 | CH24: 62.592 | CI24: 62.976 | CJ24: 63.36 | CK24: 63.744 | CL24: 64.128 | CM24: 64.512 | CN24: 64.896 | CO24: 65.28 | CP24: 65.664 | CQ24: 66.048 | CR24: 66.432 | CS24: 66.816 | CT24: 67.2 | CU24: 67.584 | CV24: 67.968 | CW24: 68.352 | CX24: 68.736 | CY24: 69.12 | CZ24: 69.504 | DA24: 69.888 | DB24: 70.272 | DC24: 70.656 | DD24: 71.04 | DE24: 71.424 | DF24: 71.808 | DG24: 72.192 | DH24: 72.576 | DI24: 72.96 | DJ24: 73.344 | DK24: 73.728 | DL24: 74.112 | DM24: 74.496 | DN24: 74.88 | DO24: 75.264 | DP24: 75.648 | DQ24: 76.032 | DR24: 76.416 | DS24: 76.8 | DT24: 77.184 | DU24: 77.568 | DV24: 77.952 | DW24: 78.336 | DX24: 78.72 | DY24: 79.104 | DZ24: 79.488 | EA24: 79.872 | EB24: 80.256 | EC24: 80.64 | ED24: 81.024 | EE24: 81.408 | EF24: 81.792 | EG24: 82.176 | EH24: 82.56 | EI24: 82.944 | EJ24: 83.328 | EK24: 83.712 | EL24: 84.096 | EM24: 84.48 | EN24: 84.864 | EO24: 85.248 | EP24: 85.632 | EQ24: 86.016 | ER24: 86.4 | ES24: 86.784 | ET24: 87.168 | EU24: 87.552 | EV24: 87.936 | EW24: 88.32 | EX24: 88.704 | EY24: 89.088 | EZ24: 89.472 | FA24: 89.856 | FB24: 90.24 | FC24: 90.624 | FD24: 91.008 | FE24: 91.392 | FF24: 91.776 | FG24: 92.16 | FH24: 92.544 | FI24: 92.928 | FJ24: 93.312 | FK24: 93.696 | FL24: 94.08 | FM24: 94.464 | FN24: 94.848 | FO24: 95.232 | FP24: 95.616 | FQ24: 96 | FR24: 96.384 | FS24: 96.768 | FT24: 97.152 | FU24: 97.536 | FV24: 97.92 | FW24: 98.304 | FX24: 98.688 | FY24: 99.072 | FZ24: 99.456 | GA24: 99.84 | GB24: 100.224 | GC24: 100.608 | GD24: 100.992 | GE24: 101.376 | GF24: 101.76 | GG24: 102.144 | GH24: 102.528 | GI24: 102.912 | GJ24: 103.296 | GK24: 103.68 | GL24: 104.064 | GM24: 104.448 | GN24: 104.832 | GO24: 105.216 | GP24: 105.6 | GQ24: 105.984 | GR24: 106.368 | GS24: 106.752 | GT24: 107.136 | GU24: 107.52 | GV24: 107.904 | GW24: 108.288 | GX24: 108.672 | GY24: 109.056 | GZ24: 109.44 | HA24: 109.824 | HB24: 110.208 | HC24: 110.592 | HD24: 110.976 | HE24: 111.36 | HF24: 111.744 | HG24: 112.128 | HH24: 112.512 | HI24: 112.896 | HJ24: 113.28 | HK24: 113.664 | HL24: 114.048 | HM24: 114.432 | HN24: 114.816 | HO24: 115.2
A25: =Corn!$B$51/10 -> 0.003 | B25: =SUM(A25:$A$151) -> 0.381 | C25: 0.282 | D25: 30.861 | E25: 31.242 | F25: 31.623 | G25: 32.004 | H25: 32.385 | I25: 32.766 | J25: 33.147 | K25: 33.528 | L25: 33.909 | M25: 34.29 | N25: 34.671 | O25: 35.052 | P25: 35.433 | Q25: 35.814 | R25: 36.195 | S25: 36.576 | T25: 36.957 | U25: 37.338 | V25: 37.719 | W25: 38.1 | X25: 38.481 | Y25: 38.862 | Z25: 39.243 | AA25: 39.624 | AB25: 40.005 | AC25: 40.386 | AD25: 40.767 | AE25: 41.148 | AF25: 41.529 | AG25: 41.91 | AH25: 42.291 | AI25: 42.672 | AJ25: 43.053 | AK25: 43.434 | AL25: 43.815 | AM25: 44.196 | AN25: 44.577 | AO25: 44.958 | AP25: 45.339 | AQ25: 45.72 | AR25: 46.101 | AS25: 46.482 | AT25: 46.863 | AU25: 47.244 | AV25: 47.625 | AW25: 48.006 | AX25: 48.387 | AY25: 48.768 | AZ25: 49.149 | BA25: 49.53 | BB25: 49.911 | BC25: 50.292 | BD25: 50.673 | BE25: 51.054 | BF25: 51.435 | BG25: 51.816 | BH25: 52.197 | BI25: 52.578 | BJ25: 52.959 | BK25: 53.34 | BL25: 53.721 | BM25: 54.102 | BN25: 54.483 | BO25: 54.864 | BP25: 55.245 | BQ25: 55.626 | BR25: 56.007 | BS25: 56.388 | BT25: 56.769 | BU25: 57.15 | BV25: 57.531 | BW25: 57.912 | BX25: 58.293 | BY25: 58.674 | BZ25: 59.055 | CA25: 59.436 | CB25: 59.817 | CC25: 60.198 | CD25: 60.579 | CE25: 60.96 | CF25: 61.341 | CG25: 61.722 | CH25: 62.103 | CI25: 62.484 | CJ25: 62.865 | CK25: 63.246 | CL25: 63.627 | CM25: 64.008 | CN25: 64.389 | CO25: 64.77 | CP25: 65.151 | CQ25: 65.532 | CR25: 65.913 | CS25: 66.294 | CT25: 66.675 | CU25: 67.056 | CV25: 67.437 | CW25: 67.818 | CX25: 68.199 | CY25: 68.58 | CZ25: 68.961 | DA25: 69.342 | DB25: 69.723 | DC25: 70.104 | DD25: 70.485 | DE25: 70.866 | DF25: 71.247 | DG25: 71.628 | DH25: 72.009 | DI25: 72.39 | DJ25: 72.771 | DK25: 73.152 | DL25: 73.533 | DM25: 73.914 | DN25: 74.295 | DO25: 74.676 | DP25: 75.057 | DQ25: 75.438 | DR25: 75.819 | DS25: 76.2 | DT25: 76.581 | DU25: 76.962 | DV25: 77.343 | DW25: 77.724 | DX25: 78.105 | DY25: 78.486 | DZ25: 78.867 | EA25: 79.248 | EB25: 79.629 | EC25: 80.01 | ED25: 80.391 | EE25: 80.772 | EF25: 81.153 | EG25: 81.534 | EH25: 81.915 | EI25: 82.296 | EJ25: 82.677 | EK25: 83.058 | EL25: 83.439 | EM25: 83.82 | EN25: 84.201 | EO25: 84.582 | EP25: 84.963 | EQ25: 85.344 | ER25: 85.725 | ES25: 86.106 | ET25: 86.487 | EU25: 86.868 | EV25: 87.249 | EW25: 87.63 | EX25: 88.011 | EY25: 88.392 | EZ25: 88.773 | FA25: 89.154 | FB25: 89.535 | FC25: 89.916 | FD25: 90.297 | FE25: 90.678 | FF25: 91.059 | FG25: 91.44 | FH25: 91.821 | FI25: 92.202 | FJ25: 92.583 | FK25: 92.964 | FL25: 93.345 | FM25: 93.726 | FN25: 94.107 | FO25: 94.488 | FP25: 94.869 | FQ25: 95.25 | FR25: 95.631 | FS25: 96.012 | FT25: 96.393 | FU25: 96.774 | FV25: 97.155 | FW25: 97.536 | FX25: 97.917 | FY25: 98.298 | FZ25: 98.679 | GA25: 99.06 | GB25: 99.441 | GC25: 99.822 | GD25: 100.203 | GE25: 100.584 | GF25: 100.965 | GG25: 101.346 | GH25: 101.727 | GI25: 102.108 | GJ25: 102.489 | GK25: 102.87 | GL25: 103.251 | GM25: 103.632 | GN25: 104.013 | GO25: 104.394 | GP25: 104.775 | GQ25: 105.156 | GR25: 105.537 | GS25: 105.918 | GT25: 106.299 | GU25: 106.68 | GV25: 107.061 | GW25: 107.442 | GX25: 107.823 | GY25: 108.204 | GZ25: 108.585 | HA25: 108.966 | HB25: 109.347 | HC25: 109.728 | HD25: 110.109 | HE25: 110.49 | HF25: 110.871 | HG25: 111.252 | HH25: 111.633 | HI25: 112.014 | HJ25: 112.395 | HK25: 112.776 | HL25: 113.157 | HM25: 113.538 | HN25: 113.919 | HO25: 114.3
A26: =Corn!$B$51/10 -> 0.003 | B26: =SUM(A26:$A$151) -> 0.378 | C26: 0.281 | D26: 30.618 | E26: 30.996 | F26: 31.374 | G26: 31.752 | H26: 32.13 | I26: 32.508 | J26: 32.886 | K26: 33.264 | L26: 33.642 | M26: 34.02 | N26: 34.398 | O26: 34.776 | P26: 35.154 | Q26: 35.532 | R26: 35.91 | S26: 36.288 | T26: 36.666 | U26: 37.044 | V26: 37.422 | W26: 37.8 | X26: 38.178 | Y26: 38.556 | Z26: 38.934 | AA26: 39.312 | AB26: 39.69 | AC26: 40.068 | AD26: 40.446 | AE26: 40.824 | AF26: 41.202 | AG26: 41.58 | AH26: 41.958 | AI26: 42.336 | AJ26: 42.714 | AK26: 43.092 | AL26: 43.47 | AM26: 43.848 | AN26: 44.226 | AO26: 44.604 | AP26: 44.982 | AQ26: 45.36 | AR26: 45.738 | AS26: 46.116 | AT26: 46.494 | AU26: 46.872 | AV26: 47.25 | AW26: 47.628 | AX26: 48.006 | AY26: 48.384 | AZ26: 48.762 | BA26: 49.14 | BB26: 49.518 | BC26: 49.896 | BD26: 50.274 | BE26: 50.652 | BF26: 51.03 | BG26: 51.408 | BH26: 51.786 | BI26: 52.164 | BJ26: 52.542 | BK26: 52.92 | BL26: 53.298 | BM26: 53.676 | BN26: 54.054 | BO26: 54.432 | BP26: 54.81 | BQ26: 55.188 | BR26: 55.566 | BS26: 55.944 | BT26: 56.322 | BU26: 56.7 | BV26: 57.078 | BW26: 57.456 | BX26: 57.834 | BY26: 58.212 | BZ26: 58.59 | CA26: 58.968 | CB26: 59.346 | CC26: 59.724 | CD26: 60.102 | CE26: 60.48 | CF26: 60.858 | CG26: 61.236 | CH26: 61.614 | CI26: 61.992 | CJ26: 62.37 | CK26: 62.748 | CL26: 63.126 | CM26: 63.504 | CN26: 63.882 | CO26: 64.26 | CP26: 64.638 | CQ26: 65.016 | CR26: 65.394 | CS26: 65.772 | CT26: 66.15 | CU26: 66.528 | CV26: 66.906 | CW26: 67.284 | CX26: 67.662 | CY26: 68.04 | CZ26: 68.418 | DA26: 68.796 | DB26: 69.174 | DC26: 69.552 | DD26: 69.93 | DE26: 70.308 | DF26: 70.686 | DG26: 71.064 | DH26: 71.442 | DI26: 71.82 | DJ26: 72.198 | DK26: 72.576 | DL26: 72.954 | DM26: 73.332 | DN26: 73.71 | DO26: 74.088 | DP26: 74.466 | DQ26: 74.844 | DR26: 75.222 | DS26: 75.6 | DT26: 75.978 | DU26: 76.356 | DV26: 76.734 | DW26: 77.112 | DX26: 77.49 | DY26: 77.868 | DZ26: 78.246 | EA26: 78.624 | EB26: 79.002 | EC26: 79.38 | ED26: 79.758 | EE26: 80.136 | EF26: 80.514 | EG26: 80.892 | EH26: 81.27 | EI26: 81.648 | EJ26: 82.026 | EK26: 82.404 | EL26: 82.782 | EM26: 83.16 | EN26: 83.538 | EO26: 83.916 | EP26: 84.294 | EQ26: 84.672 | ER26: 85.05 | ES26: 85.428 | ET26: 85.806 | EU26: 86.184 | EV26: 86.562 | EW26: 86.94 | EX26: 87.318 | EY26: 87.696 | EZ26: 88.074 | FA26: 88.452 | FB26: 88.83 | FC26: 89.208 | FD26: 89.586 | FE26: 89.964 | FF26: 90.342 | FG26: 90.72 | FH26: 91.098 | FI26: 91.476 | FJ26: 91.854 | FK26: 92.232 | FL26: 92.61 | FM26: 92.988 | FN26: 93.366 | FO26: 93.744 | FP26: 94.122 | FQ26: 94.5 | FR26: 94.878 | FS26: 95.256 | FT26: 95.634 | FU26: 96.012 | FV26: 96.39 | FW26: 96.768 | FX26: 97.146 | FY26: 97.524 | FZ26: 97.902 | GA26: 98.28 | GB26: 98.658 | GC26: 99.036 | GD26: 99.414 | GE26: 99.792 | GF26: 100.17 | GG26: 100.548 | GH26: 100.926 | GI26: 101.304 | GJ26: 101.682 | GK26: 102.06 | GL26: 102.438 | GM26: =GM$158*$B26 -> 102.816 | GN26: 103.194 | GO26: 103.572 | GP26: 103.95 | GQ26: 104.328 | GR26: 104.706 | GS26: 105.084 | GT26: 105.462 | GU26: 105.84 | GV26: 106.218 | GW26: 106.596 | GX26: 106.974 | GY26: 107.352 | GZ26: 107.73 | HA26: 108.108 | HB26: 108.486 | HC26: 108.864 | HD26: 109.242 | HE26: 109.62 | HF26: 109.998 | HG26: 110.376 | HH26: 110.754 | HI26: 111.132 | HJ26: 111.51 | HK26: 111.888 | HL26: 112.266 | HM26: 112.644 | HN26: 113.022 | HO26: 113.4
A27: =Corn!$B$51/10 -> 0.003 | B27: =SUM(A27:$A$151) -> 0.375 | C27: 0.28 | D27: 30.375 | E27: 30.75 | F27: 31.125 | G27: 31.5 | H27: 31.875 | I27: 32.25 | J27: 32.625 | K27: 33 | L27: 33.375 | M27: 33.75 | N27: 34.125 | O27: 34.5 | P27: 34.875 | Q27: 35.25 | R27: 35.625 | S27: 36 | T27: 36.375 | U27: 36.75 | V27: 37.125 | W27: 37.5 | X27: 37.875 | Y27: 38.25 | Z27: 38.625 | AA27: 39 | AB27: 39.375 | AC27: 39.75 | AD27: 40.125 | AE27: 40.5 | AF27: 40.875 | AG27: 41.25 | AH27: 41.625 | AI27: 42 | AJ27: 42.375 | AK27: 42.75 | AL27: 43.125 | AM27: 43.5 | AN27: 43.875 | AO27: 44.25 | AP27: 44.625 | AQ27: 45 | AR27: 45.375 | AS27: 45.75 | AT27: 46.125 | AU27: 46.5 | AV27: 46.875 | AW27: 47.25 | AX27: 47.625 | AY27: 48 | AZ27: 48.375 | BA27: 48.75 | BB27: 49.125 | BC27: 49.5 | BD27: 49.875 | BE27: 50.25 | BF27: 50.625 | BG27: 51 | BH27: 51.375 | BI27: 51.75 | BJ27: 52.125 | BK27: 52.5 | BL27: 52.875 | BM27: 53.25 | BN27: 53.625 | BO27: 54 | BP27: =BP$158*$B27 -> 54.375 | BQ27: 54.75 | BR27: 55.125 | BS27: 55.5 | BT27: 55.875 | BU27: 56.25 | BV27: 56.625 | BW27: 57 | BX27: 57.375 | BY27: 57.75 | BZ27: 58.125 | CA27: 58.5 | CB27: 58.875 | CC27: 59.25 | CD27: 59.625 | CE27: 60 | CF27: 60.375 | CG27: 60.75 | CH27: 61.125 | CI27: 61.5 | CJ27: 61.875 | CK27: 62.25 | CL27: 62.625 | CM27: 63 | CN27: 63.375 | CO27: 63.75 | CP27: 64.125 | CQ27: 64.5 | CR27: 64.875 | CS27: 65.25 | CT27: 65.625 | CU27: 66 | CV27: 66.375 | CW27: 66.75 | CX27: 67.125 | CY27: 67.5 | CZ27: 67.875 | DA27: 68.25 | DB27: 68.625 | DC27: 69 | DD27: 69.375 | DE27: 69.75 | DF27: 70.125 | DG27: 70.5 | DH27: 70.875 | DI27: 71.25 | DJ27: 71.625 | DK27: 72 | DL27: 72.375 | DM27: 72.75 | DN27: 73.125 | DO27: 73.5 | DP27: 73.875 | DQ27: 74.25 | DR27: 74.625 | DS27: 75 | DT27: 75.375 | DU27: 75.75 | DV27: 76.125 | DW27: 76.5 | DX27: 76.875 | DY27: 77.25 | DZ27: 77.625 | EA27: 78 | EB27: =EB$158*$B27 -> 78.375 | EC27: 78.75 | ED27: 79.125 | EE27: 79.5 | EF27: 79.875 | EG27: 80.25 | EH27: 80.625 | EI27: 81 | EJ27: 81.375 | EK27: 81.75 | EL27: 82.125 | EM27: 82.5 | EN27: 82.875 | EO27: 83.25 | EP27: 83.625 | EQ27: 84 | ER27: 84.375 | ES27: 84.75 | ET27: 85.125 | EU27: 85.5 | EV27: 85.875 | EW27: 86.25 | EX27: 86.625 | EY27: 87 | EZ27: 87.375 | FA27: 87.75 | FB27: 88.125 | FC27: 88.5 | FD27: 88.875 | FE27: 89.25 | FF27: 89.625 | FG27: 90 | FH27: 90.375 | FI27: 90.75 | FJ27: 91.125 | FK27: 91.5 | FL27: 91.875 | FM27: 92.25 | FN27: 92.625 | FO27: 93 | FP27: 93.375 | FQ27: 93.75 | FR27: 94.125 | FS27: 94.5 | FT27: 94.875 | FU27: 95.25 | FV27: 95.625 | FW27: 96 | FX27: 96.375 | FY27: 96.75 | FZ27: 97.125 | GA27: 97.5 | GB27: 97.875 | GC27: 98.25 | GD27: 98.625 | GE27: 99 | GF27: 99.375 | GG27: 99.75 | GH27: 100.125 | GI27: 100.5 | GJ27: 100.875 | GK27: 101.25 | GL27: 101.625 | GM27: 102 | GN27: 102.375 | GO27: 102.75 | GP27: 103.125 | GQ27: 103.5 | GR27: 103.875 | GS27: 104.25 | GT27: 104.625 | GU27: 105 | GV27: 105.375 | GW27: 105.75 | GX27: 106.125 | GY27: 106.5 | GZ27: 106.875 | HA27: 107.25 | HB27: 107.625 | HC27: 108 | HD27: 108.375 | HE27: 108.75 | HF27: 109.125 | HG27: 109.5 | HH27: 109.875 | HI27: 110.25 | HJ27: 110.625 | HK27: 111 | HL27: 111.375 | HM27: 111.75 | HN27: 112.125 | HO27: 112.5
A28: =Corn!$B$51/10 -> 0.003 | B28: =SUM(A28:$A$151) -> 0.372 | C28: 0.279 | D28: 30.132 | E28: =E$158*$B28 -> 30.504 | F28: 30.876 | G28: 31.248 | H28: 31.62 | I28: 31.992 | J28: 32.364 | K28: 32.736 | L28: 33.108 | M28: 33.48 | N28: 33.852 | O28: 34.224 | P28: 34.596 | Q28: 34.968 | R28: 35.34 | S28: 35.712 | T28: 36.084 | U28: 36.456 | V28: 36.828 | W28: 37.2 | X28: 37.572 | Y28: 37.944 | Z28: 38.316 | AA28: 38.688 | AB28: 39.06 | AC28: 39.432 | AD28: 39.804 | AE28: 40.176 | AF28: 40.548 | AG28: 40.92 | AH28: 41.292 | AI28: 41.664 | AJ28: 42.036 | AK28: 42.408 | AL28: 42.78 | AM28: 43.152 | AN28: 43.524 | AO28: 43.896 | AP28: 44.268 | AQ28: 44.64 | AR28: 45.012 | AS28: 45.384 | AT28: 45.756 | AU28: 46.128 | AV28: 46.5 | AW28: 46.872 | AX28: 47.244 | AY28: 47.616 | AZ28: 47.988 | BA28: 48.36 | BB28: 48.732 | BC28: 49.104 | BD28: 49.476 | BE28: 49.848 | BF28: 50.22 | BG28: 50.592 | BH28: 50.964 | BI28: 51.336 | BJ28: 51.708 | BK28: 52.08 | BL28: 52.452 | BM28: 52.824 | BN28: 53.196 | BO28: 53.568 | BP28: 53.94 | BQ28: 54.312 | BR28: 54.684 | BS28: 55.056 | BT28: 55.428 | BU28: 55.8 | BV28: 56.172 | BW28: 56.544 | BX28: 56.916 | BY28: 57.288 | BZ28: 57.66 | CA28: 58.032 | CB28: 58.404 | CC28: 58.776 | CD28: 59.148 | CE28: 59.52 | CF28: 59.892 | CG28: 60.264 | CH28: 60.636 | CI28: 61.008 | CJ28: 61.38 | CK28: 61.752 | CL28: 62.124 | CM28: 62.496 | CN28: 62.868 | CO28: 63.24 | CP28: 63.612 | CQ28: 63.984 | CR28: 64.356 | CS28: 64.728 | CT28: 65.1 | CU28: 65.472 | CV28: 65.844 | CW28: 66.216 | CX28: 66.588 | CY28: 66.96 | CZ28: 67.332 | DA28: 67.704 | DB28: 68.076 | DC28: 68.448 | DD28: 68.82 | DE28: 69.192 | DF28: 69.564 | DG28: 69.936 | DH28: 70.308 | DI28: 70.68 | DJ28: 71.052 | DK28: 71.424 | DL28: 71.796 | DM28: 72.168 | DN28: 72.54 | DO28: 72.912 | DP28: 73.284 | DQ28: 73.656 | DR28: 74.028 | DS28: 74.4 | DT28: 74.772 | DU28: 75.144 | DV28: 75.516 | DW28: 75.888 | DX28: 76.26 | DY28: 76.632 | DZ28: 77.004 | EA28: 77.376 | EB28: 77.748 | EC28: 78.12 | ED28: 78.492 | EE28: 78.864 | EF28: 79.236 | EG28: 79.608 | EH28: 79.98 | EI28: 80.352 | EJ28: 80.724 | EK28: 81.096 | EL28: 81.468 | EM28: 81.84 | EN28: 82.212 | EO28: 82.584 | EP28: 82.956 | EQ28: 83.328 | ER28: 83.7 | ES28: 84.072 | ET28: 84.444 | EU28: 84.816 | EV28: 85.188 | EW28: 85.56 | EX28: 85.932 | EY28: 86.304 | EZ28: 86.676 | FA28: 87.048 | FB28: 87.42 | FC28: 87.792 | FD28: 88.164 | FE28: 88.536 | FF28: 88.908 | FG28: 89.28 | FH28: 89.652 | FI28: 90.024 | FJ28: 90.396 | FK28: 90.768 | FL28: 91.14 | FM28: 91.512 | FN28: 91.884 | FO28: 92.256 | FP28: 92.628 | FQ28: 93 | FR28: 93.372 | FS28: 93.744 | FT28: 94.116 | FU28: 94.488 | FV28: 94.86 | FW28: 95.232 | FX28: 95.604 | FY28: 95.976 | FZ28: 96.348 | GA28: 96.72 | GB28: 97.092 | GC28: 97.464 | GD28: 97.836 | GE28: 98.208 | GF28: 98.58 | GG28: 98.952 | GH28: 99.324 | GI28: 99.696 | GJ28: 100.068 | GK28: 100.44 | GL28: 100.812 | GM28: 101.184 | GN28: 101.556 | GO28: 101.928 | GP28: 102.3 | GQ28: 102.672 | GR28: 103.044 | GS28: 103.416 | GT28: 103.788 | GU28: 104.16 | GV28: 104.532 | GW28: 104.904 | GX28: 105.276 | GY28: 105.648 | GZ28: 106.02 | HA28: 106.392 | HB28: 106.764 | HC28: 107.136 | HD28: 107.508 | HE28: 107.88 | HF28: 108.252 | HG28: 108.624 | HH28: 108.996 | HI28: 109.368 | HJ28: 109.74 | HK28: 110.112 | HL28: 110.484 | HM28: 110.856 | HN28: 111.228 | HO28: 111.6
A29: =Corn!$B$51/10 -> 0.003 | B29: =SUM(A29:$A$151) -> 0.369 | C29: 0.278 | D29: 29.889 | E29: 30.258 | F29: 30.627 | G29: 30.996 | H29: 31.365 | I29: 31.734 | J29: 32.103 | K29: 32.472 | L29: 32.841 | M29: 33.21 | N29: 33.579 | O29: 33.948 | P29: 34.317 | Q29: 34.686 | R29: 35.055 | S29: 35.424 | T29: 35.793 | U29: 36.162 | V29: 36.531 | W29: 36.9 | X29: 37.269 | Y29: 37.638 | Z29: 38.007 | AA29: 38.376 | AB29: 38.745 | AC29: 39.114 | AD29: 39.483 | AE29: 39.852 | AF29: 40.221 | AG29: 40.59 | AH29: 40.959 | AI29: 41.328 | AJ29: 41.697 | AK29: 42.066 | AL29: 42.435 | AM29: 42.804 | AN29: 43.173 | AO29: 43.542 | AP29: 43.911 | AQ29: 44.28 | AR29: 44.649 | AS29: 45.018 | AT29: 45.387 | AU29: 45.756 | AV29: 46.125 | AW29: 46.494 | AX29: 46.863 | AY29: 47.232 | AZ29: 47.601 | BA29: 47.97 | BB29: 48.339 | BC29: 48.708 | BD29: 49.077 | BE29: 49.446 | BF29: 49.815 | BG29: 50.184 | BH29: 50.553 | BI29: 50.922 | BJ29: 51.291 | BK29: 51.66 | BL29: 52.029 | BM29: 52.398 | BN29: 52.767 | BO29: 53.136 | BP29: 53.505 | BQ29: 53.874 | BR29: 54.243 | BS29: 54.612 | BT29: 54.981 | BU29: 55.35 | BV29: 55.719 | BW29: 56.088 | BX29: 56.457 | BY29: 56.826 | BZ29: 57.195 | CA29: 57.564 | CB29: 57.933 | CC29: 58.302 | CD29: 58.671 | CE29: 59.04 | CF29: 59.409 | CG29: 59.778 | CH29: 60.147 | CI29: 60.516 | CJ29: 60.885 | CK29: 61.254 | CL29: 61.623 | CM29: 61.992 | CN29: 62.361 | CO29: 62.73 | CP29: 63.099 | CQ29: 63.468 | CR29: 63.837 | CS29: 64.206 | CT29: 64.575 | CU29: 64.944 | CV29: 65.313 | CW29: 65.682 | CX29: 66.051 | CY29: 66.42 | CZ29: 66.789 | DA29: 67.158 | DB29: 67.527 | DC29: 67.896 | DD29: 68.265 | DE29: 68.634 | DF29: 69.003 | DG29: 69.372 | DH29: 69.741 | DI29: 70.11 | DJ29: 70.479 | DK29: 70.848 | DL29: 71.217 | DM29: 71.586 | DN29: 71.955 | DO29: 72.324 | DP29: 72.693 | DQ29: 73.062 | DR29: 73.431 | DS29: 73.8 | DT29: 74.169 | DU29: 74.538 | DV29: 74.907 | DW29: 75.276 | DX29: 75.645 | DY29: 76.014 | DZ29: 76.383 | EA29: 76.752 | EB29: 77.121 | EC29: 77.49 | ED29: 77.859 | EE29: 78.228 | EF29: 78.597 | EG29: 78.966 | EH29: 79.335 | EI29: 79.704 | EJ29: 80.073 | EK29: 80.442 | EL29: 80.811 | EM29: 81.18 | EN29: 81.549 | EO29: 81.918 | EP29: 82.287 | EQ29: 82.656 | ER29: 83.025 | ES29: 83.394 | ET29: 83.763 | EU29: 84.132 | EV29: 84.501 | EW29: 84.87 | EX29: 85.239 | EY29: 85.608 | EZ29: 85.977 | FA29: 86.346 | FB29: 86.715 | FC29: 87.084 | FD29: 87.453 | FE29: 87.822 | FF29: 88.191 | FG29: 88.56 | FH29: 88.929 | FI29: 89.298 | FJ29: 89.667 | FK29: 90.036 | FL29: 90.405 | FM29: 90.774 | FN29: 91.143 | FO29: 91.512 | FP29: 91.881 | FQ29: 92.25 | FR29: 92.619 | FS29: 92.988 | FT29: 93.357 | FU29: 93.726 | FV29: 94.095 | FW29: 94.464 | FX29: 94.833 | FY29: 95.202 | FZ29: 95.571 | GA29: 95.94 | GB29: 96.309 | GC29: 96.678 | GD29: 97.047 | GE29: 97.416 | GF29: 97.785 | GG29: 98.154 | GH29: 98.523 | GI29: 98.892 | GJ29: 99.261 | GK29: 99.63 | GL29: 99.999 | GM29: 100.368 | GN29: 100.737 | GO29: 101.106 | GP29: 101.475 | GQ29: 101.844 | GR29: 102.213 | GS29: 102.582 | GT29: 102.951 | GU29: 103.32 | GV29: 103.689 | GW29: 104.058 | GX29: 104.427 | GY29: 104.796 | GZ29: 105.165 | HA29: 105.534 | HB29: 105.903 | HC29: 106.272 | HD29: 106.641 | HE29: 107.01 | HF29: 107.379 | HG29: 107.748 | HH29: 108.117 | HI29: 108.486 | HJ29: 108.855 | HK29: 109.224 | HL29: 109.593 | HM29: 109.962 | HN29: 110.331 | HO29: 110.7
A30: =Corn!$B$51/10 -> 0.003 | B30: =SUM(A30:$A$151) -> 0.366 | C30: 0.277 | D30: 29.646 | E30: 30.012 | F30: 30.378 | G30: 30.744 | H30: 31.11 | I30: 31.476 | J30: 31.842 | K30: 32.208 | L30: 32.574 | M30: 32.94 | N30: 33.306 | O30: 33.672 | P30: 34.038 | Q30: 34.404 | R30: 34.77 | S30: 35.136 | T30: 35.502 | U30: 35.868 | V30: 36.234 | W30: 36.6 | X30: 36.966 | Y30: 37.332 | Z30: 37.698 | AA30: 38.064 | AB30: 38.43 | AC30: 38.796 | AD30: 39.162 | AE30: 39.528 | AF30: 39.894 | AG30: 40.26 | AH30: 40.626 | AI30: 40.992 | AJ30: 41.358 | AK30: 41.724 | AL30: 42.09 | AM30: 42.456 | AN30: 42.822 | AO30: 43.188 | AP30: 43.554 | AQ30: 43.92 | AR30: 44.286 | AS30: 44.652 | AT30: 45.018 | AU30: 45.384 | AV30: 45.75 | AW30: 46.116 | AX30: 46.482 | AY30: 46.848 | AZ30: 47.214 | BA30: 47.58 | BB30: 47.946 | BC30: 48.312 | BD30: 48.678 | BE30: 49.044 | BF30: 49.41 | BG30: 49.776 | BH30: 50.142 | BI30: 50.508 | BJ30: 50.874 | BK30: 51.24 | BL30: 51.606 | BM30: 51.972 | BN30: 52.338 | BO30: 52.704 | BP30: 53.07 | BQ30: 53.436 | BR30: 53.802 | BS30: 54.168 | BT30: 54.534 | BU30: 54.9 | BV30: 55.266 | BW30: 55.632 | BX30: 55.998 | BY30: 56.364 | BZ30: 56.73 | CA30: 57.096 | CB30: 57.462 | CC30: 57.828 | CD30: 58.194 | CE30: 58.56 | CF30: 58.926 | CG30: 59.292 | CH30: 59.658 | CI30: 60.024 | CJ30: 60.39 | CK30: 60.756 | CL30: 61.122 | CM30: 61.488 | CN30: 61.854 | CO30: 62.22 | CP30: 62.586 | CQ30: 62.952 | CR30: 63.318 | CS30: 63.684 | CT30: 64.05 | CU30: 64.416 | CV30: 64.782 | CW30: 65.148 | CX30: 65.514 | CY30: 65.88 | CZ30: 66.246 | DA30: 66.612 | DB30: 66.978 | DC30: 67.344 | DD30: 67.71 | DE30: 68.076 | DF30: 68.442 | DG30: 68.808 | DH30: 69.174 | DI30: 69.54 | DJ30: 69.906 | DK30: 70.272 | DL30: 70.638 | DM30: 71.004 | DN30: 71.37 | DO30: 71.736 | DP30: 72.102 | DQ30: 72.468 | DR30: 72.834 | DS30: 73.2 | DT30: 73.566 | DU30: 73.932 | DV30: 74.298 | DW30: 74.664 | DX30: 75.03 | DY30: 75.396 | DZ30: 75.762 | EA30: 76.128 | EB30: 76.494 | EC30: 76.86 | ED30: 77.226 | EE30: 77.592 | EF30: 77.958 | EG30: 78.324 | EH30: 78.69 | EI30: 79.056 | EJ30: 79.422 | EK30: 79.788 | EL30: 80.154 | EM30: 80.52 | EN30: 80.886 | EO30: 81.252 | EP30: 81.618 | EQ30: 81.984 | ER30: 82.35 | ES30: 82.716 | ET30: 83.082 | EU30: 83.448 | EV30: 83.814 | EW30: 84.18 | EX30: 84.546 | EY30: 84.912 | EZ30: 85.278 | FA30: 85.644 | FB30: 86.01 | FC30: 86.376 | FD30: 86.742 | FE30: 87.108 | FF30: 87.474 | FG30: 87.84 | FH30: 88.206 | FI30: 88.572 | FJ30: 88.938 | FK30: 89.304 | FL30: 89.67 | FM30: 90.036 | FN30: 90.402 | FO30: 90.768 | FP30: 91.134 | FQ30: 91.5 | FR30: 91.866 | FS30: 92.232 | FT30: 92.598 | FU30: 92.964 | FV30: 93.33 | FW30: 93.696 | FX30: 94.062 | FY30: 94.428 | FZ30: 94.794 | GA30: 95.16 | GB30: 95.526 | GC30: 95.892 | GD30: 96.258 | GE30: 96.624 | GF30: 96.99 | GG30: 97.356 | GH30: 97.722 | GI30: 98.088 | GJ30: 98.454 | GK30: 98.82 | GL30: 99.186 | GM30: =GM$158*$B30 -> 99.552 | GN30: 99.918 | GO30: 100.284 | GP30: 100.65 | GQ30: 101.016 | GR30: 101.382 | GS30: 101.748 | GT30: 102.114 | GU30: 102.48 | GV30: 102.846 | GW30: 103.212 | GX30: 103.578 | GY30: 103.944 | GZ30: 104.31 | HA30: 104.676 | HB30: 105.042 | HC30: 105.408 | HD30: 105.774 | HE30: 106.14 | HF30: 106.506 | HG30: 106.872 | HH30: 107.238 | HI30: 107.604 | HJ30: 107.97 | HK30: 108.336 | HL30: 108.702 | HM30: 109.068 | HN30: 109.434 | HO30: 109.8
A31: =Corn!$B$51/10 -> 0.003 | B31: =SUM(A31:$A$151) -> 0.363 | C31: 0.276 | D31: 29.403 | E31: 29.766 | F31: 30.129 | G31: 30.492 | H31: 30.855 | I31: 31.218 | J31: 31.581 | K31: 31.944 | L31: 32.307 | M31: 32.67 | N31: 33.033 | O31: 33.396 | P31: 33.759 | Q31: 34.122 | R31: 34.485 | S31: 34.848 | T31: 35.211 | U31: 35.574 | V31: 35.937 | W31: 36.3 | X31: 36.663 | Y31: 37.026 | Z31: 37.389 | AA31: 37.752 | AB31: 38.115 | AC31: 38.478 | AD31: 38.841 | AE31: 39.204 | AF31: 39.567 | AG31: 39.93 | AH31: 40.293 | AI31: 40.656 | AJ31: 41.019 | AK31: 41.382 | AL31: 41.745 | AM31: 42.108 | AN31: 42.471 | AO31: 42.834 | AP31: 43.197 | AQ31: 43.56 | AR31: 43.923 | AS31: 44.286 | AT31: 44.649 | AU31: 45.012 | AV31: 45.375 | AW31: 45.738 | AX31: 46.101 | AY31: 46.464 | AZ31: 46.827 | BA31: 47.19 | BB31: 47.553 | BC31: 47.916 | BD31: 48.279 | BE31: 48.642 | BF31: 49.005 | BG31: 49.368 | BH31: 49.731 | BI31: 50.094 | BJ31: 50.457 | BK31: 50.82 | BL31: 51.183 | BM31: 51.546 | BN31: 51.909 | BO31: 52.272 | BP31: =BP$158*$B31 -> 52.635 | BQ31: 52.998 | BR31: 53.361 | BS31: 53.724 | BT31: 54.087 | BU31: 54.45 | BV31: 54.813 | BW31: 55.176 | BX31: 55.539 | BY31: 55.902 | BZ31: 56.265 | CA31: 56.628 | CB31: 56.991 | CC31: 57.354 | CD31: 57.717 | CE31: 58.08 | CF31: 58.443 | CG31: 58.806 | CH31: 59.169 | CI31: 59.532 | CJ31: 59.895 | CK31: 60.258 | CL31: 60.621 | CM31: 60.984 | CN31: 61.347 | CO31: 61.71 | CP31: 62.073 | CQ31: 62.436 | CR31: 62.799 | CS31: 63.162 | CT31: 63.525 | CU31: 63.888 | CV31: 64.251 | CW31: 64.614 | CX31: 64.977 | CY31: 65.34 | CZ31: 65.703 | DA31: 66.066 | DB31: 66.429 | DC31: 66.792 | DD31: 67.155 | DE31: 67.518 | DF31: 67.881 | DG31: 68.244 | DH31: 68.607 | DI31: 68.97 | DJ31: 69.333 | DK31: 69.696 | DL31: 70.059 | DM31: 70.422 | DN31: 70.785 | DO31: 71.148 | DP31: 71.511 | DQ31: 71.874 | DR31: 72.237 | DS31: 72.6 | DT31: 72.963 | DU31: 73.326 | DV31: 73.689 | DW31: 74.052 | DX31: 74.415 | DY31: 74.778 | DZ31: 75.141 | EA31: 75.504 | EB31: =EB$158*$B31 -> 75.867 | EC31: 76.23 | ED31: 76.593 | EE31: 76.956 | EF31: 77.319 | EG31: 77.682 | EH31: 78.045 | EI31: 78.408 | EJ31: 78.771 | EK31: 79.134 | EL31: 79.497 | EM31: 79.86 | EN31: 80.223 | EO31: 80.586 | EP31: 80.949 | EQ31: 81.312 | ER31: 81.675 | ES31: 82.038 | ET31: 82.401 | EU31: 82.764 | EV31: 83.127 | EW31: 83.49 | EX31: 83.853 | EY31: 84.216 | EZ31: 84.579 | FA31: 84.942 | FB31: 85.305 | FC31: 85.668 | FD31: 86.031 | FE31: 86.394 | FF31: 86.757 | FG31: 87.12 | FH31: 87.483 | FI31: 87.846 | FJ31: 88.209 | FK31: 88.572 | FL31: 88.935 | FM31: 89.298 | FN31: 89.661 | FO31: 90.024 | FP31: 90.387 | FQ31: 90.75 | FR31: 91.113 | FS31: 91.476 | FT31: 91.839 | FU31: 92.202 | FV31: 92.565 | FW31: 92.928 | FX31: 93.291 | FY31: 93.654 | FZ31: 94.017 | GA31: 94.38 | GB31: 94.743 | GC31: 95.106 | GD31: 95.469 | GE31: 95.832 | GF31: 96.195 | GG31: 96.558 | GH31: 96.921 | GI31: 97.284 | GJ31: 97.647 | GK31: 98.01 | GL31: 98.373 | GM31: 98.736 | GN31: 99.099 | GO31: 99.462 | GP31: 99.825 | GQ31: 100.188 | GR31: 100.551 | GS31: 100.914 | GT31: 101.277 | GU31: 101.64 | GV31: 102.003 | GW31: 102.366 | GX31: 102.729 | GY31: 103.092 | GZ31: 103.455 | HA31: 103.818 | HB31: 104.181 | HC31: 104.544 | HD31: 104.907 | HE31: 105.27 | HF31: 105.633 | HG31: 105.996 | HH31: 106.359 | HI31: 106.722 | HJ31: 107.085 | HK31: 107.448 | HL31: 107.811 | HM31: 108.174 | HN31: 108.537 | HO31: 108.9
A32: =Corn!$B$51/10 -> 0.003 | B32: =SUM(A32:$A$151) -> 0.36 | C32: 0.275 | D32: 29.16 | E32: =E$158*$B32 -> 29.52 | F32: 29.88 | G32: 30.24 | H32: 30.6 | I32: 30.96 | J32: 31.32 | K32: 31.68 | L32: 32.04 | M32: 32.4 | N32: 32.76 | O32: 33.12 | P32: 33.48 | Q32: 33.84 | R32: 34.2 | S32: 34.56 | T32: 34.92 | U32: 35.28 | V32: 35.64 | W32: 36 | X32: 36.36 | Y32: 36.72 | Z32: 37.08 | AA32: 37.44 | AB32: 37.8 | AC32: 38.16 | AD32: 38.52 | AE32: 38.88 | AF32: 39.24 | AG32: 39.6 | AH32: 39.96 | AI32: 40.32 | AJ32: 40.68 | AK32: 41.04 | AL32: 41.4 | AM32: 41.76 | AN32: 42.12 | AO32: 42.48 | AP32: 42.84 | AQ32: 43.2 | AR32: 43.56 | AS32: 43.92 | AT32: 44.28 | AU32: 44.64 | AV32: 45 | AW32: 45.36 | AX32: 45.72 | AY32: 46.08 | AZ32: 46.44 | BA32: 46.8 | BB32: 47.16 | BC32: 47.52 | BD32: 47.88 | BE32: 48.24 | BF32: 48.6 | BG32: 48.96 | BH32: 49.32 | BI32: 49.68 | BJ32: 50.04 | BK32: 50.4 | BL32: 50.76 | BM32: 51.12 | BN32: 51.48 | BO32: 51.84 | BP32: 52.2 | BQ32: 52.56 | BR32: 52.92 | BS32: 53.28 | BT32: 53.64 | BU32: 54 | BV32: 54.36 | BW32: 54.72 | BX32: 55.08 | BY32: 55.44 | BZ32: 55.8 | CA32: 56.16 | CB32: 56.52 | CC32: 56.88 | CD32: 57.24 | CE32: 57.6 | CF32: 57.96 | CG32: 58.32 | CH32: 58.68 | CI32: 59.04 | CJ32: 59.4 | CK32: 59.76 | CL32: 60.12 | CM32: 60.48 | CN32: 60.84 | CO32: 61.2 | CP32: 61.56 | CQ32: 61.92 | CR32: 62.28 | CS32: 62.64 | CT32: 63 | CU32: 63.36 | CV32: 63.72 | CW32: 64.08 | CX32: 64.44 | CY32: 64.8 | CZ32: 65.16 | DA32: 65.52 | DB32: 65.88 | DC32: 66.24 | DD32: 66.6 | DE32: 66.96 | DF32: 67.32 | DG32: 67.68 | DH32: 68.04 | DI32: 68.4 | DJ32: 68.76 | DK32: 69.12 | DL32: 69.48 | DM32: 69.84 | DN32: 70.2 | DO32: 70.56 | DP32: 70.92 | DQ32: 71.28 | DR32: 71.64 | DS32: 72 | DT32: 72.36 | DU32: 72.72 | DV32: 73.08 | DW32: 73.44 | DX32: 73.8 | DY32: 74.16 | DZ32: 74.52 | EA32: 74.88 | EB32: 75.24 | EC32: 75.6 | ED32: 75.96 | EE32: 76.32 | EF32: 76.68 | EG32: 77.04 | EH32: 77.4 | EI32: 77.76 | EJ32: 78.12 | EK32: 78.48 | EL32: 78.84 | EM32: 79.2 | EN32: 79.56 | EO32: 79.92 | EP32: 80.28 | EQ32: 80.64 | ER32: 81 | ES32: 81.36 | ET32: 81.72 | EU32: 82.08 | EV32: 82.44 | EW32: 82.8 | EX32: 83.16 | EY32: 83.52 | EZ32: 83.88 | FA32: 84.24 | FB32: 84.6 | FC32: 84.96 | FD32: 85.32 | FE32: 85.68 | FF32: 86.04 | FG32: 86.4 | FH32: 86.76 | FI32: 87.12 | FJ32: 87.48 | FK32: 87.84 | FL32: 88.2 | FM32: 88.56 | FN32: 88.92 | FO32: 89.28 | FP32: 89.64 | FQ32: 90 | FR32: 90.36 | FS32: 90.72 | FT32: 91.08 | FU32: 91.44 | FV32: 91.8 | FW32: 92.16 | FX32: 92.52 | FY32: 92.88 | FZ32: 93.24 | GA32: 93.6 | GB32: 93.96 | GC32: 94.32 | GD32: 94.68 | GE32: 95.04 | GF32: 95.4 | GG32: 95.76 | GH32: 96.12 | GI32: 96.48 | GJ32: 96.84 | GK32: 97.2 | GL32: 97.56 | GM32: 97.92 | GN32: 98.28 | GO32: 98.64 | GP32: 99 | GQ32: 99.36 | GR32: 99.72 | GS32: 100.08 | GT32: 100.44 | GU32: 100.8 | GV32: 101.16 | GW32: 101.52 | GX32: 101.88 | GY32: 102.24 | GZ32: 102.6 | HA32: 102.96 | HB32: 103.32 | HC32: 103.68 | HD32: 104.04 | HE32: 104.4 | HF32: 104.76 | HG32: 105.12 | HH32: 105.48 | HI32: 105.84 | HJ32: 106.2 | HK32: 106.56 | HL32: 106.92 | HM32: 107.28 | HN32: 107.64 | HO32: 108
A33: =Corn!$B$51/10 -> 0.003 | B33: =SUM(A33:$A$151) -> 0.357 | C33: 0.274 | D33: 28.917 | E33: 29.274 | F33: 29.631 | G33: 29.988 | H33: 30.345 | I33: 30.702 | J33: 31.059 | K33: 31.416 | L33: 31.773 | M33: 32.13 | N33: 32.487 | O33: 32.844 | P33: 33.201 | Q33: 33.558 | R33: 33.915 | S33: 34.272 | T33: 34.629 | U33: 34.986 | V33: 35.343 | W33: 35.7 | X33: 36.057 | Y33: 36.414 | Z33: 36.771 | AA33: 37.128 | AB33: 37.485 | AC33: 37.842 | AD33: 38.199 | AE33: 38.556 | AF33: 38.913 | AG33: 39.27 | AH33: 39.627 | AI33: 39.984 | AJ33: 40.341 | AK33: 40.698 | AL33: 41.055 | AM33: 41.412 | AN33: 41.769 | AO33: 42.126 | AP33: 42.483 | AQ33: 42.84 | AR33: 43.197 | AS33: 43.554 | AT33: 43.911 | AU33: 44.268 | AV33: 44.625 | AW33: 44.982 | AX33: 45.339 | AY33: 45.696 | AZ33: 46.053 | BA33: 46.41 | BB33: 46.767 | BC33: 47.124 | BD33: 47.481 | BE33: 47.838 | BF33: 48.195 | BG33: 48.552 | BH33: 48.909 | BI33: 49.266 | BJ33: 49.623 | BK33: 49.98 | BL33: 50.337 | BM33: 50.694 | BN33: 51.051 | BO33: 51.408 | BP33: 51.765 | BQ33: 52.122 | BR33: 52.479 | BS33: 52.836 | BT33: 53.193 | BU33: 53.55 | BV33: 53.907 | BW33: 54.264 | BX33: 54.621 | BY33: 54.978 | BZ33: 55.335 | CA33: 55.692 | CB33: 56.049 | CC33: 56.406 | CD33: 56.763 | CE33: 57.12 | CF33: 57.477 | CG33: 57.834 | CH33: 58.191 | CI33: 58.548 | CJ33: 58.905 | CK33: 59.262 | CL33: 59.619 | CM33: 59.976 | CN33: 60.333 | CO33: 60.69 | CP33: 61.047 | CQ33: 61.404 | CR33: 61.761 | CS33: 62.118 | CT33: 62.475 | CU33: 62.832 | CV33: 63.189 | CW33: 63.546 | CX33: 63.903 | CY33: 64.26 | CZ33: 64.617 | DA33: 64.974 | DB33: 65.331 | DC33: 65.688 | DD33: 66.045 | DE33: 66.402 | DF33: 66.759 | DG33: 67.116 | DH33: 67.473 | DI33: 67.83 | DJ33: 68.187 | DK33: 68.544 | DL33: 68.901 | DM33: 69.258 | DN33: 69.615 | DO33: 69.972 | DP33: 70.329 | DQ33: 70.686 | DR33: 71.043 | DS33: 71.4 | DT33: 71.757 | DU33: 72.114 | DV33: 72.471 | DW33: 72.828 | DX33: 73.185 | DY33: 73.542 | DZ33: 73.899 | EA33: 74.256 | EB33: 74.613 | EC33: 74.97 | ED33: 75.327 | EE33: 75.684 | EF33: 76.041 | EG33: 76.398 | EH33: 76.755 | EI33: 77.112 | EJ33: 77.469 | EK33: 77.826 | EL33: 78.183 | EM33: 78.54 | EN33: 78.897 | EO33: 79.254 | EP33: 79.611 | EQ33: 79.968 | ER33: 80.325 | ES33: 80.682 | ET33: 81.039 | EU33: 81.396 | EV33: 81.753 | EW33: 82.11 | EX33: 82.467 | EY33: 82.824 | EZ33: 83.181 | FA33: 83.538 | FB33: 83.895 | FC33: 84.252 | FD33: 84.609 | FE33: 84.966 | FF33: 85.323 | FG33: 85.68 | FH33: 86.037 | FI33: 86.394 | FJ33: 86.751 | FK33: 87.108 | FL33: 87.465 | FM33: 87.822 | FN33: 88.179 | FO33: 88.536 | FP33: 88.893 | FQ33: 89.25 | FR33: 89.607 | FS33: 89.964 | FT33: 90.321 | FU33: 90.678 | FV33: 91.035 | FW33: 91.392 | FX33: 91.749 | FY33: 92.106 | FZ33: 92.463 | GA33: 92.82 | GB33: 93.177 | GC33: 93.534 | GD33: 93.891 | GE33: 94.248 | GF33: 94.605 | GG33: 94.962 | GH33: 95.319 | GI33: 95.676 | GJ33: 96.033 | GK33: 96.39 | GL33: 96.747 | GM33: 97.104 | GN33: 97.461 | GO33: 97.818 | GP33: 98.175 | GQ33: 98.532 | GR33: 98.889 | GS33: 99.246 | GT33: 99.603 | GU33: 99.96 | GV33: 100.317 | GW33: 100.674 | GX33: 101.031 | GY33: 101.388 | GZ33: 101.745 | HA33: 102.102 | HB33: 102.459 | HC33: 102.816 | HD33: 103.173 | HE33: 103.53 | HF33: 103.887 | HG33: 104.244 | HH33: 104.601 | HI33: 104.958 | HJ33: 105.315 | HK33: 105.672 | HL33: 106.029 | HM33: 106.386 | HN33: 106.743 | HO33: 107.1
A34: =Corn!$B$51/10 -> 0.003 | B34: =SUM(A34:$A$151) -> 0.354 | C34: 0.273 | D34: 28.674 | E34: 29.028 | F34: 29.382 | G34: 29.736 | H34: 30.09 | I34: 30.444 | J34: 30.798 | K34: 31.152 | L34: 31.506 | M34: 31.86 | N34: 32.214 | O34: 32.568 | P34: 32.922 | Q34: 33.276 | R34: 33.63 | S34: 33.984 | T34: 34.338 | U34: 34.692 | V34: 35.046 | W34: 35.4 | X34: 35.754 | Y34: 36.108 | Z34: 36.462 | AA34: 36.816 | AB34: 37.17 | AC34: 37.524 | AD34: 37.878 | AE34: 38.232 | AF34: 38.586 | AG34: 38.94 | AH34: 39.294 | AI34: 39.648 | AJ34: 40.002 | AK34: 40.356 | AL34: 40.71 | AM34: 41.064 | AN34: 41.418 | AO34: 41.772 | AP34: 42.126 | AQ34: 42.48 | AR34: 42.834 | AS34: 43.188 | AT34: 43.542 | AU34: 43.896 | AV34: 44.25 | AW34: 44.604 | AX34: 44.958 | AY34: 45.312 | AZ34: 45.666 | BA34: 46.02 | BB34: 46.374 | BC34: 46.728 | BD34: 47.082 | BE34: 47.436 | BF34: 47.79 | BG34: 48.144 | BH34: 48.498 | BI34: 48.852 | BJ34: 49.206 | BK34: 49.56 | BL34: 49.914 | BM34: 50.268 | BN34: 50.622 | BO34: 50.976 | BP34: 51.33 | BQ34: 51.684 | BR34: 52.038 | BS34: 52.392 | BT34: 52.746 | BU34: 53.1 | BV34: 53.454 | BW34: 53.808 | BX34: 54.162 | BY34: 54.516 | BZ34: 54.87 | CA34: 55.224 | CB34: 55.578 | CC34: 55.932 | CD34: 56.286 | CE34: 56.64 | CF34: 56.994 | CG34: 57.348 | CH34: 57.702 | CI34: 58.056 | CJ34: 58.41 | CK34: 58.764 | CL34: 59.118 | CM34: 59.472 | CN34: 59.826 | CO34: 60.18 | CP34: 60.534 | CQ34: 60.888 | CR34: 61.242 | CS34: 61.596 | CT34: 61.95 | CU34: 62.304 | CV34: 62.658 | CW34: 63.012 | CX34: 63.366 | CY34: 63.72 | CZ34: 64.074 | DA34: 64.428 | DB34: 64.782 | DC34: 65.136 | DD34: 65.49 | DE34: 65.844 | DF34: 66.198 | DG34: 66.552 | DH34: 66.906 | DI34: 67.26 | DJ34: 67.614 | DK34: 67.968 | DL34: 68.322 | DM34: 68.676 | DN34: 69.03 | DO34: 69.384 | DP34: 69.738 | DQ34: 70.092 | DR34: 70.446 | DS34: 70.8 | DT34: 71.154 | DU34: 71.508 | DV34: 71.862 | DW34: 72.216 | DX34: 72.57 | DY34: 72.924 | DZ34: 73.278 | EA34: 73.632 | EB34: 73.986 | EC34: 74.34 | ED34: 74.694 | EE34: 75.048 | EF34: 75.402 | EG34: 75.756 | EH34: 76.11 | EI34: 76.464 | EJ34: 76.818 | EK34: 77.172 | EL34: 77.526 | EM34: 77.88 | EN34: 78.234 | EO34: 78.588 | EP34: 78.942 | EQ34: 79.296 | ER34: 79.65 | ES34: 80.004 | ET34: 80.358 | EU34: 80.712 | EV34: 81.066 | EW34: 81.42 | EX34: 81.774 | EY34: 82.128 | EZ34: 82.482 | FA34: 82.836 | FB34: 83.19 | FC34: 83.544 | FD34: 83.898 | FE34: 84.252 | FF34: 84.606 | FG34: 84.96 | FH34: 85.314 | FI34: 85.668 | FJ34: 86.022 | FK34: 86.376 | FL34: 86.73 | FM34: 87.084 | FN34: 87.438 | FO34: 87.792 | FP34: 88.146 | FQ34: 88.5 | FR34: 88.854 | FS34: 89.208 | FT34: 89.562 | FU34: 89.916 | FV34: 90.27 | FW34: 90.624 | FX34: 90.978 | FY34: 91.332 | FZ34: 91.686 | GA34: 92.04 | GB34: 92.394 | GC34: 92.748 | GD34: 93.102 | GE34: 93.456 | GF34: 93.81 | GG34: 94.164 | GH34: 94.518 | GI34: 94.872 | GJ34: 95.226 | GK34: 95.58 | GL34: 95.934 | GM34: =GM$158*$B34 -> 96.288 | GN34: 96.642 | GO34: 96.996 | GP34: 97.35 | GQ34: 97.704 | GR34: 98.058 | GS34: 98.412 | GT34: 98.766 | GU34: 99.12 | GV34: 99.474 | GW34: 99.828 | GX34: 100.182 | GY34: 100.536 | GZ34: 100.89 | HA34: 101.244 | HB34: 101.598 | HC34: 101.952 | HD34: 102.306 | HE34: 102.66 | HF34: 103.014 | HG34: 103.368 | HH34: 103.722 | HI34: 104.076 | HJ34: 104.43 | HK34: 104.784 | HL34: 105.138 | HM34: 105.492 | HN34: 105.846 | HO34: 106.2
A35: =Corn!$B$51/10 -> 0.003 | B35: =SUM(A35:$A$151) -> 0.351 | C35: 0.272 | D35: 28.431 | E35: 28.782 | F35: 29.133 | G35: 29.484 | H35: 29.835 | I35: 30.186 | J35: 30.537 | K35: 30.888 | L35: 31.239 | M35: 31.59 | N35: 31.941 | O35: 32.292 | P35: 32.643 | Q35: 32.994 | R35: 33.345 | S35: 33.696 | T35: 34.047 | U35: 34.398 | V35: 34.749 | W35: 35.1 | X35: 35.451 | Y35: 35.802 | Z35: 36.153 | AA35: 36.504 | AB35: 36.855 | AC35: 37.206 | AD35: 37.557 | AE35: 37.908 | AF35: 38.259 | AG35: 38.61 | AH35: 38.961 | AI35: 39.312 | AJ35: 39.663 | AK35: 40.014 | AL35: 40.365 | AM35: 40.716 | AN35: 41.067 | AO35: 41.418 | AP35: 41.769 | AQ35: 42.12 | AR35: 42.471 | AS35: 42.822 | AT35: 43.173 | AU35: 43.524 | AV35: 43.875 | AW35: 44.226 | AX35: 44.577 | AY35: 44.928 | AZ35: 45.279 | BA35: 45.63 | BB35: 45.981 | BC35: 46.332 | BD35: 46.683 | BE35: 47.034 | BF35: 47.385 | BG35: 47.736 | BH35: 48.087 | BI35: 48.438 | BJ35: 48.789 | BK35: 49.14 | BL35: 49.491 | BM35: 49.842 | BN35: 50.193 | BO35: 50.544 | BP35: =BP$158*$B35 -> 50.895 | BQ35: 51.246 | BR35: 51.597 | BS35: 51.948 | BT35: 52.299 | BU35: 52.65 | BV35: 53.001 | BW35: 53.352 | BX35: 53.703 | BY35: 54.054 | BZ35: 54.405 | CA35: 54.756 | CB35: 55.107 | CC35: 55.458 | CD35: 55.809 | CE35: 56.16 | CF35: 56.511 | CG35: 56.862 | CH35: 57.213 | CI35: 57.564 | CJ35: 57.915 | CK35: 58.266 | CL35: 58.617 | CM35: 58.968 | CN35: 59.319 | CO35: 59.67 | CP35: 60.021 | CQ35: 60.372 | CR35: 60.723 | CS35: 61.074 | CT35: 61.425 | CU35: 61.776 | CV35: 62.127 | CW35: 62.478 | CX35: 62.829 | CY35: 63.18 | CZ35: 63.531 | DA35: 63.882 | DB35: 64.233 | DC35: 64.584 | DD35: 64.935 | DE35: 65.286 | DF35: 65.637 | DG35: 65.988 | DH35: 66.339 | DI35: 66.69 | DJ35: 67.041 | DK35: 67.392 | DL35: 67.743 | DM35: 68.094 | DN35: 68.445 | DO35: 68.796 | DP35: 69.147 | DQ35: 69.498 | DR35: 69.849 | DS35: 70.2 | DT35: 70.551 | DU35: 70.902 | DV35: 71.253 | DW35: 71.604 | DX35: 71.955 | DY35: 72.306 | DZ35: 72.657 | EA35: 73.008 | EB35: =EB$158*$B35 -> 73.359 | EC35: 73.71 | ED35: 74.061 | EE35: 74.412 | EF35: 74.763 | EG35: 75.114 | EH35: 75.465 | EI35: 75.816 | EJ35: 76.167 | EK35: 76.518 | EL35: 76.869 | EM35: 77.22 | EN35: 77.571 | EO35: 77.922 | EP35: 78.273 | EQ35: 78.624 | ER35: 78.975 | ES35: 79.326 | ET35: 79.677 | EU35: 80.028 | EV35: 80.379 | EW35: 80.73 | EX35: 81.081 | EY35: 81.432 | EZ35: 81.783 | FA35: 82.134 | FB35: 82.485 | FC35: 82.836 | FD35: 83.187 | FE35: 83.538 | FF35: 83.889 | FG35: 84.24 | FH35: 84.591 | FI35: 84.942 | FJ35: 85.293 | FK35: 85.644 | FL35: 85.995 | FM35: 86.346 | FN35: 86.697 | FO35: 87.048 | FP35: 87.399 | FQ35: 87.75 | FR35: 88.101 | FS35: 88.452 | FT35: 88.803 | FU35: 89.154 | FV35: 89.505 | FW35: 89.856 | FX35: 90.207 | FY35: 90.558 | FZ35: 90.909 | GA35: 91.26 | GB35: 91.611 | GC35: 91.962 | GD35: 92.313 | GE35: 92.664 | GF35: 93.015 | GG35: 93.366 | GH35: 93.717 | GI35: 94.068 | GJ35: 94.419 | GK35: 94.77 | GL35: 95.121 | GM35: 95.472 | GN35: 95.823 | GO35: 96.174 | GP35: 96.525 | GQ35: 96.876 | GR35: 97.227 | GS35: 97.578 | GT35: 97.929 | GU35: 98.28 | GV35: 98.631 | GW35: 98.982 | GX35: 99.333 | GY35: 99.684 | GZ35: 100.035 | HA35: 100.386 | HB35: 100.737 | HC35: 101.088 | HD35: 101.439 | HE35: 101.79 | HF35: 102.141 | HG35: 102.492 | HH35: 102.843 | HI35: 103.194 | HJ35: 103.545 | HK35: 103.896 | HL35: 104.247 | HM35: 104.598 | HN35: 104.949 | HO35: 105.3
A36: =Corn!$B$51/10 -> 0.003 | B36: =SUM(A36:$A$151) -> 0.348 | C36: 0.271 | D36: 28.188 | E36: =E$158*$B36 -> 28.536 | F36: 28.884 | G36: 29.232 | H36: 29.58 | I36: 29.928 | J36: 30.276 | K36: 30.624 | L36: 30.972 | M36: 31.32 | N36: 31.668 | O36: 32.016 | P36: 32.364 | Q36: 32.712 | R36: 33.06 | S36: 33.408 | T36: 33.756 | U36: 34.104 | V36: 34.452 | W36: 34.8 | X36: 35.148 | Y36: 35.496 | Z36: 35.844 | AA36: 36.192 | AB36: 36.54 | AC36: 36.888 | AD36: 37.236 | AE36: 37.584 | AF36: 37.932 | AG36: 38.28 | AH36: 38.628 | AI36: 38.976 | AJ36: 39.324 | AK36: 39.672 | AL36: 40.02 | AM36: 40.368 | AN36: 40.716 | AO36: 41.064 | AP36: 41.412 | AQ36: 41.76 | AR36: 42.108 | AS36: 42.456 | AT36: 42.804 | AU36: 43.152 | AV36: 43.5 | AW36: 43.848 | AX36: 44.196 | AY36: 44.544 | AZ36: 44.892 | BA36: 45.24 | BB36: 45.588 | BC36: 45.936 | BD36: 46.284 | BE36: 46.632 | BF36: 46.98 | BG36: 47.328 | BH36: 47.676 | BI36: 48.024 | BJ36: 48.372 | BK36: 48.72 | BL36: 49.068 | BM36: 49.416 | BN36: 49.764 | BO36: 50.112 | BP36: 50.46 | BQ36: 50.808 | BR36: 51.156 | BS36: 51.504 | BT36: 51.852 | BU36: 52.2 | BV36: 52.548 | BW36: 52.896 | BX36: 53.244 | BY36: 53.592 | BZ36: 53.94 | CA36: 54.288 | CB36: 54.636 | CC36: 54.984 | CD36: 55.332 | CE36: 55.68 | CF36: 56.028 | CG36: 56.376 | CH36: 56.724 | CI36: 57.072 | CJ36: 57.42 | CK36: 57.768 | CL36: 58.116 | CM36: 58.464 | CN36: 58.812 | CO36: 59.16 | CP36: 59.508 | CQ36: 59.856 | CR36: 60.204 | CS36: 60.552 | CT36: 60.9 | CU36: 61.248 | CV36: 61.596 | CW36: 61.944 | CX36: 62.292 | CY36: 62.64 | CZ36: 62.988 | DA36: 63.336 | DB36: 63.684 | DC36: 64.032 | DD36: 64.38 | DE36: 64.728 | DF36: 65.076 | DG36: 65.424 | DH36: 65.772 | DI36: 66.12 | DJ36: 66.468 | DK36: 66.816 | DL36: 67.164 | DM36: 67.512 | DN36: 67.86 | DO36: 68.208 | DP36: 68.556 | DQ36: 68.904 | DR36: 69.252 | DS36: 69.6 | DT36: 69.948 | DU36: 70.296 | DV36: 70.644 | DW36: 70.992 | DX36: 71.34 | DY36: 71.688 | DZ36: 72.036 | EA36: 72.384 | EB36: 72.732 | EC36: 73.08 | ED36: 73.428 | EE36: 73.776 | EF36: 74.124 | EG36: 74.472 | EH36: 74.82 | EI36: 75.168 | EJ36: 75.516 | EK36: 75.864 | EL36: 76.212 | EM36: 76.56 | EN36: 76.908 | EO36: 77.256 | EP36: 77.604 | EQ36: 77.952 | ER36: 78.3 | ES36: 78.648 | ET36: 78.996 | EU36: 79.344 | EV36: 79.692 | EW36: 80.04 | EX36: 80.388 | EY36: 80.736 | EZ36: 81.084 | FA36: 81.432 | FB36: 81.78 | FC36: 82.128 | FD36: 82.476 | FE36: 82.824 | FF36: 83.172 | FG36: 83.52 | FH36: 83.868 | FI36: 84.216 | FJ36: 84.564 | FK36: 84.912 | FL36: 85.26 | FM36: 85.608 | FN36: 85.956 | FO36: 86.304 | FP36: 86.652 | FQ36: 87 | FR36: 87.348 | FS36: 87.696 | FT36: 88.044 | FU36: 88.392 | FV36: 88.74 | FW36: 89.088 | FX36: 89.436 | FY36: 89.784 | FZ36: 90.132 | GA36: 90.48 | GB36: 90.828 | GC36: 91.176 | GD36: 91.524 | GE36: 91.872 | GF36: 92.22 | GG36: 92.568 | GH36: 92.916 | GI36: 93.264 | GJ36: 93.612 | GK36: 93.96 | GL36: 94.308 | GM36: 94.656 | GN36: 95.004 | GO36: 95.352 | GP36: 95.7 | GQ36: 96.048 | GR36: 96.396 | GS36: 96.744 | GT36: 97.092 | GU36: 97.44 | GV36: 97.788 | GW36: 98.136 | GX36: 98.484 | GY36: 98.832 | GZ36: 99.18 | HA36: 99.528 | HB36: 99.876 | HC36: 100.224 | HD36: 100.572 | HE36: 100.92 | HF36: 101.268 | HG36: 101.616 | HH36: 101.964 | HI36: 102.312 | HJ36: 102.66 | HK36: 103.008 | HL36: 103.356 | HM36: 103.704 | HN36: 104.052 | HO36: 104.4
A37: =Corn!$B$51/10 -> 0.003 | B37: =SUM(A37:$A$151) -> 0.345 | C37: 0.27 | D37: 27.945 | E37: 28.29 | F37: 28.635 | G37: 28.98 | H37: 29.325 | I37: 29.67 | J37: 30.015 | K37: 30.36 | L37: 30.705 | M37: 31.05 | N37: 31.395 | O37: 31.74 | P37: 32.085 | Q37: 32.43 | R37: 32.775 | S37: 33.12 | T37: 33.465 | U37: 33.81 | V37: 34.155 | W37: 34.5 | X37: 34.845 | Y37: 35.19 | Z37: 35.535 | AA37: 35.88 | AB37: 36.225 | AC37: 36.57 | AD37: 36.915 | AE37: 37.26 | AF37: 37.605 | AG37: 37.95 | AH37: 38.295 | AI37: 38.64 | AJ37: 38.985 | AK37: 39.33 | AL37: 39.675 | AM37: 40.02 | AN37: 40.365 | AO37: 40.71 | AP37: 41.055 | AQ37: 41.4 | AR37: 41.745 | AS37: 42.09 | AT37: 42.435 | AU37: 42.78 | AV37: 43.125 | AW37: 43.47 | AX37: 43.815 | AY37: 44.16 | AZ37: 44.505 | BA37: 44.85 | BB37: 45.195 | BC37: 45.54 | BD37: 45.885 | BE37: 46.23 | BF37: 46.575 | BG37: 46.92 | BH37: 47.265 | BI37: 47.61 | BJ37: 47.955 | BK37: 48.3 | BL37: 48.645 | BM37: 48.99 | BN37: 49.335 | BO37: 49.68 | BP37: 50.025 | BQ37: 50.37 | BR37: 50.715 | BS37: 51.06 | BT37: 51.405 | BU37: 51.75 | BV37: 52.095 | BW37: 52.44 | BX37: 52.785 | BY37: 53.13 | BZ37: 53.475 | CA37: 53.82 | CB37: 54.165 | CC37: 54.51 | CD37: 54.855 | CE37: 55.2 | CF37: 55.545 | CG37: 55.89 | CH37: 56.235 | CI37: 56.58 | CJ37: 56.925 | CK37: 57.27 | CL37: 57.615 | CM37: 57.96 | CN37: 58.305 | CO37: 58.65 | CP37: 58.995 | CQ37: 59.34 | CR37: 59.685 | CS37: 60.03 | CT37: 60.375 | CU37: 60.72 | CV37: 61.065 | CW37: 61.41 | CX37: 61.755 | CY37: 62.1 | CZ37: 62.445 | DA37: 62.79 | DB37: 63.135 | DC37: 63.48 | DD37: 63.825 | DE37: 64.17 | DF37: 64.515 | DG37: 64.86 | DH37: 65.205 | DI37: 65.55 | DJ37: 65.895 | DK37: 66.24 | DL37: 66.585 | DM37: 66.93 | DN37: 67.275 | DO37: 67.62 | DP37: 67.965 | DQ37: 68.31 | DR37: 68.655 | DS37: 69 | DT37: 69.345 | DU37: 69.69 | DV37: 70.035 | DW37: 70.38 | DX37: 70.725 | DY37: 71.07 | DZ37: 71.415 | EA37: 71.76 | EB37: 72.105 | EC37: 72.45 | ED37: 72.795 | EE37: 73.14 | EF37: 73.485 | EG37: 73.83 | EH37: 74.175 | EI37: 74.52 | EJ37: 74.865 | EK37: 75.21 | EL37: 75.555 | EM37: 75.9 | EN37: 76.245 | EO37: 76.59 | EP37: 76.935 | EQ37: 77.28 | ER37: 77.625 | ES37: 77.97 | ET37: 78.315 | EU37: 78.66 | EV37: 79.005 | EW37: 79.35 | EX37: 79.695 | EY37: 80.04 | EZ37: 80.385 | FA37: 80.73 | FB37: 81.075 | FC37: 81.42 | FD37: 81.765 | FE37: 82.11 | FF37: 82.455 | FG37: 82.8 | FH37: 83.145 | FI37: 83.49 | FJ37: 83.835 | FK37: 84.18 | FL37: 84.525 | FM37: 84.87 | FN37: 85.215 | FO37: 85.56 | FP37: 85.905 | FQ37: 86.25 | FR37: 86.595 | FS37: 86.94 | FT37: 87.285 | FU37: 87.63 | FV37: 87.975 | FW37: 88.32 | FX37: 88.665 | FY37: 89.01 | FZ37: 89.355 | GA37: 89.7 | GB37: 90.045 | GC37: 90.39 | GD37: 90.735 | GE37: 91.08 | GF37: 91.425 | GG37: 91.77 | GH37: 92.115 | GI37: 92.46 | GJ37: 92.805 | GK37: 93.15 | GL37: 93.495 | GM37: 93.84 | GN37: 94.185 | GO37: 94.53 | GP37: 94.875 | GQ37: 95.22 | GR37: 95.565 | GS37: 95.91 | GT37: 96.255 | GU37: 96.6 | GV37: 96.945 | GW37: 97.29 | GX37: 97.635 | GY37: 97.98 | GZ37: 98.325 | HA37: 98.67 | HB37: 99.015 | HC37: 99.36 | HD37: 99.705 | HE37: 100.05 | HF37: 100.395 | HG37: 100.74 | HH37: 101.085 | HI37: 101.43 | HJ37: 101.775 | HK37: 102.12 | HL37: 102.465 | HM37: 102.81 | HN37: 103.155 | HO37: 103.5
A38: =Corn!$B$51/10 -> 0.003 | B38: =SUM(A38:$A$151) -> 0.342 | C38: 0.269 | D38: 27.702 | E38: 28.044 | F38: 28.386 | G38: 28.728 | H38: 29.07 | I38: 29.412 | J38: 29.754 | K38: 30.096 | L38: 30.438 | M38: 30.78 | N38: 31.122 | O38: 31.464 | P38: 31.806 | Q38: 32.148 | R38: 32.49 | S38: 32.832 | T38: 33.174 | U38: 33.516 | V38: 33.858 | W38: 34.2 | X38: 34.542 | Y38: 34.884 | Z38: 35.226 | AA38: 35.568 | AB38: 35.91 | AC38: 36.252 | AD38: 36.594 | AE38: 36.936 | AF38: 37.278 | AG38: 37.62 | AH38: 37.962 | AI38: 38.304 | AJ38: 38.646 | AK38: 38.988 | AL38: 39.33 | AM38: 39.672 | AN38: 40.014 | AO38: 40.356 | AP38: 40.698 | AQ38: 41.04 | AR38: 41.382 | AS38: 41.724 | AT38: 42.066 | AU38: 42.408 | AV38: 42.75 | AW38: 43.092 | AX38: 43.434 | AY38: 43.776 | AZ38: 44.118 | BA38: 44.46 | BB38: 44.802 | BC38: 45.144 | BD38: 45.486 | BE38: 45.828 | BF38: 46.17 | BG38: 46.512 | BH38: 46.854 | BI38: 47.196 | BJ38: 47.538 | BK38: 47.88 | BL38: 48.222 | BM38: 48.564 | BN38: 48.906 | BO38: 49.248 | BP38: 49.59 | BQ38: 49.932 | BR38: 50.274 | BS38: 50.616 | BT38: 50.958 | BU38: 51.3 | BV38: 51.642 | BW38: 51.984 | BX38: 52.326 | BY38: 52.668 | BZ38: 53.01 | CA38: 53.352 | CB38: 53.694 | CC38: 54.036 | CD38: 54.378 | CE38: 54.72 | CF38: 55.062 | CG38: 55.404 | CH38: 55.746 | CI38: 56.088 | CJ38: 56.43 | CK38: 56.772 | CL38: 57.114 | CM38: 57.456 | CN38: 57.798 | CO38: 58.14 | CP38: 58.482 | CQ38: 58.824 | CR38: 59.166 | CS38: 59.508 | CT38: 59.85 | CU38: 60.192 | CV38: 60.534 | CW38: 60.876 | CX38: 61.218 | CY38: 61.56 | CZ38: 61.902 | DA38: 62.244 | DB38: 62.586 | DC38: 62.928 | DD38: 63.27 | DE38: 63.612 | DF38: 63.954 | DG38: 64.296 | DH38: 64.638 | DI38: 64.98 | DJ38: 65.322 | DK38: 65.664 | DL38: 66.006 | DM38: 66.348 | DN38: 66.69 | DO38: 67.032 | DP38: 67.374 | DQ38: 67.716 | DR38: 68.058 | DS38: 68.4 | DT38: 68.742 | DU38: 69.084 | DV38: 69.426 | DW38: 69.768 | DX38: 70.11 | DY38: 70.452 | DZ38: 70.794 | EA38: 71.136 | EB38: 71.478 | EC38: 71.82 | ED38: 72.162 | EE38: 72.504 | EF38: 72.846 | EG38: 73.188 | EH38: 73.53 | EI38: 73.872 | EJ38: 74.214 | EK38: 74.556 | EL38: 74.898 | EM38: 75.24 | EN38: 75.582 | EO38: 75.924 | EP38: 76.266 | EQ38: 76.608 | ER38: 76.95 | ES38: 77.292 | ET38: 77.634 | EU38: 77.976 | EV38: 78.318 | EW38: 78.66 | EX38: 79.002 | EY38: 79.344 | EZ38: 79.686 | FA38: 80.028 | FB38: 80.37 | FC38: 80.712 | FD38: 81.054 | FE38: 81.396 | FF38: 81.738 | FG38: 82.08 | FH38: 82.422 | FI38: 82.764 | FJ38: 83.106 | FK38: 83.448 | FL38: 83.79 | FM38: 84.132 | FN38: 84.474 | FO38: 84.816 | FP38: 85.158 | FQ38: 85.5 | FR38: 85.842 | FS38: 86.184 | FT38: 86.526 | FU38: 86.868 | FV38: 87.21 | FW38: 87.552 | FX38: 87.894 | FY38: 88.236 | FZ38: 88.578 | GA38: 88.92 | GB38: 89.262 | GC38: 89.604 | GD38: 89.946 | GE38: 90.288 | GF38: 90.63 | GG38: 90.972 | GH38: 91.314 | GI38: 91.656 | GJ38: 91.998 | GK38: 92.34 | GL38: 92.682 | GM38: =GM$158*$B38 -> 93.024 | GN38: 93.366 | GO38: 93.708 | GP38: 94.05 | GQ38: 94.392 | GR38: 94.734 | GS38: 95.076 | GT38: 95.418 | GU38: 95.76 | GV38: 96.102 | GW38: 96.444 | GX38: 96.786 | GY38: 97.128 | GZ38: 97.47 | HA38: 97.812 | HB38: 98.154 | HC38: 98.496 | HD38: 98.838 | HE38: 99.18 | HF38: 99.522 | HG38: 99.864 | HH38: 100.206 | HI38: 100.548 | HJ38: 100.89 | HK38: 101.232 | HL38: 101.574 | HM38: 101.916 | HN38: 102.258 | HO38: 102.6
A39: =Corn!$B$51/10 -> 0.003 | B39: =SUM(A39:$A$151) -> 0.339 | C39: 0.268 | D39: 27.459 | E39: 27.798 | F39: 28.137 | G39: 28.476 | H39: 28.815 | I39: 29.154 | J39: 29.493 | K39: 29.832 | L39: 30.171 | M39: 30.51 | N39: 30.849 | O39: 31.188 | P39: 31.527 | Q39: 31.866 | R39: 32.205 | S39: 32.544 | T39: 32.883 | U39: 33.222 | V39: 33.561 | W39: 33.9 | X39: 34.239 | Y39: 34.578 | Z39: 34.917 | AA39: 35.256 | AB39: 35.595 | AC39: 35.934 | AD39: 36.273 | AE39: 36.612 | AF39: 36.951 | AG39: 37.29 | AH39: 37.629 | AI39: 37.968 | AJ39: 38.307 | AK39: 38.646 | AL39: 38.985 | AM39: 39.324 | AN39: 39.663 | AO39: 40.002 | AP39: 40.341 | AQ39: 40.68 | AR39: 41.019 | AS39: 41.358 | AT39: 41.697 | AU39: 42.036 | AV39: 42.375 | AW39: 42.714 | AX39: 43.053 | AY39: 43.392 | AZ39: 43.731 | BA39: 44.07 | BB39: 44.409 | BC39: 44.748 | BD39: 45.087 | BE39: 45.426 | BF39: 45.765 | BG39: 46.104 | BH39: 46.443 | BI39: 46.782 | BJ39: 47.121 | BK39: 47.46 | BL39: 47.799 | BM39: 48.138 | BN39: 48.477 | BO39: 48.816 | BP39: =BP$158*$B39 -> 49.155 | BQ39: 49.494 | BR39: 49.833 | BS39: 50.172 | BT39: 50.511 | BU39: 50.85 | BV39: 51.189 | BW39: 51.528 | BX39: 51.867 | BY39: 52.206 | BZ39: 52.545 | CA39: 52.884 | CB39: 53.223 | CC39: 53.562 | CD39: 53.901 | CE39: 54.24 | CF39: 54.579 | CG39: 54.918 | CH39: 55.257 | CI39: 55.596 | CJ39: 55.935 | CK39: 56.274 | CL39: 56.613 | CM39: 56.952 | CN39: 57.291 | CO39: 57.63 | CP39: 57.969 | CQ39: 58.308 | CR39: 58.647 | CS39: 58.986 | CT39: 59.325 | CU39: 59.664 | CV39: 60.003 | CW39: 60.342 | CX39: 60.681 | CY39: 61.02 | CZ39: 61.359 | DA39: 61.698 | DB39: 62.037 | DC39: 62.376 | DD39: 62.715 | DE39: 63.054 | DF39: 63.393 | DG39: 63.732 | DH39: 64.071 | DI39: 64.41 | DJ39: 64.749 | DK39: 65.088 | DL39: 65.427 | DM39: 65.766 | DN39: 66.105 | DO39: 66.444 | DP39: 66.783 | DQ39: 67.122 | DR39: 67.461 | DS39: 67.8 | DT39: 68.139 | DU39: 68.478 | DV39: 68.817 | DW39: 69.156 | DX39: 69.495 | DY39: 69.834 | DZ39: 70.173 | EA39: 70.512 | EB39: =EB$158*$B39 -> 70.851 | EC39: 71.19 | ED39: 71.529 | EE39: 71.868 | EF39: 72.207 | EG39: 72.546 | EH39: 72.885 | EI39: 73.224 | EJ39: 73.563 | EK39: 73.902 | EL39: 74.241 | EM39: 74.58 | EN39: 74.919 | EO39: 75.258 | EP39: 75.597 | EQ39: 75.936 | ER39: 76.275 | ES39: 76.614 | ET39: 76.953 | EU39: 77.292 | EV39: 77.631 | EW39: 77.97 | EX39: 78.309 | EY39: 78.648 | EZ39: 78.987 | FA39: 79.326 | FB39: 79.665 | FC39: 80.004 | FD39: 80.343 | FE39: 80.682 | FF39: 81.021 | FG39: 81.36 | FH39: 81.699 | FI39: 82.038 | FJ39: 82.377 | FK39: 82.716 | FL39: 83.055 | FM39: 83.394 | FN39: 83.733 | FO39: 84.072 | FP39: 84.411 | FQ39: 84.75 | FR39: 85.089 | FS39: 85.428 | FT39: 85.767 | FU39: 86.106 | FV39: 86.445 | FW39: 86.784 | FX39: 87.123 | FY39: 87.462 | FZ39: 87.801 | GA39: 88.14 | GB39: 88.479 | GC39: 88.818 | GD39: 89.157 | GE39: 89.496 | GF39: 89.835 | GG39: 90.174 | GH39: 90.513 | GI39: 90.852 | GJ39: 91.191 | GK39: 91.53 | GL39: 91.869 | GM39: 92.208 | GN39: 92.547 | GO39: 92.886 | GP39: 93.225 | GQ39: 93.564 | GR39: 93.903 | GS39: 94.242 | GT39: 94.581 | GU39: 94.92 | GV39: 95.259 | GW39: 95.598 | GX39: 95.937 | GY39: 96.276 | GZ39: 96.615 | HA39: 96.954 | HB39: 97.293 | HC39: 97.632 | HD39: 97.971 | HE39: 98.31 | HF39: 98.649 | HG39: 98.988 | HH39: 99.327 | HI39: 99.666 | HJ39: 100.005 | HK39: 100.344 | HL39: 100.683 | HM39: 101.022 | HN39: 101.361 | HO39: 101.7
A40: =Corn!$B$51/10 -> 0.003 | B40: =SUM(A40:$A$151) -> 0.336 | C40: 0.267 | D40: 27.216 | E40: =E$158*$B40 -> 27.552 | F40: 27.888 | G40: 28.224 | H40: 28.56 | I40: 28.896 | J40: 29.232 | K40: 29.568 | L40: 29.904 | M40: 30.24 | N40: 30.576 | O40: 30.912 | P40: 31.248 | Q40: 31.584 | R40: 31.92 | S40: 32.256 | T40: 32.592 | U40: 32.928 | V40: 33.264 | W40: 33.6 | X40: 33.936 | Y40: 34.272 | Z40: 34.608 | AA40: 34.944 | AB40: 35.28 | AC40: 35.616 | AD40: 35.952 | AE40: 36.288 | AF40: 36.624 | AG40: 36.96 | AH40: 37.296 | AI40: 37.632 | AJ40: 37.968 | AK40: 38.304 | AL40: 38.64 | AM40: 38.976 | AN40: 39.312 | AO40: 39.648 | AP40: 39.984 | AQ40: 40.32 | AR40: 40.656 | AS40: 40.992 | AT40: 41.328 | AU40: 41.664 | AV40: 42 | AW40: 42.336 | AX40: 42.672 | AY40: 43.008 | AZ40: 43.344 | BA40: 43.68 | BB40: 44.016 | BC40: 44.352 | BD40: 44.688 | BE40: 45.024 | BF40: 45.36 | BG40: 45.696 | BH40: 46.032 | BI40: 46.368 | BJ40: 46.704 | BK40: 47.04 | BL40: 47.376 | BM40: 47.712 | BN40: 48.048 | BO40: 48.384 | BP40: 48.72 | BQ40: 49.056 | BR40: 49.392 | BS40: 49.728 | BT40: 50.064 | BU40: 50.4 | BV40: 50.736 | BW40: 51.072 | BX40: 51.408 | BY40: 51.744 | BZ40: 52.08 | CA40: 52.416 | CB40: 52.752 | CC40: 53.088 | CD40: 53.424 | CE40: 53.76 | CF40: 54.096 | CG40: 54.432 | CH40: 54.768 | CI40: 55.104 | CJ40: 55.44 | CK40: 55.776 | CL40: 56.112 | CM40: 56.448 | CN40: 56.784 | CO40: 57.12 | CP40: 57.456 | CQ40: 57.792 | CR40: 58.128 | CS40: 58.464 | CT40: 58.8 | CU40: 59.136 | CV40: 59.472 | CW40: 59.808 | CX40: 60.144 | CY40: 60.48 | CZ40: 60.816 | DA40: 61.152 | DB40: 61.488 | DC40: 61.824 | DD40: 62.16 | DE40: 62.496 | DF40: 62.832 | DG40: 63.168 | DH40: 63.504 | DI40: 63.84 | DJ40: 64.176 | DK40: 64.512 | DL40: 64.848 | DM40: 65.184 | DN40: 65.52 | DO40: 65.856 | DP40: 66.192 | DQ40: 66.528 | DR40: 66.864 | DS40: 67.2 | DT40: 67.536 | DU40: 67.872 | DV40: 68.208 | DW40: 68.544 | DX40: 68.88 | DY40: 69.216 | DZ40: 69.552 | EA40: 69.888 | EB40: 70.224 | EC40: 70.56 | ED40: 70.896 | EE40: 71.232 | EF40: 71.568 | EG40: 71.904 | EH40: 72.24 | EI40: 72.576 | EJ40: 72.912 | EK40: 73.248 | EL40: 73.584 | EM40: 73.92 | EN40: 74.256 | EO40: 74.592 | EP40: 74.928 | EQ40: 75.264 | ER40: 75.6 | ES40: 75.936 | ET40: 76.272 | EU40: 76.608 | EV40: 76.944 | EW40: 77.28 | EX40: 77.616 | EY40: 77.952 | EZ40: 78.288 | FA40: 78.624 | FB40: 78.96 | FC40: 79.296 | FD40: 79.632 | FE40: 79.968 | FF40: 80.304 | FG40: 80.64 | FH40: 80.976 | FI40: 81.312 | FJ40: 81.648 | FK40: 81.984 | FL40: 82.32 | FM40: 82.656 | FN40: 82.992 | FO40: 83.328 | FP40: 83.664 | FQ40: 84 | FR40: 84.336 | FS40: 84.672 | FT40: 85.008 | FU40: 85.344 | FV40: 85.68 | FW40: 86.016 | FX40: 86.352 | FY40: 86.688 | FZ40: 87.024 | GA40: 87.36 | GB40: 87.696 | GC40: 88.032 | GD40: 88.368 | GE40: 88.704 | GF40: 89.04 | GG40: 89.376 | GH40: 89.712 | GI40: 90.048 | GJ40: 90.384 | GK40: 90.72 | GL40: 91.056 | GM40: 91.392 | GN40: 91.728 | GO40: 92.064 | GP40: 92.4 | GQ40: 92.736 | GR40: 93.072 | GS40: 93.408 | GT40: 93.744 | GU40: 94.08 | GV40: 94.416 | GW40: 94.752 | GX40: 95.088 | GY40: 95.424 | GZ40: 95.76 | HA40: 96.096 | HB40: 96.432 | HC40: 96.768 | HD40: 97.104 | HE40: 97.44 | HF40: 97.776 | HG40: 98.112 | HH40: 98.448 | HI40: 98.784 | HJ40: 99.12 | HK40: 99.456 | HL40: 99.792 | HM40: 100.128 | HN40: 100.464 | HO40: 100.8
A41: =Corn!$B$51/10 -> 0.003 | B41: =SUM(A41:$A$151) -> 0.333 | C41: 0.266 | D41: 26.973 | E41: 27.306 | F41: 27.639 | G41: 27.972 | H41: 28.305 | I41: 28.638 | J41: 28.971 | K41: 29.304 | L41: 29.637 | M41: 29.97 | N41: 30.303 | O41: 30.636 | P41: 30.969 | Q41: 31.302 | R41: 31.635 | S41: 31.968 | T41: 32.301 | U41: 32.634 | V41: 32.967 | W41: 33.3 | X41: 33.633 | Y41: 33.966 | Z41: 34.299 | AA41: 34.632 | AB41: 34.965 | AC41: 35.298 | AD41: 35.631 | AE41: 35.964 | AF41: 36.297 | AG41: 36.63 | AH41: 36.963 | AI41: 37.296 | AJ41: 37.629 | AK41: 37.962 | AL41: 38.295 | AM41: 38.628 | AN41: 38.961 | AO41: 39.294 | AP41: 39.627 | AQ41: 39.96 | AR41: 40.293 | AS41: 40.626 | AT41: 40.959 | AU41: 41.292 | AV41: 41.625 | AW41: 41.958 | AX41: 42.291 | AY41: 42.624 | AZ41: 42.957 | BA41: 43.29 | BB41: 43.623 | BC41: 43.956 | BD41: 44.289 | BE41: 44.622 | BF41: 44.955 | BG41: 45.288 | BH41: 45.621 | BI41: 45.954 | BJ41: 46.287 | BK41: 46.62 | BL41: 46.953 | BM41: 47.286 | BN41: 47.619 | BO41: 47.952 | BP41: 48.285 | BQ41: 48.618 | BR41: 48.951 | BS41: 49.284 | BT41: 49.617 | BU41: 49.95 | BV41: 50.283 | BW41: 50.616 | BX41: 50.949 | BY41: 51.282 | BZ41: 51.615 | CA41: 51.948 | CB41: 52.281 | CC41: 52.614 | CD41: 52.947 | CE41: 53.28 | CF41: 53.613 | CG41: 53.946 | CH41: 54.279 | CI41: 54.612 | CJ41: 54.945 | CK41: 55.278 | CL41: 55.611 | CM41: 55.944 | CN41: 56.277 | CO41: 56.61 | CP41: 56.943 | CQ41: 57.276 | CR41: 57.609 | CS41: 57.942 | CT41: 58.275 | CU41: 58.608 | CV41: 58.941 | CW41: 59.274 | CX41: 59.607 | CY41: 59.94 | CZ41: 60.273 | DA41: 60.606 | DB41: 60.939 | DC41: 61.272 | DD41: 61.605 | DE41: 61.938 | DF41: 62.271 | DG41: 62.604 | DH41: 62.937 | DI41: 63.27 | DJ41: 63.603 | DK41: 63.936 | DL41: 64.269 | DM41: 64.602 | DN41: 64.935 | DO41: 65.268 | DP41: 65.601 | DQ41: 65.934 | DR41: 66.267 | DS41: 66.6 | DT41: 66.933 | DU41: 67.266 | DV41: 67.599 | DW41: 67.932 | DX41: 68.265 | DY41: 68.598 | DZ41: 68.931 | EA41: 69.264 | EB41: 69.597 | EC41: 69.93 | ED41: 70.263 | EE41: 70.596 | EF41: 70.929 | EG41: 71.262 | EH41: 71.595 | EI41: 71.928 | EJ41: 72.261 | EK41: 72.594 | EL41: 72.927 | EM41: 73.26 | EN41: 73.593 | EO41: 73.926 | EP41: 74.259 | EQ41: 74.592 | ER41: 74.925 | ES41: 75.258 | ET41: 75.591 | EU41: 75.924 | EV41: 76.257 | EW41: 76.59 | EX41: 76.923 | EY41: 77.256 | EZ41: 77.589 | FA41: 77.922 | FB41: 78.255 | FC41: 78.588 | FD41: 78.921 | FE41: 79.254 | FF41: 79.587 | FG41: 79.92 | FH41: 80.253 | FI41: 80.586 | FJ41: 80.919 | FK41: 81.252 | FL41: 81.585 | FM41: 81.918 | FN41: 82.251 | FO41: 82.584 | FP41: 82.917 | FQ41: 83.25 | FR41: 83.583 | FS41: 83.916 | FT41: 84.249 | FU41: 84.582 | FV41: 84.915 | FW41: 85.248 | FX41: 85.581 | FY41: 85.914 | FZ41: 86.247 | GA41: 86.58 | GB41: 86.913 | GC41: 87.246 | GD41: 87.579 | GE41: 87.912 | GF41: 88.245 | GG41: 88.578 | GH41: 88.911 | GI41: 89.244 | GJ41: 89.577 | GK41: 89.91 | GL41: 90.243 | GM41: 90.576 | GN41: 90.909 | GO41: 91.242 | GP41: 91.575 | GQ41: 91.908 | GR41: 92.241 | GS41: 92.574 | GT41: 92.907 | GU41: 93.24 | GV41: 93.573 | GW41: 93.906 | GX41: 94.239 | GY41: 94.572 | GZ41: 94.905 | HA41: 95.238 | HB41: 95.571 | HC41: 95.904 | HD41: 96.237 | HE41: 96.57 | HF41: 96.903 | HG41: 97.236 | HH41: 97.569 | HI41: 97.902 | HJ41: 98.235 | HK41: 98.568 | HL41: 98.901 | HM41: 99.234 | HN41: 99.567 | HO41: 99.9
A42: =Corn!$B$51/10 -> 0.003 | B42: =SUM(A42:$A$151) -> 0.33 | C42: 0.265 | D42: 26.73 | E42: 27.06 | F42: 27.39 | G42: 27.72 | H42: 28.05 | I42: 28.38 | J42: 28.71 | K42: 29.04 | L42: 29.37 | M42: 29.7 | N42: 30.03 | O42: 30.36 | P42: 30.69 | Q42: 31.02 | R42: 31.35 | S42: 31.68 | T42: 32.01 | U42: 32.34 | V42: 32.67 | W42: 33 | X42: 33.33 | Y42: 33.66 | Z42: 33.99 | AA42: 34.32 | AB42: 34.65 | AC42: 34.98 | AD42: 35.31 | AE42: 35.64 | AF42: 35.97 | AG42: 36.3 | AH42: 36.63 | AI42: 36.96 | AJ42: 37.29 | AK42: 37.62 | AL42: 37.95 | AM42: 38.28 | AN42: 38.61 | AO42: 38.94 | AP42: 39.27 | AQ42: 39.6 | AR42: 39.93 | AS42: 40.26 | AT42: 40.59 | AU42: 40.92 | AV42: 41.25 | AW42: 41.58 | AX42: 41.91 | AY42: 42.24 | AZ42: 42.57 | BA42: 42.9 | BB42: 43.23 | BC42: 43.56 | BD42: 43.89 | BE42: 44.22 | BF42: 44.55 | BG42: 44.88 | BH42: 45.21 | BI42: 45.54 | BJ42: 45.87 | BK42: 46.2 | BL42: 46.53 | BM42: 46.86 | BN42: 47.19 | BO42: 47.52 | BP42: 47.85 | BQ42: 48.18 | BR42: 48.51 | BS42: 48.84 | BT42: 49.17 | BU42: 49.5 | BV42: 49.83 | BW42: 50.16 | BX42: 50.49 | BY42: 50.82 | BZ42: 51.15 | CA42: 51.48 | CB42: 51.81 | CC42: 52.14 | CD42: 52.47 | CE42: 52.8 | CF42: 53.13 | CG42: 53.46 | CH42: 53.79 | CI42: 54.12 | CJ42: 54.45 | CK42: 54.78 | CL42: 55.11 | CM42: 55.44 | CN42: 55.77 | CO42: 56.1 | CP42: 56.43 | CQ42: 56.76 | CR42: 57.09 | CS42: 57.42 | CT42: 57.75 | CU42: 58.08 | CV42: 58.41 | CW42: 58.74 | CX42: 59.07 | CY42: 59.4 | CZ42: 59.73 | DA42: 60.06 | DB42: 60.39 | DC42: 60.72 | DD42: 61.05 | DE42: 61.38 | DF42: 61.71 | DG42: 62.04 | DH42: 62.37 | DI42: 62.7 | DJ42: 63.03 | DK42: 63.36 | DL42: 63.69 | DM42: 64.02 | DN42: 64.35 | DO42: 64.68 | DP42: 65.01 | DQ42: 65.34 | DR42: 65.67 | DS42: 66 | DT42: 66.33 | DU42: 66.66 | DV42: 66.99 | DW42: 67.32 | DX42: 67.65 | DY42: 67.98 | DZ42: 68.31 | EA42: 68.64 | EB42: 68.97 | EC42: 69.3 | ED42: 69.63 | EE42: 69.96 | EF42: 70.29 | EG42: 70.62 | EH42: 70.95 | EI42: 71.28 | EJ42: 71.61 | EK42: 71.94 | EL42: 72.27 | EM42: 72.6 | EN42: 72.93 | EO42: 73.26 | EP42: 73.59 | EQ42: 73.92 | ER42: 74.25 | ES42: 74.58 | ET42: 74.91 | EU42: 75.24 | EV42: 75.57 | EW42: 75.9 | EX42: 76.23 | EY42: 76.56 | EZ42: 76.89 | FA42: 77.22 | FB42: 77.55 | FC42: 77.88 | FD42: 78.21 | FE42: 78.54 | FF42: 78.87 | FG42: 79.2 | FH42: 79.53 | FI42: 79.86 | FJ42: 80.19 | FK42: 80.52 | FL42: 80.85 | FM42: 81.18 | FN42: 81.51 | FO42: 81.84 | FP42: 82.17 | FQ42: 82.5 | FR42: 82.83 | FS42: 83.16 | FT42: 83.49 | FU42: 83.82 | FV42: 84.15 | FW42: 84.48 | FX42: 84.81 | FY42: 85.14 | FZ42: 85.47 | GA42: 85.8 | GB42: 86.13 | GC42: 86.46 | GD42: 86.79 | GE42: 87.12 | GF42: 87.45 | GG42: 87.78 | GH42: 88.11 | GI42: 88.44 | GJ42: 88.77 | GK42: 89.1 | GL42: 89.43 | GM42: =GM$158*$B42 -> 89.76 | GN42: 90.09 | GO42: 90.42 | GP42: 90.75 | GQ42: 91.08 | GR42: 91.41 | GS42: 91.74 | GT42: 92.07 | GU42: 92.4 | GV42: 92.73 | GW42: 93.06 | GX42: 93.39 | GY42: 93.72 | GZ42: 94.05 | HA42: 94.38 | HB42: 94.71 | HC42: 95.04 | HD42: 95.37 | HE42: 95.7 | HF42: 96.03 | HG42: 96.36 | HH42: 96.69 | HI42: 97.02 | HJ42: 97.35 | HK42: 97.68 | HL42: 98.01 | HM42: 98.34 | HN42: 98.67 | HO42: 99
A43: =Corn!$B$51/10 -> 0.003 | B43: =SUM(A43:$A$151) -> 0.327 | C43: 0.264 | D43: 26.487 | E43: 26.814 | F43: 27.141 | G43: 27.468 | H43: 27.795 | I43: 28.122 | J43: 28.449 | K43: 28.776 | L43: 29.103 | M43: 29.43 | N43: 29.757 | O43: 30.084 | P43: 30.411 | Q43: 30.738 | R43: 31.065 | S43: 31.392 | T43: 31.719 | U43: 32.046 | V43: 32.373 | W43: 32.7 | X43: 33.027 | Y43: 33.354 | Z43: 33.681 | AA43: 34.008 | AB43: 34.335 | AC43: 34.662 | AD43: 34.989 | AE43: 35.316 | AF43: 35.643 | AG43: 35.97 | AH43: 36.297 | AI43: 36.624 | AJ43: 36.951 | AK43: 37.278 | AL43: 37.605 | AM43: 37.932 | AN43: 38.259 | AO43: 38.586 | AP43: 38.913 | AQ43: 39.24 | AR43: 39.567 | AS43: 39.894 | AT43: 40.221 | AU43: 40.548 | AV43: 40.875 | AW43: 41.202 | AX43: 41.529 | AY43: 41.856 | AZ43: 42.183 | BA43: 42.51 | BB43: 42.837 | BC43: 43.164 | BD43: 43.491 | BE43: 43.818 | BF43: 44.145 | BG43: 44.472 | BH43: 44.799 | BI43: 45.126 | BJ43: 45.453 | BK43: 45.78 | BL43: 46.107 | BM43: 46.434 | BN43: 46.761 | BO43: 47.088 | BP43: =BP$158*$B43 -> 47.415 | BQ43: 47.742 | BR43: 48.069 | BS43: 48.396 | BT43: 48.723 | BU43: 49.05 | BV43: 49.377 | BW43: 49.704 | BX43: 50.031 | BY43: 50.358 | BZ43: 50.685 | CA43: 51.012 | CB43: 51.339 | CC43: 51.666 | CD43: 51.993 | CE43: 52.32 | CF43: 52.647 | CG43: 52.974 | CH43: 53.301 | CI43: 53.628 | CJ43: 53.955 | CK43: 54.282 | CL43: 54.609 | CM43: 54.936 | CN43: 55.263 | CO43: 55.59 | CP43: 55.917 | CQ43: 56.244 | CR43: 56.571 | CS43: 56.898 | CT43: 57.225 | CU43: 57.552 | CV43: 57.879 | CW43: 58.206 | CX43: 58.533 | CY43: 58.86 | CZ43: 59.187 | DA43: 59.514 | DB43: 59.841 | DC43: 60.168 | DD43: 60.495 | DE43: 60.822 | DF43: 61.149 | DG43: 61.476 | DH43: 61.803 | DI43: 62.13 | DJ43: 62.457 | DK43: 62.784 | DL43: 63.111 | DM43: 63.438 | DN43: 63.765 | DO43: 64.092 | DP43: 64.419 | DQ43: 64.746 | DR43: 65.073 | DS43: 65.4 | DT43: 65.727 | DU43: 66.054 | DV43: 66.381 | DW43: 66.708 | DX43: 67.035 | DY43: 67.362 | DZ43: 67.689 | EA43: 68.016 | EB43: =EB$158*$B43 -> 68.343 | EC43: 68.67 | ED43: 68.997 | EE43: 69.324 | EF43: 69.651 | EG43: 69.978 | EH43: 70.305 | EI43: 70.632 | EJ43: 70.959 | EK43: 71.286 | EL43: 71.613 | EM43: 71.94 | EN43: 72.267 | EO43: 72.594 | EP43: 72.921 | EQ43: 73.248 | ER43: 73.575 | ES43: 73.902 | ET43: 74.229 | EU43: 74.556 | EV43: 74.883 | EW43: 75.21 | EX43: 75.537 | EY43: 75.864 | EZ43: 76.191 | FA43: 76.518 | FB43: 76.845 | FC43: 77.172 | FD43: 77.499 | FE43: 77.826 | FF43: 78.153 | FG43: 78.48 | FH43: 78.807 | FI43: 79.134 | FJ43: 79.461 | FK43: 79.788 | FL43: 80.115 | FM43: 80.442 | FN43: 80.769 | FO43: 81.096 | FP43: 81.423 | FQ43: 81.75 | FR43: 82.077 | FS43: 82.404 | FT43: 82.731 | FU43: 83.058 | FV43: 83.385 | FW43: 83.712 | FX43: 84.039 | FY43: 84.366 | FZ43: 84.693 | GA43: 85.02 | GB43: 85.347 | GC43: 85.674 | GD43: 86.001 | GE43: 86.328 | GF43: 86.655 | GG43: 86.982 | GH43: 87.309 | GI43: 87.636 | GJ43: 87.963 | GK43: 88.29 | GL43: 88.617 | GM43: 88.944 | GN43: 89.271 | GO43: 89.598 | GP43: 89.925 | GQ43: 90.252 | GR43: 90.579 | GS43: 90.906 | GT43: 91.233 | GU43: 91.56 | GV43: 91.887 | GW43: 92.214 | GX43: 92.541 | GY43: 92.868 | GZ43: 93.195 | HA43: 93.522 | HB43: 93.849 | HC43: 94.176 | HD43: 94.503 | HE43: 94.83 | HF43: 95.157 | HG43: 95.484 | HH43: 95.811 | HI43: 96.138 | HJ43: 96.465 | HK43: 96.792 | HL43: 97.119 | HM43: 97.446 | HN43: 97.773 | HO43: 98.1
A44: =Corn!$B$51/10 -> 0.003 | B44: =SUM(A44:$A$151) -> 0.324 | C44: 0.263 | D44: 26.244 | E44: =E$158*$B44 -> 26.568 | F44: 26.892 | G44: 27.216 | H44: 27.54 | I44: 27.864 | J44: 28.188 | K44: 28.512 | L44: 28.836 | M44: 29.16 | N44: 29.484 | O44: 29.808 | P44: 30.132 | Q44: 30.456 | R44: 30.78 | S44: 31.104 | T44: 31.428 | U44: 31.752 | V44: 32.076 | W44: 32.4 | X44: 32.724 | Y44: 33.048 | Z44: 33.372 | AA44: 33.696 | AB44: 34.02 | AC44: 34.344 | AD44: 34.668 | AE44: 34.992 | AF44: 35.316 | AG44: 35.64 | AH44: 35.964 | AI44: 36.288 | AJ44: 36.612 | AK44: 36.936 | AL44: 37.26 | AM44: 37.584 | AN44: 37.908 | AO44: 38.232 | AP44: 38.556 | AQ44: 38.88 | AR44: 39.204 | AS44: 39.528 | AT44: 39.852 | AU44: 40.176 | AV44: 40.5 | AW44: 40.824 | AX44: 41.148 | AY44: 41.472 | AZ44: 41.796 | BA44: 42.12 | BB44: 42.444 | BC44: 42.768 | BD44: 43.092 | BE44: 43.416 | BF44: 43.74 | BG44: 44.064 | BH44: 44.388 | BI44: 44.712 | BJ44: 45.036 | BK44: 45.36 | BL44: 45.684 | BM44: 46.008 | BN44: 46.332 | BO44: 46.656 | BP44: 46.98 | BQ44: 47.304 | BR44: 47.628 | BS44: 47.952 | BT44: 48.276 | BU44: 48.6 | BV44: 48.924 | BW44: 49.248 | BX44: 49.572 | BY44: 49.896 | BZ44: 50.22 | CA44: 50.544 | CB44: 50.868 | CC44: 51.192 | CD44: 51.516 | CE44: 51.84 | CF44: 52.164 | CG44: 52.488 | CH44: 52.812 | CI44: 53.136 | CJ44: 53.46 | CK44: 53.784 | CL44: 54.108 | CM44: 54.432 | CN44: 54.756 | CO44: 55.08 | CP44: 55.404 | CQ44: 55.728 | CR44: 56.052 | CS44: 56.376 | CT44: 56.7 | CU44: 57.024 | CV44: 57.348 | CW44: 57.672 | CX44: 57.996 | CY44: 58.32 | CZ44: 58.644 | DA44: 58.968 | DB44: 59.292 | DC44: 59.616 | DD44: 59.94 | DE44: 60.264 | DF44: 60.588 | DG44: 60.912 | DH44: 61.236 | DI44: 61.56 | DJ44: 61.884 | DK44: 62.208 | DL44: 62.532 | DM44: 62.856 | DN44: 63.18 | DO44: 63.504 | DP44: 63.828 | DQ44: 64.152 | DR44: 64.476 | DS44: 64.8 | DT44: 65.124 | DU44: 65.448 | DV44: 65.772 | DW44: 66.096 | DX44: 66.42 | DY44: 66.744 | DZ44: 67.068 | EA44: 67.392 | EB44: 67.716 | EC44: 68.04 | ED44: 68.364 | EE44: 68.688 | EF44: 69.012 | EG44: 69.336 | EH44: 69.66 | EI44: 69.984 | EJ44: 70.308 | EK44: 70.632 | EL44: 70.956 | EM44: 71.28 | EN44: 71.604 | EO44: 71.928 | EP44: 72.252 | EQ44: 72.576 | ER44: 72.9 | ES44: 73.224 | ET44: 73.548 | EU44: 73.872 | EV44: 74.196 | EW44: 74.52 | EX44: 74.844 | EY44: 75.168 | EZ44: 75.492 | FA44: 75.816 | FB44: 76.14 | FC44: 76.464 | FD44: 76.788 | FE44: 77.112 | FF44: 77.436 | FG44: 77.76 | FH44: 78.084 | FI44: 78.408 | FJ44: 78.732 | FK44: 79.056 | FL44: 79.38 | FM44: 79.704 | FN44: 80.028 | FO44: 80.352 | FP44: 80.676 | FQ44: 81 | FR44: 81.324 | FS44: 81.648 | FT44: 81.972 | FU44: 82.296 | FV44: 82.62 | FW44: 82.944 | FX44: 83.268 | FY44: 83.592 | FZ44: 83.916 | GA44: 84.24 | GB44: 84.564 | GC44: 84.888 | GD44: 85.212 | GE44: 85.536 | GF44: 85.86 | GG44: 86.184 | GH44: 86.508 | GI44: 86.832 | GJ44: 87.156 | GK44: 87.48 | GL44: 87.804 | GM44: 88.128 | GN44: 88.452 | GO44: 88.776 | GP44: 89.1 | GQ44: 89.424 | GR44: 89.748 | GS44: 90.072 | GT44: 90.396 | GU44: 90.72 | GV44: 91.044 | GW44: 91.368 | GX44: 91.692 | GY44: 92.016 | GZ44: 92.34 | HA44: 92.664 | HB44: 92.988 | HC44: 93.312 | HD44: 93.636 | HE44: 93.96 | HF44: 94.284 | HG44: 94.608 | HH44: 94.932 | HI44: 95.256 | HJ44: 95.58 | HK44: 95.904 | HL44: 96.228 | HM44: 96.552 | HN44: 96.876 | HO44: 97.2
A45: =Corn!$B$51/10 -> 0.003 | B45: =SUM(A45:$A$151) -> 0.321 | C45: 0.262 | D45: 26.001 | E45: 26.322 | F45: 26.643 | G45: 26.964 | H45: 27.285 | I45: 27.606 | J45: 27.927 | K45: 28.248 | L45: 28.569 | M45: 28.89 | N45: 29.211 | O45: 29.532 | P45: 29.853 | Q45: 30.174 | R45: 30.495 | S45: 30.816 | T45: 31.137 | U45: 31.458 | V45: 31.779 | W45: 32.1 | X45: 32.421 | Y45: 32.742 | Z45: 33.063 | AA45: 33.384 | AB45: 33.705 | AC45: 34.026 | AD45: 34.347 | AE45: 34.668 | AF45: 34.989 | AG45: 35.31 | AH45: 35.631 | AI45: 35.952 | AJ45: 36.273 | AK45: 36.594 | AL45: 36.915 | AM45: 37.236 | AN45: 37.557 | AO45: 37.878 | AP45: 38.199 | AQ45: 38.52 | AR45: 38.841 | AS45: 39.162 | AT45: 39.483 | AU45: 39.804 | AV45: 40.125 | AW45: 40.446 | AX45: 40.767 | AY45: 41.088 | AZ45: 41.409 | BA45: 41.73 | BB45: 42.051 | BC45: 42.372 | BD45: 42.693 | BE45: 43.014 | BF45: 43.335 | BG45: 43.656 | BH45: 43.977 | BI45: 44.298 | BJ45: 44.619 | BK45: 44.94 | BL45: 45.261 | BM45: 45.582 | BN45: 45.903 | BO45: 46.224 | BP45: 46.545 | BQ45: 46.866 | BR45: 47.187 | BS45: 47.508 | BT45: 47.829 | BU45: 48.15 | BV45: 48.471 | BW45: 48.792 | BX45: 49.113 | BY45: 49.434 | BZ45: 49.755 | CA45: 50.076 | CB45: 50.397 | CC45: 50.718 | CD45: 51.039 | CE45: 51.36 | CF45: 51.681 | CG45: 52.002 | CH45: 52.323 | CI45: 52.644 | CJ45: 52.965 | CK45: 53.286 | CL45: 53.607 | CM45: 53.928 | CN45: 54.249 | CO45: 54.57 | CP45: 54.891 | CQ45: 55.212 | CR45: 55.533 | CS45: 55.854 | CT45: 56.175 | CU45: 56.496 | CV45: 56.817 | CW45: 57.138 | CX45: 57.459 | CY45: 57.78 | CZ45: 58.101 | DA45: 58.422 | DB45: 58.743 | DC45: 59.064 | DD45: 59.385 | DE45: 59.706 | DF45: 60.027 | DG45: 60.348 | DH45: 60.669 | DI45: 60.99 | DJ45: 61.311 | DK45: 61.632 | DL45: 61.953 | DM45: 62.274 | DN45: 62.595 | DO45: 62.916 | DP45: 63.237 | DQ45: 63.558 | DR45: 63.879 | DS45: 64.2 | DT45: 64.521 | DU45: 64.842 | DV45: 65.163 | DW45: 65.484 | DX45: 65.805 | DY45: 66.126 | DZ45: 66.447 | EA45: 66.768 | EB45: 67.089 | EC45: 67.41 | ED45: 67.731 | EE45: 68.052 | EF45: 68.373 | EG45: 68.694 | EH45: 69.015 | EI45: 69.336 | EJ45: 69.657 | EK45: 69.978 | EL45: 70.299 | EM45: 70.62 | EN45: 70.941 | EO45: 71.262 | EP45: 71.583 | EQ45: 71.904 | ER45: 72.225 | ES45: 72.546 | ET45: 72.867 | EU45: 73.188 | EV45: 73.509 | EW45: 73.83 | EX45: 74.151 | EY45: 74.472 | EZ45: 74.793 | FA45: 75.114 | FB45: 75.435 | FC45: 75.756 | FD45: 76.077 | FE45: 76.398 | FF45: 76.719 | FG45: 77.04 | FH45: 77.361 | FI45: 77.682 | FJ45: 78.003 | FK45: 78.324 | FL45: 78.645 | FM45: 78.966 | FN45: 79.287 | FO45: 79.608 | FP45: 79.929 | FQ45: 80.25 | FR45: 80.571 | FS45: 80.892 | FT45: 81.213 | FU45: 81.534 | FV45: 81.855 | FW45: 82.176 | FX45: 82.497 | FY45: 82.818 | FZ45: 83.139 | GA45: 83.46 | GB45: 83.781 | GC45: 84.102 | GD45: 84.423 | GE45: 84.744 | GF45: 85.065 | GG45: 85.386 | GH45: 85.707 | GI45: 86.028 | GJ45: 86.349 | GK45: 86.67 | GL45: 86.991 | GM45: 87.312 | GN45: 87.633 | GO45: 87.954 | GP45: 88.275 | GQ45: 88.596 | GR45: 88.917 | GS45: 89.238 | GT45: 89.559 | GU45: 89.88 | GV45: 90.201 | GW45: 90.522 | GX45: 90.843 | GY45: 91.164 | GZ45: 91.485 | HA45: 91.806 | HB45: 92.127 | HC45: 92.448 | HD45: 92.769 | HE45: 93.09 | HF45: 93.411 | HG45: 93.732 | HH45: 94.053 | HI45: 94.374 | HJ45: 94.695 | HK45: 95.016 | HL45: 95.337 | HM45: 95.658 | HN45: 95.979 | HO45: 96.3
A46: =Corn!$B$51/10 -> 0.003 | B46: =SUM(A46:$A$151) -> 0.318 | C46: 0.261 | D46: 25.758 | E46: 26.076 | F46: 26.394 | G46: 26.712 | H46: 27.03 | I46: 27.348 | J46: 27.666 | K46: 27.984 | L46: 28.302 | M46: 28.62 | N46: 28.938 | O46: 29.256 | P46: 29.574 | Q46: 29.892 | R46: 30.21 | S46: 30.528 | T46: 30.846 | U46: 31.164 | V46: 31.482 | W46: 31.8 | X46: 32.118 | Y46: 32.436 | Z46: 32.754 | AA46: 33.072 | AB46: 33.39 | AC46: 33.708 | AD46: 34.026 | AE46: 34.344 | AF46: 34.662 | AG46: 34.98 | AH46: 35.298 | AI46: 35.616 | AJ46: 35.934 | AK46: 36.252 | AL46: 36.57 | AM46: 36.888 | AN46: 37.206 | AO46: 37.524 | AP46: 37.842 | AQ46: 38.16 | AR46: 38.478 | AS46: 38.796 | AT46: 39.114 | AU46: 39.432 | AV46: 39.75 | AW46: 40.068 | AX46: 40.386 | AY46: 40.704 | AZ46: 41.022 | BA46: 41.34 | BB46: 41.658 | BC46: 41.976 | BD46: 42.294 | BE46: 42.612 | BF46: 42.93 | BG46: 43.248 | BH46: 43.566 | BI46: 43.884 | BJ46: 44.202 | BK46: 44.52 | BL46: 44.838 | BM46: 45.156 | BN46: 45.474 | BO46: 45.792 | BP46: 46.11 | BQ46: 46.428 | BR46: 46.746 | BS46: 47.064 | BT46: 47.382 | BU46: 47.7 | BV46: 48.018 | BW46: 48.336 | BX46: 48.654 | BY46: 48.972 | BZ46: 49.29 | CA46: 49.608 | CB46: 49.926 | CC46: 50.244 | CD46: 50.562 | CE46: 50.88 | CF46: 51.198 | CG46: 51.516 | CH46: 51.834 | CI46: 52.152 | CJ46: 52.47 | CK46: 52.788 | CL46: 53.106 | CM46: 53.424 | CN46: 53.742 | CO46: 54.06 | CP46: 54.378 | CQ46: 54.696 | CR46: 55.014 | CS46: 55.332 | CT46: 55.65 | CU46: 55.968 | CV46: 56.286 | CW46: 56.604 | CX46: 56.922 | CY46: 57.24 | CZ46: 57.558 | DA46: 57.876 | DB46: 58.194 | DC46: 58.512 | DD46: 58.83 | DE46: 59.148 | DF46: 59.466 | DG46: 59.784 | DH46: 60.102 | DI46: 60.42 | DJ46: 60.738 | DK46: 61.056 | DL46: 61.374 | DM46: 61.692 | DN46: 62.01 | DO46: 62.328 | DP46: 62.646 | DQ46: 62.964 | DR46: 63.282 | DS46: 63.6 | DT46: 63.918 | DU46: 64.236 | DV46: 64.554 | DW46: 64.872 | DX46: 65.19 | DY46: 65.508 | DZ46: 65.826 | EA46: 66.144 | EB46: 66.462 | EC46: 66.78 | ED46: 67.098 | EE46: 67.416 | EF46: 67.734 | EG46: 68.052 | EH46: 68.37 | EI46: 68.688 | EJ46: 69.006 | EK46: 69.324 | EL46: 69.642 | EM46: 69.96 | EN46: 70.278 | EO46: 70.596 | EP46: 70.914 | EQ46: 71.232 | ER46: 71.55 | ES46: 71.868 | ET46: 72.186 | EU46: 72.504 | EV46: 72.822 | EW46: 73.14 | EX46: 73.458 | EY46: 73.776 | EZ46: 74.094 | FA46: 74.412 | FB46: 74.73 | FC46: 75.048 | FD46: 75.366 | FE46: 75.684 | FF46: 76.002 | FG46: 76.32 | FH46: 76.638 | FI46: 76.956 | FJ46: 77.274 | FK46: 77.592 | FL46: 77.91 | FM46: 78.228 | FN46: 78.546 | FO46: 78.864 | FP46: 79.182 | FQ46: 79.5 | FR46: 79.818 | FS46: 80.136 | FT46: 80.454 | FU46: 80.772 | FV46: 81.09 | FW46: 81.408 | FX46: 81.726 | FY46: 82.044 | FZ46: 82.362 | GA46: 82.68 | GB46: 82.998 | GC46: 83.316 | GD46: 83.634 | GE46: 83.952 | GF46: 84.27 | GG46: 84.588 | GH46: 84.906 | GI46: 85.224 | GJ46: 85.542 | GK46: 85.86 | GL46: 86.178 | GM46: =GM$158*$B46 -> 86.496 | GN46: 86.814 | GO46: 87.132 | GP46: 87.45 | GQ46: 87.768 | GR46: 88.086 | GS46: 88.404 | GT46: 88.722 | GU46: 89.04 | GV46: 89.358 | GW46: 89.676 | GX46: 89.994 | GY46: 90.312 | GZ46: 90.63 | HA46: 90.948 | HB46: 91.266 | HC46: 91.584 | HD46: 91.902 | HE46: 92.22 | HF46: 92.538 | HG46: 92.856 | HH46: 93.174 | HI46: 93.492 | HJ46: 93.81 | HK46: 94.128 | HL46: 94.446 | HM46: 94.764 | HN46: 95.082 | HO46: 95.4
A47: =Corn!$B$51/10 -> 0.003 | B47: =SUM(A47:$A$151) -> 0.315 | C47: 0.26 | D47: 25.515 | E47: 25.83 | F47: 26.145 | G47: 26.46 | H47: 26.775 | I47: 27.09 | J47: 27.405 | K47: 27.72 | L47: 28.035 | M47: 28.35 | N47: 28.665 | O47: 28.98 | P47: 29.295 | Q47: 29.61 | R47: 29.925 | S47: 30.24 | T47: 30.555 | U47: 30.87 | V47: 31.185 | W47: 31.5 | X47: 31.815 | Y47: 32.13 | Z47: 32.445 | AA47: 32.76 | AB47: 33.075 | AC47: 33.39 | AD47: 33.705 | AE47: 34.02 | AF47: 34.335 | AG47: 34.65 | AH47: 34.965 | AI47: 35.28 | AJ47: 35.595 | AK47: 35.91 | AL47: 36.225 | AM47: 36.54 | AN47: 36.855 | AO47: 37.17 | AP47: 37.485 | AQ47: 37.8 | AR47: 38.115 | AS47: 38.43 | AT47: 38.745 | AU47: 39.06 | AV47: 39.375 | AW47: 39.69 | AX47: 40.005 | AY47: 40.32 | AZ47: 40.635 | BA47: 40.95 | BB47: 41.265 | BC47: 41.58 | BD47: 41.895 | BE47: 42.21 | BF47: 42.525 | BG47: 42.84 | BH47: 43.155 | BI47: 43.47 | BJ47: 43.785 | BK47: 44.1 | BL47: 44.415 | BM47: 44.73 | BN47: 45.045 | BO47: 45.36 | BP47: =BP$158*$B47 -> 45.675 | BQ47: 45.99 | BR47: 46.305 | BS47: 46.62 | BT47: 46.935 | BU47: 47.25 | BV47: 47.565 | BW47: 47.88 | BX47: 48.195 | BY47: 48.51 | BZ47: 48.825 | CA47: 49.14 | CB47: 49.455 | CC47: 49.77 | CD47: 50.085 | CE47: 50.4 | CF47: 50.715 | CG47: 51.03 | CH47: 51.345 | CI47: 51.66 | CJ47: 51.975 | CK47: 52.29 | CL47: 52.605 | CM47: 52.92 | CN47: 53.235 | CO47: 53.55 | CP47: 53.865 | CQ47: 54.18 | CR47: 54.495 | CS47: 54.81 | CT47: 55.125 | CU47: 55.44 | CV47: 55.755 | CW47: 56.07 | CX47: 56.385 | CY47: 56.7 | CZ47: 57.015 | DA47: 57.33 | DB47: 57.645 | DC47: 57.96 | DD47: 58.275 | DE47: 58.59 | DF47: 58.905 | DG47: 59.22 | DH47: 59.535 | DI47: 59.85 | DJ47: 60.165 | DK47: 60.48 | DL47: 60.795 | DM47: 61.11 | DN47: 61.425 | DO47: 61.74 | DP47: 62.055 | DQ47: 62.37 | DR47: 62.685 | DS47: 63 | DT47: 63.315 | DU47: 63.63 | DV47: 63.945 | DW47: 64.26 | DX47: 64.575 | DY47: 64.89 | DZ47: 65.205 | EA47: 65.52 | EB47: =EB$158*$B47 -> 65.835 | EC47: 66.15 | ED47: 66.465 | EE47: 66.78 | EF47: 67.095 | EG47: 67.41 | EH47: 67.725 | EI47: 68.04 | EJ47: 68.355 | EK47: 68.67 | EL47: 68.985 | EM47: 69.3 | EN47: 69.615 | EO47: 69.93 | EP47: 70.245 | EQ47: 70.56 | ER47: 70.875 | ES47: 71.19 | ET47: 71.505 | EU47: 71.82 | EV47: 72.135 | EW47: 72.45 | EX47: 72.765 | EY47: 73.08 | EZ47: 73.395 | FA47: 73.71 | FB47: 74.025 | FC47: 74.34 | FD47: 74.655 | FE47: 74.97 | FF47: 75.285 | FG47: 75.6 | FH47: 75.915 | FI47: 76.23 | FJ47: 76.545 | FK47: 76.86 | FL47: 77.175 | FM47: 77.49 | FN47: 77.805 | FO47: 78.12 | FP47: 78.435 | FQ47: 78.75 | FR47: 79.065 | FS47: 79.38 | FT47: 79.695 | FU47: 80.01 | FV47: 80.325 | FW47: 80.64 | FX47: 80.955 | FY47: 81.27 | FZ47: 81.585 | GA47: 81.9 | GB47: 82.215 | GC47: 82.53 | GD47: 82.845 | GE47: 83.16 | GF47: 83.475 | GG47: 83.79 | GH47: 84.105 | GI47: 84.42 | GJ47: 84.735 | GK47: 85.05 | GL47: 85.365 | GM47: 85.68 | GN47: 85.995 | GO47: 86.31 | GP47: 86.625 | GQ47: 86.94 | GR47: 87.255 | GS47: 87.57 | GT47: 87.885 | GU47: 88.2 | GV47: 88.515 | GW47: 88.83 | GX47: 89.145 | GY47: 89.46 | GZ47: 89.775 | HA47: 90.09 | HB47: 90.405 | HC47: 90.72 | HD47: 91.035 | HE47: 91.35 | HF47: 91.665 | HG47: 91.98 | HH47: 92.295 | HI47: 92.61 | HJ47: 92.925 | HK47: 93.24 | HL47: 93.555 | HM47: 93.87 | HN47: 94.185 | HO47: 94.5
A48: =Corn!$B$51/10 -> 0.003 | B48: =SUM(A48:$A$151) -> 0.312 | C48: 0.259 | D48: 25.272 | E48: =E$158*$B48 -> 25.584 | F48: 25.896 | G48: 26.208 | H48: 26.52 | I48: 26.832 | J48: 27.144 | K48: 27.456 | L48: 27.768 | M48: 28.08 | N48: 28.392 | O48: 28.704 | P48: 29.016 | Q48: 29.328 | R48: 29.64 | S48: 29.952 | T48: 30.264 | U48: 30.576 | V48: 30.888 | W48: 31.2 | X48: 31.512 | Y48: 31.824 | Z48: 32.136 | AA48: 32.448 | AB48: 32.76 | AC48: 33.072 | AD48: 33.384 | AE48: 33.696 | AF48: 34.008 | AG48: 34.32 | AH48: 34.632 | AI48: 34.944 | AJ48: 35.256 | AK48: 35.568 | AL48: 35.88 | AM48: 36.192 | AN48: 36.504 | AO48: 36.816 | AP48: 37.128 | AQ48: 37.44 | AR48: 37.752 | AS48: 38.064 | AT48: 38.376 | AU48: 38.688 | AV48: 39 | AW48: 39.312 | AX48: 39.624 | AY48: 39.936 | AZ48: 40.248 | BA48: 40.56 | BB48: 40.872 | BC48: 41.184 | BD48: 41.496 | BE48: 41.808 | BF48: 42.12 | BG48: 42.432 | BH48: 42.744 | BI48: 43.056 | BJ48: 43.368 | BK48: 43.68 | BL48: 43.992 | BM48: 44.304 | BN48: 44.616 | BO48: 44.928 | BP48: 45.24 | BQ48: 45.552 | BR48: 45.864 | BS48: 46.176 | BT48: 46.488 | BU48: 46.8 | BV48: 47.112 | BW48: 47.424 | BX48: 47.736 | BY48: 48.048 | BZ48: 48.36 | CA48: 48.672 | CB48: 48.984 | CC48: 49.296 | CD48: 49.608 | CE48: 49.92 | CF48: 50.232 | CG48: 50.544 | CH48: 50.856 | CI48: 51.168 | CJ48: 51.48 | CK48: 51.792 | CL48: 52.104 | CM48: 52.416 | CN48: 52.728 | CO48: 53.04 | CP48: 53.352 | CQ48: 53.664 | CR48: 53.976 | CS48: 54.288 | CT48: 54.6 | CU48: 54.912 | CV48: 55.224 | CW48: 55.536 | CX48: 55.848 | CY48: 56.16 | CZ48: 56.472 | DA48: 56.784 | DB48: 57.096 | DC48: 57.408 | DD48: 57.72 | DE48: 58.032 | DF48: 58.344 | DG48: 58.656 | DH48: 58.968 | DI48: 59.28 | DJ48: 59.592 | DK48: 59.904 | DL48: 60.216 | DM48: 60.528 | DN48: 60.84 | DO48: 61.152 | DP48: 61.464 | DQ48: 61.776 | DR48: 62.088 | DS48: 62.4 | DT48: 62.712 | DU48: 63.024 | DV48: 63.336 | DW48: 63.648 | DX48: 63.96 | DY48: 64.272 | DZ48: 64.584 | EA48: 64.896 | EB48: 65.208 | EC48: 65.52 | ED48: 65.832 | EE48: 66.144 | EF48: 66.456 | EG48: 66.768 | EH48: 67.08 | EI48: 67.392 | EJ48: 67.704 | EK48: 68.016 | EL48: 68.328 | EM48: 68.64 | EN48: 68.952 | EO48: 69.264 | EP48: 69.576 | EQ48: 69.888 | ER48: 70.2 | ES48: 70.512 | ET48: 70.824 | EU48: 71.136 | EV48: 71.448 | EW48: 71.76 | EX48: 72.072 | EY48: 72.384 | EZ48: 72.696 | FA48: 73.008 | FB48: 73.32 | FC48: 73.632 | FD48: 73.944 | FE48: 74.256 | FF48: 74.568 | FG48: 74.88 | FH48: 75.192 | FI48: 75.504 | FJ48: 75.816 | FK48: 76.128 | FL48: 76.44 | FM48: 76.752 | FN48: 77.064 | FO48: 77.376 | FP48: 77.688 | FQ48: 78 | FR48: 78.312 | FS48: 78.624 | FT48: 78.936 | FU48: 79.248 | FV48: 79.56 | FW48: 79.872 | FX48: 80.184 | FY48: 80.496 | FZ48: 80.808 | GA48: 81.12 | GB48: 81.432 | GC48: 81.744 | GD48: 82.056 | GE48: 82.368 | GF48: 82.68 | GG48: 82.992 | GH48: 83.304 | GI48: 83.616 | GJ48: 83.928 | GK48: 84.24 | GL48: 84.552 | GM48: 84.864 | GN48: 85.176 | GO48: 85.488 | GP48: 85.8 | GQ48: 86.112 | GR48: 86.424 | GS48: 86.736 | GT48: 87.048 | GU48: 87.36 | GV48: 87.672 | GW48: 87.984 | GX48: 88.296 | GY48: 88.608 | GZ48: 88.92 | HA48: 89.232 | HB48: 89.544 | HC48: 89.856 | HD48: 90.168 | HE48: 90.48 | HF48: 90.792 | HG48: 91.104 | HH48: 91.416 | HI48: 91.728 | HJ48: 92.04 | HK48: 92.352 | HL48: 92.664 | HM48: 92.976 | HN48: 93.288 | HO48: 93.6
A49: =Corn!$B$51/10 -> 0.003 | B49: =SUM(A49:$A$151) -> 0.309 | C49: 0.258 | D49: 25.029 | E49: 25.338 | F49: 25.647 | G49: 25.956 | H49: 26.265 | I49: 26.574 | J49: 26.883 | K49: 27.192 | L49: 27.501 | M49: 27.81 | N49: 28.119 | O49: 28.428 | P49: 28.737 | Q49: 29.046 | R49: 29.355 | S49: 29.664 | T49: 29.973 | U49: 30.282 | V49: 30.591 | W49: 30.9 | X49: 31.209 | Y49: 31.518 | Z49: 31.827 | AA49: 32.136 | AB49: 32.445 | AC49: 32.754 | AD49: 33.063 | AE49: 33.372 | AF49: 33.681 | AG49: 33.99 | AH49: 34.299 | AI49: 34.608 | AJ49: 34.917 | AK49: 35.226 | AL49: 35.535 | AM49: 35.844 | AN49: 36.153 | AO49: 36.462 | AP49: 36.771 | AQ49: 37.08 | AR49: 37.389 | AS49: 37.698 | AT49: 38.007 | AU49: 38.316 | AV49: 38.625 | AW49: 38.934 | AX49: 39.243 | AY49: 39.552 | AZ49: 39.861 | BA49: 40.17 | BB49: 40.479 | BC49: 40.788 | BD49: 41.097 | BE49: 41.406 | BF49: 41.715 | BG49: 42.024 | BH49: 42.333 | BI49: 42.642 | BJ49: 42.951 | BK49: 43.26 | BL49: 43.569 | BM49: 43.878 | BN49: 44.187 | BO49: 44.496 | BP49: 44.805 | BQ49: 45.114 | BR49: 45.423 | BS49: 45.732 | BT49: 46.041 | BU49: 46.35 | BV49: 46.659 | BW49: 46.968 | BX49: 47.277 | BY49: 47.586 | BZ49: 47.895 | CA49: 48.204 | CB49: 48.513 | CC49: 48.822 | CD49: 49.131 | CE49: 49.44 | CF49: 49.749 | CG49: 50.058 | CH49: 50.367 | CI49: 50.676 | CJ49: 50.985 | CK49: 51.294 | CL49: 51.603 | CM49: 51.912 | CN49: 52.221 | CO49: 52.53 | CP49: 52.839 | CQ49: 53.148 | CR49: 53.457 | CS49: 53.766 | CT49: 54.075 | CU49: 54.384 | CV49: 54.693 | CW49: 55.002 | CX49: 55.311 | CY49: 55.62 | CZ49: 55.929 | DA49: 56.238 | DB49: 56.547 | DC49: 56.856 | DD49: 57.165 | DE49: 57.474 | DF49: 57.783 | DG49: 58.092 | DH49: 58.401 | DI49: 58.71 | DJ49: 59.019 | DK49: 59.328 | DL49: 59.637 | DM49: 59.946 | DN49: 60.255 | DO49: 60.564 | DP49: 60.873 | DQ49: 61.182 | DR49: 61.491 | DS49: 61.8 | DT49: 62.109 | DU49: 62.418 | DV49: 62.727 | DW49: 63.036 | DX49: 63.345 | DY49: 63.654 | DZ49: 63.963 | EA49: 64.272 | EB49: 64.581 | EC49: 64.89 | ED49: 65.199 | EE49: 65.508 | EF49: 65.817 | EG49: 66.126 | EH49: 66.435 | EI49: 66.744 | EJ49: 67.053 | EK49: 67.362 | EL49: 67.671 | EM49: 67.98 | EN49: 68.289 | EO49: 68.598 | EP49: 68.907 | EQ49: 69.216 | ER49: 69.525 | ES49: 69.834 | ET49: 70.143 | EU49: 70.452 | EV49: 70.761 | EW49: 71.07 | EX49: 71.379 | EY49: 71.688 | EZ49: 71.997 | FA49: 72.306 | FB49: 72.615 | FC49: 72.924 | FD49: 73.233 | FE49: 73.542 | FF49: 73.851 | FG49: 74.16 | FH49: 74.469 | FI49: 74.778 | FJ49: 75.087 | FK49: 75.396 | FL49: 75.705 | FM49: 76.014 | FN49: 76.323 | FO49: 76.632 | FP49: 76.941 | FQ49: 77.25 | FR49: 77.559 | FS49: 77.868 | FT49: 78.177 | FU49: 78.486 | FV49: 78.795 | FW49: 79.104 | FX49: 79.413 | FY49: 79.722 | FZ49: 80.031 | GA49: 80.34 | GB49: 80.649 | GC49: 80.958 | GD49: 81.267 | GE49: 81.576 | GF49: 81.885 | GG49: 82.194 | GH49: 82.503 | GI49: 82.812 | GJ49: 83.121 | GK49: 83.43 | GL49: 83.739 | GM49: 84.048 | GN49: 84.357 | GO49: 84.666 | GP49: 84.975 | GQ49: 85.284 | GR49: 85.593 | GS49: 85.902 | GT49: 86.211 | GU49: 86.52 | GV49: 86.829 | GW49: 87.138 | GX49: 87.447 | GY49: 87.756 | GZ49: 88.065 | HA49: 88.374 | HB49: 88.683 | HC49: 88.992 | HD49: 89.301 | HE49: 89.61 | HF49: 89.919 | HG49: 90.228 | HH49: 90.537 | HI49: 90.846 | HJ49: 91.155 | HK49: 91.464 | HL49: 91.773 | HM49: 92.082 | HN49: 92.391 | HO49: 92.7
A50: =Corn!$B$51/10 -> 0.003 | B50: =SUM(A50:$A$151) -> 0.306 | C50: 0.257 | D50: 24.786 | E50: 25.092 | F50: 25.398 | G50: 25.704 | H50: 26.01 | I50: 26.316 | J50: 26.622 | K50: 26.928 | L50: 27.234 | M50: 27.54 | N50: 27.846 | O50: 28.152 | P50: 28.458 | Q50: 28.764 | R50: 29.07 | S50: 29.376 | T50: 29.682 | U50: 29.988 | V50: 30.294 | W50: 30.6 | X50: 30.906 | Y50: 31.212 | Z50: 31.518 | AA50: 31.824 | AB50: 32.13 | AC50: 32.436 | AD50: 32.742 | AE50: 33.048 | AF50: 33.354 | AG50: 33.66 | AH50: 33.966 | AI50: 34.272 | AJ50: 34.578 | AK50: 34.884 | AL50: 35.19 | AM50: 35.496 | AN50: 35.802 | AO50: 36.108 | AP50: 36.414 | AQ50: 36.72 | AR50: 37.026 | AS50: 37.332 | AT50: 37.638 | AU50: 37.944 | AV50: 38.25 | AW50: 38.556 | AX50: 38.862 | AY50: 39.168 | AZ50: 39.474 | BA50: 39.78 | BB50: 40.086 | BC50: 40.392 | BD50: 40.698 | BE50: 41.004 | BF50: 41.31 | BG50: 41.616 | BH50: 41.922 | BI50: 42.228 | BJ50: 42.534 | BK50: 42.84 | BL50: 43.146 | BM50: 43.452 | BN50: 43.758 | BO50: 44.064 | BP50: 44.37 | BQ50: 44.676 | BR50: 44.982 | BS50: 45.288 | BT50: 45.594 | BU50: 45.9 | BV50: 46.206 | BW50: 46.512 | BX50: 46.818 | BY50: 47.124 | BZ50: 47.43 | CA50: 47.736 | CB50: 48.042 | CC50: 48.348 | CD50: 48.654 | CE50: 48.96 | CF50: 49.266 | CG50: 49.572 | CH50: 49.878 | CI50: 50.184 | CJ50: 50.49 | CK50: 50.796 | CL50: 51.102 | CM50: 51.408 | CN50: 51.714 | CO50: 52.02 | CP50: 52.326 | CQ50: 52.632 | CR50: 52.938 | CS50: 53.244 | CT50: 53.55 | CU50: 53.856 | CV50: 54.162 | CW50: 54.468 | CX50: 54.774 | CY50: 55.08 | CZ50: 55.386 | DA50: 55.692 | DB50: 55.998 | DC50: 56.304 | DD50: 56.61 | DE50: 56.916 | DF50: 57.222 | DG50: 57.528 | DH50: 57.834 | DI50: 58.14 | DJ50: 58.446 | DK50: 58.752 | DL50: 59.058 | DM50: 59.364 | DN50: 59.67 | DO50: 59.976 | DP50: 60.282 | DQ50: 60.588 | DR50: 60.894 | DS50: 61.2 | DT50: 61.506 | DU50: 61.812 | DV50: 62.118 | DW50: 62.424 | DX50: 62.73 | DY50: 63.036 | DZ50: 63.342 | EA50: 63.648 | EB50: 63.954 | EC50: 64.26 | ED50: 64.566 | EE50: 64.872 | EF50: 65.178 | EG50: 65.484 | EH50: 65.79 | EI50: 66.096 | EJ50: 66.402 | EK50: 66.708 | EL50: 67.014 | EM50: 67.32 | EN50: 67.626 | EO50: 67.932 | EP50: 68.238 | EQ50: 68.544 | ER50: 68.85 | ES50: 69.156 | ET50: 69.462 | EU50: 69.768 | EV50: 70.074 | EW50: 70.38 | EX50: 70.686 | EY50: 70.992 | EZ50: 71.298 | FA50: 71.604 | FB50: 71.91 | FC50: 72.216 | FD50: 72.522 | FE50: 72.828 | FF50: 73.134 | FG50: 73.44 | FH50: 73.746 | FI50: 74.052 | FJ50: 74.358 | FK50: 74.664 | FL50: 74.97 | FM50: 75.276 | FN50: 75.582 | FO50: 75.888 | FP50: 76.194 | FQ50: 76.5 | FR50: 76.806 | FS50: 77.112 | FT50: 77.418 | FU50: 77.724 | FV50: 78.03 | FW50: 78.336 | FX50: 78.642 | FY50: 78.948 | FZ50: 79.254 | GA50: 79.56 | GB50: 79.866 | GC50: 80.172 | GD50: 80.478 | GE50: 80.784 | GF50: 81.09 | GG50: 81.396 | GH50: 81.702 | GI50: 82.008 | GJ50: 82.314 | GK50: 82.62 | GL50: 82.926 | GM50: =GM$158*$B50 -> 83.232 | GN50: 83.538 | GO50: 83.844 | GP50: 84.15 | GQ50: 84.456 | GR50: 84.762 | GS50: 85.068 | GT50: 85.374 | GU50: 85.68 | GV50: 85.986 | GW50: 86.292 | GX50: 86.598 | GY50: 86.904 | GZ50: 87.21 | HA50: 87.516 | HB50: 87.822 | HC50: 88.128 | HD50: 88.434 | HE50: 88.74 | HF50: 89.046 | HG50: 89.352 | HH50: 89.658 | HI50: 89.964 | HJ50: 90.27 | HK50: 90.576 | HL50: 90.882 | HM50: 91.188 | HN50: 91.494 | HO50: 91.8
A51: =Corn!$B$51/10 -> 0.003 | B51: =SUM(A51:$A$151) -> 0.303 | C51: 0.256 | D51: 24.543 | E51: 24.846 | F51: 25.149 | G51: 25.452 | H51: 25.755 | I51: 26.058 | J51: 26.361 | K51: 26.664 | L51: 26.967 | M51: 27.27 | N51: 27.573 | O51: 27.876 | P51: 28.179 | Q51: 28.482 | R51: 28.785 | S51: 29.088 | T51: 29.391 | U51: 29.694 | V51: 29.997 | W51: 30.3 | X51: 30.603 | Y51: 30.906 | Z51: 31.209 | AA51: 31.512 | AB51: 31.815 | AC51: 32.118 | AD51: 32.421 | AE51: 32.724 | AF51: 33.027 | AG51: 33.33 | AH51: 33.633 | AI51: 33.936 | AJ51: 34.239 | AK51: 34.542 | AL51: 34.845 | AM51: 35.148 | AN51: 35.451 | AO51: 35.754 | AP51: 36.057 | AQ51: 36.36 | AR51: 36.663 | AS51: 36.966 | AT51: 37.269 | AU51: 37.572 | AV51: 37.875 | AW51: 38.178 | AX51: 38.481 | AY51: 38.784 | AZ51: 39.087 | BA51: 39.39 | BB51: 39.693 | BC51: 39.996 | BD51: 40.299 | BE51: 40.602 | BF51: 40.905 | BG51: 41.208 | BH51: 41.511 | BI51: 41.814 | BJ51: 42.117 | BK51: 42.42 | BL51: 42.723 | BM51: 43.026 | BN51: 43.329 | BO51: 43.632 | BP51: =BP$158*$B51 -> 43.935 | BQ51: 44.238 | BR51: 44.541 | BS51: 44.844 | BT51: 45.147 | BU51: 45.45 | BV51: 45.753 | BW51: 46.056 | BX51: 46.359 | BY51: 46.662 | BZ51: 46.965 | CA51: 47.268 | CB51: 47.571 | CC51: 47.874 | CD51: 48.177 | CE51: 48.48 | CF51: 48.783 | CG51: 49.086 | CH51: 49.389 | CI51: 49.692 | CJ51: 49.995 | CK51: 50.298 | CL51: 50.601 | CM51: 50.904 | CN51: 51.207 | CO51: 51.51 | CP51: 51.813 | CQ51: 52.116 | CR51: 52.419 | CS51: 52.722 | CT51: 53.025 | CU51: 53.328 | CV51: 53.631 | CW51: 53.934 | CX51: 54.237 | CY51: 54.54 | CZ51: 54.843 | DA51: 55.146 | DB51: 55.449 | DC51: 55.752 | DD51: 56.055 | DE51: 56.358 | DF51: 56.661 | DG51: 56.964 | DH51: 57.267 | DI51: 57.57 | DJ51: 57.873 | DK51: 58.176 | DL51: 58.479 | DM51: 58.782 | DN51: 59.085 | DO51: 59.388 | DP51: 59.691 | DQ51: 59.994 | DR51: 60.297 | DS51: 60.6 | DT51: 60.903 | DU51: 61.206 | DV51: 61.509 | DW51: 61.812 | DX51: 62.115 | DY51: 62.418 | DZ51: 62.721 | EA51: 63.024 | EB51: =EB$158*$B51 -> 63.327 | EC51: 63.63 | ED51: 63.933 | EE51: 64.236 | EF51: 64.539 | EG51: 64.842 | EH51: 65.145 | EI51: 65.448 | EJ51: 65.751 | EK51: 66.054 | EL51: 66.357 | EM51: 66.66 | EN51: 66.963 | EO51: 67.266 | EP51: 67.569 | EQ51: 67.872 | ER51: 68.175 | ES51: 68.478 | ET51: 68.781 | EU51: 69.084 | EV51: 69.387 | EW51: 69.69 | EX51: 69.993 | EY51: 70.296 | EZ51: 70.599 | FA51: 70.902 | FB51: 71.205 | FC51: 71.508 | FD51: 71.811 | FE51: 72.114 | FF51: 72.417 | FG51: 72.72 | FH51: 73.023 | FI51: 73.326 | FJ51: 73.629 | FK51: 73.932 | FL51: 74.235 | FM51: 74.538 | FN51: 74.841 | FO51: 75.144 | FP51: 75.447 | FQ51: 75.75 | FR51: 76.053 | FS51: 76.356 | FT51: 76.659 | FU51: 76.962 | FV51: 77.265 | FW51: 77.568 | FX51: 77.871 | FY51: 78.174 | FZ51: 78.477 | GA51: 78.78 | GB51: 79.083 | GC51: 79.386 | GD51: 79.689 | GE51: 79.992 | GF51: 80.295 | GG51: 80.598 | GH51: 80.901 | GI51: 81.204 | GJ51: 81.507 | GK51: 81.81 | GL51: 82.113 | GM51: 82.416 | GN51: 82.719 | GO51: 83.022 | GP51: 83.325 | GQ51: 83.628 | GR51: 83.931 | GS51: 84.234 | GT51: 84.537 | GU51: 84.84 | GV51: 85.143 | GW51: 85.446 | GX51: 85.749 | GY51: 86.052 | GZ51: 86.355 | HA51: 86.658 | HB51: 86.961 | HC51: 87.264 | HD51: 87.567 | HE51: 87.87 | HF51: 88.173 | HG51: 88.476 | HH51: 88.779 | HI51: 89.082 | HJ51: 89.385 | HK51: 89.688 | HL51: 89.991 | HM51: 90.294 | HN51: 90.597 | HO51: 90.9
A52: =Corn!$B$51/10 -> 0.003 | B52: =SUM(A52:$A$151) -> 0.3 | C52: 0.255 | D52: 24.3 | E52: =E$158*$B52 -> 24.6 | F52: 24.9 | G52: 25.2 | H52: 25.5 | I52: 25.8 | J52: 26.1 | K52: 26.4 | L52: 26.7 | M52: 27 | N52: 27.3 | O52: 27.6 | P52: 27.9 | Q52: 28.2 | R52: 28.5 | S52: 28.8 | T52: 29.1 | U52: 29.4 | V52: 29.7 | W52: 30 | X52: 30.3 | Y52: 30.6 | Z52: 30.9 | AA52: 31.2 | AB52: 31.5 | AC52: 31.8 | AD52: 32.1 | AE52: 32.4 | AF52: 32.7 | AG52: 33 | AH52: 33.3 | AI52: 33.6 | AJ52: 33.9 | AK52: 34.2 | AL52: 34.5 | AM52: 34.8 | AN52: 35.1 | AO52: 35.4 | AP52: 35.7 | AQ52: 36 | AR52: 36.3 | AS52: 36.6 | AT52: 36.9 | AU52: 37.2 | AV52: 37.5 | AW52: 37.8 | AX52: 38.1 | AY52: 38.4 | AZ52: 38.7 | BA52: 39 | BB52: 39.3 | BC52: 39.6 | BD52: 39.9 | BE52: 40.2 | BF52: 40.5 | BG52: 40.8 | BH52: 41.1 | BI52: 41.4 | BJ52: 41.7 | BK52: 42 | BL52: 42.3 | BM52: 42.6 | BN52: 42.9 | BO52: 43.2 | BP52: 43.5 | BQ52: 43.8 | BR52: 44.1 | BS52: 44.4 | BT52: 44.7 | BU52: 45 | BV52: 45.3 | BW52: 45.6 | BX52: 45.9 | BY52: 46.2 | BZ52: 46.5 | CA52: 46.8 | CB52: 47.1 | CC52: 47.4 | CD52: 47.7 | CE52: 48 | CF52: 48.3 | CG52: 48.6 | CH52: 48.9 | CI52: 49.2 | CJ52: 49.5 | CK52: 49.8 | CL52: 50.1 | CM52: 50.4 | CN52: 50.7 | CO52: 51 | CP52: 51.3 | CQ52: 51.6 | CR52: 51.9 | CS52: 52.2 | CT52: 52.5 | CU52: 52.8 | CV52: 53.1 | CW52: 53.4 | CX52: 53.7 | CY52: 54 | CZ52: 54.3 | DA52: 54.6 | DB52: 54.9 | DC52: 55.2 | DD52: 55.5 | DE52: 55.8 | DF52: 56.1 | DG52: 56.4 | DH52: 56.7 | DI52: 57 | DJ52: 57.3 | DK52: 57.6 | DL52: 57.9 | DM52: 58.2 | DN52: 58.5 | DO52: 58.8 | DP52: 59.1 | DQ52: 59.4 | DR52: 59.7 | DS52: 60 | DT52: 60.3 | DU52: 60.6 | DV52: 60.9 | DW52: 61.2 | DX52: 61.5 | DY52: 61.8 | DZ52: 62.1 | EA52: 62.4 | EB52: 62.7 | EC52: 63 | ED52: 63.3 | EE52: 63.6 | EF52: 63.9 | EG52: 64.2 | EH52: 64.5 | EI52: 64.8 | EJ52: 65.1 | EK52: 65.4 | EL52: 65.7 | EM52: 66 | EN52: 66.3 | EO52: 66.6 | EP52: 66.9 | EQ52: 67.2 | ER52: 67.5 | ES52: 67.8 | ET52: 68.1 | EU52: 68.4 | EV52: 68.7 | EW52: 69 | EX52: 69.3 | EY52: 69.6 | EZ52: 69.9 | FA52: 70.2 | FB52: 70.5 | FC52: 70.8 | FD52: 71.1 | FE52: 71.4 | FF52: 71.7 | FG52: 72 | FH52: 72.3 | FI52: 72.6 | FJ52: 72.9 | FK52: 73.2 | FL52: 73.5 | FM52: 73.8 | FN52: 74.1 | FO52: 74.4 | FP52: 74.7 | FQ52: 75 | FR52: 75.3 | FS52: 75.6 | FT52: 75.9 | FU52: 76.2 | FV52: 76.5 | FW52: 76.8 | FX52: 77.1 | FY52: 77.4 | FZ52: 77.7 | GA52: 78 | GB52: 78.3 | GC52: 78.6 | GD52: 78.9 | GE52: 79.2 | GF52: 79.5 | GG52: 79.8 | GH52: 80.1 | GI52: 80.4 | GJ52: 80.7 | GK52: 81 | GL52: 81.3 | GM52: 81.6 | GN52: 81.9 | GO52: 82.2 | GP52: 82.5 | GQ52: 82.8 | GR52: 83.1 | GS52: 83.4 | GT52: 83.7 | GU52: 84 | GV52: 84.3 | GW52: 84.6 | GX52: 84.9 | GY52: 85.2 | GZ52: 85.5 | HA52: 85.8 | HB52: 86.1 | HC52: 86.4 | HD52: 86.7 | HE52: 87 | HF52: 87.3 | HG52: 87.6 | HH52: 87.9 | HI52: 88.2 | HJ52: 88.5 | HK52: 88.8 | HL52: 89.1 | HM52: 89.4 | HN52: 89.7 | HO52: 90
A53: =Corn!$B$51/10 -> 0.003 | B53: =SUM(A53:$A$151) -> 0.297 | C53: 0.254 | D53: 24.057 | E53: 24.354 | F53: 24.651 | G53: 24.948 | H53: 25.245 | I53: 25.542 | J53: 25.839 | K53: 26.136 | L53: 26.433 | M53: 26.73 | N53: 27.027 | O53: 27.324 | P53: 27.621 | Q53: 27.918 | R53: 28.215 | S53: 28.512 | T53: 28.809 | U53: 29.106 | V53: 29.403 | W53: 29.7 | X53: 29.997 | Y53: 30.294 | Z53: 30.591 | AA53: 30.888 | AB53: 31.185 | AC53: 31.482 | AD53: 31.779 | AE53: 32.076 | AF53: 32.373 | AG53: 32.67 | AH53: 32.967 | AI53: 33.264 | AJ53: 33.561 | AK53: 33.858 | AL53: 34.155 | AM53: 34.452 | AN53: 34.749 | AO53: 35.046 | AP53: 35.343 | AQ53: 35.64 | AR53: 35.937 | AS53: 36.234 | AT53: 36.531 | AU53: 36.828 | AV53: 37.125 | AW53: 37.422 | AX53: 37.719 | AY53: 38.016 | AZ53: 38.313 | BA53: 38.61 | BB53: 38.907 | BC53: 39.204 | BD53: 39.501 | BE53: 39.798 | BF53: 40.095 | BG53: 40.392 | BH53: 40.689 | BI53: 40.986 | BJ53: 41.283 | BK53: 41.58 | BL53: 41.877 | BM53: 42.174 | BN53: 42.471 | BO53: 42.768 | BP53: 43.065 | BQ53: 43.362 | BR53: 43.659 | BS53: 43.956 | BT53: 44.253 | BU53: 44.55 | BV53: 44.847 | BW53: 45.144 | BX53: 45.441 | BY53: 45.738 | BZ53: 46.035 | CA53: 46.332 | CB53: 46.629 | CC53: 46.926 | CD53: 47.223 | CE53: 47.52 | CF53: 47.817 | CG53: 48.114 | CH53: 48.411 | CI53: 48.708 | CJ53: 49.005 | CK53: 49.302 | CL53: 49.599 | CM53: 49.896 | CN53: 50.193 | CO53: 50.49 | CP53: 50.787 | CQ53: 51.084 | CR53: 51.381 | CS53: 51.678 | CT53: 51.975 | CU53: 52.272 | CV53: 52.569 | CW53: 52.866 | CX53: 53.163 | CY53: 53.46 | CZ53: 53.757 | DA53: 54.054 | DB53: 54.351 | DC53: 54.648 | DD53: 54.945 | DE53: 55.242 | DF53: 55.539 | DG53: 55.836 | DH53: 56.133 | DI53: 56.43 | DJ53: 56.727 | DK53: 57.024 | DL53: 57.321 | DM53: 57.618 | DN53: 57.915 | DO53: 58.212 | DP53: 58.509 | DQ53: 58.806 | DR53: 59.103 | DS53: 59.4 | DT53: 59.697 | DU53: 59.994 | DV53: 60.291 | DW53: 60.588 | DX53: 60.885 | DY53: 61.182 | DZ53: 61.479 | EA53: 61.776 | EB53: 62.073 | EC53: 62.37 | ED53: 62.667 | EE53: 62.964 | EF53: 63.261 | EG53: 63.558 | EH53: 63.855 | EI53: 64.152 | EJ53: 64.449 | EK53: 64.746 | EL53: 65.043 | EM53: 65.34 | EN53: 65.637 | EO53: 65.934 | EP53: 66.231 | EQ53: 66.528 | ER53: 66.825 | ES53: 67.122 | ET53: 67.419 | EU53: 67.716 | EV53: 68.013 | EW53: 68.31 | EX53: 68.607 | EY53: 68.904 | EZ53: 69.201 | FA53: 69.498 | FB53: 69.795 | FC53: 70.092 | FD53: 70.389 | FE53: 70.686 | FF53: 70.983 | FG53: 71.28 | FH53: 71.577 | FI53: 71.874 | FJ53: 72.171 | FK53: 72.468 | FL53: 72.765 | FM53: 73.062 | FN53: 73.359 | FO53: 73.656 | FP53: 73.953 | FQ53: 74.25 | FR53: 74.547 | FS53: 74.844 | FT53: 75.141 | FU53: 75.438 | FV53: 75.735 | FW53: 76.032 | FX53: 76.329 | FY53: 76.626 | FZ53: 76.923 | GA53: 77.22 | GB53: 77.517 | GC53: 77.814 | GD53: 78.111 | GE53: 78.408 | GF53: 78.705 | GG53: 79.002 | GH53: 79.299 | GI53: 79.596 | GJ53: 79.893 | GK53: 80.19 | GL53: 80.487 | GM53: 80.784 | GN53: 81.081 | GO53: 81.378 | GP53: 81.675 | GQ53: 81.972 | GR53: 82.269 | GS53: 82.566 | GT53: 82.863 | GU53: 83.16 | GV53: 83.457 | GW53: 83.754 | GX53: 84.051 | GY53: 84.348 | GZ53: 84.645 | HA53: 84.942 | HB53: 85.239 | HC53: 85.536 | HD53: 85.833 | HE53: 86.13 | HF53: 86.427 | HG53: 86.724 | HH53: 87.021 | HI53: 87.318 | HJ53: 87.615 | HK53: 87.912 | HL53: 88.209 | HM53: 88.506 | HN53: 88.803 | HO53: 89.1
A54: =Corn!$B$51/10 -> 0.003 | B54: =SUM(A54:$A$151) -> 0.294 | C54: 0.253 | D54: 23.814 | E54: 24.108 | F54: 24.402 | G54: 24.696 | H54: 24.99 | I54: 25.284 | J54: 25.578 | K54: 25.872 | L54: 26.166 | M54: 26.46 | N54: 26.754 | O54: 27.048 | P54: 27.342 | Q54: 27.636 | R54: 27.93 | S54: 28.224 | T54: 28.518 | U54: 28.812 | V54: 29.106 | W54: 29.4 | X54: 29.694 | Y54: 29.988 | Z54: 30.282 | AA54: 30.576 | AB54: 30.87 | AC54: 31.164 | AD54: 31.458 | AE54: 31.752 | AF54: 32.046 | AG54: 32.34 | AH54: 32.634 | AI54: 32.928 | AJ54: 33.222 | AK54: 33.516 | AL54: 33.81 | AM54: 34.104 | AN54: 34.398 | AO54: 34.692 | AP54: 34.986 | AQ54: 35.28 | AR54: 35.574 | AS54: 35.868 | AT54: 36.162 | AU54: 36.456 | AV54: 36.75 | AW54: 37.044 | AX54: 37.338 | AY54: 37.632 | AZ54: 37.926 | BA54: 38.22 | BB54: 38.514 | BC54: 38.808 | BD54: 39.102 | BE54: 39.396 | BF54: 39.69 | BG54: 39.984 | BH54: 40.278 | BI54: 40.572 | BJ54: 40.866 | BK54: 41.16 | BL54: 41.454 | BM54: 41.748 | BN54: 42.042 | BO54: 42.336 | BP54: 42.63 | BQ54: 42.924 | BR54: 43.218 | BS54: 43.512 | BT54: 43.806 | BU54: 44.1 | BV54: 44.394 | BW54: 44.688 | BX54: 44.982 | BY54: 45.276 | BZ54: 45.57 | CA54: 45.864 | CB54: 46.158 | CC54: 46.452 | CD54: 46.746 | CE54: 47.04 | CF54: 47.334 | CG54: 47.628 | CH54: 47.922 | CI54: 48.216 | CJ54: 48.51 | CK54: 48.804 | CL54: 49.098 | CM54: 49.392 | CN54: 49.686 | CO54: 49.98 | CP54: 50.274 | CQ54: 50.568 | CR54: 50.862 | CS54: 51.156 | CT54: 51.45 | CU54: 51.744 | CV54: 52.038 | CW54: 52.332 | CX54: 52.626 | CY54: 52.92 | CZ54: 53.214 | DA54: 53.508 | DB54: 53.802 | DC54: 54.096 | DD54: 54.39 | DE54: 54.684 | DF54: 54.978 | DG54: 55.272 | DH54: 55.566 | DI54: 55.86 | DJ54: 56.154 | DK54: 56.448 | DL54: 56.742 | DM54: 57.036 | DN54: 57.33 | DO54: 57.624 | DP54: 57.918 | DQ54: 58.212 | DR54: 58.506 | DS54: 58.8 | DT54: 59.094 | DU54: 59.388 | DV54: 59.682 | DW54: 59.976 | DX54: 60.27 | DY54: 60.564 | DZ54: 60.858 | EA54: 61.152 | EB54: 61.446 | EC54: 61.74 | ED54: 62.034 | EE54: 62.328 | EF54: 62.622 | EG54: 62.916 | EH54: 63.21 | EI54: 63.504 | EJ54: 63.798 | EK54: 64.092 | EL54: 64.386 | EM54: 64.68 | EN54: 64.974 | EO54: 65.268 | EP54: 65.562 | EQ54: 65.856 | ER54: 66.15 | ES54: 66.444 | ET54: 66.738 | EU54: 67.032 | EV54: 67.326 | EW54: 67.62 | EX54: 67.914 | EY54: 68.208 | EZ54: 68.502 | FA54: 68.796 | FB54: 69.09 | FC54: 69.384 | FD54: 69.678 | FE54: 69.972 | FF54: 70.266 | FG54: 70.56 | FH54: 70.854 | FI54: 71.148 | FJ54: 71.442 | FK54: 71.736 | FL54: 72.03 | FM54: 72.324 | FN54: 72.618 | FO54: 72.912 | FP54: 73.206 | FQ54: 73.5 | FR54: 73.794 | FS54: 74.088 | FT54: 74.382 | FU54: 74.676 | FV54: 74.97 | FW54: 75.264 | FX54: 75.558 | FY54: 75.852 | FZ54: 76.146 | GA54: 76.44 | GB54: 76.734 | GC54: 77.028 | GD54: 77.322 | GE54: 77.616 | GF54: 77.91 | GG54: 78.204 | GH54: 78.498 | GI54: 78.792 | GJ54: 79.086 | GK54: 79.38 | GL54: 79.674 | GM54: =GM$158*$B54 -> 79.968 | GN54: 80.262 | GO54: 80.556 | GP54: 80.85 | GQ54: 81.144 | GR54: 81.438 | GS54: 81.732 | GT54: 82.026 | GU54: 82.32 | GV54: 82.614 | GW54: 82.908 | GX54: 83.202 | GY54: 83.496 | GZ54: 83.79 | HA54: 84.084 | HB54: 84.378 | HC54: 84.672 | HD54: 84.966 | HE54: 85.26 | HF54: 85.554 | HG54: 85.848 | HH54: 86.142 | HI54: 86.436 | HJ54: 86.73 | HK54: 87.024 | HL54: 87.318 | HM54: 87.612 | HN54: 87.906 | HO54: 88.2
A55: =Corn!$B$51/10 -> 0.003 | B55: =SUM(A55:$A$151) -> 0.291 | C55: 0.252 | D55: 23.571 | E55: 23.862 | F55: 24.153 | G55: 24.444 | H55: 24.735 | I55: 25.026 | J55: 25.317 | K55: 25.608 | L55: 25.899 | M55: 26.19 | N55: 26.481 | O55: 26.772 | P55: 27.063 | Q55: 27.354 | R55: 27.645 | S55: 27.936 | T55: 28.227 | U55: 28.518 | V55: 28.809 | W55: 29.1 | X55: 29.391 | Y55: 29.682 | Z55: 29.973 | AA55: 30.264 | AB55: 30.555 | AC55: 30.846 | AD55: 31.137 | AE55: 31.428 | AF55: 31.719 | AG55: 32.01 | AH55: 32.301 | AI55: 32.592 | AJ55: 32.883 | AK55: 33.174 | AL55: 33.465 | AM55: 33.756 | AN55: 34.047 | AO55: 34.338 | AP55: 34.629 | AQ55: 34.92 | AR55: 35.211 | AS55: 35.502 | AT55: 35.793 | AU55: 36.084 | AV55: 36.375 | AW55: 36.666 | AX55: 36.957 | AY55: 37.248 | AZ55: 37.539 | BA55: 37.83 | BB55: 38.121 | BC55: 38.412 | BD55: 38.703 | BE55: 38.994 | BF55: 39.285 | BG55: 39.576 | BH55: 39.867 | BI55: 40.158 | BJ55: 40.449 | BK55: 40.74 | BL55: 41.031 | BM55: 41.322 | BN55: 41.613 | BO55: 41.904 | BP55: =BP$158*$B55 -> 42.195 | BQ55: 42.486 | BR55: 42.777 | BS55: 43.068 | BT55: 43.359 | BU55: 43.65 | BV55: 43.941 | BW55: 44.232 | BX55: 44.523 | BY55: 44.814 | BZ55: 45.105 | CA55: 45.396 | CB55: 45.687 | CC55: 45.978 | CD55: 46.269 | CE55: 46.56 | CF55: 46.851 | CG55: 47.142 | CH55: 47.433 | CI55: 47.724 | CJ55: 48.015 | CK55: 48.306 | CL55: 48.597 | CM55: 48.888 | CN55: 49.179 | CO55: 49.47 | CP55: 49.761 | CQ55: 50.052 | CR55: 50.343 | CS55: 50.634 | CT55: 50.925 | CU55: 51.216 | CV55: 51.507 | CW55: 51.798 | CX55: 52.089 | CY55: 52.38 | CZ55: 52.671 | DA55: 52.962 | DB55: 53.253 | DC55: 53.544 | DD55: 53.835 | DE55: 54.126 | DF55: 54.417 | DG55: 54.708 | DH55: 54.999 | DI55: 55.29 | DJ55: 55.581 | DK55: 55.872 | DL55: 56.163 | DM55: 56.454 | DN55: 56.745 | DO55: 57.036 | DP55: 57.327 | DQ55: 57.618 | DR55: 57.909 | DS55: 58.2 | DT55: 58.491 | DU55: 58.782 | DV55: 59.073 | DW55: 59.364 | DX55: 59.655 | DY55: 59.946 | DZ55: 60.237 | EA55: 60.528 | EB55: =EB$158*$B55 -> 60.819 | EC55: 61.11 | ED55: 61.401 | EE55: 61.692 | EF55: 61.983 | EG55: 62.274 | EH55: 62.565 | EI55: 62.856 | EJ55: 63.147 | EK55: 63.438 | EL55: 63.729 | EM55: 64.02 | EN55: 64.311 | EO55: 64.602 | EP55: 64.893 | EQ55: 65.184 | ER55: 65.475 | ES55: 65.766 | ET55: 66.057 | EU55: 66.348 | EV55: 66.639 | EW55: 66.93 | EX55: 67.221 | EY55: 67.512 | EZ55: 67.803 | FA55: 68.094 | FB55: 68.385 | FC55: 68.676 | FD55: 68.967 | FE55: 69.258 | FF55: 69.549 | FG55: 69.84 | FH55: 70.131 | FI55: 70.422 | FJ55: 70.713 | FK55: 71.004 | FL55: 71.295 | FM55: 71.586 | FN55: 71.877 | FO55: 72.168 | FP55: 72.459 | FQ55: 72.75 | FR55: 73.041 | FS55: 73.332 | FT55: 73.623 | FU55: 73.914 | FV55: 74.205 | FW55: 74.496 | FX55: 74.787 | FY55: 75.078 | FZ55: 75.369 | GA55: 75.66 | GB55: 75.951 | GC55: 76.242 | GD55: 76.533 | GE55: 76.824 | GF55: 77.115 | GG55: 77.406 | GH55: 77.697 | GI55: 77.988 | GJ55: 78.279 | GK55: 78.57 | GL55: 78.861 | GM55: 79.152 | GN55: 79.443 | GO55: 79.734 | GP55: 80.025 | GQ55: 80.316 | GR55: 80.607 | GS55: 80.898 | GT55: 81.189 | GU55: 81.48 | GV55: 81.771 | GW55: 82.062 | GX55: 82.353 | GY55: 82.644 | GZ55: 82.935 | HA55: 83.226 | HB55: 83.517 | HC55: 83.808 | HD55: 84.099 | HE55: 84.39 | HF55: 84.681 | HG55: 84.972 | HH55: 85.263 | HI55: 85.554 | HJ55: 85.845 | HK55: 86.136 | HL55: 86.427 | HM55: 86.718 | HN55: 87.009 | HO55: 87.3
A56: =Corn!$B$51/10 -> 0.003 | B56: =SUM(A56:$A$151) -> 0.288 | C56: 0.251 | D56: 23.328 | E56: =E$158*$B56 -> 23.616 | F56: 23.904 | G56: 24.192 | H56: 24.48 | I56: 24.768 | J56: 25.056 | K56: 25.344 | L56: 25.632 | M56: 25.92 | N56: 26.208 | O56: 26.496 | P56: 26.784 | Q56: 27.072 | R56: 27.36 | S56: 27.648 | T56: 27.936 | U56: 28.224 | V56: 28.512 | W56: 28.8 | X56: 29.088 | Y56: 29.376 | Z56: 29.664 | AA56: 29.952 | AB56: 30.24 | AC56: 30.528 | AD56: 30.816 | AE56: 31.104 | AF56: 31.392 | AG56: 31.68 | AH56: 31.968 | AI56: 32.256 | AJ56: 32.544 | AK56: 32.832 | AL56: 33.12 | AM56: 33.408 | AN56: 33.696 | AO56: 33.984 | AP56: 34.272 | AQ56: 34.56 | AR56: 34.848 | AS56: 35.136 | AT56: 35.424 | AU56: 35.712 | AV56: 36 | AW56: 36.288 | AX56: 36.576 | AY56: 36.864 | AZ56: 37.152 | BA56: 37.44 | BB56: 37.728 | BC56: 38.016 | BD56: 38.304 | BE56: 38.592 | BF56: 38.88 | BG56: 39.168 | BH56: 39.456 | BI56: 39.744 | BJ56: 40.032 | BK56: 40.32 | BL56: 40.608 | BM56: 40.896 | BN56: 41.184 | BO56: 41.472 | BP56: 41.76 | BQ56: 42.048 | BR56: 42.336 | BS56: 42.624 | BT56: 42.912 | BU56: 43.2 | BV56: 43.488 | BW56: 43.776 | BX56: 44.064 | BY56: 44.352 | BZ56: 44.64 | CA56: 44.928 | CB56: 45.216 | CC56: 45.504 | CD56: 45.792 | CE56: 46.08 | CF56: 46.368 | CG56: 46.656 | CH56: 46.944 | CI56: 47.232 | CJ56: 47.52 | CK56: 47.808 | CL56: 48.096 | CM56: 48.384 | CN56: 48.672 | CO56: 48.96 | CP56: 49.248 | CQ56: 49.536 | CR56: 49.824 | CS56: 50.112 | CT56: 50.4 | CU56: 50.688 | CV56: 50.976 | CW56: 51.264 | CX56: 51.552 | CY56: 51.84 | CZ56: 52.128 | DA56: 52.416 | DB56: 52.704 | DC56: 52.992 | DD56: 53.28 | DE56: 53.568 | DF56: 53.856 | DG56: 54.144 | DH56: 54.432 | DI56: 54.72 | DJ56: 55.008 | DK56: 55.296 | DL56: 55.584 | DM56: 55.872 | DN56: 56.16 | DO56: 56.448 | DP56: 56.736 | DQ56: 57.024 | DR56: 57.312 | DS56: 57.6 | DT56: 57.888 | DU56: 58.176 | DV56: 58.464 | DW56: 58.752 | DX56: 59.04 | DY56: 59.328 | DZ56: 59.616 | EA56: 59.904 | EB56: 60.192 | EC56: 60.48 | ED56: 60.768 | EE56: 61.056 | EF56: 61.344 | EG56: 61.632 | EH56: 61.92 | EI56: 62.208 | EJ56: 62.496 | EK56: 62.784 | EL56: 63.072 | EM56: 63.36 | EN56: 63.648 | EO56: 63.936 | EP56: 64.224 | EQ56: 64.512 | ER56: 64.8 | ES56: 65.088 | ET56: 65.376 | EU56: 65.664 | EV56: 65.952 | EW56: 66.24 | EX56: 66.528 | EY56: 66.816 | EZ56: 67.104 | FA56: 67.392 | FB56: 67.68 | FC56: 67.968 | FD56: 68.256 | FE56: 68.544 | FF56: 68.832 | FG56: 69.12 | FH56: 69.408 | FI56: 69.696 | FJ56: 69.984 | FK56: 70.272 | FL56: 70.56 | FM56: 70.848 | FN56: 71.136 | FO56: 71.424 | FP56: 71.712 | FQ56: 72 | FR56: 72.288 | FS56: 72.576 | FT56: 72.864 | FU56: 73.152 | FV56: 73.44 | FW56: 73.728 | FX56: 74.016 | FY56: 74.304 | FZ56: 74.592 | GA56: 74.88 | GB56: 75.168 | GC56: 75.456 | GD56: 75.744 | GE56: 76.032 | GF56: 76.32 | GG56: 76.608 | GH56: 76.896 | GI56: 77.184 | GJ56: 77.472 | GK56: 77.76 | GL56: 78.048 | GM56: 78.336 | GN56: 78.624 | GO56: 78.912 | GP56: 79.2 | GQ56: 79.488 | GR56: 79.776 | GS56: 80.064 | GT56: 80.352 | GU56: 80.64 | GV56: 80.928 | GW56: 81.216 | GX56: 81.504 | GY56: 81.792 | GZ56: 82.08 | HA56: 82.368 | HB56: 82.656 | HC56: 82.944 | HD56: 83.232 | HE56: 83.52 | HF56: 83.808 | HG56: 84.096 | HH56: 84.384 | HI56: 84.672 | HJ56: 84.96 | HK56: 85.248 | HL56: 85.536 | HM56: 85.824 | HN56: 86.112 | HO56: 86.4
A57: =Corn!$B$51/10 -> 0.003 | B57: =SUM(A57:$A$151) -> 0.285 | C57: 0.25 | D57: =D$158*$B57 -> 23.085 | E57: 23.37 | F57: 23.655 | G57: 23.94 | H57: 24.225 | I57: 24.51 | J57: 24.795 | K57: 25.08 | L57: 25.365 | M57: 25.65 | N57: 25.935 | O57: 26.22 | P57: 26.505 | Q57: 26.79 | R57: 27.075 | S57: 27.36 | T57: 27.645 | U57: 27.93 | V57: 28.215 | W57: 28.5 | X57: 28.785 | Y57: 29.07 | Z57: 29.355 | AA57: 29.64 | AB57: 29.925 | AC57: 30.21 | AD57: 30.495 | AE57: 30.78 | AF57: 31.065 | AG57: 31.35 | AH57: 31.635 | AI57: 31.92 | AJ57: 32.205 | AK57: 32.49 | AL57: 32.775 | AM57: 33.06 | AN57: 33.345 | AO57: 33.63 | AP57: 33.915 | AQ57: 34.2 | AR57: 34.485 | AS57: 34.77 | AT57: 35.055 | AU57: 35.34 | AV57: 35.625 | AW57: 35.91 | AX57: 36.195 | AY57: 36.48 | AZ57: 36.765 | BA57: 37.05 | BB57: 37.335 | BC57: 37.62 | BD57: 37.905 | BE57: 38.19 | BF57: 38.475 | BG57: 38.76 | BH57: 39.045 | BI57: 39.33 | BJ57: 39.615 | BK57: 39.9 | BL57: 40.185 | BM57: 40.47 | BN57: 40.755 | BO57: 41.04 | BP57: 41.325 | BQ57: 41.61 | BR57: 41.895 | BS57: 42.18 | BT57: 42.465 | BU57: 42.75 | BV57: 43.035 | BW57: 43.32 | BX57: 43.605 | BY57: 43.89 | BZ57: 44.175 | CA57: 44.46 | CB57: 44.745 | CC57: 45.03 | CD57: 45.315 | CE57: 45.6 | CF57: 45.885 | CG57: 46.17 | CH57: 46.455 | CI57: 46.74 | CJ57: 47.025 | CK57: 47.31 | CL57: 47.595 | CM57: 47.88 | CN57: 48.165 | CO57: 48.45 | CP57: 48.735 | CQ57: 49.02 | CR57: 49.305 | CS57: 49.59 | CT57: 49.875 | CU57: 50.16 | CV57: 50.445 | CW57: 50.73 | CX57: 51.015 | CY57: 51.3 | CZ57: 51.585 | DA57: 51.87 | DB57: 52.155 | DC57: 52.44 | DD57: 52.725 | DE57: 53.01 | DF57: 53.295 | DG57: 53.58 | DH57: 53.865 | DI57: 54.15 | DJ57: 54.435 | DK57: 54.72 | DL57: 55.005 | DM57: 55.29 | DN57: 55.575 | DO57: 55.86 | DP57: 56.145 | DQ57: 56.43 | DR57: 56.715 | DS57: 57 | DT57: 57.285 | DU57: 57.57 | DV57: 57.855 | DW57: 58.14 | DX57: 58.425 | DY57: 58.71 | DZ57: 58.995 | EA57: 59.28 | EB57: 59.565 | EC57: 59.85 | ED57: 60.135 | EE57: 60.42 | EF57: 60.705 | EG57: 60.99 | EH57: 61.275 | EI57: 61.56 | EJ57: 61.845 | EK57: 62.13 | EL57: 62.415 | EM57: 62.7 | EN57: 62.985 | EO57: 63.27 | EP57: 63.555 | EQ57: 63.84 | ER57: 64.125 | ES57: 64.41 | ET57: 64.695 | EU57: 64.98 | EV57: 65.265 | EW57: 65.55 | EX57: 65.835 | EY57: 66.12 | EZ57: 66.405 | FA57: 66.69 | FB57: 66.975 | FC57: 67.26 | FD57: 67.545 | FE57: 67.83 | FF57: 68.115 | FG57: 68.4 | FH57: 68.685 | FI57: 68.97 | FJ57: 69.255 | FK57: 69.54 | FL57: 69.825 | FM57: 70.11 | FN57: 70.395 | FO57: 70.68 | FP57: 70.965 | FQ57: 71.25 | FR57: 71.535 | FS57: 71.82 | FT57: 72.105 | FU57: 72.39 | FV57: 72.675 | FW57: 72.96 | FX57: 73.245 | FY57: 73.53 | FZ57: 73.815 | GA57: 74.1 | GB57: 74.385 | GC57: 74.67 | GD57: 74.955 | GE57: 75.24 | GF57: 75.525 | GG57: 75.81 | GH57: 76.095 | GI57: 76.38 | GJ57: 76.665 | GK57: 76.95 | GL57: 77.235 | GM57: 77.52 | GN57: 77.805 | GO57: 78.09 | GP57: 78.375 | GQ57: 78.66 | GR57: 78.945 | GS57: 79.23 | GT57: 79.515 | GU57: 79.8 | GV57: 80.085 | GW57: 80.37 | GX57: 80.655 | GY57: 80.94 | GZ57: 81.225 | HA57: 81.51 | HB57: 81.795 | HC57: 82.08 | HD57: 82.365 | HE57: 82.65 | HF57: 82.935 | HG57: 83.22 | HH57: 83.505 | HI57: 83.79 | HJ57: 84.075 | HK57: 84.36 | HL57: 84.645 | HM57: 84.93 | HN57: 85.215 | HO57: 85.5
A58: =Corn!$B$51/10 -> 0.003 | B58: =SUM(A58:$A$151) -> 0.282 | C58: 0.249 | D58: 22.842 | E58: 23.124 | F58: 23.406 | G58: 23.688 | H58: 23.97 | I58: 24.252 | J58: 24.534 | K58: 24.816 | L58: 25.098 | M58: 25.38 | N58: 25.662 | O58: 25.944 | P58: 26.226 | Q58: 26.508 | R58: 26.79 | S58: 27.072 | T58: =T$158*$B58 -> 27.354 | U58: 27.636 | V58: 27.918 | W58: 28.2 | X58: 28.482 | Y58: 28.764 | Z58: 29.046 | AA58: 29.328 | AB58: 29.61 | AC58: 29.892 | AD58: 30.174 | AE58: 30.456 | AF58: 30.738 | AG58: 31.02 | AH58: 31.302 | AI58: 31.584 | AJ58: =AJ$158*$B58 -> 31.866 | AK58: 32.148 | AL58: 32.43 | AM58: 32.712 | AN58: 32.994 | AO58: 33.276 | AP58: 33.558 | AQ58: 33.84 | AR58: 34.122 | AS58: 34.404 | AT58: 34.686 | AU58: 34.968 | AV58: 35.25 | AW58: 35.532 | AX58: 35.814 | AY58: 36.096 | AZ58: =AZ$158*$B58 -> 36.378 | BA58: 36.66 | BB58: 36.942 | BC58: 37.224 | BD58: 37.506 | BE58: 37.788 | BF58: 38.07 | BG58: 38.352 | BH58: 38.634 | BI58: 38.916 | BJ58: 39.198 | BK58: 39.48 | BL58: 39.762 | BM58: 40.044 | BN58: 40.326 | BO58: 40.608 | BP58: =BP$158*$B58 -> 40.89 | BQ58: 41.172 | BR58: 41.454 | BS58: 41.736 | BT58: 42.018 | BU58: 42.3 | BV58: 42.582 | BW58: 42.864 | BX58: 43.146 | BY58: 43.428 | BZ58: 43.71 | CA58: 43.992 | CB58: 44.274 | CC58: 44.556 | CD58: 44.838 | CE58: 45.12 | CF58: =CF$158*$B58 -> 45.402 | CG58: 45.684 | CH58: 45.966 | CI58: 46.248 | CJ58: 46.53 | CK58: 46.812 | CL58: 47.094 | CM58: 47.376 | CN58: 47.658 | CO58: 47.94 | CP58: 48.222 | CQ58: 48.504 | CR58: 48.786 | CS58: 49.068 | CT58: 49.35 | CU58: 49.632 | CV58: =CV$158*$B58 -> 49.914 | CW58: 50.196 | CX58: 50.478 | CY58: 50.76 | CZ58: 51.042 | DA58: 51.324 | DB58: 51.606 | DC58: 51.888 | DD58: 52.17 | DE58: 52.452 | DF58: 52.734 | DG58: 53.016 | DH58: 53.298 | DI58: 53.58 | DJ58: 53.862 | DK58: 54.144 | DL58: =DL$158*$B58 -> 54.426 | DM58: 54.708 | DN58: 54.99 | DO58: 55.272 | DP58: 55.554 | DQ58: 55.836 | DR58: 56.118 | DS58: 56.4 | DT58: 56.682 | DU58: 56.964 | DV58: 57.246 | DW58: 57.528 | DX58: 57.81 | DY58: 58.092 | DZ58: 58.374 | EA58: 58.656 | EB58: =EB$158*$B58 -> 58.938 | EC58: 59.22 | ED58: 59.502 | EE58: 59.784 | EF58: 60.066 | EG58: 60.348 | EH58: 60.63 | EI58: 60.912 | EJ58: 61.194 | EK58: 61.476 | EL58: 61.758 | EM58: 62.04 | EN58: 62.322 | EO58: 62.604 | EP58: 62.886 | EQ58: 63.168 | ER58: =ER$158*$B58 -> 63.45 | ES58: 63.732 | ET58: 64.014 | EU58: 64.296 | EV58: 64.578 | EW58: 64.86 | EX58: 65.142 | EY58: 65.424 | EZ58: 65.706 | FA58: 65.988 | FB58: 66.27 | FC58: 66.552 | FD58: 66.834 | FE58: 67.116 | FF58: 67.398 | FG58: 67.68 | FH58: =FH$158*$B58 -> 67.962 | FI58: 68.244 | FJ58: 68.526 | FK58: 68.808 | FL58: 69.09 | FM58: 69.372 | FN58: 69.654 | FO58: 69.936 | FP58: 70.218 | FQ58: 70.5 | FR58: 70.782 | FS58: 71.064 | FT58: 71.346 | FU58: 71.628 | FV58: 71.91 | FW58: 72.192 | FX58: =FX$158*$B58 -> 72.474 | FY58: 72.756 | FZ58: 73.038 | GA58: 73.32 | GB58: 73.602 | GC58: 73.884 | GD58: 74.166 | GE58: 74.448 | GF58: 74.73 | GG58: 75.012 | GH58: 75.294 | GI58: 75.576 | GJ58: 75.858 | GK58: 76.14 | GL58: 76.422 | GM58: 76.704 | GN58: =GN$158*$B58 -> 76.986 | GO58: 77.268 | GP58: 77.55 | GQ58: 77.832 | GR58: 78.114 | GS58: 78.396 | GT58: 78.678 | GU58: 78.96 | GV58: 79.242 | GW58: 79.524 | GX58: 79.806 | GY58: 80.088 | GZ58: 80.37 | HA58: 80.652 | HB58: 80.934 | HC58: 81.216 | HD58: =HD$158*$B58 -> 81.498 | HE58: 81.78 | HF58: 82.062 | HG58: 82.344 | HH58: 82.626 | HI58: 82.908 | HJ58: 83.19 | HK58: 83.472 | HL58: 83.754 | HM58: 84.036 | HN58: 84.318 | HO58: 84.6
A59: =Corn!$B$51/10 -> 0.003 | B59: =SUM(A59:$A$151) -> 0.279 | C59: 0.248 | D59: 22.599 | E59: 22.878 | F59: 23.157 | G59: 23.436 | H59: 23.715 | I59: 23.994 | J59: 24.273 | K59: 24.552 | L59: 24.831 | M59: 25.11 | N59: 25.389 | O59: 25.668 | P59: 25.947 | Q59: 26.226 | R59: 26.505 | S59: 26.784 | T59: 27.063 | U59: 27.342 | V59: 27.621 | W59: 27.9 | X59: 28.179 | Y59: 28.458 | Z59: 28.737 | AA59: 29.016 | AB59: 29.295 | AC59: 29.574 | AD59: 29.853 | AE59: 30.132 | AF59: 30.411 | AG59: 30.69 | AH59: 30.969 | AI59: 31.248 | AJ59: 31.527 | AK59: 31.806 | AL59: 32.085 | AM59: 32.364 | AN59: 32.643 | AO59: 32.922 | AP59: 33.201 | AQ59: 33.48 | AR59: 33.759 | AS59: 34.038 | AT59: 34.317 | AU59: 34.596 | AV59: 34.875 | AW59: 35.154 | AX59: 35.433 | AY59: 35.712 | AZ59: 35.991 | BA59: 36.27 | BB59: 36.549 | BC59: 36.828 | BD59: 37.107 | BE59: 37.386 | BF59: 37.665 | BG59: 37.944 | BH59: 38.223 | BI59: 38.502 | BJ59: 38.781 | BK59: 39.06 | BL59: 39.339 | BM59: 39.618 | BN59: 39.897 | BO59: 40.176 | BP59: 40.455 | BQ59: 40.734 | BR59: 41.013 | BS59: 41.292 | BT59: 41.571 | BU59: 41.85 | BV59: 42.129 | BW59: 42.408 | BX59: 42.687 | BY59: 42.966 | BZ59: 43.245 | CA59: 43.524 | CB59: 43.803 | CC59: 44.082 | CD59: 44.361 | CE59: 44.64 | CF59: 44.919 | CG59: 45.198 | CH59: 45.477 | CI59: 45.756 | CJ59: 46.035 | CK59: 46.314 | CL59: 46.593 | CM59: 46.872 | CN59: 47.151 | CO59: 47.43 | CP59: 47.709 | CQ59: 47.988 | CR59: 48.267 | CS59: 48.546 | CT59: 48.825 | CU59: 49.104 | CV59: 49.383 | CW59: 49.662 | CX59: 49.941 | CY59: 50.22 | CZ59: 50.499 | DA59: 50.778 | DB59: 51.057 | DC59: 51.336 | DD59: 51.615 | DE59: 51.894 | DF59: 52.173 | DG59: 52.452 | DH59: 52.731 | DI59: 53.01 | DJ59: 53.289 | DK59: 53.568 | DL59: 53.847 | DM59: 54.126 | DN59: 54.405 | DO59: 54.684 | DP59: 54.963 | DQ59: 55.242 | DR59: 55.521 | DS59: 55.8 | DT59: 56.079 | DU59: 56.358 | DV59: 56.637 | DW59: 56.916 | DX59: 57.195 | DY59: 57.474 | DZ59: 57.753 | EA59: 58.032 | EB59: 58.311 | EC59: 58.59 | ED59: 58.869 | EE59: 59.148 | EF59: 59.427 | EG59: 59.706 | EH59: 59.985 | EI59: 60.264 | EJ59: 60.543 | EK59: 60.822 | EL59: 61.101 | EM59: 61.38 | EN59: 61.659 | EO59: 61.938 | EP59: 62.217 | EQ59: 62.496 | ER59: 62.775 | ES59: 63.054 | ET59: 63.333 | EU59: 63.612 | EV59: 63.891 | EW59: 64.17 | EX59: 64.449 | EY59: 64.728 | EZ59: 65.007 | FA59: 65.286 | FB59: 65.565 | FC59: 65.844 | FD59: 66.123 | FE59: 66.402 | FF59: 66.681 | FG59: 66.96 | FH59: 67.239 | FI59: 67.518 | FJ59: 67.797 | FK59: 68.076 | FL59: 68.355 | FM59: 68.634 | FN59: 68.913 | FO59: 69.192 | FP59: 69.471 | FQ59: 69.75 | FR59: 70.029 | FS59: 70.308 | FT59: 70.587 | FU59: 70.866 | FV59: 71.145 | FW59: 71.424 | FX59: 71.703 | FY59: 71.982 | FZ59: 72.261 | GA59: 72.54 | GB59: 72.819 | GC59: 73.098 | GD59: 73.377 | GE59: 73.656 | GF59: 73.935 | GG59: 74.214 | GH59: 74.493 | GI59: 74.772 | GJ59: 75.051 | GK59: 75.33 | GL59: 75.609 | GM59: 75.888 | GN59: 76.167 | GO59: 76.446 | GP59: 76.725 | GQ59: 77.004 | GR59: 77.283 | GS59: 77.562 | GT59: 77.841 | GU59: 78.12 | GV59: 78.399 | GW59: 78.678 | GX59: 78.957 | GY59: 79.236 | GZ59: 79.515 | HA59: 79.794 | HB59: 80.073 | HC59: 80.352 | HD59: 80.631 | HE59: 80.91 | HF59: 81.189 | HG59: 81.468 | HH59: 81.747 | HI59: 82.026 | HJ59: 82.305 | HK59: 82.584 | HL59: 82.863 | HM59: 83.142 | HN59: 83.421 | HO59: 83.7
A60: =Corn!$B$51/10 -> 0.003 | B60: =SUM(A60:$A$151) -> 0.276 | C60: 0.247 | D60: 22.356 | E60: 22.632 | F60: 22.908 | G60: 23.184 | H60: 23.46 | I60: 23.736 | J60: 24.012 | K60: 24.288 | L60: 24.564 | M60: 24.84 | N60: 25.116 | O60: 25.392 | P60: 25.668 | Q60: 25.944 | R60: 26.22 | S60: 26.496 | T60: 26.772 | U60: 27.048 | V60: 27.324 | W60: 27.6 | X60: 27.876 | Y60: 28.152 | Z60: 28.428 | AA60: 28.704 | AB60: 28.98 | AC60: 29.256 | AD60: 29.532 | AE60: 29.808 | AF60: 30.084 | AG60: 30.36 | AH60: 30.636 | AI60: 30.912 | AJ60: 31.188 | AK60: 31.464 | AL60: 31.74 | AM60: 32.016 | AN60: 32.292 | AO60: 32.568 | AP60: 32.844 | AQ60: 33.12 | AR60: 33.396 | AS60: 33.672 | AT60: 33.948 | AU60: 34.224 | AV60: 34.5 | AW60: 34.776 | AX60: 35.052 | AY60: 35.328 | AZ60: 35.604 | BA60: 35.88 | BB60: 36.156 | BC60: 36.432 | BD60: 36.708 | BE60: 36.984 | BF60: 37.26 | BG60: 37.536 | BH60: 37.812 | BI60: 38.088 | BJ60: 38.364 | BK60: 38.64 | BL60: 38.916 | BM60: 39.192 | BN60: 39.468 | BO60: 39.744 | BP60: 40.02 | BQ60: 40.296 | BR60: 40.572 | BS60: 40.848 | BT60: 41.124 | BU60: 41.4 | BV60: 41.676 | BW60: 41.952 | BX60: 42.228 | BY60: 42.504 | BZ60: 42.78 | CA60: 43.056 | CB60: 43.332 | CC60: 43.608 | CD60: 43.884 | CE60: 44.16 | CF60: 44.436 | CG60: 44.712 | CH60: 44.988 | CI60: 45.264 | CJ60: 45.54 | CK60: 45.816 | CL60: 46.092 | CM60: 46.368 | CN60: 46.644 | CO60: 46.92 | CP60: 47.196 | CQ60: 47.472 | CR60: 47.748 | CS60: 48.024 | CT60: 48.3 | CU60: 48.576 | CV60: 48.852 | CW60: 49.128 | CX60: 49.404 | CY60: 49.68 | CZ60: 49.956 | DA60: 50.232 | DB60: 50.508 | DC60: 50.784 | DD60: 51.06 | DE60: 51.336 | DF60: 51.612 | DG60: 51.888 | DH60: 52.164 | DI60: 52.44 | DJ60: 52.716 | DK60: 52.992 | DL60: 53.268 | DM60: 53.544 | DN60: 53.82 | DO60: 54.096 | DP60: 54.372 | DQ60: 54.648 | DR60: 54.924 | DS60: 55.2 | DT60: 55.476 | DU60: 55.752 | DV60: 56.028 | DW60: 56.304 | DX60: 56.58 | DY60: 56.856 | DZ60: 57.132 | EA60: 57.408 | EB60: 57.684 | EC60: 57.96 | ED60: 58.236 | EE60: 58.512 | EF60: 58.788 | EG60: 59.064 | EH60: 59.34 | EI60: 59.616 | EJ60: 59.892 | EK60: 60.168 | EL60: 60.444 | EM60: 60.72 | EN60: 60.996 | EO60: 61.272 | EP60: 61.548 | EQ60: 61.824 | ER60: 62.1 | ES60: 62.376 | ET60: 62.652 | EU60: 62.928 | EV60: 63.204 | EW60: 63.48 | EX60: 63.756 | EY60: 64.032 | EZ60: 64.308 | FA60: 64.584 | FB60: 64.86 | FC60: 65.136 | FD60: 65.412 | FE60: 65.688 | FF60: 65.964 | FG60: 66.24 | FH60: 66.516 | FI60: 66.792 | FJ60: 67.068 | FK60: 67.344 | FL60: 67.62 | FM60: 67.896 | FN60: 68.172 | FO60: 68.448 | FP60: 68.724 | FQ60: 69 | FR60: 69.276 | FS60: 69.552 | FT60: 69.828 | FU60: 70.104 | FV60: 70.38 | FW60: 70.656 | FX60: 70.932 | FY60: 71.208 | FZ60: 71.484 | GA60: 71.76 | GB60: 72.036 | GC60: 72.312 | GD60: 72.588 | GE60: 72.864 | GF60: 73.14 | GG60: 73.416 | GH60: 73.692 | GI60: 73.968 | GJ60: 74.244 | GK60: 74.52 | GL60: 74.796 | GM60: 75.072 | GN60: 75.348 | GO60: 75.624 | GP60: 75.9 | GQ60: 76.176 | GR60: 76.452 | GS60: 76.728 | GT60: 77.004 | GU60: 77.28 | GV60: 77.556 | GW60: 77.832 | GX60: 78.108 | GY60: 78.384 | GZ60: 78.66 | HA60: 78.936 | HB60: 79.212 | HC60: 79.488 | HD60: 79.764 | HE60: 80.04 | HF60: 80.316 | HG60: 80.592 | HH60: 80.868 | HI60: 81.144 | HJ60: 81.42 | HK60: 81.696 | HL60: 81.972 | HM60: 82.248 | HN60: 82.524 | HO60: 82.8
A61: =Corn!$B$51/10 -> 0.003 | B61: =SUM(A61:$A$151) -> 0.273 | C61: 0.246 | D61: 22.113 | E61: 22.386 | F61: 22.659 | G61: 22.932 | H61: 23.205 | I61: 23.478 | J61: 23.751 | K61: 24.024 | L61: 24.297 | M61: 24.57 | N61: 24.843 | O61: 25.116 | P61: 25.389 | Q61: 25.662 | R61: 25.935 | S61: 26.208 | T61: 26.481 | U61: 26.754 | V61: 27.027 | W61: 27.3 | X61: 27.573 | Y61: 27.846 | Z61: 28.119 | AA61: 28.392 | AB61: 28.665 | AC61: 28.938 | AD61: 29.211 | AE61: 29.484 | AF61: 29.757 | AG61: 30.03 | AH61: 30.303 | AI61: 30.576 | AJ61: 30.849 | AK61: 31.122 | AL61: 31.395 | AM61: 31.668 | AN61: 31.941 | AO61: 32.214 | AP61: 32.487 | AQ61: 32.76 | AR61: 33.033 | AS61: 33.306 | AT61: 33.579 | AU61: 33.852 | AV61: 34.125 | AW61: 34.398 | AX61: 34.671 | AY61: 34.944 | AZ61: 35.217 | BA61: 35.49 | BB61: 35.763 | BC61: 36.036 | BD61: 36.309 | BE61: 36.582 | BF61: 36.855 | BG61: 37.128 | BH61: 37.401 | BI61: 37.674 | BJ61: 37.947 | BK61: 38.22 | BL61: 38.493 | BM61: 38.766 | BN61: 39.039 | BO61: 39.312 | BP61: 39.585 | BQ61: 39.858 | BR61: 40.131 | BS61: 40.404 | BT61: 40.677 | BU61: 40.95 | BV61: 41.223 | BW61: 41.496 | BX61: 41.769 | BY61: 42.042 | BZ61: 42.315 | CA61: 42.588 | CB61: 42.861 | CC61: 43.134 | CD61: 43.407 | CE61: 43.68 | CF61: 43.953 | CG61: 44.226 | CH61: 44.499 | CI61: 44.772 | CJ61: 45.045 | CK61: 45.318 | CL61: 45.591 | CM61: 45.864 | CN61: 46.137 | CO61: 46.41 | CP61: 46.683 | CQ61: 46.956 | CR61: 47.229 | CS61: 47.502 | CT61: 47.775 | CU61: 48.048 | CV61: 48.321 | CW61: 48.594 | CX61: 48.867 | CY61: 49.14 | CZ61: 49.413 | DA61: 49.686 | DB61: 49.959 | DC61: 50.232 | DD61: 50.505 | DE61: 50.778 | DF61: 51.051 | DG61: 51.324 | DH61: 51.597 | DI61: 51.87 | DJ61: 52.143 | DK61: 52.416 | DL61: 52.689 | DM61: 52.962 | DN61: 53.235 | DO61: 53.508 | DP61: 53.781 | DQ61: 54.054 | DR61: 54.327 | DS61: 54.6 | DT61: 54.873 | DU61: 55.146 | DV61: 55.419 | DW61: 55.692 | DX61: 55.965 | DY61: 56.238 | DZ61: 56.511 | EA61: 56.784 | EB61: 57.057 | EC61: 57.33 | ED61: 57.603 | EE61: 57.876 | EF61: 58.149 | EG61: 58.422 | EH61: 58.695 | EI61: 58.968 | EJ61: 59.241 | EK61: 59.514 | EL61: 59.787 | EM61: 60.06 | EN61: 60.333 | EO61: 60.606 | EP61: 60.879 | EQ61: 61.152 | ER61: 61.425 | ES61: 61.698 | ET61: 61.971 | EU61: 62.244 | EV61: 62.517 | EW61: 62.79 | EX61: 63.063 | EY61: 63.336 | EZ61: 63.609 | FA61: 63.882 | FB61: 64.155 | FC61: 64.428 | FD61: 64.701 | FE61: 64.974 | FF61: 65.247 | FG61: 65.52 | FH61: 65.793 | FI61: 66.066 | FJ61: 66.339 | FK61: 66.612 | FL61: 66.885 | FM61: 67.158 | FN61: 67.431 | FO61: 67.704 | FP61: 67.977 | FQ61: 68.25 | FR61: 68.523 | FS61: 68.796 | FT61: 69.069 | FU61: 69.342 | FV61: 69.615 | FW61: 69.888 | FX61: 70.161 | FY61: 70.434 | FZ61: 70.707 | GA61: 70.98 | GB61: 71.253 | GC61: 71.526 | GD61: 71.799 | GE61: 72.072 | GF61: 72.345 | GG61: 72.618 | GH61: 72.891 | GI61: 73.164 | GJ61: 73.437 | GK61: 73.71 | GL61: 73.983 | GM61: 74.256 | GN61: 74.529 | GO61: 74.802 | GP61: 75.075 | GQ61: 75.348 | GR61: 75.621 | GS61: 75.894 | GT61: 76.167 | GU61: 76.44 | GV61: 76.713 | GW61: 76.986 | GX61: 77.259 | GY61: 77.532 | GZ61: 77.805 | HA61: 78.078 | HB61: 78.351 | HC61: 78.624 | HD61: 78.897 | HE61: 79.17 | HF61: 79.443 | HG61: 79.716 | HH61: 79.989 | HI61: 80.262 | HJ61: 80.535 | HK61: 80.808 | HL61: 81.081 | HM61: 81.354 | HN61: 81.627 | HO61: 81.9
A62: =Corn!$B$51/10 -> 0.003 | B62: =SUM(A62:$A$151) -> 0.27 | C62: 0.245 | D62: 21.87 | E62: 22.14 | F62: 22.41 | G62: 22.68 | H62: 22.95 | I62: 23.22 | J62: 23.49 | K62: 23.76 | L62: 24.03 | M62: 24.3 | N62: 24.57 | O62: 24.84 | P62: 25.11 | Q62: 25.38 | R62: 25.65 | S62: 25.92 | T62: 26.19 | U62: 26.46 | V62: 26.73 | W62: 27 | X62: 27.27 | Y62: 27.54 | Z62: 27.81 | AA62: 28.08 | AB62: 28.35 | AC62: 28.62 | AD62: 28.89 | AE62: 29.16 | AF62: 29.43 | AG62: 29.7 | AH62: 29.97 | AI62: 30.24 | AJ62: 30.51 | AK62: 30.78 | AL62: 31.05 | AM62: 31.32 | AN62: 31.59 | AO62: 31.86 | AP62: 32.13 | AQ62: 32.4 | AR62: 32.67 | AS62: 32.94 | AT62: 33.21 | AU62: 33.48 | AV62: 33.75 | AW62: 34.02 | AX62: 34.29 | AY62: 34.56 | AZ62: 34.83 | BA62: 35.1 | BB62: 35.37 | BC62: 35.64 | BD62: 35.91 | BE62: 36.18 | BF62: 36.45 | BG62: 36.72 | BH62: 36.99 | BI62: 37.26 | BJ62: 37.53 | BK62: 37.8 | BL62: 38.07 | BM62: 38.34 | BN62: 38.61 | BO62: 38.88 | BP62: 39.15 | BQ62: 39.42 | BR62: 39.69 | BS62: 39.96 | BT62: 40.23 | BU62: 40.5 | BV62: 40.77 | BW62: 41.04 | BX62: 41.31 | BY62: 41.58 | BZ62: 41.85 | CA62: 42.12 | CB62: 42.39 | CC62: 42.66 | CD62: 42.93 | CE62: 43.2 | CF62: 43.47 | CG62: 43.74 | CH62: 44.01 | CI62: 44.28 | CJ62: 44.55 | CK62: 44.82 | CL62: 45.09 | CM62: 45.36 | CN62: 45.63 | CO62: 45.9 | CP62: 46.17 | CQ62: 46.44 | CR62: 46.71 | CS62: 46.98 | CT62: 47.25 | CU62: 47.52 | CV62: 47.79 | CW62: 48.06 | CX62: 48.33 | CY62: 48.6 | CZ62: 48.87 | DA62: 49.14 | DB62: 49.41 | DC62: 49.68 | DD62: 49.95 | DE62: 50.22 | DF62: 50.49 | DG62: 50.76 | DH62: 51.03 | DI62: 51.3 | DJ62: 51.57 | DK62: 51.84 | DL62: 52.11 | DM62: 52.38 | DN62: 52.65 | DO62: 52.92 | DP62: 53.19 | DQ62: 53.46 | DR62: 53.73 | DS62: 54 | DT62: 54.27 | DU62: 54.54 | DV62: 54.81 | DW62: 55.08 | DX62: 55.35 | DY62: 55.62 | DZ62: 55.89 | EA62: 56.16 | EB62: 56.43 | EC62: 56.7 | ED62: 56.97 | EE62: 57.24 | EF62: 57.51 | EG62: 57.78 | EH62: 58.05 | EI62: 58.32 | EJ62: 58.59 | EK62: 58.86 | EL62: 59.13 | EM62: 59.4 | EN62: 59.67 | EO62: 59.94 | EP62: 60.21 | EQ62: 60.48 | ER62: 60.75 | ES62: 61.02 | ET62: 61.29 | EU62: 61.56 | EV62: 61.83 | EW62: 62.1 | EX62: 62.37 | EY62: 62.64 | EZ62: 62.91 | FA62: 63.18 | FB62: 63.45 | FC62: 63.72 | FD62: 63.99 | FE62: 64.26 | FF62: 64.53 | FG62: 64.8 | FH62: 65.07 | FI62: 65.34 | FJ62: 65.61 | FK62: 65.88 | FL62: 66.15 | FM62: 66.42 | FN62: 66.69 | FO62: 66.96 | FP62: 67.23 | FQ62: 67.5 | FR62: 67.77 | FS62: 68.04 | FT62: 68.31 | FU62: 68.58 | FV62: 68.85 | FW62: 69.12 | FX62: 69.39 | FY62: 69.66 | FZ62: 69.93 | GA62: 70.2 | GB62: 70.47 | GC62: 70.74 | GD62: 71.01 | GE62: 71.28 | GF62: 71.55 | GG62: 71.82 | GH62: 72.09 | GI62: 72.36 | GJ62: 72.63 | GK62: 72.9 | GL62: 73.17 | GM62: 73.44 | GN62: 73.71 | GO62: 73.98 | GP62: 74.25 | GQ62: 74.52 | GR62: 74.79 | GS62: 75.06 | GT62: 75.33 | GU62: 75.6 | GV62: 75.87 | GW62: 76.14 | GX62: 76.41 | GY62: 76.68 | GZ62: 76.95 | HA62: 77.22 | HB62: 77.49 | HC62: 77.76 | HD62: 78.03 | HE62: 78.3 | HF62: 78.57 | HG62: 78.84 | HH62: 79.11 | HI62: 79.38 | HJ62: 79.65 | HK62: 79.92 | HL62: 80.19 | HM62: 80.46 | HN62: 80.73 | HO62: 81
A63: =Corn!$B$51/10 -> 0.003 | B63: =SUM(A63:$A$151) -> 0.267 | C63: 0.244 | D63: 21.627 | E63: 21.894 | F63: 22.161 | G63: 22.428 | H63: 22.695 | I63: 22.962 | J63: 23.229 | K63: 23.496 | L63: 23.763 | M63: 24.03 | N63: 24.297 | O63: 24.564 | P63: 24.831 | Q63: 25.098 | R63: 25.365 | S63: 25.632 | T63: 25.899 | U63: 26.166 | V63: 26.433 | W63: 26.7 | X63: 26.967 | Y63: 27.234 | Z63: 27.501 | AA63: 27.768 | AB63: 28.035 | AC63: 28.302 | AD63: 28.569 | AE63: 28.836 | AF63: 29.103 | AG63: 29.37 | AH63: 29.637 | AI63: 29.904 | AJ63: 30.171 | AK63: 30.438 | AL63: 30.705 | AM63: 30.972 | AN63: 31.239 | AO63: 31.506 | AP63: 31.773 | AQ63: 32.04 | AR63: 32.307 | AS63: 32.574 | AT63: 32.841 | AU63: 33.108 | AV63: 33.375 | AW63: 33.642 | AX63: 33.909 | AY63: 34.176 | AZ63: 34.443 | BA63: 34.71 | BB63: 34.977 | BC63: 35.244 | BD63: 35.511 | BE63: 35.778 | BF63: 36.045 | BG63: 36.312 | BH63: 36.579 | BI63: 36.846 | BJ63: 37.113 | BK63: 37.38 | BL63: 37.647 | BM63: 37.914 | BN63: 38.181 | BO63: 38.448 | BP63: 38.715 | BQ63: 38.982 | BR63: 39.249 | BS63: 39.516 | BT63: 39.783 | BU63: 40.05 | BV63: 40.317 | BW63: 40.584 | BX63: 40.851 | BY63: 41.118 | BZ63: 41.385 | CA63: 41.652 | CB63: 41.919 | CC63: 42.186 | CD63: 42.453 | CE63: 42.72 | CF63: 42.987 | CG63: 43.254 | CH63: 43.521 | CI63: 43.788 | CJ63: 44.055 | CK63: 44.322 | CL63: 44.589 | CM63: 44.856 | CN63: 45.123 | CO63: 45.39 | CP63: 45.657 | CQ63: 45.924 | CR63: 46.191 | CS63: 46.458 | CT63: 46.725 | CU63: 46.992 | CV63: 47.259 | CW63: 47.526 | CX63: 47.793 | CY63: 48.06 | CZ63: 48.327 | DA63: 48.594 | DB63: 48.861 | DC63: 49.128 | DD63: 49.395 | DE63: 49.662 | DF63: 49.929 | DG63: 50.196 | DH63: 50.463 | DI63: 50.73 | DJ63: 50.997 | DK63: 51.264 | DL63: 51.531 | DM63: 51.798 | DN63: 52.065 | DO63: 52.332 | DP63: 52.599 | DQ63: 52.866 | DR63: 53.133 | DS63: 53.4 | DT63: 53.667 | DU63: 53.934 | DV63: 54.201 | DW63: 54.468 | DX63: 54.735 | DY63: 55.002 | DZ63: 55.269 | EA63: 55.536 | EB63: 55.803 | EC63: 56.07 | ED63: 56.337 | EE63: 56.604 | EF63: 56.871 | EG63: 57.138 | EH63: 57.405 | EI63: 57.672 | EJ63: 57.939 | EK63: 58.206 | EL63: 58.473 | EM63: 58.74 | EN63: 59.007 | EO63: 59.274 | EP63: 59.541 | EQ63: 59.808 | ER63: 60.075 | ES63: 60.342 | ET63: 60.609 | EU63: 60.876 | EV63: 61.143 | EW63: 61.41 | EX63: 61.677 | EY63: 61.944 | EZ63: 62.211 | FA63: 62.478 | FB63: 62.745 | FC63: 63.012 | FD63: 63.279 | FE63: 63.546 | FF63: 63.813 | FG63: 64.08 | FH63: 64.347 | FI63: 64.614 | FJ63: 64.881 | FK63: 65.148 | FL63: 65.415 | FM63: 65.682 | FN63: 65.949 | FO63: 66.216 | FP63: 66.483 | FQ63: 66.75 | FR63: 67.017 | FS63: 67.284 | FT63: 67.551 | FU63: 67.818 | FV63: 68.085 | FW63: 68.352 | FX63: 68.619 | FY63: 68.886 | FZ63: 69.153 | GA63: 69.42 | GB63: 69.687 | GC63: 69.954 | GD63: 70.221 | GE63: 70.488 | GF63: 70.755 | GG63: 71.022 | GH63: 71.289 | GI63: 71.556 | GJ63: 71.823 | GK63: 72.09 | GL63: 72.357 | GM63: 72.624 | GN63: 72.891 | GO63: 73.158 | GP63: 73.425 | GQ63: 73.692 | GR63: 73.959 | GS63: 74.226 | GT63: 74.493 | GU63: 74.76 | GV63: 75.027 | GW63: 75.294 | GX63: 75.561 | GY63: 75.828 | GZ63: 76.095 | HA63: 76.362 | HB63: 76.629 | HC63: 76.896 | HD63: 77.163 | HE63: 77.43 | HF63: 77.697 | HG63: 77.964 | HH63: 78.231 | HI63: 78.498 | HJ63: 78.765 | HK63: 79.032 | HL63: 79.299 | HM63: 79.566 | HN63: 79.833 | HO63: 80.1
A64: =Corn!$B$51/10 -> 0.003 | B64: =SUM(A64:$A$151) -> 0.264 | C64: 0.243 | D64: 21.384 | E64: 21.648 | F64: 21.912 | G64: 22.176 | H64: 22.44 | I64: 22.704 | J64: 22.968 | K64: 23.232 | L64: 23.496 | M64: 23.76 | N64: 24.024 | O64: 24.288 | P64: 24.552 | Q64: 24.816 | R64: 25.08 | S64: 25.344 | T64: 25.608 | U64: 25.872 | V64: 26.136 | W64: 26.4 | X64: 26.664 | Y64: 26.928 | Z64: 27.192 | AA64: 27.456 | AB64: 27.72 | AC64: 27.984 | AD64: 28.248 | AE64: 28.512 | AF64: 28.776 | AG64: 29.04 | AH64: 29.304 | AI64: 29.568 | AJ64: 29.832 | AK64: 30.096 | AL64: 30.36 | AM64: 30.624 | AN64: 30.888 | AO64: 31.152 | AP64: 31.416 | AQ64: 31.68 | AR64: 31.944 | AS64: 32.208 | AT64: 32.472 | AU64: 32.736 | AV64: 33 | AW64: 33.264 | AX64: 33.528 | AY64: 33.792 | AZ64: 34.056 | BA64: 34.32 | BB64: 34.584 | BC64: 34.848 | BD64: 35.112 | BE64: 35.376 | BF64: 35.64 | BG64: 35.904 | BH64: 36.168 | BI64: 36.432 | BJ64: 36.696 | BK64: 36.96 | BL64: 37.224 | BM64: 37.488 | BN64: 37.752 | BO64: 38.016 | BP64: 38.28 | BQ64: 38.544 | BR64: 38.808 | BS64: 39.072 | BT64: 39.336 | BU64: 39.6 | BV64: 39.864 | BW64: 40.128 | BX64: 40.392 | BY64: 40.656 | BZ64: 40.92 | CA64: 41.184 | CB64: 41.448 | CC64: 41.712 | CD64: 41.976 | CE64: 42.24 | CF64: 42.504 | CG64: 42.768 | CH64: 43.032 | CI64: 43.296 | CJ64: 43.56 | CK64: 43.824 | CL64: 44.088 | CM64: 44.352 | CN64: 44.616 | CO64: 44.88 | CP64: 45.144 | CQ64: 45.408 | CR64: 45.672 | CS64: 45.936 | CT64: 46.2 | CU64: 46.464 | CV64: 46.728 | CW64: 46.992 | CX64: 47.256 | CY64: 47.52 | CZ64: 47.784 | DA64: 48.048 | DB64: 48.312 | DC64: 48.576 | DD64: 48.84 | DE64: 49.104 | DF64: 49.368 | DG64: 49.632 | DH64: 49.896 | DI64: 50.16 | DJ64: 50.424 | DK64: 50.688 | DL64: 50.952 | DM64: 51.216 | DN64: 51.48 | DO64: 51.744 | DP64: 52.008 | DQ64: 52.272 | DR64: 52.536 | DS64: 52.8 | DT64: 53.064 | DU64: 53.328 | DV64: 53.592 | DW64: 53.856 | DX64: 54.12 | DY64: 54.384 | DZ64: 54.648 | EA64: 54.912 | EB64: 55.176 | EC64: 55.44 | ED64: 55.704 | EE64: 55.968 | EF64: 56.232 | EG64: 56.496 | EH64: 56.76 | EI64: 57.024 | EJ64: 57.288 | EK64: 57.552 | EL64: 57.816 | EM64: 58.08 | EN64: 58.344 | EO64: 58.608 | EP64: 58.872 | EQ64: 59.136 | ER64: 59.4 | ES64: 59.664 | ET64: 59.928 | EU64: 60.192 | EV64: 60.456 | EW64: 60.72 | EX64: 60.984 | EY64: 61.248 | EZ64: 61.512 | FA64: 61.776 | FB64: 62.04 | FC64: 62.304 | FD64: 62.568 | FE64: 62.832 | FF64: 63.096 | FG64: 63.36 | FH64: 63.624 | FI64: 63.888 | FJ64: 64.152 | FK64: 64.416 | FL64: 64.68 | FM64: 64.944 | FN64: 65.208 | FO64: 65.472 | FP64: 65.736 | FQ64: 66 | FR64: 66.264 | FS64: 66.528 | FT64: 66.792 | FU64: 67.056 | FV64: 67.32 | FW64: 67.584 | FX64: 67.848 | FY64: 68.112 | FZ64: 68.376 | GA64: 68.64 | GB64: 68.904 | GC64: 69.168 | GD64: 69.432 | GE64: 69.696 | GF64: 69.96 | GG64: 70.224 | GH64: 70.488 | GI64: 70.752 | GJ64: 71.016 | GK64: 71.28 | GL64: 71.544 | GM64: 71.808 | GN64: 72.072 | GO64: 72.336 | GP64: 72.6 | GQ64: 72.864 | GR64: 73.128 | GS64: 73.392 | GT64: 73.656 | GU64: 73.92 | GV64: 74.184 | GW64: 74.448 | GX64: 74.712 | GY64: 74.976 | GZ64: 75.24 | HA64: 75.504 | HB64: 75.768 | HC64: 76.032 | HD64: 76.296 | HE64: 76.56 | HF64: 76.824 | HG64: 77.088 | HH64: 77.352 | HI64: 77.616 | HJ64: 77.88 | HK64: 78.144 | HL64: 78.408 | HM64: 78.672 | HN64: 78.936 | HO64: 79.2
A65: =Corn!$B$51/10 -> 0.003 | B65: =SUM(A65:$A$151) -> 0.261 | C65: 0.242 | D65: 21.141 | E65: 21.402 | F65: 21.663 | G65: 21.924 | H65: 22.185 | I65: 22.446 | J65: 22.707 | K65: 22.968 | L65: 23.229 | M65: 23.49 | N65: 23.751 | O65: 24.012 | P65: 24.273 | Q65: 24.534 | R65: 24.795 | S65: 25.056 | T65: 25.317 | U65: 25.578 | V65: 25.839 | W65: 26.1 | X65: 26.361 | Y65: 26.622 | Z65: 26.883 | AA65: 27.144 | AB65: 27.405 | AC65: 27.666 | AD65: 27.927 | AE65: 28.188 | AF65: 28.449 | AG65: 28.71 | AH65: 28.971 | AI65: 29.232 | AJ65: 29.493 | AK65: 29.754 | AL65: 30.015 | AM65: 30.276 | AN65: 30.537 | AO65: 30.798 | AP65: 31.059 | AQ65: 31.32 | AR65: 31.581 | AS65: 31.842 | AT65: 32.103 | AU65: 32.364 | AV65: 32.625 | AW65: 32.886 | AX65: 33.147 | AY65: 33.408 | AZ65: 33.669 | BA65: 33.93 | BB65: 34.191 | BC65: 34.452 | BD65: 34.713 | BE65: 34.974 | BF65: 35.235 | BG65: 35.496 | BH65: 35.757 | BI65: 36.018 | BJ65: 36.279 | BK65: 36.54 | BL65: 36.801 | BM65: 37.062 | BN65: 37.323 | BO65: 37.584 | BP65: 37.845 | BQ65: 38.106 | BR65: 38.367 | BS65: 38.628 | BT65: 38.889 | BU65: 39.15 | BV65: 39.411 | BW65: 39.672 | BX65: 39.933 | BY65: 40.194 | BZ65: 40.455 | CA65: 40.716 | CB65: 40.977 | CC65: 41.238 | CD65: 41.499 | CE65: 41.76 | CF65: 42.021 | CG65: 42.282 | CH65: 42.543 | CI65: 42.804 | CJ65: 43.065 | CK65: 43.326 | CL65: 43.587 | CM65: 43.848 | CN65: 44.109 | CO65: 44.37 | CP65: 44.631 | CQ65: 44.892 | CR65: 45.153 | CS65: 45.414 | CT65: 45.675 | CU65: 45.936 | CV65: 46.197 | CW65: 46.458 | CX65: 46.719 | CY65: 46.98 | CZ65: 47.241 | DA65: 47.502 | DB65: 47.763 | DC65: 48.024 | DD65: 48.285 | DE65: 48.546 | DF65: 48.807 | DG65: 49.068 | DH65: 49.329 | DI65: 49.59 | DJ65: 49.851 | DK65: 50.112 | DL65: 50.373 | DM65: 50.634 | DN65: 50.895 | DO65: 51.156 | DP65: 51.417 | DQ65: 51.678 | DR65: 51.939 | DS65: 52.2 | DT65: 52.461 | DU65: 52.722 | DV65: 52.983 | DW65: 53.244 | DX65: 53.505 | DY65: 53.766 | DZ65: 54.027 | EA65: 54.288 | EB65: 54.549 | EC65: 54.81 | ED65: 55.071 | EE65: 55.332 | EF65: 55.593 | EG65: 55.854 | EH65: 56.115 | EI65: 56.376 | EJ65: 56.637 | EK65: 56.898 | EL65: 57.159 | EM65: 57.42 | EN65: 57.681 | EO65: 57.942 | EP65: 58.203 | EQ65: 58.464 | ER65: 58.725 | ES65: 58.986 | ET65: 59.247 | EU65: 59.508 | EV65: 59.769 | EW65: 60.03 | EX65: 60.291 | EY65: 60.552 | EZ65: 60.813 | FA65: 61.074 | FB65: 61.335 | FC65: 61.596 | FD65: 61.857 | FE65: 62.118 | FF65: 62.379 | FG65: 62.64 | FH65: 62.901 | FI65: 63.162 | FJ65: 63.423 | FK65: 63.684 | FL65: 63.945 | FM65: 64.206 | FN65: 64.467 | FO65: 64.728 | FP65: 64.989 | FQ65: 65.25 | FR65: 65.511 | FS65: 65.772 | FT65: 66.033 | FU65: 66.294 | FV65: 66.555 | FW65: 66.816 | FX65: 67.077 | FY65: 67.338 | FZ65: 67.599 | GA65: 67.86 | GB65: 68.121 | GC65: 68.382 | GD65: 68.643 | GE65: 68.904 | GF65: 69.165 | GG65: 69.426 | GH65: 69.687 | GI65: 69.948 | GJ65: 70.209 | GK65: 70.47 | GL65: 70.731 | GM65: 70.992 | GN65: 71.253 | GO65: 71.514 | GP65: 71.775 | GQ65: 72.036 | GR65: 72.297 | GS65: 72.558 | GT65: 72.819 | GU65: 73.08 | GV65: 73.341 | GW65: 73.602 | GX65: 73.863 | GY65: 74.124 | GZ65: 74.385 | HA65: 74.646 | HB65: 74.907 | HC65: 75.168 | HD65: 75.429 | HE65: 75.69 | HF65: 75.951 | HG65: 76.212 | HH65: 76.473 | HI65: 76.734 | HJ65: 76.995 | HK65: 77.256 | HL65: 77.517 | HM65: 77.778 | HN65: 78.039 | HO65: 78.3
A66: =Corn!$B$51/10 -> 0.003 | B66: =SUM(A66:$A$151) -> 0.258 | C66: 0.241 | D66: 20.898 | E66: 21.156 | F66: 21.414 | G66: 21.672 | H66: 21.93 | I66: 22.188 | J66: 22.446 | K66: 22.704 | L66: 22.962 | M66: 23.22 | N66: 23.478 | O66: 23.736 | P66: 23.994 | Q66: 24.252 | R66: 24.51 | S66: 24.768 | T66: 25.026 | U66: 25.284 | V66: 25.542 | W66: 25.8 | X66: 26.058 | Y66: 26.316 | Z66: 26.574 | AA66: 26.832 | AB66: 27.09 | AC66: 27.348 | AD66: 27.606 | AE66: 27.864 | AF66: 28.122 | AG66: 28.38 | AH66: 28.638 | AI66: 28.896 | AJ66: 29.154 | AK66: 29.412 | AL66: 29.67 | AM66: 29.928 | AN66: 30.186 | AO66: 30.444 | AP66: 30.702 | AQ66: 30.96 | AR66: 31.218 | AS66: 31.476 | AT66: 31.734 | AU66: 31.992 | AV66: 32.25 | AW66: 32.508 | AX66: 32.766 | AY66: 33.024 | AZ66: 33.282 | BA66: 33.54 | BB66: 33.798 | BC66: 34.056 | BD66: 34.314 | BE66: 34.572 | BF66: 34.83 | BG66: 35.088 | BH66: 35.346 | BI66: 35.604 | BJ66: 35.862 | BK66: 36.12 | BL66: 36.378 | BM66: 36.636 | BN66: 36.894 | BO66: 37.152 | BP66: 37.41 | BQ66: 37.668 | BR66: 37.926 | BS66: 38.184 | BT66: 38.442 | BU66: 38.7 | BV66: 38.958 | BW66: 39.216 | BX66: 39.474 | BY66: 39.732 | BZ66: 39.99 | CA66: 40.248 | CB66: 40.506 | CC66: 40.764 | CD66: 41.022 | CE66: 41.28 | CF66: 41.538 | CG66: 41.796 | CH66: 42.054 | CI66: 42.312 | CJ66: 42.57 | CK66: 42.828 | CL66: 43.086 | CM66: 43.344 | CN66: 43.602 | CO66: 43.86 | CP66: 44.118 | CQ66: 44.376 | CR66: 44.634 | CS66: 44.892 | CT66: 45.15 | CU66: 45.408 | CV66: 45.666 | CW66: 45.924 | CX66: 46.182 | CY66: 46.44 | CZ66: 46.698 | DA66: 46.956 | DB66: 47.214 | DC66: 47.472 | DD66: 47.73 | DE66: 47.988 | DF66: 48.246 | DG66: 48.504 | DH66: 48.762 | DI66: 49.02 | DJ66: 49.278 | DK66: 49.536 | DL66: 49.794 | DM66: 50.052 | DN66: 50.31 | DO66: 50.568 | DP66: 50.826 | DQ66: 51.084 | DR66: 51.342 | DS66: 51.6 | DT66: 51.858 | DU66: 52.116 | DV66: 52.374 | DW66: 52.632 | DX66: 52.89 | DY66: 53.148 | DZ66: 53.406 | EA66: 53.664 | EB66: 53.922 | EC66: 54.18 | ED66: 54.438 | EE66: 54.696 | EF66: 54.954 | EG66: 55.212 | EH66: 55.47 | EI66: 55.728 | EJ66: 55.986 | EK66: 56.244 | EL66: 56.502 | EM66: 56.76 | EN66: 57.018 | EO66: 57.276 | EP66: 57.534 | EQ66: 57.792 | ER66: 58.05 | ES66: 58.308 | ET66: 58.566 | EU66: 58.824 | EV66: 59.082 | EW66: 59.34 | EX66: 59.598 | EY66: 59.856 | EZ66: 60.114 | FA66: 60.372 | FB66: 60.63 | FC66: 60.888 | FD66: 61.146 | FE66: 61.404 | FF66: 61.662 | FG66: 61.92 | FH66: 62.178 | FI66: 62.436 | FJ66: 62.694 | FK66: 62.952 | FL66: 63.21 | FM66: 63.468 | FN66: 63.726 | FO66: 63.984 | FP66: 64.242 | FQ66: 64.5 | FR66: 64.758 | FS66: 65.016 | FT66: 65.274 | FU66: 65.532 | FV66: 65.79 | FW66: 66.048 | FX66: 66.306 | FY66: 66.564 | FZ66: 66.822 | GA66: 67.08 | GB66: 67.338 | GC66: 67.596 | GD66: 67.854 | GE66: 68.112 | GF66: 68.37 | GG66: 68.628 | GH66: 68.886 | GI66: 69.144 | GJ66: 69.402 | GK66: 69.66 | GL66: 69.918 | GM66: 70.176 | GN66: 70.434 | GO66: 70.692 | GP66: 70.95 | GQ66: 71.208 | GR66: 71.466 | GS66: 71.724 | GT66: 71.982 | GU66: 72.24 | GV66: 72.498 | GW66: 72.756 | GX66: 73.014 | GY66: 73.272 | GZ66: 73.53 | HA66: 73.788 | HB66: 74.046 | HC66: 74.304 | HD66: 74.562 | HE66: 74.82 | HF66: 75.078 | HG66: 75.336 | HH66: 75.594 | HI66: 75.852 | HJ66: 76.11 | HK66: 76.368 | HL66: 76.626 | HM66: 76.884 | HN66: 77.142 | HO66: 77.4
A67: =Corn!$B$51/10 -> 0.003 | B67: =SUM(A67:$A$151) -> 0.255 | C67: 0.24 | D67: 20.655 | E67: 20.91 | F67: 21.165 | G67: 21.42 | H67: 21.675 | I67: 21.93 | J67: 22.185 | K67: 22.44 | L67: 22.695 | M67: 22.95 | N67: 23.205 | O67: 23.46 | P67: 23.715 | Q67: 23.97 | R67: 24.225 | S67: 24.48 | T67: 24.735 | U67: 24.99 | V67: 25.245 | W67: 25.5 | X67: 25.755 | Y67: 26.01 | Z67: 26.265 | AA67: 26.52 | AB67: 26.775 | AC67: 27.03 | AD67: 27.285 | AE67: 27.54 | AF67: 27.795 | AG67: 28.05 | AH67: 28.305 | AI67: 28.56 | AJ67: 28.815 | AK67: 29.07 | AL67: 29.325 | AM67: 29.58 | AN67: 29.835 | AO67: 30.09 | AP67: 30.345 | AQ67: 30.6 | AR67: 30.855 | AS67: 31.11 | AT67: 31.365 | AU67: 31.62 | AV67: 31.875 | AW67: 32.13 | AX67: 32.385 | AY67: 32.64 | AZ67: 32.895 | BA67: 33.15 | BB67: 33.405 | BC67: 33.66 | BD67: 33.915 | BE67: 34.17 | BF67: 34.425 | BG67: 34.68 | BH67: 34.935 | BI67: 35.19 | BJ67: 35.445 | BK67: 35.7 | BL67: 35.955 | BM67: 36.21 | BN67: 36.465 | BO67: 36.72 | BP67: 36.975 | BQ67: 37.23 | BR67: 37.485 | BS67: 37.74 | BT67: 37.995 | BU67: 38.25 | BV67: 38.505 | BW67: 38.76 | BX67: 39.015 | BY67: 39.27 | BZ67: 39.525 | CA67: 39.78 | CB67: 40.035 | CC67: 40.29 | CD67: 40.545 | CE67: 40.8 | CF67: 41.055 | CG67: 41.31 | CH67: 41.565 | CI67: 41.82 | CJ67: 42.075 | CK67: 42.33 | CL67: 42.585 | CM67: 42.84 | CN67: 43.095 | CO67: 43.35 | CP67: 43.605 | CQ67: 43.86 | CR67: 44.115 | CS67: 44.37 | CT67: 44.625 | CU67: 44.88 | CV67: 45.135 | CW67: 45.39 | CX67: 45.645 | CY67: 45.9 | CZ67: 46.155 | DA67: 46.41 | DB67: 46.665 | DC67: 46.92 | DD67: 47.175 | DE67: 47.43 | DF67: 47.685 | DG67: 47.94 | DH67: 48.195 | DI67: 48.45 | DJ67: 48.705 | DK67: 48.96 | DL67: 49.215 | DM67: 49.47 | DN67: 49.725 | DO67: 49.98 | DP67: 50.235 | DQ67: 50.49 | DR67: 50.745 | DS67: 51 | DT67: 51.255 | DU67: 51.51 | DV67: 51.765 | DW67: 52.02 | DX67: 52.275 | DY67: 52.53 | DZ67: 52.785 | EA67: 53.04 | EB67: 53.295 | EC67: 53.55 | ED67: 53.805 | EE67: 54.06 | EF67: 54.315 | EG67: 54.57 | EH67: 54.825 | EI67: 55.08 | EJ67: 55.335 | EK67: 55.59 | EL67: 55.845 | EM67: 56.1 | EN67: 56.355 | EO67: 56.61 | EP67: 56.865 | EQ67: 57.12 | ER67: 57.375 | ES67: 57.63 | ET67: 57.885 | EU67: 58.14 | EV67: 58.395 | EW67: 58.65 | EX67: 58.905 | EY67: 59.16 | EZ67: 59.415 | FA67: 59.67 | FB67: 59.925 | FC67: 60.18 | FD67: 60.435 | FE67: 60.69 | FF67: 60.945 | FG67: 61.2 | FH67: 61.455 | FI67: 61.71 | FJ67: 61.965 | FK67: 62.22 | FL67: 62.475 | FM67: 62.73 | FN67: 62.985 | FO67: 63.24 | FP67: 63.495 | FQ67: 63.75 | FR67: 64.005 | FS67: 64.26 | FT67: 64.515 | FU67: 64.77 | FV67: 65.025 | FW67: 65.28 | FX67: 65.535 | FY67: 65.79 | FZ67: 66.045 | GA67: 66.3 | GB67: 66.555 | GC67: 66.81 | GD67: 67.065 | GE67: 67.32 | GF67: 67.575 | GG67: 67.83 | GH67: 68.085 | GI67: 68.34 | GJ67: 68.595 | GK67: 68.85 | GL67: 69.105 | GM67: 69.36 | GN67: 69.615 | GO67: 69.87 | GP67: 70.125 | GQ67: 70.38 | GR67: 70.635 | GS67: 70.89 | GT67: 71.145 | GU67: 71.4 | GV67: 71.655 | GW67: 71.91 | GX67: 72.165 | GY67: 72.42 | GZ67: 72.675 | HA67: 72.93 | HB67: 73.185 | HC67: 73.44 | HD67: 73.695 | HE67: 73.95 | HF67: 74.205 | HG67: 74.46 | HH67: 74.715 | HI67: 74.97 | HJ67: 75.225 | HK67: 75.48 | HL67: 75.735 | HM67: 75.99 | HN67: 76.245 | HO67: 76.5
A68: =Corn!$B$51/10 -> 0.003 | B68: =SUM(A68:$A$151) -> 0.252 | C68: 0.239 | D68: 20.412 | E68: 20.664 | F68: 20.916 | G68: 21.168 | H68: 21.42 | I68: 21.672 | J68: 21.924 | K68: 22.176 | L68: 22.428 | M68: 22.68 | N68: 22.932 | O68: 23.184 | P68: 23.436 | Q68: 23.688 | R68: 23.94 | S68: 24.192 | T68: 24.444 | U68: 24.696 | V68: 24.948 | W68: 25.2 | X68: 25.452 | Y68: 25.704 | Z68: 25.956 | AA68: 26.208 | AB68: 26.46 | AC68: 26.712 | AD68: 26.964 | AE68: 27.216 | AF68: 27.468 | AG68: 27.72 | AH68: 27.972 | AI68: 28.224 | AJ68: 28.476 | AK68: 28.728 | AL68: 28.98 | AM68: 29.232 | AN68: 29.484 | AO68: 29.736 | AP68: 29.988 | AQ68: 30.24 | AR68: 30.492 | AS68: 30.744 | AT68: 30.996 | AU68: 31.248 | AV68: 31.5 | AW68: 31.752 | AX68: 32.004 | AY68: 32.256 | AZ68: 32.508 | BA68: 32.76 | BB68: 33.012 | BC68: 33.264 | BD68: 33.516 | BE68: 33.768 | BF68: 34.02 | BG68: 34.272 | BH68: 34.524 | BI68: 34.776 | BJ68: 35.028 | BK68: 35.28 | BL68: 35.532 | BM68: 35.784 | BN68: 36.036 | BO68: 36.288 | BP68: 36.54 | BQ68: 36.792 | BR68: 37.044 | BS68: 37.296 | BT68: 37.548 | BU68: 37.8 | BV68: 38.052 | BW68: 38.304 | BX68: 38.556 | BY68: 38.808 | BZ68: 39.06 | CA68: 39.312 | CB68: 39.564 | CC68: 39.816 | CD68: 40.068 | CE68: 40.32 | CF68: 40.572 | CG68: 40.824 | CH68: 41.076 | CI68: 41.328 | CJ68: 41.58 | CK68: 41.832 | CL68: 42.084 | CM68: 42.336 | CN68: 42.588 | CO68: 42.84 | CP68: 43.092 | CQ68: 43.344 | CR68: 43.596 | CS68: 43.848 | CT68: 44.1 | CU68: 44.352 | CV68: 44.604 | CW68: 44.856 | CX68: 45.108 | CY68: 45.36 | CZ68: 45.612 | DA68: 45.864 | DB68: 46.116 | DC68: 46.368 | DD68: 46.62 | DE68: 46.872 | DF68: 47.124 | DG68: 47.376 | DH68: 47.628 | DI68: 47.88 | DJ68: 48.132 | DK68: 48.384 | DL68: 48.636 | DM68: 48.888 | DN68: 49.14 | DO68: 49.392 | DP68: 49.644 | DQ68: 49.896 | DR68: 50.148 | DS68: 50.4 | DT68: 50.652 | DU68: 50.904 | DV68: 51.156 | DW68: 51.408 | DX68: 51.66 | DY68: 51.912 | DZ68: 52.164 | EA68: 52.416 | EB68: 52.668 | EC68: 52.92 | ED68: 53.172 | EE68: 53.424 | EF68: 53.676 | EG68: 53.928 | EH68: 54.18 | EI68: 54.432 | EJ68: 54.684 | EK68: 54.936 | EL68: 55.188 | EM68: 55.44 | EN68: 55.692 | EO68: 55.944 | EP68: 56.196 | EQ68: 56.448 | ER68: 56.7 | ES68: 56.952 | ET68: 57.204 | EU68: 57.456 | EV68: 57.708 | EW68: 57.96 | EX68: 58.212 | EY68: 58.464 | EZ68: 58.716 | FA68: 58.968 | FB68: 59.22 | FC68: 59.472 | FD68: 59.724 | FE68: 59.976 | FF68: 60.228 | FG68: 60.48 | FH68: 60.732 | FI68: 60.984 | FJ68: 61.236 | FK68: 61.488 | FL68: 61.74 | FM68: 61.992 | FN68: 62.244 | FO68: 62.496 | FP68: 62.748 | FQ68: 63 | FR68: 63.252 | FS68: 63.504 | FT68: 63.756 | FU68: 64.008 | FV68: 64.26 | FW68: 64.512 | FX68: 64.764 | FY68: 65.016 | FZ68: 65.268 | GA68: 65.52 | GB68: 65.772 | GC68: 66.024 | GD68: 66.276 | GE68: 66.528 | GF68: 66.78 | GG68: 67.032 | GH68: 67.284 | GI68: 67.536 | GJ68: 67.788 | GK68: 68.04 | GL68: 68.292 | GM68: 68.544 | GN68: 68.796 | GO68: 69.048 | GP68: 69.3 | GQ68: 69.552 | GR68: 69.804 | GS68: 70.056 | GT68: 70.308 | GU68: 70.56 | GV68: 70.812 | GW68: 71.064 | GX68: 71.316 | GY68: 71.568 | GZ68: 71.82 | HA68: 72.072 | HB68: 72.324 | HC68: 72.576 | HD68: 72.828 | HE68: 73.08 | HF68: 73.332 | HG68: 73.584 | HH68: 73.836 | HI68: 74.088 | HJ68: 74.34 | HK68: 74.592 | HL68: 74.844 | HM68: 75.096 | HN68: 75.348 | HO68: 75.6
A69: =Corn!$B$51/10 -> 0.003 | B69: =SUM(A69:$A$151) -> 0.249 | C69: 0.238 | D69: 20.169 | E69: 20.418 | F69: 20.667 | G69: 20.916 | H69: 21.165 | I69: 21.414 | J69: 21.663 | K69: 21.912 | L69: 22.161 | M69: 22.41 | N69: 22.659 | O69: 22.908 | P69: 23.157 | Q69: 23.406 | R69: 23.655 | S69: 23.904 | T69: 24.153 | U69: 24.402 | V69: 24.651 | W69: 24.9 | X69: 25.149 | Y69: 25.398 | Z69: 25.647 | AA69: 25.896 | AB69: 26.145 | AC69: 26.394 | AD69: 26.643 | AE69: 26.892 | AF69: 27.141 | AG69: 27.39 | AH69: 27.639 | AI69: 27.888 | AJ69: 28.137 | AK69: 28.386 | AL69: 28.635 | AM69: 28.884 | AN69: 29.133 | AO69: 29.382 | AP69: 29.631 | AQ69: 29.88 | AR69: 30.129 | AS69: 30.378 | AT69: 30.627 | AU69: 30.876 | AV69: 31.125 | AW69: 31.374 | AX69: 31.623 | AY69: 31.872 | AZ69: 32.121 | BA69: 32.37 | BB69: 32.619 | BC69: 32.868 | BD69: 33.117 | BE69: 33.366 | BF69: 33.615 | BG69: 33.864 | BH69: 34.113 | BI69: 34.362 | BJ69: 34.611 | BK69: 34.86 | BL69: 35.109 | BM69: 35.358 | BN69: 35.607 | BO69: 35.856 | BP69: 36.105 | BQ69: 36.354 | BR69: 36.603 | BS69: 36.852 | BT69: 37.101 | BU69: 37.35 | BV69: 37.599 | BW69: 37.848 | BX69: 38.097 | BY69: 38.346 | BZ69: 38.595 | CA69: 38.844 | CB69: 39.093 | CC69: 39.342 | CD69: 39.591 | CE69: 39.84 | CF69: 40.089 | CG69: 40.338 | CH69: 40.587 | CI69: 40.836 | CJ69: 41.085 | CK69: 41.334 | CL69: 41.583 | CM69: 41.832 | CN69: 42.081 | CO69: 42.33 | CP69: 42.579 | CQ69: 42.828 | CR69: 43.077 | CS69: 43.326 | CT69: 43.575 | CU69: 43.824 | CV69: 44.073 | CW69: 44.322 | CX69: 44.571 | CY69: 44.82 | CZ69: 45.069 | DA69: 45.318 | DB69: 45.567 | DC69: 45.816 | DD69: 46.065 | DE69: 46.314 | DF69: 46.563 | DG69: 46.812 | DH69: 47.061 | DI69: 47.31 | DJ69: 47.559 | DK69: 47.808 | DL69: 48.057 | DM69: 48.306 | DN69: 48.555 | DO69: 48.804 | DP69: 49.053 | DQ69: 49.302 | DR69: 49.551 | DS69: 49.8 | DT69: 50.049 | DU69: 50.298 | DV69: 50.547 | DW69: 50.796 | DX69: 51.045 | DY69: 51.294 | DZ69: 51.543 | EA69: 51.792 | EB69: 52.041 | EC69: 52.29 | ED69: 52.539 | EE69: 52.788 | EF69: 53.037 | EG69: 53.286 | EH69: 53.535 | EI69: 53.784 | EJ69: 54.033 | EK69: 54.282 | EL69: 54.531 | EM69: 54.78 | EN69: 55.029 | EO69: 55.278 | EP69: 55.527 | EQ69: 55.776 | ER69: 56.025 | ES69: 56.274 | ET69: 56.523 | EU69: 56.772 | EV69: 57.021 | EW69: 57.27 | EX69: 57.519 | EY69: 57.768 | EZ69: 58.017 | FA69: 58.266 | FB69: 58.515 | FC69: 58.764 | FD69: 59.013 | FE69: 59.262 | FF69: 59.511 | FG69: 59.76 | FH69: 60.009 | FI69: 60.258 | FJ69: 60.507 | FK69: 60.756 | FL69: 61.005 | FM69: 61.254 | FN69: 61.503 | FO69: 61.752 | FP69: 62.001 | FQ69: 62.25 | FR69: 62.499 | FS69: 62.748 | FT69: 62.997 | FU69: 63.246 | FV69: 63.495 | FW69: 63.744 | FX69: 63.993 | FY69: 64.242 | FZ69: 64.491 | GA69: 64.74 | GB69: 64.989 | GC69: 65.238 | GD69: 65.487 | GE69: 65.736 | GF69: 65.985 | GG69: 66.234 | GH69: 66.483 | GI69: 66.732 | GJ69: 66.981 | GK69: 67.23 | GL69: 67.479 | GM69: 67.728 | GN69: 67.977 | GO69: 68.226 | GP69: 68.475 | GQ69: 68.724 | GR69: 68.973 | GS69: 69.222 | GT69: 69.471 | GU69: 69.72 | GV69: 69.969 | GW69: 70.218 | GX69: 70.467 | GY69: 70.716 | GZ69: 70.965 | HA69: 71.214 | HB69: 71.463 | HC69: 71.712 | HD69: 71.961 | HE69: 72.21 | HF69: 72.459 | HG69: 72.708 | HH69: 72.957 | HI69: 73.206 | HJ69: 73.455 | HK69: 73.704 | HL69: 73.953 | HM69: 74.202 | HN69: 74.451 | HO69: 74.7
A70: =Corn!$B$51/10 -> 0.003 | B70: =SUM(A70:$A$151) -> 0.246 | C70: 0.237 | D70: 19.926 | E70: 20.172 | F70: 20.418 | G70: 20.664 | H70: 20.91 | I70: 21.156 | J70: 21.402 | K70: 21.648 | L70: 21.894 | M70: 22.14 | N70: 22.386 | O70: 22.632 | P70: 22.878 | Q70: 23.124 | R70: 23.37 | S70: 23.616 | T70: 23.862 | U70: 24.108 | V70: 24.354 | W70: 24.6 | X70: 24.846 | Y70: 25.092 | Z70: 25.338 | AA70: 25.584 | AB70: 25.83 | AC70: 26.076 | AD70: 26.322 | AE70: 26.568 | AF70: 26.814 | AG70: 27.06 | AH70: 27.306 | AI70: 27.552 | AJ70: 27.798 | AK70: 28.044 | AL70: 28.29 | AM70: 28.536 | AN70: 28.782 | AO70: 29.028 | AP70: 29.274 | AQ70: 29.52 | AR70: 29.766 | AS70: 30.012 | AT70: 30.258 | AU70: 30.504 | AV70: 30.75 | AW70: 30.996 | AX70: 31.242 | AY70: 31.488 | AZ70: 31.734 | BA70: 31.98 | BB70: 32.226 | BC70: 32.472 | BD70: 32.718 | BE70: 32.964 | BF70: 33.21 | BG70: 33.456 | BH70: 33.702 | BI70: 33.948 | BJ70: 34.194 | BK70: 34.44 | BL70: 34.686 | BM70: 34.932 | BN70: 35.178 | BO70: 35.424 | BP70: 35.67 | BQ70: 35.916 | BR70: 36.162 | BS70: 36.408 | BT70: 36.654 | BU70: 36.9 | BV70: 37.146 | BW70: 37.392 | BX70: 37.638 | BY70: 37.884 | BZ70: 38.13 | CA70: 38.376 | CB70: 38.622 | CC70: 38.868 | CD70: 39.114 | CE70: 39.36 | CF70: 39.606 | CG70: 39.852 | CH70: 40.098 | CI70: 40.344 | CJ70: 40.59 | CK70: 40.836 | CL70: 41.082 | CM70: 41.328 | CN70: 41.574 | CO70: 41.82 | CP70: 42.066 | CQ70: 42.312 | CR70: 42.558 | CS70: 42.804 | CT70: 43.05 | CU70: 43.296 | CV70: 43.542 | CW70: 43.788 | CX70: 44.034 | CY70: 44.28 | CZ70: 44.526 | DA70: 44.772 | DB70: 45.018 | DC70: 45.264 | DD70: 45.51 | DE70: 45.756 | DF70: 46.002 | DG70: 46.248 | DH70: 46.494 | DI70: 46.74 | DJ70: 46.986 | DK70: 47.232 | DL70: 47.478 | DM70: 47.724 | DN70: 47.97 | DO70: 48.216 | DP70: 48.462 | DQ70: 48.708 | DR70: 48.954 | DS70: 49.2 | DT70: 49.446 | DU70: 49.692 | DV70: 49.938 | DW70: 50.184 | DX70: 50.43 | DY70: 50.676 | DZ70: 50.922 | EA70: 51.168 | EB70: 51.414 | EC70: 51.66 | ED70: 51.906 | EE70: 52.152 | EF70: 52.398 | EG70: 52.644 | EH70: 52.89 | EI70: 53.136 | EJ70: 53.382 | EK70: 53.628 | EL70: 53.874 | EM70: 54.12 | EN70: 54.366 | EO70: 54.612 | EP70: 54.858 | EQ70: 55.104 | ER70: 55.35 | ES70: 55.596 | ET70: 55.842 | EU70: 56.088 | EV70: 56.334 | EW70: 56.58 | EX70: 56.826 | EY70: 57.072 | EZ70: 57.318 | FA70: 57.564 | FB70: 57.81 | FC70: 58.056 | FD70: 58.302 | FE70: 58.548 | FF70: 58.794 | FG70: 59.04 | FH70: 59.286 | FI70: 59.532 | FJ70: 59.778 | FK70: 60.024 | FL70: 60.27 | FM70: 60.516 | FN70: 60.762 | FO70: 61.008 | FP70: 61.254 | FQ70: 61.5 | FR70: 61.746 | FS70: 61.992 | FT70: 62.238 | FU70: 62.484 | FV70: 62.73 | FW70: 62.976 | FX70: 63.222 | FY70: 63.468 | FZ70: 63.714 | GA70: 63.96 | GB70: 64.206 | GC70: 64.452 | GD70: 64.698 | GE70: 64.944 | GF70: 65.19 | GG70: 65.436 | GH70: 65.682 | GI70: 65.928 | GJ70: 66.174 | GK70: 66.42 | GL70: 66.666 | GM70: 66.912 | GN70: 67.158 | GO70: 67.404 | GP70: 67.65 | GQ70: 67.896 | GR70: 68.142 | GS70: 68.388 | GT70: 68.634 | GU70: 68.88 | GV70: 69.126 | GW70: 69.372 | GX70: 69.618 | GY70: 69.864 | GZ70: 70.11 | HA70: 70.356 | HB70: 70.602 | HC70: 70.848 | HD70: 71.094 | HE70: 71.34 | HF70: 71.586 | HG70: 71.832 | HH70: 72.078 | HI70: 72.324 | HJ70: 72.57 | HK70: 72.816 | HL70: 73.062 | HM70: 73.308 | HN70: 73.554 | HO70: 73.8
A71: =Corn!$B$51/10 -> 0.003 | B71: =SUM(A71:$A$151) -> 0.243 | C71: 0.236 | D71: 19.683 | E71: 19.926 | F71: 20.169 | G71: 20.412 | H71: 20.655 | I71: 20.898 | J71: 21.141 | K71: 21.384 | L71: 21.627 | M71: 21.87 | N71: 22.113 | O71: 22.356 | P71: 22.599 | Q71: 22.842 | R71: 23.085 | S71: 23.328 | T71: 23.571 | U71: 23.814 | V71: 24.057 | W71: 24.3 | X71: 24.543 | Y71: 24.786 | Z71: 25.029 | AA71: 25.272 | AB71: 25.515 | AC71: 25.758 | AD71: 26.001 | AE71: 26.244 | AF71: 26.487 | AG71: 26.73 | AH71: 26.973 | AI71: 27.216 | AJ71: 27.459 | AK71: 27.702 | AL71: 27.945 | AM71: 28.188 | AN71: 28.431 | AO71: 28.674 | AP71: 28.917 | AQ71: 29.16 | AR71: 29.403 | AS71: 29.646 | AT71: 29.889 | AU71: 30.132 | AV71: 30.375 | AW71: 30.618 | AX71: 30.861 | AY71: 31.104 | AZ71: 31.347 | BA71: 31.59 | BB71: 31.833 | BC71: 32.076 | BD71: 32.319 | BE71: 32.562 | BF71: 32.805 | BG71: 33.048 | BH71: 33.291 | BI71: 33.534 | BJ71: 33.777 | BK71: 34.02 | BL71: 34.263 | BM71: 34.506 | BN71: 34.749 | BO71: 34.992 | BP71: 35.235 | BQ71: 35.478 | BR71: 35.721 | BS71: 35.964 | BT71: 36.207 | BU71: 36.45 | BV71: 36.693 | BW71: 36.936 | BX71: 37.179 | BY71: 37.422 | BZ71: 37.665 | CA71: 37.908 | CB71: 38.151 | CC71: 38.394 | CD71: 38.637 | CE71: 38.88 | CF71: 39.123 | CG71: 39.366 | CH71: 39.609 | CI71: 39.852 | CJ71: 40.095 | CK71: 40.338 | CL71: 40.581 | CM71: 40.824 | CN71: 41.067 | CO71: 41.31 | CP71: 41.553 | CQ71: 41.796 | CR71: 42.039 | CS71: 42.282 | CT71: 42.525 | CU71: 42.768 | CV71: 43.011 | CW71: 43.254 | CX71: 43.497 | CY71: 43.74 | CZ71: 43.983 | DA71: 44.226 | DB71: 44.469 | DC71: 44.712 | DD71: 44.955 | DE71: 45.198 | DF71: 45.441 | DG71: 45.684 | DH71: 45.927 | DI71: 46.17 | DJ71: 46.413 | DK71: 46.656 | DL71: 46.899 | DM71: 47.142 | DN71: 47.385 | DO71: 47.628 | DP71: 47.871 | DQ71: 48.114 | DR71: 48.357 | DS71: 48.6 | DT71: 48.843 | DU71: 49.086 | DV71: 49.329 | DW71: 49.572 | DX71: 49.815 | DY71: 50.058 | DZ71: 50.301 | EA71: 50.544 | EB71: 50.787 | EC71: 51.03 | ED71: 51.273 | EE71: 51.516 | EF71: 51.759 | EG71: 52.002 | EH71: 52.245 | EI71: 52.488 | EJ71: 52.731 | EK71: 52.974 | EL71: 53.217 | EM71: 53.46 | EN71: 53.703 | EO71: 53.946 | EP71: 54.189 | EQ71: 54.432 | ER71: 54.675 | ES71: 54.918 | ET71: 55.161 | EU71: 55.404 | EV71: 55.647 | EW71: 55.89 | EX71: 56.133 | EY71: 56.376 | EZ71: 56.619 | FA71: 56.862 | FB71: 57.105 | FC71: 57.348 | FD71: 57.591 | FE71: 57.834 | FF71: 58.077 | FG71: 58.32 | FH71: 58.563 | FI71: 58.806 | FJ71: 59.049 | FK71: 59.292 | FL71: 59.535 | FM71: 59.778 | FN71: 60.021 | FO71: 60.264 | FP71: 60.507 | FQ71: 60.75 | FR71: 60.993 | FS71: 61.236 | FT71: 61.479 | FU71: 61.722 | FV71: 61.965 | FW71: 62.208 | FX71: 62.451 | FY71: 62.694 | FZ71: 62.937 | GA71: 63.18 | GB71: 63.423 | GC71: 63.666 | GD71: 63.909 | GE71: 64.152 | GF71: 64.395 | GG71: 64.638 | GH71: 64.881 | GI71: 65.124 | GJ71: 65.367 | GK71: 65.61 | GL71: 65.853 | GM71: 66.096 | GN71: 66.339 | GO71: 66.582 | GP71: 66.825 | GQ71: 67.068 | GR71: 67.311 | GS71: 67.554 | GT71: 67.797 | GU71: 68.04 | GV71: 68.283 | GW71: 68.526 | GX71: 68.769 | GY71: 69.012 | GZ71: 69.255 | HA71: 69.498 | HB71: 69.741 | HC71: 69.984 | HD71: 70.227 | HE71: 70.47 | HF71: 70.713 | HG71: 70.956 | HH71: 71.199 | HI71: 71.442 | HJ71: 71.685 | HK71: 71.928 | HL71: 72.171 | HM71: 72.414 | HN71: 72.657 | HO71: 72.9
A72: =Corn!$B$51/10 -> 0.003 | B72: =SUM(A72:$A$151) -> 0.24 | C72: 0.235 | D72: 19.44 | E72: 19.68 | F72: 19.92 | G72: 20.16 | H72: 20.4 | I72: 20.64 | J72: 20.88 | K72: 21.12 | L72: 21.36 | M72: 21.6 | N72: 21.84 | O72: 22.08 | P72: 22.32 | Q72: 22.56 | R72: 22.8 | S72: =S$158*$B72 -> 23.04 | T72: 23.28 | U72: 23.52 | V72: 23.76 | W72: 24 | X72: 24.24 | Y72: 24.48 | Z72: 24.72 | AA72: 24.96 | AB72: 25.2 | AC72: 25.44 | AD72: 25.68 | AE72: 25.92 | AF72: 26.16 | AG72: 26.4 | AH72: 26.64 | AI72: 26.88 | AJ72: 27.12 | AK72: 27.36 | AL72: 27.6 | AM72: 27.84 | AN72: 28.08 | AO72: 28.32 | AP72: 28.56 | AQ72: 28.8 | AR72: 29.04 | AS72: 29.28 | AT72: 29.52 | AU72: 29.76 | AV72: 30 | AW72: 30.24 | AX72: 30.48 | AY72: =AY$158*$B72 -> 30.72 | AZ72: 30.96 | BA72: 31.2 | BB72: 31.44 | BC72: 31.68 | BD72: 31.92 | BE72: 32.16 | BF72: 32.4 | BG72: 32.64 | BH72: 32.88 | BI72: 33.12 | BJ72: 33.36 | BK72: 33.6 | BL72: 33.84 | BM72: 34.08 | BN72: 34.32 | BO72: 34.56 | BP72: 34.8 | BQ72: 35.04 | BR72: 35.28 | BS72: 35.52 | BT72: 35.76 | BU72: 36 | BV72: 36.24 | BW72: 36.48 | BX72: 36.72 | BY72: 36.96 | BZ72: 37.2 | CA72: 37.44 | CB72: 37.68 | CC72: 37.92 | CD72: 38.16 | CE72: =CE$158*$B72 -> 38.4 | CF72: 38.64 | CG72: 38.88 | CH72: 39.12 | CI72: 39.36 | CJ72: 39.6 | CK72: 39.84 | CL72: 40.08 | CM72: 40.32 | CN72: 40.56 | CO72: 40.8 | CP72: 41.04 | CQ72: 41.28 | CR72: 41.52 | CS72: 41.76 | CT72: 42 | CU72: 42.24 | CV72: 42.48 | CW72: 42.72 | CX72: 42.96 | CY72: 43.2 | CZ72: 43.44 | DA72: 43.68 | DB72: 43.92 | DC72: 44.16 | DD72: 44.4 | DE72: 44.64 | DF72: 44.88 | DG72: 45.12 | DH72: 45.36 | DI72: 45.6 | DJ72: 45.84 | DK72: =DK$158*$B72 -> 46.08 | DL72: 46.32 | DM72: 46.56 | DN72: 46.8 | DO72: 47.04 | DP72: 47.28 | DQ72: 47.52 | DR72: 47.76 | DS72: 48 | DT72: 48.24 | DU72: 48.48 | DV72: 48.72 | DW72: 48.96 | DX72: 49.2 | DY72: 49.44 | DZ72: 49.68 | EA72: 49.92 | EB72: 50.16 | EC72: 50.4 | ED72: 50.64 | EE72: 50.88 | EF72: 51.12 | EG72: 51.36 | EH72: 51.6 | EI72: 51.84 | EJ72: 52.08 | EK72: 52.32 | EL72: 52.56 | EM72: 52.8 | EN72: 53.04 | EO72: 53.28 | EP72: 53.52 | EQ72: =EQ$158*$B72 -> 53.76 | ER72: 54 | ES72: 54.24 | ET72: 54.48 | EU72: 54.72 | EV72: 54.96 | EW72: 55.2 | EX72: 55.44 | EY72: 55.68 | EZ72: 55.92 | FA72: 56.16 | FB72: 56.4 | FC72: 56.64 | FD72: 56.88 | FE72: 57.12 | FF72: 57.36 | FG72: 57.6 | FH72: 57.84 | FI72: 58.08 | FJ72: 58.32 | FK72: 58.56 | FL72: 58.8 | FM72: 59.04 | FN72: 59.28 | FO72: 59.52 | FP72: 59.76 | FQ72: 60 | FR72: 60.24 | FS72: 60.48 | FT72: 60.72 | FU72: 60.96 | FV72: 61.2 | FW72: =FW$158*$B72 -> 61.44 | FX72: 61.68 | FY72: 61.92 | FZ72: 62.16 | GA72: 62.4 | GB72: 62.64 | GC72: 62.88 | GD72: 63.12 | GE72: 63.36 | GF72: 63.6 | GG72: 63.84 | GH72: 64.08 | GI72: 64.32 | GJ72: 64.56 | GK72: 64.8 | GL72: 65.04 | GM72: 65.28 | GN72: 65.52 | GO72: 65.76 | GP72: 66 | GQ72: 66.24 | GR72: 66.48 | GS72: 66.72 | GT72: 66.96 | GU72: 67.2 | GV72: 67.44 | GW72: 67.68 | GX72: 67.92 | GY72: 68.16 | GZ72: 68.4 | HA72: 68.64 | HB72: 68.88 | HC72: =HC$158*$B72 -> 69.12 | HD72: 69.36 | HE72: 69.6 | HF72: 69.84 | HG72: 70.08 | HH72: 70.32 | HI72: 70.56 | HJ72: 70.8 | HK72: 71.04 | HL72: 71.28 | HM72: 71.52 | HN72: 71.76 | HO72: 72
A73: =Corn!$B$51/10 -> 0.003 | B73: =SUM(A73:$A$151) -> 0.237 | C73: 0.234 | D73: =D$158*$B73 -> 19.197 | E73: 19.434 | F73: 19.671 | G73: 19.908 | H73: 20.145 | I73: 20.382 | J73: 20.619 | K73: 20.856 | L73: 21.093 | M73: 21.33 | N73: 21.567 | O73: 21.804 | P73: 22.041 | Q73: 22.278 | R73: 22.515 | S73: 22.752 | T73: 22.989 | U73: 23.226 | V73: 23.463 | W73: 23.7 | X73: 23.937 | Y73: 24.174 | Z73: 24.411 | AA73: 24.648 | AB73: 24.885 | AC73: 25.122 | AD73: 25.359 | AE73: 25.596 | AF73: 25.833 | AG73: 26.07 | AH73: 26.307 | AI73: 26.544 | AJ73: =AJ$158*$B73 -> 26.781 | AK73: 27.018 | AL73: 27.255 | AM73: 27.492 | AN73: 27.729 | AO73: 27.966 | AP73: 28.203 | AQ73: 28.44 | AR73: 28.677 | AS73: 28.914 | AT73: 29.151 | AU73: 29.388 | AV73: 29.625 | AW73: 29.862 | AX73: 30.099 | AY73: 30.336 | AZ73: 30.573 | BA73: 30.81 | BB73: 31.047 | BC73: 31.284 | BD73: 31.521 | BE73: 31.758 | BF73: 31.995 | BG73: 32.232 | BH73: 32.469 | BI73: 32.706 | BJ73: 32.943 | BK73: 33.18 | BL73: 33.417 | BM73: 33.654 | BN73: 33.891 | BO73: 34.128 | BP73: =BP$158*$B73 -> 34.365 | BQ73: 34.602 | BR73: 34.839 | BS73: 35.076 | BT73: 35.313 | BU73: 35.55 | BV73: 35.787 | BW73: 36.024 | BX73: 36.261 | BY73: 36.498 | BZ73: 36.735 | CA73: 36.972 | CB73: 37.209 | CC73: 37.446 | CD73: 37.683 | CE73: 37.92 | CF73: 38.157 | CG73: 38.394 | CH73: 38.631 | CI73: 38.868 | CJ73: 39.105 | CK73: 39.342 | CL73: 39.579 | CM73: 39.816 | CN73: 40.053 | CO73: 40.29 | CP73: 40.527 | CQ73: 40.764 | CR73: 41.001 | CS73: 41.238 | CT73: 41.475 | CU73: 41.712 | CV73: =CV$158*$B73 -> 41.949 | CW73: 42.186 | CX73: 42.423 | CY73: 42.66 | CZ73: 42.897 | DA73: 43.134 | DB73: 43.371 | DC73: 43.608 | DD73: 43.845 | DE73: 44.082 | DF73: 44.319 | DG73: 44.556 | DH73: 44.793 | DI73: 45.03 | DJ73: 45.267 | DK73: 45.504 | DL73: 45.741 | DM73: 45.978 | DN73: 46.215 | DO73: 46.452 | DP73: 46.689 | DQ73: 46.926 | DR73: 47.163 | DS73: 47.4 | DT73: 47.637 | DU73: 47.874 | DV73: 48.111 | DW73: 48.348 | DX73: 48.585 | DY73: 48.822 | DZ73: 49.059 | EA73: 49.296 | EB73: =EB$158*$B73 -> 49.533 | EC73: 49.77 | ED73: 50.007 | EE73: 50.244 | EF73: 50.481 | EG73: 50.718 | EH73: 50.955 | EI73: 51.192 | EJ73: 51.429 | EK73: 51.666 | EL73: 51.903 | EM73: 52.14 | EN73: 52.377 | EO73: 52.614 | EP73: 52.851 | EQ73: 53.088 | ER73: 53.325 | ES73: 53.562 | ET73: 53.799 | EU73: 54.036 | EV73: 54.273 | EW73: 54.51 | EX73: 54.747 | EY73: 54.984 | EZ73: 55.221 | FA73: 55.458 | FB73: 55.695 | FC73: 55.932 | FD73: 56.169 | FE73: 56.406 | FF73: 56.643 | FG73: 56.88 | FH73: =FH$158*$B73 -> 57.117 | FI73: 57.354 | FJ73: 57.591 | FK73: 57.828 | FL73: 58.065 | FM73: 58.302 | FN73: 58.539 | FO73: 58.776 | FP73: 59.013 | FQ73: 59.25 | FR73: 59.487 | FS73: 59.724 | FT73: 59.961 | FU73: 60.198 | FV73: 60.435 | FW73: 60.672 | FX73: 60.909 | FY73: 61.146 | FZ73: 61.383 | GA73: 61.62 | GB73: 61.857 | GC73: 62.094 | GD73: 62.331 | GE73: 62.568 | GF73: 62.805 | GG73: 63.042 | GH73: 63.279 | GI73: 63.516 | GJ73: 63.753 | GK73: 63.99 | GL73: 64.227 | GM73: 64.464 | GN73: =GN$158*$B73 -> 64.701 | GO73: 64.938 | GP73: 65.175 | GQ73: 65.412 | GR73: 65.649 | GS73: 65.886 | GT73: 66.123 | GU73: 66.36 | GV73: 66.597 | GW73: 66.834 | GX73: 67.071 | GY73: 67.308 | GZ73: 67.545 | HA73: 67.782 | HB73: 68.019 | HC73: 68.256 | HD73: 68.493 | HE73: 68.73 | HF73: 68.967 | HG73: 69.204 | HH73: 69.441 | HI73: 69.678 | HJ73: 69.915 | HK73: 70.152 | HL73: 70.389 | HM73: 70.626 | HN73: 70.863 | HO73: 71.1
A74: =Corn!$B$51/10 -> 0.003 | B74: =SUM(A74:$A$151) -> 0.234 | C74: 0.233 | D74: 18.954 | E74: 19.188 | F74: 19.422 | G74: 19.656 | H74: 19.89 | I74: 20.124 | J74: 20.358 | K74: 20.592 | L74: 20.826 | M74: 21.06 | N74: 21.294 | O74: 21.528 | P74: 21.762 | Q74: 21.996 | R74: 22.23 | S74: 22.464 | T74: 22.698 | U74: 22.932 | V74: 23.166 | W74: 23.4 | X74: 23.634 | Y74: 23.868 | Z74: 24.102 | AA74: 24.336 | AB74: 24.57 | AC74: 24.804 | AD74: 25.038 | AE74: 25.272 | AF74: 25.506 | AG74: 25.74 | AH74: 25.974 | AI74: 26.208 | AJ74: 26.442 | AK74: 26.676 | AL74: 26.91 | AM74: 27.144 | AN74: 27.378 | AO74: 27.612 | AP74: 27.846 | AQ74: 28.08 | AR74: 28.314 | AS74: 28.548 | AT74: 28.782 | AU74: 29.016 | AV74: 29.25 | AW74: 29.484 | AX74: 29.718 | AY74: 29.952 | AZ74: 30.186 | BA74: 30.42 | BB74: 30.654 | BC74: 30.888 | BD74: 31.122 | BE74: 31.356 | BF74: 31.59 | BG74: 31.824 | BH74: 32.058 | BI74: 32.292 | BJ74: 32.526 | BK74: 32.76 | BL74: 32.994 | BM74: 33.228 | BN74: 33.462 | BO74: 33.696 | BP74: 33.93 | BQ74: 34.164 | BR74: 34.398 | BS74: 34.632 | BT74: 34.866 | BU74: 35.1 | BV74: 35.334 | BW74: 35.568 | BX74: 35.802 | BY74: 36.036 | BZ74: 36.27 | CA74: 36.504 | CB74: 36.738 | CC74: 36.972 | CD74: 37.206 | CE74: 37.44 | CF74: 37.674 | CG74: 37.908 | CH74: 38.142 | CI74: 38.376 | CJ74: 38.61 | CK74: 38.844 | CL74: 39.078 | CM74: 39.312 | CN74: 39.546 | CO74: 39.78 | CP74: 40.014 | CQ74: 40.248 | CR74: 40.482 | CS74: 40.716 | CT74: 40.95 | CU74: 41.184 | CV74: 41.418 | CW74: 41.652 | CX74: 41.886 | CY74: 42.12 | CZ74: 42.354 | DA74: 42.588 | DB74: 42.822 | DC74: 43.056 | DD74: 43.29 | DE74: 43.524 | DF74: 43.758 | DG74: 43.992 | DH74: 44.226 | DI74: 44.46 | DJ74: 44.694 | DK74: 44.928 | DL74: 45.162 | DM74: 45.396 | DN74: 45.63 | DO74: 45.864 | DP74: 46.098 | DQ74: 46.332 | DR74: 46.566 | DS74: 46.8 | DT74: 47.034 | DU74: 47.268 | DV74: 47.502 | DW74: 47.736 | DX74: 47.97 | DY74: 48.204 | DZ74: 48.438 | EA74: 48.672 | EB74: 48.906 | EC74: 49.14 | ED74: 49.374 | EE74: 49.608 | EF74: 49.842 | EG74: 50.076 | EH74: 50.31 | EI74: 50.544 | EJ74: 50.778 | EK74: 51.012 | EL74: 51.246 | EM74: 51.48 | EN74: 51.714 | EO74: 51.948 | EP74: 52.182 | EQ74: 52.416 | ER74: 52.65 | ES74: 52.884 | ET74: 53.118 | EU74: 53.352 | EV74: 53.586 | EW74: 53.82 | EX74: 54.054 | EY74: 54.288 | EZ74: 54.522 | FA74: 54.756 | FB74: 54.99 | FC74: 55.224 | FD74: 55.458 | FE74: 55.692 | FF74: 55.926 | FG74: 56.16 | FH74: 56.394 | FI74: 56.628 | FJ74: 56.862 | FK74: 57.096 | FL74: 57.33 | FM74: 57.564 | FN74: 57.798 | FO74: 58.032 | FP74: 58.266 | FQ74: 58.5 | FR74: 58.734 | FS74: 58.968 | FT74: 59.202 | FU74: 59.436 | FV74: 59.67 | FW74: 59.904 | FX74: 60.138 | FY74: 60.372 | FZ74: 60.606 | GA74: 60.84 | GB74: 61.074 | GC74: 61.308 | GD74: 61.542 | GE74: 61.776 | GF74: 62.01 | GG74: 62.244 | GH74: 62.478 | GI74: 62.712 | GJ74: 62.946 | GK74: 63.18 | GL74: 63.414 | GM74: 63.648 | GN74: 63.882 | GO74: 64.116 | GP74: 64.35 | GQ74: 64.584 | GR74: 64.818 | GS74: 65.052 | GT74: 65.286 | GU74: 65.52 | GV74: 65.754 | GW74: 65.988 | GX74: 66.222 | GY74: 66.456 | GZ74: 66.69 | HA74: 66.924 | HB74: 67.158 | HC74: 67.392 | HD74: 67.626 | HE74: 67.86 | HF74: 68.094 | HG74: 68.328 | HH74: 68.562 | HI74: 68.796 | HJ74: 69.03 | HK74: 69.264 | HL74: 69.498 | HM74: 69.732 | HN74: 69.966 | HO74: 70.2
A75: =Corn!$B$51/10 -> 0.003 | B75: =SUM(A75:$A$151) -> 0.231 | C75: 0.232 | D75: 18.711 | E75: 18.942 | F75: 19.173 | G75: 19.404 | H75: 19.635 | I75: 19.866 | J75: 20.097 | K75: 20.328 | L75: 20.559 | M75: 20.79 | N75: 21.021 | O75: 21.252 | P75: 21.483 | Q75: 21.714 | R75: 21.945 | S75: 22.176 | T75: 22.407 | U75: 22.638 | V75: 22.869 | W75: 23.1 | X75: 23.331 | Y75: 23.562 | Z75: 23.793 | AA75: 24.024 | AB75: 24.255 | AC75: 24.486 | AD75: 24.717 | AE75: 24.948 | AF75: 25.179 | AG75: 25.41 | AH75: 25.641 | AI75: 25.872 | AJ75: 26.103 | AK75: 26.334 | AL75: 26.565 | AM75: 26.796 | AN75: 27.027 | AO75: 27.258 | AP75: 27.489 | AQ75: 27.72 | AR75: 27.951 | AS75: 28.182 | AT75: 28.413 | AU75: 28.644 | AV75: 28.875 | AW75: 29.106 | AX75: 29.337 | AY75: 29.568 | AZ75: 29.799 | BA75: 30.03 | BB75: 30.261 | BC75: 30.492 | BD75: 30.723 | BE75: 30.954 | BF75: 31.185 | BG75: 31.416 | BH75: 31.647 | BI75: 31.878 | BJ75: 32.109 | BK75: 32.34 | BL75: 32.571 | BM75: 32.802 | BN75: 33.033 | BO75: 33.264 | BP75: 33.495 | BQ75: 33.726 | BR75: 33.957 | BS75: 34.188 | BT75: 34.419 | BU75: 34.65 | BV75: 34.881 | BW75: 35.112 | BX75: 35.343 | BY75: 35.574 | BZ75: 35.805 | CA75: 36.036 | CB75: 36.267 | CC75: 36.498 | CD75: 36.729 | CE75: 36.96 | CF75: 37.191 | CG75: 37.422 | CH75: 37.653 | CI75: 37.884 | CJ75: 38.115 | CK75: 38.346 | CL75: 38.577 | CM75: 38.808 | CN75: 39.039 | CO75: 39.27 | CP75: 39.501 | CQ75: 39.732 | CR75: 39.963 | CS75: 40.194 | CT75: 40.425 | CU75: 40.656 | CV75: 40.887 | CW75: 41.118 | CX75: 41.349 | CY75: 41.58 | CZ75: 41.811 | DA75: 42.042 | DB75: 42.273 | DC75: 42.504 | DD75: 42.735 | DE75: 42.966 | DF75: 43.197 | DG75: 43.428 | DH75: 43.659 | DI75: 43.89 | DJ75: 44.121 | DK75: 44.352 | DL75: 44.583 | DM75: 44.814 | DN75: 45.045 | DO75: 45.276 | DP75: 45.507 | DQ75: 45.738 | DR75: 45.969 | DS75: 46.2 | DT75: 46.431 | DU75: 46.662 | DV75: 46.893 | DW75: 47.124 | DX75: 47.355 | DY75: 47.586 | DZ75: 47.817 | EA75: 48.048 | EB75: 48.279 | EC75: 48.51 | ED75: 48.741 | EE75: 48.972 | EF75: 49.203 | EG75: 49.434 | EH75: 49.665 | EI75: 49.896 | EJ75: 50.127 | EK75: 50.358 | EL75: 50.589 | EM75: 50.82 | EN75: 51.051 | EO75: 51.282 | EP75: 51.513 | EQ75: 51.744 | ER75: 51.975 | ES75: 52.206 | ET75: 52.437 | EU75: 52.668 | EV75: 52.899 | EW75: 53.13 | EX75: 53.361 | EY75: 53.592 | EZ75: 53.823 | FA75: 54.054 | FB75: 54.285 | FC75: 54.516 | FD75: 54.747 | FE75: 54.978 | FF75: 55.209 | FG75: 55.44 | FH75: 55.671 | FI75: 55.902 | FJ75: 56.133 | FK75: 56.364 | FL75: 56.595 | FM75: 56.826 | FN75: 57.057 | FO75: 57.288 | FP75: 57.519 | FQ75: 57.75 | FR75: 57.981 | FS75: 58.212 | FT75: 58.443 | FU75: 58.674 | FV75: 58.905 | FW75: 59.136 | FX75: 59.367 | FY75: 59.598 | FZ75: 59.829 | GA75: 60.06 | GB75: 60.291 | GC75: 60.522 | GD75: 60.753 | GE75: 60.984 | GF75: 61.215 | GG75: 61.446 | GH75: 61.677 | GI75: 61.908 | GJ75: 62.139 | GK75: 62.37 | GL75: 62.601 | GM75: 62.832 | GN75: 63.063 | GO75: 63.294 | GP75: 63.525 | GQ75: 63.756 | GR75: 63.987 | GS75: 64.218 | GT75: 64.449 | GU75: 64.68 | GV75: 64.911 | GW75: 65.142 | GX75: 65.373 | GY75: 65.604 | GZ75: 65.835 | HA75: 66.066 | HB75: 66.297 | HC75: 66.528 | HD75: 66.759 | HE75: 66.99 | HF75: 67.221 | HG75: 67.452 | HH75: 67.683 | HI75: 67.914 | HJ75: 68.145 | HK75: 68.376 | HL75: 68.607 | HM75: 68.838 | HN75: 69.069 | HO75: 69.3
A76: =Corn!$B$51/10 -> 0.003 | B76: =SUM(A76:$A$151) -> 0.228 | C76: 0.231 | D76: 18.468 | E76: 18.696 | F76: 18.924 | G76: 19.152 | H76: 19.38 | I76: 19.608 | J76: 19.836 | K76: 20.064 | L76: 20.292 | M76: 20.52 | N76: 20.748 | O76: 20.976 | P76: 21.204 | Q76: 21.432 | R76: 21.66 | S76: 21.888 | T76: 22.116 | U76: 22.344 | V76: 22.572 | W76: 22.8 | X76: 23.028 | Y76: 23.256 | Z76: 23.484 | AA76: 23.712 | AB76: 23.94 | AC76: 24.168 | AD76: 24.396 | AE76: 24.624 | AF76: 24.852 | AG76: 25.08 | AH76: 25.308 | AI76: 25.536 | AJ76: 25.764 | AK76: 25.992 | AL76: 26.22 | AM76: 26.448 | AN76: 26.676 | AO76: 26.904 | AP76: 27.132 | AQ76: 27.36 | AR76: 27.588 | AS76: 27.816 | AT76: 28.044 | AU76: 28.272 | AV76: 28.5 | AW76: 28.728 | AX76: 28.956 | AY76: 29.184 | AZ76: 29.412 | BA76: 29.64 | BB76: 29.868 | BC76: 30.096 | BD76: 30.324 | BE76: 30.552 | BF76: 30.78 | BG76: 31.008 | BH76: 31.236 | BI76: 31.464 | BJ76: 31.692 | BK76: 31.92 | BL76: 32.148 | BM76: 32.376 | BN76: 32.604 | BO76: 32.832 | BP76: 33.06 | BQ76: 33.288 | BR76: 33.516 | BS76: 33.744 | BT76: 33.972 | BU76: 34.2 | BV76: 34.428 | BW76: 34.656 | BX76: 34.884 | BY76: 35.112 | BZ76: 35.34 | CA76: 35.568 | CB76: 35.796 | CC76: 36.024 | CD76: 36.252 | CE76: 36.48 | CF76: 36.708 | CG76: 36.936 | CH76: 37.164 | CI76: 37.392 | CJ76: 37.62 | CK76: 37.848 | CL76: 38.076 | CM76: 38.304 | CN76: 38.532 | CO76: 38.76 | CP76: 38.988 | CQ76: 39.216 | CR76: 39.444 | CS76: 39.672 | CT76: 39.9 | CU76: 40.128 | CV76: 40.356 | CW76: 40.584 | CX76: 40.812 | CY76: 41.04 | CZ76: 41.268 | DA76: 41.496 | DB76: 41.724 | DC76: 41.952 | DD76: 42.18 | DE76: 42.408 | DF76: 42.636 | DG76: 42.864 | DH76: 43.092 | DI76: 43.32 | DJ76: 43.548 | DK76: 43.776 | DL76: 44.004 | DM76: 44.232 | DN76: 44.46 | DO76: 44.688 | DP76: 44.916 | DQ76: 45.144 | DR76: 45.372 | DS76: 45.6 | DT76: 45.828 | DU76: 46.056 | DV76: 46.284 | DW76: 46.512 | DX76: 46.74 | DY76: 46.968 | DZ76: 47.196 | EA76: 47.424 | EB76: 47.652 | EC76: 47.88 | ED76: 48.108 | EE76: 48.336 | EF76: 48.564 | EG76: 48.792 | EH76: 49.02 | EI76: 49.248 | EJ76: 49.476 | EK76: 49.704 | EL76: 49.932 | EM76: 50.16 | EN76: 50.388 | EO76: 50.616 | EP76: 50.844 | EQ76: 51.072 | ER76: 51.3 | ES76: 51.528 | ET76: 51.756 | EU76: 51.984 | EV76: 52.212 | EW76: 52.44 | EX76: 52.668 | EY76: 52.896 | EZ76: 53.124 | FA76: 53.352 | FB76: 53.58 | FC76: 53.808 | FD76: 54.036 | FE76: 54.264 | FF76: 54.492 | FG76: 54.72 | FH76: 54.948 | FI76: 55.176 | FJ76: 55.404 | FK76: 55.632 | FL76: 55.86 | FM76: 56.088 | FN76: 56.316 | FO76: 56.544 | FP76: 56.772 | FQ76: 57 | FR76: 57.228 | FS76: 57.456 | FT76: 57.684 | FU76: 57.912 | FV76: 58.14 | FW76: 58.368 | FX76: 58.596 | FY76: 58.824 | FZ76: 59.052 | GA76: 59.28 | GB76: 59.508 | GC76: 59.736 | GD76: 59.964 | GE76: 60.192 | GF76: 60.42 | GG76: 60.648 | GH76: 60.876 | GI76: 61.104 | GJ76: 61.332 | GK76: 61.56 | GL76: 61.788 | GM76: 62.016 | GN76: 62.244 | GO76: 62.472 | GP76: 62.7 | GQ76: 62.928 | GR76: 63.156 | GS76: 63.384 | GT76: 63.612 | GU76: 63.84 | GV76: 64.068 | GW76: 64.296 | GX76: 64.524 | GY76: 64.752 | GZ76: 64.98 | HA76: 65.208 | HB76: 65.436 | HC76: 65.664 | HD76: 65.892 | HE76: 66.12 | HF76: 66.348 | HG76: 66.576 | HH76: 66.804 | HI76: 67.032 | HJ76: 67.26 | HK76: 67.488 | HL76: 67.716 | HM76: 67.944 | HN76: 68.172 | HO76: 68.4
A77: =Corn!$B$51/10 -> 0.003 | B77: =SUM(A77:$A$151) -> 0.225 | C77: 0.23 | D77: 18.225 | E77: 18.45 | F77: 18.675 | G77: 18.9 | H77: 19.125 | I77: 19.35 | J77: 19.575 | K77: 19.8 | L77: 20.025 | M77: 20.25 | N77: 20.475 | O77: 20.7 | P77: 20.925 | Q77: 21.15 | R77: 21.375 | S77: 21.6 | T77: 21.825 | U77: 22.05 | V77: 22.275 | W77: 22.5 | X77: 22.725 | Y77: 22.95 | Z77: 23.175 | AA77: 23.4 | AB77: 23.625 | AC77: 23.85 | AD77: 24.075 | AE77: 24.3 | AF77: 24.525 | AG77: 24.75 | AH77: 24.975 | AI77: 25.2 | AJ77: 25.425 | AK77: 25.65 | AL77: 25.875 | AM77: 26.1 | AN77: 26.325 | AO77: 26.55 | AP77: 26.775 | AQ77: 27 | AR77: 27.225 | AS77: 27.45 | AT77: 27.675 | AU77: 27.9 | AV77: 28.125 | AW77: 28.35 | AX77: 28.575 | AY77: 28.8 | AZ77: 29.025 | BA77: 29.25 | BB77: 29.475 | BC77: 29.7 | BD77: 29.925 | BE77: 30.15 | BF77: 30.375 | BG77: 30.6 | BH77: 30.825 | BI77: 31.05 | BJ77: 31.275 | BK77: 31.5 | BL77: 31.725 | BM77: 31.95 | BN77: 32.175 | BO77: 32.4 | BP77: 32.625 | BQ77: 32.85 | BR77: 33.075 | BS77: 33.3 | BT77: 33.525 | BU77: 33.75 | BV77: 33.975 | BW77: 34.2 | BX77: 34.425 | BY77: 34.65 | BZ77: 34.875 | CA77: 35.1 | CB77: 35.325 | CC77: 35.55 | CD77: 35.775 | CE77: 36 | CF77: 36.225 | CG77: 36.45 | CH77: 36.675 | CI77: 36.9 | CJ77: 37.125 | CK77: 37.35 | CL77: 37.575 | CM77: 37.8 | CN77: 38.025 | CO77: 38.25 | CP77: 38.475 | CQ77: 38.7 | CR77: 38.925 | CS77: 39.15 | CT77: 39.375 | CU77: 39.6 | CV77: 39.825 | CW77: 40.05 | CX77: 40.275 | CY77: 40.5 | CZ77: 40.725 | DA77: 40.95 | DB77: 41.175 | DC77: 41.4 | DD77: 41.625 | DE77: 41.85 | DF77: 42.075 | DG77: 42.3 | DH77: 42.525 | DI77: 42.75 | DJ77: 42.975 | DK77: 43.2 | DL77: 43.425 | DM77: 43.65 | DN77: 43.875 | DO77: 44.1 | DP77: 44.325 | DQ77: 44.55 | DR77: 44.775 | DS77: 45 | DT77: 45.225 | DU77: 45.45 | DV77: 45.675 | DW77: 45.9 | DX77: 46.125 | DY77: 46.35 | DZ77: 46.575 | EA77: 46.8 | EB77: 47.025 | EC77: 47.25 | ED77: 47.475 | EE77: 47.7 | EF77: 47.925 | EG77: 48.15 | EH77: 48.375 | EI77: 48.6 | EJ77: 48.825 | EK77: 49.05 | EL77: 49.275 | EM77: 49.5 | EN77: 49.725 | EO77: 49.95 | EP77: 50.175 | EQ77: 50.4 | ER77: 50.625 | ES77: 50.85 | ET77: 51.075 | EU77: 51.3 | EV77: 51.525 | EW77: 51.75 | EX77: 51.975 | EY77: 52.2 | EZ77: 52.425 | FA77: 52.65 | FB77: 52.875 | FC77: 53.1 | FD77: 53.325 | FE77: 53.55 | FF77: 53.775 | FG77: 54 | FH77: 54.225 | FI77: 54.45 | FJ77: 54.675 | FK77: 54.9 | FL77: 55.125 | FM77: 55.35 | FN77: 55.575 | FO77: 55.8 | FP77: 56.025 | FQ77: 56.25 | FR77: 56.475 | FS77: 56.7 | FT77: 56.925 | FU77: 57.15 | FV77: 57.375 | FW77: 57.6 | FX77: 57.825 | FY77: 58.05 | FZ77: 58.275 | GA77: 58.5 | GB77: 58.725 | GC77: 58.95 | GD77: 59.175 | GE77: 59.4 | GF77: 59.625 | GG77: 59.85 | GH77: 60.075 | GI77: 60.3 | GJ77: 60.525 | GK77: 60.75 | GL77: 60.975 | GM77: 61.2 | GN77: 61.425 | GO77: 61.65 | GP77: 61.875 | GQ77: 62.1 | GR77: 62.325 | GS77: 62.55 | GT77: 62.775 | GU77: 63 | GV77: 63.225 | GW77: 63.45 | GX77: 63.675 | GY77: 63.9 | GZ77: 64.125 | HA77: 64.35 | HB77: 64.575 | HC77: 64.8 | HD77: 65.025 | HE77: 65.25 | HF77: 65.475 | HG77: 65.7 | HH77: 65.925 | HI77: 66.15 | HJ77: 66.375 | HK77: 66.6 | HL77: 66.825 | HM77: 67.05 | HN77: 67.275 | HO77: 67.5
A78: =Corn!$B$51/10 -> 0.003 | B78: =SUM(A78:$A$151) -> 0.222 | C78: 0.229 | D78: 17.982 | E78: 18.204 | F78: 18.426 | G78: 18.648 | H78: 18.87 | I78: 19.092 | J78: 19.314 | K78: 19.536 | L78: 19.758 | M78: 19.98 | N78: 20.202 | O78: 20.424 | P78: 20.646 | Q78: 20.868 | R78: 21.09 | S78: 21.312 | T78: 21.534 | U78: 21.756 | V78: 21.978 | W78: 22.2 | X78: 22.422 | Y78: 22.644 | Z78: 22.866 | AA78: 23.088 | AB78: 23.31 | AC78: 23.532 | AD78: 23.754 | AE78: 23.976 | AF78: 24.198 | AG78: 24.42 | AH78: 24.642 | AI78: 24.864 | AJ78: 25.086 | AK78: 25.308 | AL78: 25.53 | AM78: 25.752 | AN78: 25.974 | AO78: 26.196 | AP78: 26.418 | AQ78: 26.64 | AR78: 26.862 | AS78: 27.084 | AT78: 27.306 | AU78: 27.528 | AV78: 27.75 | AW78: 27.972 | AX78: 28.194 | AY78: 28.416 | AZ78: 28.638 | BA78: 28.86 | BB78: 29.082 | BC78: 29.304 | BD78: 29.526 | BE78: 29.748 | BF78: 29.97 | BG78: 30.192 | BH78: 30.414 | BI78: 30.636 | BJ78: 30.858 | BK78: 31.08 | BL78: 31.302 | BM78: 31.524 | BN78: 31.746 | BO78: 31.968 | BP78: 32.19 | BQ78: 32.412 | BR78: 32.634 | BS78: 32.856 | BT78: 33.078 | BU78: 33.3 | BV78: 33.522 | BW78: 33.744 | BX78: 33.966 | BY78: 34.188 | BZ78: 34.41 | CA78: 34.632 | CB78: 34.854 | CC78: 35.076 | CD78: 35.298 | CE78: 35.52 | CF78: 35.742 | CG78: 35.964 | CH78: 36.186 | CI78: 36.408 | CJ78: 36.63 | CK78: 36.852 | CL78: 37.074 | CM78: 37.296 | CN78: 37.518 | CO78: 37.74 | CP78: 37.962 | CQ78: 38.184 | CR78: 38.406 | CS78: 38.628 | CT78: 38.85 | CU78: 39.072 | CV78: 39.294 | CW78: 39.516 | CX78: 39.738 | CY78: 39.96 | CZ78: 40.182 | DA78: 40.404 | DB78: 40.626 | DC78: 40.848 | DD78: 41.07 | DE78: 41.292 | DF78: 41.514 | DG78: 41.736 | DH78: 41.958 | DI78: 42.18 | DJ78: 42.402 | DK78: 42.624 | DL78: 42.846 | DM78: 43.068 | DN78: 43.29 | DO78: 43.512 | DP78: 43.734 | DQ78: 43.956 | DR78: 44.178 | DS78: 44.4 | DT78: 44.622 | DU78: 44.844 | DV78: 45.066 | DW78: 45.288 | DX78: 45.51 | DY78: 45.732 | DZ78: 45.954 | EA78: 46.176 | EB78: 46.398 | EC78: 46.62 | ED78: 46.842 | EE78: 47.064 | EF78: 47.286 | EG78: 47.508 | EH78: 47.73 | EI78: 47.952 | EJ78: 48.174 | EK78: 48.396 | EL78: 48.618 | EM78: 48.84 | EN78: 49.062 | EO78: 49.284 | EP78: 49.506 | EQ78: 49.728 | ER78: 49.95 | ES78: 50.172 | ET78: 50.394 | EU78: 50.616 | EV78: 50.838 | EW78: 51.06 | EX78: 51.282 | EY78: 51.504 | EZ78: 51.726 | FA78: 51.948 | FB78: 52.17 | FC78: 52.392 | FD78: 52.614 | FE78: 52.836 | FF78: 53.058 | FG78: 53.28 | FH78: 53.502 | FI78: 53.724 | FJ78: 53.946 | FK78: 54.168 | FL78: 54.39 | FM78: 54.612 | FN78: 54.834 | FO78: 55.056 | FP78: 55.278 | FQ78: 55.5 | FR78: 55.722 | FS78: 55.944 | FT78: 56.166 | FU78: 56.388 | FV78: 56.61 | FW78: 56.832 | FX78: 57.054 | FY78: 57.276 | FZ78: 57.498 | GA78: 57.72 | GB78: 57.942 | GC78: 58.164 | GD78: 58.386 | GE78: 58.608 | GF78: 58.83 | GG78: 59.052 | GH78: 59.274 | GI78: 59.496 | GJ78: 59.718 | GK78: 59.94 | GL78: 60.162 | GM78: 60.384 | GN78: 60.606 | GO78: 60.828 | GP78: 61.05 | GQ78: 61.272 | GR78: 61.494 | GS78: 61.716 | GT78: 61.938 | GU78: 62.16 | GV78: 62.382 | GW78: 62.604 | GX78: 62.826 | GY78: 63.048 | GZ78: 63.27 | HA78: 63.492 | HB78: 63.714 | HC78: 63.936 | HD78: 64.158 | HE78: 64.38 | HF78: 64.602 | HG78: 64.824 | HH78: 65.046 | HI78: 65.268 | HJ78: 65.49 | HK78: 65.712 | HL78: 65.934 | HM78: 66.156 | HN78: 66.378 | HO78: 66.6
A79: =Corn!$B$51/10 -> 0.003 | B79: =SUM(A79:$A$151) -> 0.219 | C79: 0.228 | D79: 17.739 | E79: 17.958 | F79: 18.177 | G79: 18.396 | H79: 18.615 | I79: 18.834 | J79: 19.053 | K79: 19.272 | L79: 19.491 | M79: 19.71 | N79: 19.929 | O79: 20.148 | P79: 20.367 | Q79: 20.586 | R79: 20.805 | S79: 21.024 | T79: 21.243 | U79: 21.462 | V79: 21.681 | W79: 21.9 | X79: 22.119 | Y79: 22.338 | Z79: 22.557 | AA79: 22.776 | AB79: 22.995 | AC79: 23.214 | AD79: 23.433 | AE79: 23.652 | AF79: 23.871 | AG79: 24.09 | AH79: 24.309 | AI79: 24.528 | AJ79: 24.747 | AK79: 24.966 | AL79: 25.185 | AM79: 25.404 | AN79: 25.623 | AO79: 25.842 | AP79: 26.061 | AQ79: 26.28 | AR79: 26.499 | AS79: 26.718 | AT79: 26.937 | AU79: 27.156 | AV79: 27.375 | AW79: 27.594 | AX79: 27.813 | AY79: 28.032 | AZ79: 28.251 | BA79: 28.47 | BB79: 28.689 | BC79: 28.908 | BD79: 29.127 | BE79: 29.346 | BF79: 29.565 | BG79: 29.784 | BH79: 30.003 | BI79: 30.222 | BJ79: 30.441 | BK79: 30.66 | BL79: 30.879 | BM79: 31.098 | BN79: 31.317 | BO79: 31.536 | BP79: 31.755 | BQ79: 31.974 | BR79: 32.193 | BS79: 32.412 | BT79: 32.631 | BU79: 32.85 | BV79: 33.069 | BW79: 33.288 | BX79: 33.507 | BY79: 33.726 | BZ79: 33.945 | CA79: 34.164 | CB79: 34.383 | CC79: 34.602 | CD79: 34.821 | CE79: 35.04 | CF79: 35.259 | CG79: 35.478 | CH79: 35.697 | CI79: 35.916 | CJ79: 36.135 | CK79: 36.354 | CL79: 36.573 | CM79: 36.792 | CN79: 37.011 | CO79: 37.23 | CP79: 37.449 | CQ79: 37.668 | CR79: 37.887 | CS79: 38.106 | CT79: 38.325 | CU79: 38.544 | CV79: 38.763 | CW79: 38.982 | CX79: 39.201 | CY79: 39.42 | CZ79: 39.639 | DA79: 39.858 | DB79: 40.077 | DC79: 40.296 | DD79: 40.515 | DE79: 40.734 | DF79: 40.953 | DG79: 41.172 | DH79: 41.391 | DI79: 41.61 | DJ79: 41.829 | DK79: 42.048 | DL79: 42.267 | DM79: 42.486 | DN79: 42.705 | DO79: 42.924 | DP79: 43.143 | DQ79: 43.362 | DR79: 43.581 | DS79: 43.8 | DT79: 44.019 | DU79: 44.238 | DV79: 44.457 | DW79: 44.676 | DX79: 44.895 | DY79: 45.114 | DZ79: 45.333 | EA79: 45.552 | EB79: 45.771 | EC79: 45.99 | ED79: 46.209 | EE79: 46.428 | EF79: 46.647 | EG79: 46.866 | EH79: 47.085 | EI79: 47.304 | EJ79: 47.523 | EK79: 47.742 | EL79: 47.961 | EM79: 48.18 | EN79: 48.399 | EO79: 48.618 | EP79: 48.837 | EQ79: 49.056 | ER79: 49.275 | ES79: 49.494 | ET79: 49.713 | EU79: 49.932 | EV79: 50.151 | EW79: 50.37 | EX79: 50.589 | EY79: 50.808 | EZ79: 51.027 | FA79: 51.246 | FB79: 51.465 | FC79: 51.684 | FD79: 51.903 | FE79: 52.122 | FF79: 52.341 | FG79: 52.56 | FH79: 52.779 | FI79: 52.998 | FJ79: 53.217 | FK79: 53.436 | FL79: 53.655 | FM79: 53.874 | FN79: 54.093 | FO79: 54.312 | FP79: 54.531 | FQ79: 54.75 | FR79: 54.969 | FS79: 55.188 | FT79: 55.407 | FU79: 55.626 | FV79: 55.845 | FW79: 56.064 | FX79: 56.283 | FY79: 56.502 | FZ79: 56.721 | GA79: 56.94 | GB79: 57.159 | GC79: 57.378 | GD79: 57.597 | GE79: 57.816 | GF79: 58.035 | GG79: 58.254 | GH79: 58.473 | GI79: 58.692 | GJ79: 58.911 | GK79: 59.13 | GL79: 59.349 | GM79: 59.568 | GN79: 59.787 | GO79: 60.006 | GP79: 60.225 | GQ79: 60.444 | GR79: 60.663 | GS79: 60.882 | GT79: 61.101 | GU79: 61.32 | GV79: 61.539 | GW79: 61.758 | GX79: 61.977 | GY79: 62.196 | GZ79: 62.415 | HA79: 62.634 | HB79: 62.853 | HC79: 63.072 | HD79: 63.291 | HE79: 63.51 | HF79: 63.729 | HG79: 63.948 | HH79: 64.167 | HI79: 64.386 | HJ79: 64.605 | HK79: 64.824 | HL79: 65.043 | HM79: 65.262 | HN79: 65.481 | HO79: 65.7
A80: =Corn!$B$51/10 -> 0.003 | B80: =SUM(A80:$A$151) -> 0.216 | C80: 0.227 | D80: 17.496 | E80: 17.712 | F80: 17.928 | G80: 18.144 | H80: 18.36 | I80: 18.576 | J80: 18.792 | K80: 19.008 | L80: 19.224 | M80: 19.44 | N80: 19.656 | O80: 19.872 | P80: 20.088 | Q80: 20.304 | R80: 20.52 | S80: 20.736 | T80: 20.952 | U80: 21.168 | V80: 21.384 | W80: 21.6 | X80: 21.816 | Y80: 22.032 | Z80: 22.248 | AA80: 22.464 | AB80: 22.68 | AC80: 22.896 | AD80: 23.112 | AE80: 23.328 | AF80: 23.544 | AG80: 23.76 | AH80: 23.976 | AI80: 24.192 | AJ80: 24.408 | AK80: 24.624 | AL80: 24.84 | AM80: 25.056 | AN80: 25.272 | AO80: 25.488 | AP80: 25.704 | AQ80: 25.92 | AR80: 26.136 | AS80: 26.352 | AT80: 26.568 | AU80: 26.784 | AV80: 27 | AW80: 27.216 | AX80: 27.432 | AY80: 27.648 | AZ80: 27.864 | BA80: 28.08 | BB80: 28.296 | BC80: 28.512 | BD80: 28.728 | BE80: 28.944 | BF80: 29.16 | BG80: 29.376 | BH80: 29.592 | BI80: 29.808 | BJ80: 30.024 | BK80: 30.24 | BL80: 30.456 | BM80: 30.672 | BN80: 30.888 | BO80: 31.104 | BP80: 31.32 | BQ80: 31.536 | BR80: 31.752 | BS80: 31.968 | BT80: 32.184 | BU80: 32.4 | BV80: 32.616 | BW80: 32.832 | BX80: 33.048 | BY80: 33.264 | BZ80: 33.48 | CA80: 33.696 | CB80: 33.912 | CC80: 34.128 | CD80: 34.344 | CE80: 34.56 | CF80: 34.776 | CG80: 34.992 | CH80: 35.208 | CI80: 35.424 | CJ80: 35.64 | CK80: 35.856 | CL80: 36.072 | CM80: 36.288 | CN80: 36.504 | CO80: 36.72 | CP80: 36.936 | CQ80: 37.152 | CR80: 37.368 | CS80: 37.584 | CT80: 37.8 | CU80: 38.016 | CV80: 38.232 | CW80: 38.448 | CX80: 38.664 | CY80: 38.88 | CZ80: 39.096 | DA80: 39.312 | DB80: 39.528 | DC80: 39.744 | DD80: 39.96 | DE80: 40.176 | DF80: 40.392 | DG80: 40.608 | DH80: 40.824 | DI80: 41.04 | DJ80: 41.256 | DK80: 41.472 | DL80: 41.688 | DM80: 41.904 | DN80: 42.12 | DO80: 42.336 | DP80: 42.552 | DQ80: 42.768 | DR80: 42.984 | DS80: 43.2 | DT80: 43.416 | DU80: 43.632 | DV80: 43.848 | DW80: 44.064 | DX80: 44.28 | DY80: 44.496 | DZ80: 44.712 | EA80: 44.928 | EB80: 45.144 | EC80: 45.36 | ED80: 45.576 | EE80: 45.792 | EF80: 46.008 | EG80: 46.224 | EH80: 46.44 | EI80: 46.656 | EJ80: 46.872 | EK80: 47.088 | EL80: 47.304 | EM80: 47.52 | EN80: 47.736 | EO80: 47.952 | EP80: 48.168 | EQ80: 48.384 | ER80: 48.6 | ES80: 48.816 | ET80: 49.032 | EU80: 49.248 | EV80: 49.464 | EW80: 49.68 | EX80: 49.896 | EY80: 50.112 | EZ80: 50.328 | FA80: 50.544 | FB80: 50.76 | FC80: 50.976 | FD80: 51.192 | FE80: 51.408 | FF80: 51.624 | FG80: 51.84 | FH80: 52.056 | FI80: 52.272 | FJ80: 52.488 | FK80: 52.704 | FL80: 52.92 | FM80: 53.136 | FN80: 53.352 | FO80: 53.568 | FP80: 53.784 | FQ80: 54 | FR80: 54.216 | FS80: 54.432 | FT80: 54.648 | FU80: 54.864 | FV80: 55.08 | FW80: 55.296 | FX80: 55.512 | FY80: 55.728 | FZ80: 55.944 | GA80: 56.16 | GB80: 56.376 | GC80: 56.592 | GD80: 56.808 | GE80: 57.024 | GF80: 57.24 | GG80: 57.456 | GH80: 57.672 | GI80: 57.888 | GJ80: 58.104 | GK80: 58.32 | GL80: 58.536 | GM80: 58.752 | GN80: 58.968 | GO80: 59.184 | GP80: 59.4 | GQ80: 59.616 | GR80: 59.832 | GS80: 60.048 | GT80: 60.264 | GU80: 60.48 | GV80: 60.696 | GW80: 60.912 | GX80: 61.128 | GY80: 61.344 | GZ80: 61.56 | HA80: 61.776 | HB80: 61.992 | HC80: 62.208 | HD80: 62.424 | HE80: 62.64 | HF80: 62.856 | HG80: 63.072 | HH80: 63.288 | HI80: 63.504 | HJ80: 63.72 | HK80: 63.936 | HL80: 64.152 | HM80: 64.368 | HN80: 64.584 | HO80: 64.8
A81: =Corn!$B$51/10 -> 0.003 | B81: =SUM(A81:$A$151) -> 0.213 | C81: 0.226 | D81: 17.253 | E81: 17.466 | F81: 17.679 | G81: 17.892 | H81: 18.105 | I81: 18.318 | J81: 18.531 | K81: 18.744 | L81: 18.957 | M81: 19.17 | N81: 19.383 | O81: 19.596 | P81: 19.809 | Q81: 20.022 | R81: 20.235 | S81: 20.448 | T81: 20.661 | U81: 20.874 | V81: 21.087 | W81: 21.3 | X81: 21.513 | Y81: 21.726 | Z81: 21.939 | AA81: 22.152 | AB81: 22.365 | AC81: 22.578 | AD81: 22.791 | AE81: 23.004 | AF81: 23.217 | AG81: 23.43 | AH81: 23.643 | AI81: 23.856 | AJ81: 24.069 | AK81: 24.282 | AL81: 24.495 | AM81: 24.708 | AN81: 24.921 | AO81: 25.134 | AP81: 25.347 | AQ81: 25.56 | AR81: 25.773 | AS81: 25.986 | AT81: 26.199 | AU81: 26.412 | AV81: 26.625 | AW81: 26.838 | AX81: 27.051 | AY81: 27.264 | AZ81: 27.477 | BA81: 27.69 | BB81: 27.903 | BC81: 28.116 | BD81: 28.329 | BE81: 28.542 | BF81: 28.755 | BG81: 28.968 | BH81: 29.181 | BI81: 29.394 | BJ81: 29.607 | BK81: 29.82 | BL81: 30.033 | BM81: 30.246 | BN81: 30.459 | BO81: 30.672 | BP81: 30.885 | BQ81: 31.098 | BR81: 31.311 | BS81: 31.524 | BT81: 31.737 | BU81: 31.95 | BV81: 32.163 | BW81: 32.376 | BX81: 32.589 | BY81: 32.802 | BZ81: 33.015 | CA81: 33.228 | CB81: 33.441 | CC81: 33.654 | CD81: 33.867 | CE81: 34.08 | CF81: 34.293 | CG81: 34.506 | CH81: 34.719 | CI81: 34.932 | CJ81: 35.145 | CK81: 35.358 | CL81: 35.571 | CM81: 35.784 | CN81: 35.997 | CO81: 36.21 | CP81: 36.423 | CQ81: 36.636 | CR81: 36.849 | CS81: 37.062 | CT81: 37.275 | CU81: 37.488 | CV81: 37.701 | CW81: 37.914 | CX81: 38.127 | CY81: 38.34 | CZ81: 38.553 | DA81: 38.766 | DB81: 38.979 | DC81: 39.192 | DD81: 39.405 | DE81: 39.618 | DF81: 39.831 | DG81: 40.044 | DH81: 40.257 | DI81: 40.47 | DJ81: 40.683 | DK81: 40.896 | DL81: 41.109 | DM81: 41.322 | DN81: 41.535 | DO81: 41.748 | DP81: 41.961 | DQ81: 42.174 | DR81: 42.387 | DS81: 42.6 | DT81: 42.813 | DU81: 43.026 | DV81: 43.239 | DW81: 43.452 | DX81: 43.665 | DY81: 43.878 | DZ81: 44.091 | EA81: 44.304 | EB81: 44.517 | EC81: 44.73 | ED81: 44.943 | EE81: 45.156 | EF81: 45.369 | EG81: 45.582 | EH81: 45.795 | EI81: 46.008 | EJ81: 46.221 | EK81: 46.434 | EL81: 46.647 | EM81: 46.86 | EN81: 47.073 | EO81: 47.286 | EP81: 47.499 | EQ81: 47.712 | ER81: 47.925 | ES81: 48.138 | ET81: 48.351 | EU81: 48.564 | EV81: 48.777 | EW81: 48.99 | EX81: 49.203 | EY81: 49.416 | EZ81: 49.629 | FA81: 49.842 | FB81: 50.055 | FC81: 50.268 | FD81: 50.481 | FE81: 50.694 | FF81: 50.907 | FG81: 51.12 | FH81: 51.333 | FI81: 51.546 | FJ81: 51.759 | FK81: 51.972 | FL81: 52.185 | FM81: 52.398 | FN81: 52.611 | FO81: 52.824 | FP81: 53.037 | FQ81: 53.25 | FR81: 53.463 | FS81: 53.676 | FT81: 53.889 | FU81: 54.102 | FV81: 54.315 | FW81: 54.528 | FX81: 54.741 | FY81: 54.954 | FZ81: 55.167 | GA81: 55.38 | GB81: 55.593 | GC81: 55.806 | GD81: 56.019 | GE81: 56.232 | GF81: 56.445 | GG81: 56.658 | GH81: 56.871 | GI81: 57.084 | GJ81: 57.297 | GK81: 57.51 | GL81: 57.723 | GM81: 57.936 | GN81: 58.149 | GO81: 58.362 | GP81: 58.575 | GQ81: 58.788 | GR81: 59.001 | GS81: 59.214 | GT81: 59.427 | GU81: 59.64 | GV81: 59.853 | GW81: 60.066 | GX81: 60.279 | GY81: 60.492 | GZ81: 60.705 | HA81: 60.918 | HB81: 61.131 | HC81: 61.344 | HD81: 61.557 | HE81: 61.77 | HF81: 61.983 | HG81: 62.196 | HH81: 62.409 | HI81: 62.622 | HJ81: 62.835 | HK81: 63.048 | HL81: 63.261 | HM81: 63.474 | HN81: 63.687 | HO81: 63.9
A82: =Corn!$B$51/10 -> 0.003 | B82: =SUM(A82:$A$151) -> 0.21 | C82: 0.225 | D82: 17.01 | E82: 17.22 | F82: 17.43 | G82: 17.64 | H82: 17.85 | I82: 18.06 | J82: 18.27 | K82: 18.48 | L82: 18.69 | M82: 18.9 | N82: 19.11 | O82: 19.32 | P82: 19.53 | Q82: 19.74 | R82: 19.95 | S82: 20.16 | T82: 20.37 | U82: 20.58 | V82: 20.79 | W82: 21 | X82: 21.21 | Y82: 21.42 | Z82: 21.63 | AA82: 21.84 | AB82: 22.05 | AC82: 22.26 | AD82: 22.47 | AE82: 22.68 | AF82: 22.89 | AG82: 23.1 | AH82: 23.31 | AI82: 23.52 | AJ82: 23.73 | AK82: 23.94 | AL82: 24.15 | AM82: 24.36 | AN82: 24.57 | AO82: 24.78 | AP82: 24.99 | AQ82: 25.2 | AR82: 25.41 | AS82: 25.62 | AT82: 25.83 | AU82: 26.04 | AV82: 26.25 | AW82: 26.46 | AX82: 26.67 | AY82: 26.88 | AZ82: 27.09 | BA82: 27.3 | BB82: 27.51 | BC82: 27.72 | BD82: 27.93 | BE82: 28.14 | BF82: 28.35 | BG82: 28.56 | BH82: 28.77 | BI82: 28.98 | BJ82: 29.19 | BK82: 29.4 | BL82: 29.61 | BM82: 29.82 | BN82: 30.03 | BO82: 30.24 | BP82: 30.45 | BQ82: 30.66 | BR82: 30.87 | BS82: 31.08 | BT82: 31.29 | BU82: 31.5 | BV82: 31.71 | BW82: 31.92 | BX82: 32.13 | BY82: 32.34 | BZ82: 32.55 | CA82: 32.76 | CB82: 32.97 | CC82: 33.18 | CD82: 33.39 | CE82: 33.6 | CF82: 33.81 | CG82: 34.02 | CH82: 34.23 | CI82: 34.44 | CJ82: 34.65 | CK82: 34.86 | CL82: 35.07 | CM82: 35.28 | CN82: 35.49 | CO82: 35.7 | CP82: 35.91 | CQ82: 36.12 | CR82: 36.33 | CS82: 36.54 | CT82: 36.75 | CU82: 36.96 | CV82: 37.17 | CW82: 37.38 | CX82: 37.59 | CY82: 37.8 | CZ82: 38.01 | DA82: 38.22 | DB82: 38.43 | DC82: 38.64 | DD82: 38.85 | DE82: 39.06 | DF82: 39.27 | DG82: 39.48 | DH82: 39.69 | DI82: 39.9 | DJ82: 40.11 | DK82: 40.32 | DL82: 40.53 | DM82: 40.74 | DN82: 40.95 | DO82: 41.16 | DP82: 41.37 | DQ82: 41.58 | DR82: 41.79 | DS82: 42 | DT82: 42.21 | DU82: 42.42 | DV82: 42.63 | DW82: 42.84 | DX82: 43.05 | DY82: 43.26 | DZ82: 43.47 | EA82: 43.68 | EB82: 43.89 | EC82: 44.1 | ED82: 44.31 | EE82: 44.52 | EF82: 44.73 | EG82: 44.94 | EH82: 45.15 | EI82: 45.36 | EJ82: 45.57 | EK82: 45.78 | EL82: 45.99 | EM82: 46.2 | EN82: 46.41 | EO82: 46.62 | EP82: 46.83 | EQ82: 47.04 | ER82: 47.25 | ES82: 47.46 | ET82: 47.67 | EU82: 47.88 | EV82: 48.09 | EW82: 48.3 | EX82: 48.51 | EY82: 48.72 | EZ82: 48.93 | FA82: 49.14 | FB82: 49.35 | FC82: 49.56 | FD82: 49.77 | FE82: 49.98 | FF82: 50.19 | FG82: 50.4 | FH82: 50.61 | FI82: 50.82 | FJ82: 51.03 | FK82: 51.24 | FL82: 51.45 | FM82: 51.66 | FN82: 51.87 | FO82: 52.08 | FP82: 52.29 | FQ82: 52.5 | FR82: 52.71 | FS82: 52.92 | FT82: 53.13 | FU82: 53.34 | FV82: 53.55 | FW82: 53.76 | FX82: 53.97 | FY82: 54.18 | FZ82: 54.39 | GA82: 54.6 | GB82: 54.81 | GC82: 55.02 | GD82: 55.23 | GE82: 55.44 | GF82: 55.65 | GG82: 55.86 | GH82: 56.07 | GI82: 56.28 | GJ82: 56.49 | GK82: 56.7 | GL82: 56.91 | GM82: 57.12 | GN82: 57.33 | GO82: 57.54 | GP82: 57.75 | GQ82: 57.96 | GR82: 58.17 | GS82: 58.38 | GT82: 58.59 | GU82: 58.8 | GV82: 59.01 | GW82: 59.22 | GX82: 59.43 | GY82: 59.64 | GZ82: 59.85 | HA82: 60.06 | HB82: 60.27 | HC82: 60.48 | HD82: 60.69 | HE82: 60.9 | HF82: 61.11 | HG82: 61.32 | HH82: 61.53 | HI82: 61.74 | HJ82: 61.95 | HK82: 62.16 | HL82: 62.37 | HM82: 62.58 | HN82: 62.79 | HO82: 63
A83: =Corn!$B$51/10 -> 0.003 | B83: =SUM(A83:$A$151) -> 0.207 | C83: 0.224 | D83: 16.767 | E83: 16.974 | F83: 17.181 | G83: 17.388 | H83: 17.595 | I83: 17.802 | J83: 18.009 | K83: 18.216 | L83: 18.423 | M83: 18.63 | N83: 18.837 | O83: 19.044 | P83: 19.251 | Q83: 19.458 | R83: 19.665 | S83: 19.872 | T83: 20.079 | U83: 20.286 | V83: 20.493 | W83: 20.7 | X83: 20.907 | Y83: 21.114 | Z83: 21.321 | AA83: 21.528 | AB83: 21.735 | AC83: 21.942 | AD83: 22.149 | AE83: 22.356 | AF83: 22.563 | AG83: 22.77 | AH83: 22.977 | AI83: 23.184 | AJ83: 23.391 | AK83: 23.598 | AL83: 23.805 | AM83: 24.012 | AN83: 24.219 | AO83: 24.426 | AP83: 24.633 | AQ83: 24.84 | AR83: 25.047 | AS83: 25.254 | AT83: 25.461 | AU83: 25.668 | AV83: 25.875 | AW83: 26.082 | AX83: 26.289 | AY83: 26.496 | AZ83: 26.703 | BA83: 26.91 | BB83: 27.117 | BC83: 27.324 | BD83: 27.531 | BE83: 27.738 | BF83: 27.945 | BG83: 28.152 | BH83: 28.359 | BI83: 28.566 | BJ83: 28.773 | BK83: 28.98 | BL83: 29.187 | BM83: 29.394 | BN83: 29.601 | BO83: 29.808 | BP83: 30.015 | BQ83: 30.222 | BR83: 30.429 | BS83: 30.636 | BT83: 30.843 | BU83: 31.05 | BV83: 31.257 | BW83: 31.464 | BX83: 31.671 | BY83: 31.878 | BZ83: 32.085 | CA83: 32.292 | CB83: 32.499 | CC83: 32.706 | CD83: 32.913 | CE83: 33.12 | CF83: 33.327 | CG83: 33.534 | CH83: 33.741 | CI83: 33.948 | CJ83: 34.155 | CK83: 34.362 | CL83: 34.569 | CM83: 34.776 | CN83: 34.983 | CO83: 35.19 | CP83: 35.397 | CQ83: 35.604 | CR83: 35.811 | CS83: 36.018 | CT83: 36.225 | CU83: 36.432 | CV83: 36.639 | CW83: 36.846 | CX83: 37.053 | CY83: 37.26 | CZ83: 37.467 | DA83: 37.674 | DB83: 37.881 | DC83: 38.088 | DD83: 38.295 | DE83: 38.502 | DF83: 38.709 | DG83: 38.916 | DH83: 39.123 | DI83: 39.33 | DJ83: 39.537 | DK83: 39.744 | DL83: 39.951 | DM83: 40.158 | DN83: 40.365 | DO83: 40.572 | DP83: 40.779 | DQ83: 40.986 | DR83: 41.193 | DS83: 41.4 | DT83: 41.607 | DU83: 41.814 | DV83: 42.021 | DW83: 42.228 | DX83: 42.435 | DY83: 42.642 | DZ83: 42.849 | EA83: 43.056 | EB83: 43.263 | EC83: 43.47 | ED83: 43.677 | EE83: 43.884 | EF83: 44.091 | EG83: 44.298 | EH83: 44.505 | EI83: 44.712 | EJ83: 44.919 | EK83: 45.126 | EL83: 45.333 | EM83: 45.54 | EN83: 45.747 | EO83: 45.954 | EP83: 46.161 | EQ83: 46.368 | ER83: 46.575 | ES83: 46.782 | ET83: 46.989 | EU83: 47.196 | EV83: 47.403 | EW83: 47.61 | EX83: 47.817 | EY83: 48.024 | EZ83: 48.231 | FA83: 48.438 | FB83: 48.645 | FC83: 48.852 | FD83: 49.059 | FE83: 49.266 | FF83: 49.473 | FG83: 49.68 | FH83: 49.887 | FI83: 50.094 | FJ83: 50.301 | FK83: 50.508 | FL83: 50.715 | FM83: 50.922 | FN83: 51.129 | FO83: 51.336 | FP83: 51.543 | FQ83: 51.75 | FR83: 51.957 | FS83: 52.164 | FT83: 52.371 | FU83: 52.578 | FV83: 52.785 | FW83: 52.992 | FX83: 53.199 | FY83: 53.406 | FZ83: 53.613 | GA83: 53.82 | GB83: 54.027 | GC83: 54.234 | GD83: 54.441 | GE83: 54.648 | GF83: 54.855 | GG83: 55.062 | GH83: 55.269 | GI83: 55.476 | GJ83: 55.683 | GK83: 55.89 | GL83: 56.097 | GM83: 56.304 | GN83: 56.511 | GO83: 56.718 | GP83: 56.925 | GQ83: 57.132 | GR83: 57.339 | GS83: 57.546 | GT83: 57.753 | GU83: 57.96 | GV83: 58.167 | GW83: 58.374 | GX83: 58.581 | GY83: 58.788 | GZ83: 58.995 | HA83: 59.202 | HB83: 59.409 | HC83: 59.616 | HD83: 59.823 | HE83: 60.03 | HF83: 60.237 | HG83: 60.444 | HH83: 60.651 | HI83: 60.858 | HJ83: 61.065 | HK83: 61.272 | HL83: 61.479 | HM83: 61.686 | HN83: 61.893 | HO83: 62.1
A84: =Corn!$B$51/10 -> 0.003 | B84: =SUM(A84:$A$151) -> 0.204 | C84: 0.223 | D84: 16.524 | E84: 16.728 | F84: 16.932 | G84: 17.136 | H84: 17.34 | I84: 17.544 | J84: 17.748 | K84: 17.952 | L84: 18.156 | M84: 18.36 | N84: 18.564 | O84: 18.768 | P84: 18.972 | Q84: 19.176 | R84: 19.38 | S84: 19.584 | T84: 19.788 | U84: 19.992 | V84: 20.196 | W84: 20.4 | X84: 20.604 | Y84: 20.808 | Z84: 21.012 | AA84: 21.216 | AB84: 21.42 | AC84: 21.624 | AD84: 21.828 | AE84: 22.032 | AF84: 22.236 | AG84: 22.44 | AH84: 22.644 | AI84: 22.848 | AJ84: 23.052 | AK84: 23.256 | AL84: 23.46 | AM84: 23.664 | AN84: 23.868 | AO84: 24.072 | AP84: 24.276 | AQ84: 24.48 | AR84: 24.684 | AS84: 24.888 | AT84: 25.092 | AU84: 25.296 | AV84: 25.5 | AW84: 25.704 | AX84: 25.908 | AY84: 26.112 | AZ84: 26.316 | BA84: 26.52 | BB84: 26.724 | BC84: 26.928 | BD84: 27.132 | BE84: 27.336 | BF84: 27.54 | BG84: 27.744 | BH84: 27.948 | BI84: 28.152 | BJ84: 28.356 | BK84: 28.56 | BL84: 28.764 | BM84: 28.968 | BN84: 29.172 | BO84: 29.376 | BP84: 29.58 | BQ84: 29.784 | BR84: 29.988 | BS84: 30.192 | BT84: 30.396 | BU84: 30.6 | BV84: 30.804 | BW84: 31.008 | BX84: 31.212 | BY84: 31.416 | BZ84: 31.62 | CA84: 31.824 | CB84: 32.028 | CC84: 32.232 | CD84: 32.436 | CE84: 32.64 | CF84: 32.844 | CG84: 33.048 | CH84: 33.252 | CI84: 33.456 | CJ84: 33.66 | CK84: 33.864 | CL84: 34.068 | CM84: 34.272 | CN84: 34.476 | CO84: 34.68 | CP84: 34.884 | CQ84: 35.088 | CR84: 35.292 | CS84: 35.496 | CT84: 35.7 | CU84: 35.904 | CV84: 36.108 | CW84: 36.312 | CX84: 36.516 | CY84: 36.72 | CZ84: 36.924 | DA84: 37.128 | DB84: 37.332 | DC84: 37.536 | DD84: 37.74 | DE84: 37.944 | DF84: 38.148 | DG84: 38.352 | DH84: 38.556 | DI84: 38.76 | DJ84: 38.964 | DK84: 39.168 | DL84: 39.372 | DM84: 39.576 | DN84: 39.78 | DO84: 39.984 | DP84: 40.188 | DQ84: 40.392 | DR84: 40.596 | DS84: 40.8 | DT84: 41.004 | DU84: 41.208 | DV84: 41.412 | DW84: 41.616 | DX84: 41.82 | DY84: 42.024 | DZ84: 42.228 | EA84: 42.432 | EB84: 42.636 | EC84: 42.84 | ED84: 43.044 | EE84: 43.248 | EF84: 43.452 | EG84: 43.656 | EH84: 43.86 | EI84: 44.064 | EJ84: 44.268 | EK84: 44.472 | EL84: 44.676 | EM84: 44.88 | EN84: 45.084 | EO84: 45.288 | EP84: 45.492 | EQ84: 45.696 | ER84: 45.9 | ES84: 46.104 | ET84: 46.308 | EU84: 46.512 | EV84: 46.716 | EW84: 46.92 | EX84: 47.124 | EY84: 47.328 | EZ84: 47.532 | FA84: 47.736 | FB84: 47.94 | FC84: 48.144 | FD84: 48.348 | FE84: 48.552 | FF84: 48.756 | FG84: 48.96 | FH84: 49.164 | FI84: 49.368 | FJ84: 49.572 | FK84: 49.776 | FL84: 49.98 | FM84: 50.184 | FN84: 50.388 | FO84: 50.592 | FP84: 50.796 | FQ84: 51 | FR84: 51.204 | FS84: 51.408 | FT84: 51.612 | FU84: 51.816 | FV84: 52.02 | FW84: 52.224 | FX84: 52.428 | FY84: 52.632 | FZ84: 52.836 | GA84: 53.04 | GB84: 53.244 | GC84: 53.448 | GD84: 53.652 | GE84: 53.856 | GF84: 54.06 | GG84: 54.264 | GH84: 54.468 | GI84: 54.672 | GJ84: 54.876 | GK84: 55.08 | GL84: 55.284 | GM84: 55.488 | GN84: 55.692 | GO84: 55.896 | GP84: 56.1 | GQ84: 56.304 | GR84: 56.508 | GS84: 56.712 | GT84: 56.916 | GU84: 57.12 | GV84: 57.324 | GW84: 57.528 | GX84: 57.732 | GY84: 57.936 | GZ84: 58.14 | HA84: 58.344 | HB84: 58.548 | HC84: 58.752 | HD84: 58.956 | HE84: 59.16 | HF84: 59.364 | HG84: 59.568 | HH84: 59.772 | HI84: 59.976 | HJ84: 60.18 | HK84: 60.384 | HL84: 60.588 | HM84: 60.792 | HN84: 60.996 | HO84: 61.2
A85: =Corn!$B$51/10 -> 0.003 | B85: =SUM(A85:$A$151) -> 0.201 | C85: 0.222 | D85: 16.281 | E85: 16.482 | F85: 16.683 | G85: 16.884 | H85: 17.085 | I85: 17.286 | J85: 17.487 | K85: 17.688 | L85: 17.889 | M85: 18.09 | N85: 18.291 | O85: 18.492 | P85: 18.693 | Q85: 18.894 | R85: 19.095 | S85: 19.296 | T85: 19.497 | U85: 19.698 | V85: 19.899 | W85: 20.1 | X85: 20.301 | Y85: 20.502 | Z85: 20.703 | AA85: 20.904 | AB85: 21.105 | AC85: 21.306 | AD85: 21.507 | AE85: 21.708 | AF85: 21.909 | AG85: 22.11 | AH85: 22.311 | AI85: 22.512 | AJ85: 22.713 | AK85: 22.914 | AL85: 23.115 | AM85: 23.316 | AN85: 23.517 | AO85: 23.718 | AP85: 23.919 | AQ85: 24.12 | AR85: 24.321 | AS85: 24.522 | AT85: 24.723 | AU85: 24.924 | AV85: 25.125 | AW85: 25.326 | AX85: 25.527 | AY85: 25.728 | AZ85: 25.929 | BA85: 26.13 | BB85: 26.331 | BC85: 26.532 | BD85: 26.733 | BE85: 26.934 | BF85: 27.135 | BG85: 27.336 | BH85: 27.537 | BI85: 27.738 | BJ85: 27.939 | BK85: 28.14 | BL85: 28.341 | BM85: 28.542 | BN85: 28.743 | BO85: 28.944 | BP85: 29.145 | BQ85: 29.346 | BR85: 29.547 | BS85: 29.748 | BT85: 29.949 | BU85: 30.15 | BV85: 30.351 | BW85: 30.552 | BX85: 30.753 | BY85: 30.954 | BZ85: 31.155 | CA85: 31.356 | CB85: 31.557 | CC85: 31.758 | CD85: 31.959 | CE85: 32.16 | CF85: 32.361 | CG85: 32.562 | CH85: 32.763 | CI85: 32.964 | CJ85: 33.165 | CK85: 33.366 | CL85: 33.567 | CM85: 33.768 | CN85: 33.969 | CO85: 34.17 | CP85: 34.371 | CQ85: 34.572 | CR85: 34.773 | CS85: 34.974 | CT85: 35.175 | CU85: 35.376 | CV85: 35.577 | CW85: 35.778 | CX85: 35.979 | CY85: 36.18 | CZ85: 36.381 | DA85: 36.582 | DB85: 36.783 | DC85: 36.984 | DD85: 37.185 | DE85: 37.386 | DF85: 37.587 | DG85: 37.788 | DH85: 37.989 | DI85: 38.19 | DJ85: 38.391 | DK85: 38.592 | DL85: 38.793 | DM85: 38.994 | DN85: 39.195 | DO85: 39.396 | DP85: 39.597 | DQ85: 39.798 | DR85: 39.999 | DS85: 40.2 | DT85: 40.401 | DU85: 40.602 | DV85: 40.803 | DW85: 41.004 | DX85: 41.205 | DY85: 41.406 | DZ85: 41.607 | EA85: 41.808 | EB85: 42.009 | EC85: 42.21 | ED85: 42.411 | EE85: 42.612 | EF85: 42.813 | EG85: 43.014 | EH85: 43.215 | EI85: 43.416 | EJ85: 43.617 | EK85: 43.818 | EL85: 44.019 | EM85: 44.22 | EN85: 44.421 | EO85: 44.622 | EP85: 44.823 | EQ85: 45.024 | ER85: 45.225 | ES85: 45.426 | ET85: 45.627 | EU85: 45.828 | EV85: 46.029 | EW85: 46.23 | EX85: 46.431 | EY85: 46.632 | EZ85: 46.833 | FA85: 47.034 | FB85: 47.235 | FC85: 47.436 | FD85: 47.637 | FE85: 47.838 | FF85: 48.039 | FG85: 48.24 | FH85: 48.441 | FI85: 48.642 | FJ85: 48.843 | FK85: 49.044 | FL85: 49.245 | FM85: 49.446 | FN85: 49.647 | FO85: 49.848 | FP85: 50.049 | FQ85: 50.25 | FR85: 50.451 | FS85: 50.652 | FT85: 50.853 | FU85: 51.054 | FV85: 51.255 | FW85: 51.456 | FX85: 51.657 | FY85: 51.858 | FZ85: 52.059 | GA85: 52.26 | GB85: 52.461 | GC85: 52.662 | GD85: 52.863 | GE85: 53.064 | GF85: 53.265 | GG85: 53.466 | GH85: 53.667 | GI85: 53.868 | GJ85: 54.069 | GK85: 54.27 | GL85: 54.471 | GM85: 54.672 | GN85: 54.873 | GO85: 55.074 | GP85: 55.275 | GQ85: 55.476 | GR85: 55.677 | GS85: 55.878 | GT85: 56.079 | GU85: 56.28 | GV85: 56.481 | GW85: 56.682 | GX85: 56.883 | GY85: 57.084 | GZ85: 57.285 | HA85: 57.486 | HB85: 57.687 | HC85: 57.888 | HD85: 58.089 | HE85: 58.29 | HF85: 58.491 | HG85: 58.692 | HH85: 58.893 | HI85: 59.094 | HJ85: 59.295 | HK85: 59.496 | HL85: 59.697 | HM85: 59.898 | HN85: 60.099 | HO85: 60.3
A86: =Corn!$B$51/10 -> 0.003 | B86: =SUM(A86:$A$151) -> 0.198 | C86: 0.221 | D86: 16.038 | E86: 16.236 | F86: 16.434 | G86: 16.632 | H86: 16.83 | I86: 17.028 | J86: 17.226 | K86: 17.424 | L86: 17.622 | M86: 17.82 | N86: 18.018 | O86: 18.216 | P86: 18.414 | Q86: 18.612 | R86: 18.81 | S86: 19.008 | T86: 19.206 | U86: 19.404 | V86: 19.602 | W86: 19.8 | X86: 19.998 | Y86: 20.196 | Z86: 20.394 | AA86: 20.592 | AB86: 20.79 | AC86: 20.988 | AD86: 21.186 | AE86: 21.384 | AF86: 21.582 | AG86: 21.78 | AH86: 21.978 | AI86: 22.176 | AJ86: 22.374 | AK86: 22.572 | AL86: 22.77 | AM86: 22.968 | AN86: 23.166 | AO86: 23.364 | AP86: 23.562 | AQ86: 23.76 | AR86: 23.958 | AS86: 24.156 | AT86: 24.354 | AU86: 24.552 | AV86: 24.75 | AW86: 24.948 | AX86: 25.146 | AY86: 25.344 | AZ86: 25.542 | BA86: 25.74 | BB86: 25.938 | BC86: 26.136 | BD86: 26.334 | BE86: 26.532 | BF86: 26.73 | BG86: 26.928 | BH86: 27.126 | BI86: 27.324 | BJ86: 27.522 | BK86: 27.72 | BL86: 27.918 | BM86: 28.116 | BN86: 28.314 | BO86: 28.512 | BP86: 28.71 | BQ86: 28.908 | BR86: 29.106 | BS86: 29.304 | BT86: 29.502 | BU86: 29.7 | BV86: 29.898 | BW86: 30.096 | BX86: 30.294 | BY86: 30.492 | BZ86: 30.69 | CA86: 30.888 | CB86: 31.086 | CC86: 31.284 | CD86: 31.482 | CE86: 31.68 | CF86: 31.878 | CG86: 32.076 | CH86: 32.274 | CI86: 32.472 | CJ86: 32.67 | CK86: 32.868 | CL86: 33.066 | CM86: 33.264 | CN86: 33.462 | CO86: 33.66 | CP86: 33.858 | CQ86: 34.056 | CR86: 34.254 | CS86: 34.452 | CT86: 34.65 | CU86: 34.848 | CV86: 35.046 | CW86: 35.244 | CX86: 35.442 | CY86: 35.64 | CZ86: 35.838 | DA86: 36.036 | DB86: 36.234 | DC86: 36.432 | DD86: 36.63 | DE86: 36.828 | DF86: 37.026 | DG86: 37.224 | DH86: 37.422 | DI86: 37.62 | DJ86: 37.818 | DK86: 38.016 | DL86: 38.214 | DM86: 38.412 | DN86: 38.61 | DO86: 38.808 | DP86: 39.006 | DQ86: 39.204 | DR86: 39.402 | DS86: 39.6 | DT86: 39.798 | DU86: 39.996 | DV86: 40.194 | DW86: 40.392 | DX86: 40.59 | DY86: 40.788 | DZ86: 40.986 | EA86: 41.184 | EB86: 41.382 | EC86: 41.58 | ED86: 41.778 | EE86: 41.976 | EF86: 42.174 | EG86: 42.372 | EH86: 42.57 | EI86: 42.768 | EJ86: 42.966 | EK86: 43.164 | EL86: 43.362 | EM86: 43.56 | EN86: 43.758 | EO86: 43.956 | EP86: 44.154 | EQ86: 44.352 | ER86: 44.55 | ES86: 44.748 | ET86: 44.946 | EU86: 45.144 | EV86: 45.342 | EW86: 45.54 | EX86: 45.738 | EY86: 45.936 | EZ86: 46.134 | FA86: 46.332 | FB86: 46.53 | FC86: 46.728 | FD86: 46.926 | FE86: 47.124 | FF86: 47.322 | FG86: 47.52 | FH86: 47.718 | FI86: 47.916 | FJ86: 48.114 | FK86: 48.312 | FL86: 48.51 | FM86: 48.708 | FN86: 48.906 | FO86: 49.104 | FP86: 49.302 | FQ86: 49.5 | FR86: 49.698 | FS86: 49.896 | FT86: 50.094 | FU86: 50.292 | FV86: 50.49 | FW86: 50.688 | FX86: 50.886 | FY86: 51.084 | FZ86: 51.282 | GA86: 51.48 | GB86: 51.678 | GC86: 51.876 | GD86: 52.074 | GE86: 52.272 | GF86: 52.47 | GG86: 52.668 | GH86: 52.866 | GI86: 53.064 | GJ86: 53.262 | GK86: 53.46 | GL86: 53.658 | GM86: 53.856 | GN86: 54.054 | GO86: 54.252 | GP86: 54.45 | GQ86: 54.648 | GR86: 54.846 | GS86: 55.044 | GT86: 55.242 | GU86: 55.44 | GV86: 55.638 | GW86: 55.836 | GX86: 56.034 | GY86: 56.232 | GZ86: 56.43 | HA86: 56.628 | HB86: 56.826 | HC86: 57.024 | HD86: 57.222 | HE86: 57.42 | HF86: 57.618 | HG86: 57.816 | HH86: 58.014 | HI86: 58.212 | HJ86: 58.41 | HK86: 58.608 | HL86: 58.806 | HM86: 59.004 | HN86: 59.202 | HO86: 59.4
A87: =Corn!$B$51/10 -> 0.003 | B87: =SUM(A87:$A$151) -> 0.195 | C87: 0.22 | D87: 15.795 | E87: 15.99 | F87: 16.185 | G87: 16.38 | H87: 16.575 | I87: 16.77 | J87: 16.965 | K87: 17.16 | L87: 17.355 | M87: 17.55 | N87: 17.745 | O87: 17.94 | P87: 18.135 | Q87: 18.33 | R87: 18.525 | S87: 18.72 | T87: 18.915 | U87: 19.11 | V87: 19.305 | W87: 19.5 | X87: 19.695 | Y87: 19.89 | Z87: 20.085 | AA87: 20.28 | AB87: 20.475 | AC87: 20.67 | AD87: 20.865 | AE87: 21.06 | AF87: 21.255 | AG87: 21.45 | AH87: 21.645 | AI87: =AI$158*$B87 -> 21.84 | AJ87: 22.035 | AK87: 22.23 | AL87: 22.425 | AM87: 22.62 | AN87: 22.815 | AO87: 23.01 | AP87: 23.205 | AQ87: 23.4 | AR87: 23.595 | AS87: 23.79 | AT87: 23.985 | AU87: 24.18 | AV87: 24.375 | AW87: 24.57 | AX87: 24.765 | AY87: 24.96 | AZ87: 25.155 | BA87: 25.35 | BB87: 25.545 | BC87: 25.74 | BD87: 25.935 | BE87: 26.13 | BF87: 26.325 | BG87: 26.52 | BH87: 26.715 | BI87: 26.91 | BJ87: 27.105 | BK87: 27.3 | BL87: 27.495 | BM87: 27.69 | BN87: 27.885 | BO87: =BO$158*$B87 -> 28.08 | BP87: 28.275 | BQ87: 28.47 | BR87: 28.665 | BS87: 28.86 | BT87: 29.055 | BU87: 29.25 | BV87: 29.445 | BW87: 29.64 | BX87: 29.835 | BY87: 30.03 | BZ87: 30.225 | CA87: 30.42 | CB87: 30.615 | CC87: 30.81 | CD87: 31.005 | CE87: 31.2 | CF87: 31.395 | CG87: 31.59 | CH87: 31.785 | CI87: 31.98 | CJ87: 32.175 | CK87: 32.37 | CL87: 32.565 | CM87: 32.76 | CN87: 32.955 | CO87: 33.15 | CP87: 33.345 | CQ87: 33.54 | CR87: 33.735 | CS87: 33.93 | CT87: 34.125 | CU87: =CU$158*$B87 -> 34.32 | CV87: 34.515 | CW87: 34.71 | CX87: 34.905 | CY87: 35.1 | CZ87: 35.295 | DA87: 35.49 | DB87: 35.685 | DC87: 35.88 | DD87: 36.075 | DE87: 36.27 | DF87: 36.465 | DG87: 36.66 | DH87: 36.855 | DI87: 37.05 | DJ87: 37.245 | DK87: 37.44 | DL87: 37.635 | DM87: 37.83 | DN87: 38.025 | DO87: 38.22 | DP87: 38.415 | DQ87: 38.61 | DR87: 38.805 | DS87: 39 | DT87: 39.195 | DU87: 39.39 | DV87: 39.585 | DW87: 39.78 | DX87: 39.975 | DY87: 40.17 | DZ87: 40.365 | EA87: =EA$158*$B87 -> 40.56 | EB87: 40.755 | EC87: 40.95 | ED87: 41.145 | EE87: 41.34 | EF87: 41.535 | EG87: 41.73 | EH87: 41.925 | EI87: 42.12 | EJ87: 42.315 | EK87: 42.51 | EL87: 42.705 | EM87: 42.9 | EN87: 43.095 | EO87: 43.29 | EP87: 43.485 | EQ87: 43.68 | ER87: 43.875 | ES87: 44.07 | ET87: 44.265 | EU87: 44.46 | EV87: 44.655 | EW87: 44.85 | EX87: 45.045 | EY87: 45.24 | EZ87: 45.435 | FA87: 45.63 | FB87: 45.825 | FC87: 46.02 | FD87: 46.215 | FE87: 46.41 | FF87: 46.605 | FG87: =FG$158*$B87 -> 46.8 | FH87: 46.995 | FI87: 47.19 | FJ87: 47.385 | FK87: 47.58 | FL87: 47.775 | FM87: 47.97 | FN87: 48.165 | FO87: 48.36 | FP87: 48.555 | FQ87: 48.75 | FR87: 48.945 | FS87: 49.14 | FT87: 49.335 | FU87: 49.53 | FV87: 49.725 | FW87: 49.92 | FX87: 50.115 | FY87: 50.31 | FZ87: 50.505 | GA87: 50.7 | GB87: 50.895 | GC87: 51.09 | GD87: 51.285 | GE87: 51.48 | GF87: 51.675 | GG87: 51.87 | GH87: 52.065 | GI87: 52.26 | GJ87: 52.455 | GK87: 52.65 | GL87: 52.845 | GM87: =GM$158*$B87 -> 53.04 | GN87: 53.235 | GO87: 53.43 | GP87: 53.625 | GQ87: 53.82 | GR87: 54.015 | GS87: 54.21 | GT87: 54.405 | GU87: 54.6 | GV87: 54.795 | GW87: 54.99 | GX87: 55.185 | GY87: 55.38 | GZ87: 55.575 | HA87: 55.77 | HB87: 55.965 | HC87: 56.16 | HD87: 56.355 | HE87: 56.55 | HF87: 56.745 | HG87: 56.94 | HH87: 57.135 | HI87: 57.33 | HJ87: 57.525 | HK87: 57.72 | HL87: 57.915 | HM87: 58.11 | HN87: 58.305 | HO87: 58.5
A88: =Corn!$B$51/10 -> 0.003 | B88: =SUM(A88:$A$151) -> 0.192 | C88: 0.219 | D88: 15.552 | E88: 15.744 | F88: 15.936 | G88: 16.128 | H88: 16.32 | I88: 16.512 | J88: 16.704 | K88: 16.896 | L88: 17.088 | M88: 17.28 | N88: 17.472 | O88: 17.664 | P88: 17.856 | Q88: 18.048 | R88: 18.24 | S88: =S$158*$B88 -> 18.432 | T88: 18.624 | U88: 18.816 | V88: 19.008 | W88: 19.2 | X88: 19.392 | Y88: 19.584 | Z88: 19.776 | AA88: 19.968 | AB88: 20.16 | AC88: 20.352 | AD88: 20.544 | AE88: 20.736 | AF88: 20.928 | AG88: 21.12 | AH88: 21.312 | AI88: 21.504 | AJ88: 21.696 | AK88: 21.888 | AL88: 22.08 | AM88: 22.272 | AN88: 22.464 | AO88: 22.656 | AP88: 22.848 | AQ88: 23.04 | AR88: 23.232 | AS88: 23.424 | AT88: 23.616 | AU88: 23.808 | AV88: 24 | AW88: 24.192 | AX88: 24.384 | AY88: 24.576 | AZ88: 24.768 | BA88: 24.96 | BB88: 25.152 | BC88: 25.344 | BD88: 25.536 | BE88: 25.728 | BF88: 25.92 | BG88: 26.112 | BH88: 26.304 | BI88: 26.496 | BJ88: 26.688 | BK88: 26.88 | BL88: 27.072 | BM88: 27.264 | BN88: =BN$158*$B88 -> 27.456 | BO88: 27.648 | BP88: 27.84 | BQ88: 28.032 | BR88: 28.224 | BS88: 28.416 | BT88: 28.608 | BU88: 28.8 | BV88: 28.992 | BW88: 29.184 | BX88: 29.376 | BY88: 29.568 | BZ88: 29.76 | CA88: 29.952 | CB88: 30.144 | CC88: 30.336 | CD88: 30.528 | CE88: 30.72 | CF88: 30.912 | CG88: 31.104 | CH88: 31.296 | CI88: 31.488 | CJ88: 31.68 | CK88: 31.872 | CL88: 32.064 | CM88: 32.256 | CN88: 32.448 | CO88: 32.64 | CP88: 32.832 | CQ88: 33.024 | CR88: 33.216 | CS88: 33.408 | CT88: =CT$158*$B88 -> 33.6 | CU88: 33.792 | CV88: 33.984 | CW88: 34.176 | CX88: 34.368 | CY88: 34.56 | CZ88: 34.752 | DA88: 34.944 | DB88: 35.136 | DC88: 35.328 | DD88: 35.52 | DE88: 35.712 | DF88: 35.904 | DG88: 36.096 | DH88: 36.288 | DI88: 36.48 | DJ88: 36.672 | DK88: 36.864 | DL88: 37.056 | DM88: 37.248 | DN88: 37.44 | DO88: 37.632 | DP88: 37.824 | DQ88: 38.016 | DR88: 38.208 | DS88: 38.4 | DT88: 38.592 | DU88: 38.784 | DV88: 38.976 | DW88: 39.168 | DX88: 39.36 | DY88: 39.552 | DZ88: =DZ$158*$B88 -> 39.744 | EA88: 39.936 | EB88: 40.128 | EC88: 40.32 | ED88: 40.512 | EE88: 40.704 | EF88: 40.896 | EG88: 41.088 | EH88: 41.28 | EI88: 41.472 | EJ88: 41.664 | EK88: 41.856 | EL88: 42.048 | EM88: 42.24 | EN88: 42.432 | EO88: 42.624 | EP88: 42.816 | EQ88: 43.008 | ER88: 43.2 | ES88: 43.392 | ET88: 43.584 | EU88: 43.776 | EV88: 43.968 | EW88: 44.16 | EX88: 44.352 | EY88: 44.544 | EZ88: 44.736 | FA88: 44.928 | FB88: 45.12 | FC88: 45.312 | FD88: 45.504 | FE88: 45.696 | FF88: =FF$158*$B88 -> 45.888 | FG88: 46.08 | FH88: 46.272 | FI88: 46.464 | FJ88: 46.656 | FK88: 46.848 | FL88: 47.04 | FM88: 47.232 | FN88: 47.424 | FO88: 47.616 | FP88: 47.808 | FQ88: 48 | FR88: 48.192 | FS88: 48.384 | FT88: 48.576 | FU88: 48.768 | FV88: 48.96 | FW88: 49.152 | FX88: 49.344 | FY88: 49.536 | FZ88: 49.728 | GA88: 49.92 | GB88: 50.112 | GC88: 50.304 | GD88: 50.496 | GE88: 50.688 | GF88: 50.88 | GG88: 51.072 | GH88: 51.264 | GI88: 51.456 | GJ88: 51.648 | GK88: 51.84 | GL88: =GL$158*$B88 -> 52.032 | GM88: 52.224 | GN88: 52.416 | GO88: 52.608 | GP88: 52.8 | GQ88: 52.992 | GR88: 53.184 | GS88: 53.376 | GT88: 53.568 | GU88: 53.76 | GV88: 53.952 | GW88: 54.144 | GX88: 54.336 | GY88: 54.528 | GZ88: 54.72 | HA88: 54.912 | HB88: 55.104 | HC88: 55.296 | HD88: 55.488 | HE88: 55.68 | HF88: 55.872 | HG88: 56.064 | HH88: 56.256 | HI88: 56.448 | HJ88: 56.64 | HK88: 56.832 | HL88: 57.024 | HM88: 57.216 | HN88: 57.408 | HO88: 57.6
A89: =Corn!$B$51/10 -> 0.003 | B89: =SUM(A89:$A$151) -> 0.189 | C89: 0.218 | D89: =D$158*$B89 -> 15.309 | E89: 15.498 | F89: 15.687 | G89: 15.876 | H89: 16.065 | I89: 16.254 | J89: 16.443 | K89: 16.632 | L89: 16.821 | M89: 17.01 | N89: 17.199 | O89: 17.388 | P89: 17.577 | Q89: 17.766 | R89: 17.955 | S89: 18.144 | T89: 18.333 | U89: 18.522 | V89: 18.711 | W89: 18.9 | X89: 19.089 | Y89: 19.278 | Z89: 19.467 | AA89: 19.656 | AB89: 19.845 | AC89: 20.034 | AD89: 20.223 | AE89: 20.412 | AF89: 20.601 | AG89: 20.79 | AH89: 20.979 | AI89: 21.168 | AJ89: 21.357 | AK89: 21.546 | AL89: 21.735 | AM89: 21.924 | AN89: 22.113 | AO89: 22.302 | AP89: 22.491 | AQ89: 22.68 | AR89: 22.869 | AS89: 23.058 | AT89: 23.247 | AU89: 23.436 | AV89: 23.625 | AW89: 23.814 | AX89: 24.003 | AY89: 24.192 | AZ89: =AZ$158*$B89 -> 24.381 | BA89: 24.57 | BB89: 24.759 | BC89: 24.948 | BD89: 25.137 | BE89: 25.326 | BF89: 25.515 | BG89: 25.704 | BH89: 25.893 | BI89: 26.082 | BJ89: 26.271 | BK89: 26.46 | BL89: 26.649 | BM89: 26.838 | BN89: 27.027 | BO89: 27.216 | BP89: 27.405 | BQ89: 27.594 | BR89: 27.783 | BS89: 27.972 | BT89: 28.161 | BU89: =BU$158*$B89 -> 28.35 | BV89: 28.539 | BW89: 28.728 | BX89: 28.917 | BY89: 29.106 | BZ89: 29.295 | CA89: 29.484 | CB89: 29.673 | CC89: 29.862 | CD89: 30.051 | CE89: 30.24 | CF89: 30.429 | CG89: 30.618 | CH89: 30.807 | CI89: 30.996 | CJ89: 31.185 | CK89: =CK$158*$B89 -> 31.374 | CL89: 31.563 | CM89: 31.752 | CN89: 31.941 | CO89: 32.13 | CP89: 32.319 | CQ89: 32.508 | CR89: 32.697 | CS89: 32.886 | CT89: 33.075 | CU89: 33.264 | CV89: 33.453 | CW89: 33.642 | CX89: 33.831 | CY89: 34.02 | CZ89: 34.209 | DA89: 34.398 | DB89: 34.587 | DC89: 34.776 | DD89: 34.965 | DE89: 35.154 | DF89: 35.343 | DG89: 35.532 | DH89: 35.721 | DI89: 35.91 | DJ89: 36.099 | DK89: 36.288 | DL89: =DL$158*$B89 -> 36.477 | DM89: 36.666 | DN89: 36.855 | DO89: 37.044 | DP89: 37.233 | DQ89: 37.422 | DR89: 37.611 | DS89: 37.8 | DT89: 37.989 | DU89: 38.178 | DV89: 38.367 | DW89: 38.556 | DX89: 38.745 | DY89: 38.934 | DZ89: 39.123 | EA89: 39.312 | EB89: 39.501 | EC89: 39.69 | ED89: 39.879 | EE89: 40.068 | EF89: 40.257 | EG89: =EG$158*$B89 -> 40.446 | EH89: 40.635 | EI89: 40.824 | EJ89: 41.013 | EK89: 41.202 | EL89: 41.391 | EM89: 41.58 | EN89: 41.769 | EO89: 41.958 | EP89: 42.147 | EQ89: 42.336 | ER89: 42.525 | ES89: 42.714 | ET89: 42.903 | EU89: 43.092 | EV89: 43.281 | EW89: =EW$158*$B89 -> 43.47 | EX89: 43.659 | EY89: 43.848 | EZ89: 44.037 | FA89: 44.226 | FB89: 44.415 | FC89: 44.604 | FD89: 44.793 | FE89: 44.982 | FF89: 45.171 | FG89: 45.36 | FH89: 45.549 | FI89: 45.738 | FJ89: 45.927 | FK89: 46.116 | FL89: 46.305 | FM89: 46.494 | FN89: 46.683 | FO89: 46.872 | FP89: 47.061 | FQ89: 47.25 | FR89: 47.439 | FS89: 47.628 | FT89: 47.817 | FU89: 48.006 | FV89: 48.195 | FW89: 48.384 | FX89: =FX$158*$B89 -> 48.573 | FY89: 48.762 | FZ89: 48.951 | GA89: 49.14 | GB89: 49.329 | GC89: 49.518 | GD89: 49.707 | GE89: 49.896 | GF89: 50.085 | GG89: 50.274 | GH89: 50.463 | GI89: 50.652 | GJ89: 50.841 | GK89: 51.03 | GL89: 51.219 | GM89: 51.408 | GN89: 51.597 | GO89: 51.786 | GP89: 51.975 | GQ89: 52.164 | GR89: 52.353 | GS89: =GS$158*$B89 -> 52.542 | GT89: 52.731 | GU89: 52.92 | GV89: 53.109 | GW89: 53.298 | GX89: 53.487 | GY89: 53.676 | GZ89: 53.865 | HA89: 54.054 | HB89: 54.243 | HC89: 54.432 | HD89: 54.621 | HE89: 54.81 | HF89: 54.999 | HG89: 55.188 | HH89: 55.377 | HI89: 55.566 | HJ89: 55.755 | HK89: 55.944 | HL89: 56.133 | HM89: 56.322 | HN89: 56.511 | HO89: 56.7
